Workbook

Sheet Menu
Z1: 5
Z4: 2
A6: Panhandle Extension District - 1
D8: Budgets
D11: Forage Crops
D13: =+AlfalfaEstablish!A3 -> Alfalfa Establishment, Sprinkler Irrigated (NG), Fall Seeding Only
D14: =AlfalfaHay!A3 -> Alfalfa, Sprinkler Irrigated (NG)
D15: =CornSilage!A3 -> Corn Silage, Bt, Sprinkler Irrigated (NG)
D16: =SudangrassDryland!A3 -> Sorghum Sudangrass, Dryland, Grazing
D17: =SudangrassSprinkler!A3 -> Sorghum Sudangrass, Sprinkler Irrigated (NG), Grazing
B18: Comparative Returns | D18: =SorghumSilage!A3 -> Sorghum Silage, Sprinkler Irrigated
D19: =TriticaleSilage!A3 -> Triticale Silage, Sprinkler Irrigated (NG)
B20: Links
D21: Field Crops - Irrigated
D23: =CornSprinkler!A3 -> Bt Corn for Grain, Sprinkler Irrigated (NG)
D24: =CornStripTill!A3 -> Bt Corn for Grain, Strip Till
D25: =PepperNoMulch!A3 -> Jalapeño Pepper, Drip Irrigated
D26: =PepperMulch!A3 -> Jalapeño Pepper, Plastic Mulch, Drip Irrigated
D27: =SunflowersConfectionary!A3 -> Confectionary Sunflowers, Sprinkler Irrigated, Strip Tillage
D28: =SorghumSprinkler!A3 -> Continuous Sorghum, Sprinkler Irrigated (NG)
D29: =WheatSprinkler!A3 -> Continuous Wheat, Sprinkler Irrigated (NG)
D30: =CottonIrrigated!A3 -> Cotton, Sprinkler Irrigated (Roundup Ready Flex)
D31: =SunflowersOilseed!A3 -> Oilseed Sunflowers, Sprinkler Irrigated, Strip Tillage
D32: =Peanuts!A3 -> Peanuts, Runner, Sprinkler Irrigated
D33: =CanolaIrrigated!A3 -> Roundup Ready Canola, Sprinkler Irrigated (NG)
D34: =SeedSorghum!A3 -> Seed Sorghum, Sprinkler Irrigated (NG)
D35: =SoybeansSprinkler!A3 -> Soybeans, Roundup Ready, Sprinkler Irrigated (NG)
D36: =SweetCornMulch!A3 -> Sweet Corn, Plastic Mulch, Drip Irrigated
D37: =SweetCornNoMulch!A3 -> Sweet Corn, Drip Irrigated
D38: =TomatoNoMulch!A3 -> Tomato, Drip Irrigated
D39: =TomatoMulch!A3 -> Tomato, Plastic Mulch, Drip Irrigated
D41: Field Crops - Dryland
D43: =CottonDryland!A3 -> Cotton, Dryland (Roundup Ready Flex)
D44: =SorghumRotation!A3 -> Rotation, Sorghum-Fallow-Wheat, Minimum Till, Sorghum
D45: =FallowRotation!A3 -> Rotation, Sorghum-Fallow-Wheat, Minimum Till, Fallow
D46: =WheatRotation!A3 -> Rotation, Sorghum-Fallow-Wheat, Minimum Till, Wheat with Grazing
D47: =SorghumDryland!A3 -> Sorghum, Dryland, Continuous, Minimum Tillage
D48: =SunflowersDryland!A3 -> Oilseed Sunflowers, Dryland, Strip Tillage
D49: =WheatDryland!A3 -> Continuous Wheat, Dryland, Grazed
D50: =CanolaDryland!A3 -> Roundup Ready Canola, Dryland
D52: Livestock
D54: =+CowCalf!A3 -> Cow-Calf Budget
D55: =+StockersSummer!A3 -> Summer Stocker Calf Budget
D56: =StockerWinter!A3 -> Winter Stocker Calf Budget
D58: Other Budgets
D60: ='Livestock Budget'!A3 -> Livestock Budget
D61: ='Crop Budget'!A3 -> Crop Enterprise
A75: Developed by Justin Benavidez, Assistant Professor, Texas A&M AgriLife Extension, 806-677-5600.

Sheet Links
B2: Texas Crop and Livestock Budgets
B3: A Program of the Texas A&M AgriLife Extension Service
B4: Agricultural Economics Department, The Texas A&M University System
B6: Developed by Texas A&M AgriLife Extension Service Economists and Other Specialists
B8: Contact Us | G8: Clickable Logos
B10: Resources
B12: Decision Aids (includes Machinery Cost Estimator)
B14: Custom Rate Survey
B16: Basis Data
B18: Master Marketer
B20: Extension Ag Economics
B22: Department of Agricultural Economics
B24: Menu Page
B26: Links last checked 1/25/2024

Sheet TomatoMulch
A1: Projections for Planning Purposes Only -- Not to be Used without Updating
A2: 2024 Estimated Costs and Returns per Acre
A3: Tomato, Plastic Mulch, Drip Irrigated
A4: Enter your name for this budget in the cell above.
A5: Enter Your Values in the cells highlighed in MAROON.
E6: Your Acres | R6: Your
C7: Crop Acres | D7: 1 | L7: Your | Q7: Enterprise | R7: Enterprise
E8: Your | H8: Your | I8: Cash | J8: Your | K8: Landlord | L8: Landlord | N8: Your | P8: Your | Q8: Total | R8: Total
A9: REVENUE | D9: Quantity | E9: Quantity | F9: Units | G9: $/Unit | H9: $/Unit | I9: Total | J9: Total | K9: Share | L9: Share | M9: Landlord | N9: Landlord | O9: Tenant | P9: Tenant | Q9: (1 acres) | R9: ="(" & E7 & " acres)" -> ( acres)
B10: Tomato | D10: 334.4 | F10: CWT | G10: 49.12 | I10: 16425.728 | J10: =E10*H10 -> 0 | K10: 0 | M10: 0 | N10: =J10*L10 -> 0 | O10: 16425.728 | P10: =+J10-N10 -> 0 | Q10: 16425.728 | R10: =+J10*E$7 -> 0
D11: 0 | G11: 0 | I11: 0 | J11: 0 | K11: 0 | M11: 0 | N11: 0 | O11: 0 | P11: =+J11-N11 -> 0 | Q11: 0 | R11: 0
D12: 0 | G12: 0 | I12: 0 | J12: 0 | K12: 0 | M12: 0 | N12: 0 | O12: 0 | P12: 0 | Q12: 0 | R12: 0
A13: Total Revenue | I13: 16425.728 | J13: =SUM(J10:J12) -> 0 | M13: 0 | N13: =SUM(N10:N12) -> 0 | O13: 16425.728 | P13: =SUM(P10:P12) -> 0 | Q13: 16425.728 | R13: =SUM(R10:R12) -> 0
Q14: Enterprise | R14: Enterprise
A15: VARIABLE COSTS | D15: Quantity | E15: Quantity | F15: Units | G15: $/Unit | H15: $/Unit | I15: Total | J15: Total | K15: Share | L15: Share | M15: Landlord | N15: Landlord | O15: Tenant | P15: Tenant | Q15: Total | R15: Total
A16: Production Costs
B17: Seed
C18: Transplants - Tomato | D18: 5796 | F18: Plants | G18: 0.18 | I18: 1043.28 | J18: =E18*H18 -> 0 | K18: 0 | M18: 0 | N18: =J18*L18 -> 0 | O18: 1043.28 | P18: =+J18-N18 -> 0 | Q18: 1043.28 | R18: =+J18*E$7 -> 0
C19: Seed - Tomato | D19: 0 | F19: Bag | G19: 120 | I19: 0 | J19: 0 | K19: 0 | M19: 0 | N19: 0 | O19: 0 | P19: 0 | Q19: 0 | R19: 0
B20: Fertilizer
C21: Fertilizer (N) - Dry | D21: 150 | F21: Pound | G21: 0.522 | I21: 78.3 | J21: 0 | K21: 0 | M21: 0 | N21: 0 | O21: 78.3 | P21: 0 | Q21: 78.3 | R21: 0
C22: Fertilizer Application | D22: 1 | F22: Acre | G22: 7.5 | I22: 7.5 | J22: 0 | K22: 0 | M22: 0 | N22: 0 | O22: 7.5 | P22: 0 | Q22: 7.5 | R22: 0
B23: Herbicide
C24: Metolachlor | D24: 1.33 | F24: Pint | G24: 5 | I24: 6.65 | J24: 0 | K24: 0 | M24: 0 | N24: 0 | O24: 6.65 | P24: 0 | Q24: 6.65 | R24: 0
C25: Treflan | D25: 1.33 | F25: Pint | G25: 3.5 | I25: 4.655 | J25: 0 | K25: 0 | M25: 0 | N25: 0 | O25: 4.655 | P25: 0 | Q25: 4.655 | R25: 0
C26: Herbicide Application | D26: 2 | F26: Acre | G26: 7.5 | I26: 15 | J26: 0 | K26: 0 | M26: 0 | N26: 0 | O26: 15 | P26: 0 | Q26: 15 | R26: 0
B27: Insecticide
C28: Sevin Insecticide - Vegetables | D28: 0.17 | F28: Gallon | G28: 214 | I28: 36.38 | J28: 0 | K28: 0 | M28: 0 | N28: 0 | O28: 36.38 | P28: 0 | Q28: 36.38 | R28: 0
C29: Insecticide Application | D29: 1 | F29: Acre | G29: 8 | I29: 8 | J29: 0 | K29: 0 | M29: 0 | N29: 0 | O29: 8 | P29: 0 | Q29: 8 | R29: 0
B30: Miscellaneous
C31: Toro 15mil Drip Tape - 12" drip emitter spacing | D31: 2.2 | F31: Roll | G31: 163.5 | I31: 359.7 | J31: 0 | K31: 0 | M31: 0 | N31: 0 | O31: 359.7 | P31: 0 | Q31: 359.7 | R31: 0
C32: Drip Tape Fittings | D32: 527 | F32: Unit | G32: 1.74 | I32: 916.98 | J32: 0 | K32: 0 | M32: 0 | N32: 0 | O32: 916.98 | P32: 0 | Q32: 916.98 | R32: 0
C33: Black Plastic Mulch | D33: 2.2 | F33: Roll | G33: 201.65 | I33: 443.63 | J33: 0 | K33: 0 | M33: 0 | N33: 0 | O33: 443.63 | P33: 0 | Q33: 443.63 | R33: 0
C34: Tomato Trellis Twine, 7000ft | D34: 2.5 | F34: Roll | G34: 7.63 | I34: 19.075 | J34: 0 | K34: 0 | M34: 0 | N34: 0 | O34: 19.075 | P34: 0 | Q34: 19.075 | R34: 0
C35: Unallocated Labor | D35: 9.7 | F35: Hour | G35: 17.68 | I35: 171.496 | J35: 0 | K35: 0 | M35: 0 | N35: 0 | O35: 171.496 | P35: 0 | Q35: 171.496 | R35: 0
B36: Custom
C37: Harvest, Pack & Count Vegetables | D37: 334.4 | F37: CWT | G37: 13.19 | I37: 4410.736 | J37: 0 | K37: 0 | M37: 0 | N37: 0 | O37: 4410.736 | P37: 0 | Q37: 4410.736 | R37: 0
C38: Hand Weeding - Vegetables | D38: 90 | F38: Hour | G38: 11.18 | I38: 1006.2 | J38: 0 | K38: 0 | M38: 0 | N38: 0 | O38: 1006.2 | P38: 0 | Q38: 1006.2 | R38: 0
D39: 0 | G39: 0 | I39: 0 | J39: 0 | K39: 0 | M39: 0 | N39: 0 | O39: 0 | P39: 0 | Q39: 0 | R39: 0
D40: 0 | G40: 0 | I40: 0 | J40: 0 | K40: 0 | M40: 0 | N40: 0 | O40: 0 | P40: 0 | Q40: 0 | R40: 0
D41: 0 | G41: 0 | I41: 0 | J41: =E41*H41 -> 0 | K41: 0 | M41: 0 | N41: =J41*L41 -> 0 | O41: 0 | P41: =+J41-N41 -> 0 | Q41: 0 | R41: =+J41*E$7 -> 0
B42: Irrigation
C43: Energy Cost | D43: 11 | F43: AcreInch | G43: 3.8 | I43: 41.8 | J43: =E43*H43 -> 0 | K43: 0 | M43: 0 | N43: =J43*L43 -> 0 | O43: 41.8 | P43: =+J43-N43 -> 0 | Q43: 41.8 | R43: =+J43*E$7 -> 0
C44: Irrigation Labor | D44: 0.198 | F44: Hour | G44: 17.94 | I44: 3.55212 | J44: 0 | K44: 0 | M44: 0 | N44: 0 | O44: 3.55212 | P44: 0 | Q44: 3.55212 | R44: 0
B45: Machinery Labor
C46: Tractors/Self-Propelled | D46: 0.82 | F46: Hour | G46: 17.65 | I46: 14.473 | J46: =E46*H46 -> 0 | K46: 0 | M46: 0 | N46: =J46*L46 -> 0 | O46: 14.473 | P46: =+J46-N46 -> 0 | Q46: 14.473 | R46: =+J46*E$7 -> 0
C47: Other Labor | D47: 1.79 | F47: Hour | G47: 17.65 | I47: 31.5935 | J47: =E47*H47 -> 0 | K47: 0 | M47: 0 | N47: =J47*L47 -> 0 | O47: 31.5935 | P47: =+J47-N47 -> 0 | Q47: 31.5935 | R47: =+J47*E$7 -> 0
B49: Diesel Fuel
C50: Pickup/General Use Equipment | D50: 1 | F50: Acre | G50: 0 | I50: 0 | J50: =E50*H50 -> 0 | K50: 0 | M50: 0 | N50: =J50*L50 -> 0 | O50: 0 | P50: =+J50-N50 -> 0 | Q50: 0 | R50: =+J50*E$7 -> 0
C51: Tractors/Self-Propelled | D51: 1.55 | F51: Gallon | G51: 3.1 | I51: 4.805 | J51: =E51*H51 -> 0 | K51: 0 | M51: 0 | N51: =J51*L51 -> 0 | O51: 4.805 | P51: =+J51-N51 -> 0 | Q51: 4.805 | R51: =+J51*E$7 -> 0
B53: Gasoline
C54: Pickup/General Use Equipment | D54: 1 | F54: Acre | G54: 120 | I54: 120 | J54: =E54*H54 -> 0 | K54: 0 | M54: 0 | N54: =J54*L54 -> 0 | O54: 120 | P54: =+J54-N54 -> 0 | Q54: 120 | R54: =+J54*E$7 -> 0
C55: Tractors/Self-Propelled | D55: 0 | F55: Gallon | G55: 2.4 | I55: 0 | J55: =E55*H55 -> 0 | K55: 0 | M55: 0 | N55: =J55*L55 -> 0 | O55: 0 | P55: =+J55-N55 -> 0 | Q55: 0 | R55: =+J55*E$7 -> 0
B57: Repairs & Maintenance
C58: Pickup/General Use Equipment | D58: 1 | F58: Acre | G58: 68.228 | I58: 68.228 | J58: =E58*H58 -> 0 | K58: 0 | M58: 0 | N58: =J58*L58 -> 0 | O58: 68.228 | P58: =+J58-N58 -> 0 | Q58: 68.228 | R58: =+J58*E$7 -> 0
C59: Irrigation Equipment | D59: 1 | F59: Acre | G59: 33 | I59: 33 | J59: 0 | K59: 0 | M59: 0 | N59: 0 | O59: 33 | P59: 0 | Q59: 33 | R59: 0
C60: Tractors/Self-Propelled | D60: 1 | F60: Acre | G60: 2.995074627 | I60: 2.995074627 | J60: 0 | K60: 0 | M60: 0 | N60: 0 | O60: 2.995074627 | P60: 0 | Q60: 2.995074627 | R60: 0
C61: Implements | D61: 1 | F61: Acre | G61: 0.8613270865 | I61: 0.8613270865 | J61: 0 | K61: 0 | M61: 0 | N61: 0 | O61: 0.8613270865 | P61: 0 | Q61: 0.8613270865 | R61: 0
I62: 0 | J62: 0 | K62: 0 | M62: 0 | N62: 0 | O62: 0 | P62: 0 | Q62: 0 | R62: 0
I63: 0 | J63: 0 | K63: 0 | M63: 0 | N63: 0 | O63: 0 | P63: 0 | Q63: 0 | R63: 0
B64: Interest on Credit Line | G64: 0.09 | I64: 146.0820125 | J64: =+SUM(J17:J63)/2*H64 -> 0 | M64: 0 | N64: =+SUM(N17:N63)/2*L64 -> 0 | O64: 146.0820125 | P64: =+SUM(P17:P63)/2*L64 -> 0 | Q64: 146.0820125 | R64: =+J64*E$7 -> 0
A65: Total Variable Costs | I65: 8994.972034 | J65: =SUM(J18:J64) -> 0 | M65: 0 | N65: =SUM(N18:N64) -> 0 | O65: 8994.972034 | P65: =SUM(P18:P64) -> 0 | Q65: 8994.972034 | R65: =SUM(R18:R64) -> 0
A66: Planned Returns Above Variable Costs: | I66: 7430.755966 | J66: =+J13-J65 -> 0 | M66: 0 | N66: =+N13-N65 -> 0 | O66: 7430.755966 | P66: =+P13-P65 -> 0 | Q66: 7430.755966 | R66: =+R13-R65 -> 0
B67: Breakeven Price to Cover Variable Costs | G67: 26.89883982 | H67: =IF(E10=0,"n/a",(YVarExp-(YTotExp+YTotRet-J10))/E10) -> n/a | I67: CWT
Q68: Enterprise | R68: Enterprise
A69: FIXED COSTS | D69: Quantity | E69: Quantity | F69: Units | G69: $/Unit | H69: $/Unit | I69: Total | J69: Total | K69: Share | L69: Share | M69: Landlord | N69: Landlord | O69: Tenant | P69: Tenant | Q69: Total | R69: Total
B70: Machinery Depreciation
C71: Pickup/General Use Equipment | D71: 1 | F71: Acre | G71: 503.56 | I71: 503.56 | J71: =E71*H71 -> 0 | K71: 0 | M71: 0 | N71: =J71*L71 -> 0 | O71: 503.56 | P71: =+J71-N71 -> 0 | Q71: 503.56 | R71: =+J71*E$7 -> 0
C72: Tractors/Self-Propelled | D72: 1 | F72: Acre | G72: 2.475928358 | I72: 2.475928358 | J72: 0 | K72: 0 | M72: 0 | N72: =J72*L72 -> 0 | O72: 2.475928358 | P72: 0 | Q72: 2.475928358 | R72: 0
C73: Implements | D73: 1 | F73: Acre | G73: 1.001999541 | I73: 1.001999541 | J73: 0 | K73: 0 | M73: 0 | N73: =J73*L73 -> 0 | O73: 1.001999541 | P73: 0 | Q73: 1.001999541 | R73: 0
B74: Equipment Investment
C75: Pickup/General Use Equipment | D75: 3519.7 | F75: Dollars | G75: 0.09 | I75: 316.773 | J75: =E75*H75 -> 0 | K75: 0 | M75: 0 | N75: =J75*L75 -> 0 | O75: 316.773 | P75: =+J75-N75 -> 0 | Q75: 316.773 | R75: =+J75*E$7 -> 0
C76: Tractors/Self-Propelled | D76: 19.2882806 | F76: Dollars | G76: 0.09 | I76: 1.735945254 | J76: 0 | K76: 0 | M76: 0 | N76: =J76*L76 -> 0 | O76: 1.735945254 | P76: 0 | Q76: 1.735945254 | R76: 0
C77: Implements | D77: 5.577254939 | F77: Dollars | G77: 0.09 | I77: 0.5019529445 | J77: 0 | K77: 0 | M77: 0 | N77: =J77*L77 -> 0 | O77: 0.5019529445 | P77: 0 | Q77: 0.5019529445 | R77: 0
B78: Salaried Labor | D78: 1 | F78: Acre | G78: 0 | I78: 0 | J78: 0 | K78: 0 | M78: 0 | N78: =J78*L78 -> 0 | O78: 0 | P78: =+J78-N78 -> 0 | Q78: 0 | R78: =+J78*E$7 -> 0
B79: Management Fee, Owner/Operator Labor | D79: 1 | F79: Acre | G79: 0 | I79: 0 | J79: 0 | K79: 0 | M79: 0 | N79: 0 | O79: 0 | P79: 0 | Q79: 0 | R79: 0
B80: Allocated Establishment Cost | D80: 1 | F80: Acre | G80: 0 | I80: 0 | J80: 0 | K80: 0 | M80: 0 | N80: 0 | O80: 0 | P80: 0 | Q80: 0 | R80: 0
B81: Cash Rent - Irrigated | D81: 1 | F81: Acre | G81: 125 | I81: 125 | J81: 0 | K81: 0 | M81: 0 | N81: 0 | O81: 125 | P81: 0 | Q81: 125 | R81: 0
B82: Property Taxes | D82: 1 | F82: Acre | G82: 0 | I82: 0 | J82: 0 | K82: 0 | M82: 0 | N82: 0 | O82: 0 | P82: 0 | Q82: 0 | R82: 0
B83: Whole Farm Insurance | D83: 1 | F83: Acre | G83: 0 | I83: 0 | J83: 0 | K83: 0 | M83: 0 | N83: 0 | O83: 0 | P83: 0 | Q83: 0 | R83: 0
D84: 1 | G84: 0 | I84: 0 | J84: 0 | K84: 0 | M84: 0 | N84: 0 | O84: 0 | P84: 0 | Q84: 0 | R84: 0
D85: 1 | G85: 0 | I85: 0 | J85: =E85*H85 -> 0 | K85: 0 | M85: 0 | N85: 0 | O85: 0 | P85: 0 | Q85: 0 | R85: 0
A86: Total Fixed Costs | I86: 951.0488261 | J86: =+SUM(J71:J85) -> 0 | M86: 0 | N86: =+SUM(N71:N85) -> 0 | O86: 951.0488261 | P86: =+SUM(P71:P85) -> 0 | Q86: 951.0488261 | R86: =+SUM(R71:R85) -> 0
A87: Total Specified Costs | I87: 9946.02086 | J87: =+J65+J86 -> 0 | M87: 0 | N87: =+N65+N86 -> 0 | O87: 9946.02086 | P87: =+P65+P86 -> 0 | Q87: 9946.02086 | R87: =+R65+R86 -> 0
A89: Returns Above Specified Costs | I89: 6479.70714 | J89: =+J13-J87 -> 0 | M89: 0 | N89: =+N13-N87 -> 0 | O89: 6479.70714 | P89: =+P13-P87 -> 0 | Q89: 6479.70714 | R89: =+R13-R87 -> 0
A91: Breakeven Price to Cover Total Costs | G91: 29.74288535 | H91: =IF(E10=0,"n/a",(YTotExp-(YTotExp+YTotRet-J10))/E10) -> n/a | I91: CWT
D93: Example Breakeven Prices
B94: Example | C94: Example | D94: To Cover | G94: To Cover
B95: Yield | C95: Yield | D95: Variable | G95: Total
B96: Percent | C96: CWT | D96: Costs | G96: Costs
B97: 0.75 | C97: 250.8 | D97: 35.86511975 | G97: 39.65718046
B98: 0.9 | C98: 300.96 | D98: 29.88759979 | G98: 33.04765039
B99: 1 | C99: 334.4 | D99: 26.89883982 | G99: 29.74288535
B100: 1.1 | C100: 367.84 | D100: 24.45349074 | G100: 27.03898668
B101: 1.25 | C101: 418 | D101: 21.51907185 | G101: 23.79430828
A103: Developed by Justin Benavidez, Assistant Professor, Texas A&M AgriLife Extension, 806-677-5600.
A104: DeDe Jones, Extension Risk Management Specialist IV, Texas A&M AgriLife Extension
A105: Information presented is prepared solely as a general guide and not intended to recognize or predict the costs and returns from any one operation. Brand names are mentioned only as examples and imply no endorsement.

Sheet PepperMulch
A1: Projections for Planning Purposes Only -- Not to be Used without Updating
A2: 2024 Estimated Costs and Returns per Acre
A3: Jalapeño Pepper, Plastic Mulch, Drip Irrigated
A4: Enter your name for this budget in the cell above.
A5: Enter Your Values in the cells highlighed in MAROON.
E6: Your Acres | R6: Your
C7: Crop Acres | D7: 1 | L7: Your | Q7: Enterprise | R7: Enterprise
E8: Your | H8: Your | I8: Cash | J8: Your | K8: Landlord | L8: Landlord | N8: Your | P8: Your | Q8: Total | R8: Total
A9: REVENUE | D9: Quantity | E9: Quantity | F9: Units | G9: $/Unit | H9: $/Unit | I9: Total | J9: Total | K9: Share | L9: Share | M9: Landlord | N9: Landlord | O9: Tenant | P9: Tenant | Q9: (1 acres) | R9: ="(" & E7 & " acres)" -> ( acres)
B10: Jalapeño Pepper | D10: 325.1 | F10: CWT | G10: 27.44 | I10: 8920.744 | J10: =E10*H10 -> 0 | K10: 0 | M10: 0 | N10: =J10*L10 -> 0 | O10: 8920.744 | P10: =+J10-N10 -> 0 | Q10: 8920.744 | R10: =+J10*E$7 -> 0
D11: 0 | G11: 0 | I11: 0 | J11: 0 | K11: 0 | M11: 0 | N11: 0 | O11: 0 | P11: =+J11-N11 -> 0 | Q11: 0 | R11: 0
D12: 0 | G12: 0 | I12: 0 | J12: 0 | K12: 0 | M12: 0 | N12: 0 | O12: 0 | P12: 0 | Q12: 0 | R12: 0
A13: Total Revenue | I13: 8920.744 | J13: =SUM(J10:J12) -> 0 | M13: 0 | N13: =SUM(N10:N12) -> 0 | O13: 8920.744 | P13: =SUM(P10:P12) -> 0 | Q13: 8920.744 | R13: =SUM(R10:R12) -> 0
Q14: Enterprise | R14: Enterprise
A15: VARIABLE COSTS | D15: Quantity | E15: Quantity | F15: Units | G15: $/Unit | H15: $/Unit | I15: Total | J15: Total | K15: Share | L15: Share | M15: Landlord | N15: Landlord | O15: Tenant | P15: Tenant | Q15: Total | R15: Total
A16: Production Costs
B17: Seed
C18: Transplants - Pepper | D18: 11591 | F18: Plants | G18: 0.18 | I18: 2086.38 | J18: =E18*H18 -> 0 | K18: 0 | M18: 0 | N18: =J18*L18 -> 0 | O18: 2086.38 | P18: =+J18-N18 -> 0 | Q18: 2086.38 | R18: =+J18*E$7 -> 0
C19: Seed - Pepper | D19: 0 | F19: Bag | G19: 186 | I19: 0 | J19: 0 | K19: 0 | M19: 0 | N19: 0 | O19: 0 | P19: 0 | Q19: 0 | R19: 0
B20: Fertilizer
C21: Fertilizer (N) - Dry | D21: 150 | F21: Pound | G21: 0.522 | I21: 78.3 | J21: 0 | K21: 0 | M21: 0 | N21: 0 | O21: 78.3 | P21: 0 | Q21: 78.3 | R21: 0
C22: Fertilizer Application | D22: 1 | F22: Acre | G22: 7.5 | I22: 7.5 | J22: 0 | K22: 0 | M22: 0 | N22: 0 | O22: 7.5 | P22: 0 | Q22: 7.5 | R22: 0
B23: Herbicide
C24: Metolachlor | D24: 1.33 | F24: Pint | G24: 5 | I24: 6.65 | J24: 0 | K24: 0 | M24: 0 | N24: 0 | O24: 6.65 | P24: 0 | Q24: 6.65 | R24: 0
C25: Treflan | D25: 1.33 | F25: Pint | G25: 3.5 | I25: 4.655 | J25: 0 | K25: 0 | M25: 0 | N25: 0 | O25: 4.655 | P25: 0 | Q25: 4.655 | R25: 0
C26: Herbicide Application | D26: 2 | F26: Acre | G26: 7.5 | I26: 15 | J26: 0 | K26: 0 | M26: 0 | N26: 0 | O26: 15 | P26: 0 | Q26: 15 | R26: 0
B27: Insecticide
C28: Sevin Insecticide - Vegetables | D28: 0.17 | F28: Gallon | G28: 214 | I28: 36.38 | J28: 0 | K28: 0 | M28: 0 | N28: 0 | O28: 36.38 | P28: 0 | Q28: 36.38 | R28: 0
C29: Insecticide Application | D29: 1 | F29: Acre | G29: 8 | I29: 8 | J29: 0 | K29: 0 | M29: 0 | N29: 0 | O29: 8 | P29: 0 | Q29: 8 | R29: 0
B30: Miscellaneous
C31: Toro 15mil Drip Tape - 12" drip emitter spacing | D31: 2.2 | F31: Roll | G31: 163.5 | I31: 359.7 | J31: 0 | K31: 0 | M31: 0 | N31: 0 | O31: 359.7 | P31: 0 | Q31: 359.7 | R31: 0
C32: Drip Tape Fittings | D32: 527 | F32: Unit | G32: 1.74 | I32: 916.98 | J32: 0 | K32: 0 | M32: 0 | N32: 0 | O32: 916.98 | P32: 0 | Q32: 916.98 | R32: 0
C33: Black Plastic Mulch | D33: 2.2 | F33: Roll | G33: 201.65 | I33: 443.63 | J33: 0 | K33: 0 | M33: 0 | N33: 0 | O33: 443.63 | P33: 0 | Q33: 443.63 | R33: 0
B34: Custom
C35: Harvest, Pack & Count Vegetables | D35: 325.1 | F35: CWT | G35: 13.19 | I35: 4288.069 | J35: 0 | K35: 0 | M35: 0 | N35: 0 | O35: 4288.069 | P35: 0 | Q35: 4288.069 | R35: 0
C36: Hand Weeding - Vegetables | D36: 90 | F36: Hour | G36: 11.18 | I36: 1006.2 | J36: 0 | K36: 0 | M36: 0 | N36: 0 | O36: 1006.2 | P36: 0 | Q36: 1006.2 | R36: 0
D37: 0 | G37: 0 | I37: 0 | J37: 0 | K37: 0 | M37: 0 | N37: 0 | O37: 0 | P37: 0 | Q37: 0 | R37: 0
D38: 0 | G38: 0 | I38: 0 | J38: 0 | K38: 0 | M38: 0 | N38: 0 | O38: 0 | P38: 0 | Q38: 0 | R38: 0
D39: 0 | G39: 0 | I39: 0 | J39: =E39*H39 -> 0 | K39: 0 | M39: 0 | N39: =J39*L39 -> 0 | O39: 0 | P39: =+J39-N39 -> 0 | Q39: 0 | R39: =+J39*E$7 -> 0
B40: Irrigation
C41: Energy Cost | D41: 11 | F41: AcreInch | G41: 3.8 | I41: 41.8 | J41: =E41*H41 -> 0 | K41: 0 | M41: 0 | N41: =J41*L41 -> 0 | O41: 41.8 | P41: =+J41-N41 -> 0 | Q41: 41.8 | R41: =+J41*E$7 -> 0
C42: Irrigation Labor | D42: 0.198 | F42: Hour | G42: 17.94 | I42: 3.55212 | J42: 0 | K42: 0 | M42: 0 | N42: 0 | O42: 3.55212 | P42: 0 | Q42: 3.55212 | R42: 0
B43: Machinery Labor
C44: Tractors/Self-Propelled | D44: 0.82 | F44: Hour | G44: 17.65 | I44: 14.473 | J44: =E44*H44 -> 0 | K44: 0 | M44: 0 | N44: =J44*L44 -> 0 | O44: 14.473 | P44: =+J44-N44 -> 0 | Q44: 14.473 | R44: =+J44*E$7 -> 0
C45: Other Labor | D45: 1.79 | F45: Hour | G45: 17.65 | I45: 31.5935 | J45: =E45*H45 -> 0 | K45: 0 | M45: 0 | N45: =J45*L45 -> 0 | O45: 31.5935 | P45: =+J45-N45 -> 0 | Q45: 31.5935 | R45: =+J45*E$7 -> 0
B47: Diesel Fuel
C48: Pickup/General Use Equipment | D48: 1 | F48: Acre | G48: 0 | I48: 0 | J48: =E48*H48 -> 0 | K48: 0 | M48: 0 | N48: =J48*L48 -> 0 | O48: 0 | P48: =+J48-N48 -> 0 | Q48: 0 | R48: =+J48*E$7 -> 0
C49: Tractors/Self-Propelled | D49: 1.55 | F49: Gallon | G49: 3.1 | I49: 4.805 | J49: =E49*H49 -> 0 | K49: 0 | M49: 0 | N49: =J49*L49 -> 0 | O49: 4.805 | P49: =+J49-N49 -> 0 | Q49: 4.805 | R49: =+J49*E$7 -> 0
B51: Gasoline
C52: Pickup/General Use Equipment | D52: 1 | F52: Acre | G52: 120 | I52: 120 | J52: =E52*H52 -> 0 | K52: 0 | M52: 0 | N52: =J52*L52 -> 0 | O52: 120 | P52: =+J52-N52 -> 0 | Q52: 120 | R52: =+J52*E$7 -> 0
C53: Tractors/Self-Propelled | D53: 0 | F53: Gallon | G53: 2.4 | I53: 0 | J53: =E53*H53 -> 0 | K53: 0 | M53: 0 | N53: =J53*L53 -> 0 | O53: 0 | P53: =+J53-N53 -> 0 | Q53: 0 | R53: =+J53*E$7 -> 0
B55: Repairs & Maintenance
C56: Pickup/General Use Equipment | D56: 1 | F56: Acre | G56: 61.2 | I56: 61.2 | J56: =E56*H56 -> 0 | K56: 0 | M56: 0 | N56: =J56*L56 -> 0 | O56: 61.2 | P56: =+J56-N56 -> 0 | Q56: 61.2 | R56: =+J56*E$7 -> 0
C57: Irrigation Equipment | D57: 1 | F57: Acre | G57: 33 | I57: 33 | J57: 0 | K57: 0 | M57: 0 | N57: 0 | O57: 33 | P57: 0 | Q57: 33 | R57: 0
C58: Tractors/Self-Propelled | D58: 1 | F58: Acre | G58: 2.995074627 | I58: 2.995074627 | J58: 0 | K58: 0 | M58: 0 | N58: 0 | O58: 2.995074627 | P58: 0 | Q58: 2.995074627 | R58: 0
C59: Implements | D59: 1 | F59: Acre | G59: 0.8613270865 | I59: 0.8613270865 | J59: 0 | K59: 0 | M59: 0 | N59: 0 | O59: 0.8613270865 | P59: 0 | Q59: 0.8613270865 | R59: 0
I60: 0 | J60: 0 | K60: 0 | M60: 0 | N60: 0 | O60: 0 | P60: 0 | Q60: 0 | R60: 0
I61: 0 | J61: 0 | K61: 0 | M61: 0 | N61: 0 | O61: 0 | P61: 0 | Q61: 0 | R61: 0
B62: Interest on Credit Line | G62: 0.09 | I62: 167.5830774 | J62: =+SUM(J17:J61)/2*H62 -> 0 | M62: 0 | N62: =+SUM(N17:N61)/2*L62 -> 0 | O62: 167.5830774 | P62: =+SUM(P17:P61)/2*L62 -> 0 | Q62: 167.5830774 | R62: =+J62*E$7 -> 0
A63: Total Variable Costs | I63: 9739.307099 | J63: =SUM(J18:J62) -> 0 | M63: 0 | N63: =SUM(N18:N62) -> 0 | O63: 9739.307099 | P63: =SUM(P18:P62) -> 0 | Q63: 9739.307099 | R63: =SUM(R18:R62) -> 0
A64: Planned Returns Above Variable Costs: | I64: -818.5630991 | J64: =+J13-J63 -> 0 | M64: 0 | N64: =+N13-N63 -> 0 | O64: -818.5630991 | P64: =+P13-P63 -> 0 | Q64: -818.5630991 | R64: =+R13-R63 -> 0
B65: Breakeven Price to Cover Variable Costs | G65: 29.95788096 | H65: =IF(E10=0,"n/a",(YVarExp-(YTotExp+YTotRet-J10))/E10) -> n/a | I65: CWT
Q66: Enterprise | R66: Enterprise
A67: FIXED COSTS | D67: Quantity | E67: Quantity | F67: Units | G67: $/Unit | H67: $/Unit | I67: Total | J67: Total | K67: Share | L67: Share | M67: Landlord | N67: Landlord | O67: Tenant | P67: Tenant | Q67: Total | R67: Total
B68: Machinery Depreciation
C69: Pickup/General Use Equipment | D69: 1 | F69: Acre | G69: 64.26 | I69: 64.26 | J69: =E69*H69 -> 0 | K69: 0 | M69: 0 | N69: =J69*L69 -> 0 | O69: 64.26 | P69: =+J69-N69 -> 0 | Q69: 64.26 | R69: =+J69*E$7 -> 0
C70: Tractors/Self-Propelled | D70: 1 | F70: Acre | G70: 2.475928358 | I70: 2.475928358 | J70: 0 | K70: 0 | M70: 0 | N70: =J70*L70 -> 0 | O70: 2.475928358 | P70: 0 | Q70: 2.475928358 | R70: 0
C71: Implements | D71: 1 | F71: Acre | G71: 1.001999541 | I71: 1.001999541 | J71: 0 | K71: 0 | M71: 0 | N71: =J71*L71 -> 0 | O71: 1.001999541 | P71: 0 | Q71: 1.001999541 | R71: 0
B72: Equipment Investment
C73: Pickup/General Use Equipment | D73: 443.7 | F73: Dollars | G73: 0.09 | I73: 39.933 | J73: =E73*H73 -> 0 | K73: 0 | M73: 0 | N73: =J73*L73 -> 0 | O73: 39.933 | P73: =+J73-N73 -> 0 | Q73: 39.933 | R73: =+J73*E$7 -> 0
C74: Tractors/Self-Propelled | D74: 19.2882806 | F74: Dollars | G74: 0.09 | I74: 1.735945254 | J74: 0 | K74: 0 | M74: 0 | N74: =J74*L74 -> 0 | O74: 1.735945254 | P74: 0 | Q74: 1.735945254 | R74: 0
C75: Implements | D75: 5.577254939 | F75: Dollars | G75: 0.09 | I75: 0.5019529445 | J75: 0 | K75: 0 | M75: 0 | N75: =J75*L75 -> 0 | O75: 0.5019529445 | P75: 0 | Q75: 0.5019529445 | R75: 0
B76: Salaried Labor | D76: 1 | F76: Acre | G76: 0 | I76: 0 | J76: 0 | K76: 0 | M76: 0 | N76: =J76*L76 -> 0 | O76: 0 | P76: =+J76-N76 -> 0 | Q76: 0 | R76: =+J76*E$7 -> 0
B77: Management Fee, Owner/Operator Labor | D77: 1 | F77: Acre | G77: 0 | I77: 0 | J77: 0 | K77: 0 | M77: 0 | N77: 0 | O77: 0 | P77: 0 | Q77: 0 | R77: 0
B78: Allocated Establishment Cost | D78: 1 | F78: Acre | G78: 0 | I78: 0 | J78: 0 | K78: 0 | M78: 0 | N78: 0 | O78: 0 | P78: 0 | Q78: 0 | R78: 0
B79: Cash Rent - Irrigated | D79: 1 | F79: Acre | G79: 125 | I79: 125 | J79: 0 | K79: 0 | M79: 0 | N79: 0 | O79: 125 | P79: 0 | Q79: 125 | R79: 0
B80: Property Taxes | D80: 1 | F80: Acre | G80: 0 | I80: 0 | J80: 0 | K80: 0 | M80: 0 | N80: 0 | O80: 0 | P80: 0 | Q80: 0 | R80: 0
B81: Whole Farm Insurance | D81: 1 | F81: Acre | G81: 0 | I81: 0 | J81: 0 | K81: 0 | M81: 0 | N81: 0 | O81: 0 | P81: 0 | Q81: 0 | R81: 0
D82: 1 | G82: 0 | I82: 0 | J82: 0 | K82: 0 | M82: 0 | N82: 0 | O82: 0 | P82: 0 | Q82: 0 | R82: 0
D83: 1 | G83: 0 | I83: 0 | J83: =E83*H83 -> 0 | K83: 0 | M83: 0 | N83: 0 | O83: 0 | P83: 0 | Q83: 0 | R83: 0
A84: Total Fixed Costs | I84: 234.9088261 | J84: =+SUM(J69:J83) -> 0 | M84: 0 | N84: =+SUM(N69:N83) -> 0 | O84: 234.9088261 | P84: =+SUM(P69:P83) -> 0 | Q84: 234.9088261 | R84: =+SUM(R69:R83) -> 0
A85: Total Specified Costs | I85: 9974.215925 | J85: =+J63+J84 -> 0 | M85: 0 | N85: =+N63+N84 -> 0 | O85: 9974.215925 | P85: =+P63+P84 -> 0 | Q85: 9974.215925 | R85: =+R63+R84 -> 0
A87: Returns Above Specified Costs | I87: -1053.471925 | J87: =+J13-J85 -> 0 | M87: 0 | N87: =+N13-N85 -> 0 | O87: -1053.471925 | P87: =+P13-P85 -> 0 | Q87: -1053.471925 | R87: =+R13-R85 -> 0
A89: Breakeven Price to Cover Total Costs | G89: 30.68045501 | H89: =IF(E10=0,"n/a",(YTotExp-(YTotExp+YTotRet-J10))/E10) -> n/a | I89: CWT
D91: Example Breakeven Prices
B92: Example | C92: Example | D92: To Cover | G92: To Cover
B93: Yield | C93: Yield | D93: Variable | G93: Total
B94: Percent | C94: CWT | D94: Costs | G94: Costs
B95: 0.75 | C95: 243.825 | D95: 39.94384128 | G95: 40.90727335
B96: 0.9 | C96: 292.59 | D96: 33.2865344 | G96: 34.08939446
B97: 1 | C97: 325.1 | D97: 29.95788096 | G97: 30.68045501
B98: 1.1 | C98: 357.61 | D98: 27.23443723 | G98: 27.89132274
B99: 1.25 | C99: 406.375 | D99: 23.96630477 | G99: 24.54436401
A101: Developed by Justin Benavidez, Assistant Professor, Texas A&M AgriLife Extension, 806-677-5600.
A102: DeDe Jones, Extension Risk Management Specialist IV, Texas A&M AgriLife Extension
A103: Information presented is prepared solely as a general guide and not intended to recognize or predict the costs and returns from any one operation. Brand names are mentioned only as examples and imply no endorsement.

Sheet SweetCornMulch
A1: Projections for Planning Purposes Only -- Not to be Used without Updating
A2: 2024 Estimated Costs and Returns per Acre
A3: Sweet Corn, Plastic Mulch, Drip Irrigated
A4: Enter your name for this budget in the cell above.
A5: Enter Your Values in the cells highlighed in MAROON.
E6: Your Acres | R6: Your
C7: Crop Acres | D7: 1 | L7: Your | Q7: Enterprise | R7: Enterprise
E8: Your | H8: Your | I8: Cash | J8: Your | K8: Landlord | L8: Landlord | N8: Your | P8: Your | Q8: Total | R8: Total
A9: REVENUE | D9: Quantity | E9: Quantity | F9: Units | G9: $/Unit | H9: $/Unit | I9: Total | J9: Total | K9: Share | L9: Share | M9: Landlord | N9: Landlord | O9: Tenant | P9: Tenant | Q9: (1 acres) | R9: ="(" & E7 & " acres)" -> ( acres)
B10: Sweet Corn | D10: 87.6 | F10: CWT | G10: 14.89 | I10: 1304.364 | J10: =E10*H10 -> 0 | K10: 0 | M10: 0 | N10: =J10*L10 -> 0 | O10: 1304.364 | P10: =+J10-N10 -> 0 | Q10: 1304.364 | R10: =+J10*E$7 -> 0
D11: 0 | G11: 0 | I11: 0 | J11: 0 | K11: 0 | M11: 0 | N11: 0 | O11: 0 | P11: =+J11-N11 -> 0 | Q11: 0 | R11: 0
D12: 0 | G12: 0 | I12: 0 | J12: 0 | K12: 0 | M12: 0 | N12: 0 | O12: 0 | P12: 0 | Q12: 0 | R12: 0
A13: Total Revenue | I13: 1304.364 | J13: =SUM(J10:J12) -> 0 | M13: 0 | N13: =SUM(N10:N12) -> 0 | O13: 1304.364 | P13: =SUM(P10:P12) -> 0 | Q13: 1304.364 | R13: =SUM(R10:R12) -> 0
Q14: Enterprise | R14: Enterprise
A15: VARIABLE COSTS | D15: Quantity | E15: Quantity | F15: Units | G15: $/Unit | H15: $/Unit | I15: Total | J15: Total | K15: Share | L15: Share | M15: Landlord | N15: Landlord | O15: Tenant | P15: Tenant | Q15: Total | R15: Total
A16: Production Costs
B17: Seed
C18: Seed - Corn, Sweet | D18: 7.47 | F18: Bag | G18: 400 | I18: 2988 | J18: =E18*H18 -> 0 | K18: 0 | M18: 0 | N18: =J18*L18 -> 0 | O18: 2988 | P18: =+J18-N18 -> 0 | Q18: 2988 | R18: =+J18*E$7 -> 0
B19: Fertilizer
C20: Fertilizer (N) - Dry | D20: 150 | F20: Pound | G20: 0.522 | I20: 78.3 | J20: 0 | K20: 0 | M20: 0 | N20: 0 | O20: 78.3 | P20: 0 | Q20: 78.3 | R20: 0
C21: Fertilizer Application | D21: 1 | F21: Acre | G21: 7.5 | I21: 7.5 | J21: 0 | K21: 0 | M21: 0 | N21: 0 | O21: 7.5 | P21: 0 | Q21: 7.5 | R21: 0
B22: Herbicide
C23: Metolachlor | D23: 1.33 | F23: Pint | G23: 5 | I23: 6.65 | J23: 0 | K23: 0 | M23: 0 | N23: 0 | O23: 6.65 | P23: 0 | Q23: 6.65 | R23: 0
C24: Treflan | D24: 1.33 | F24: Pint | G24: 3.5 | I24: 4.655 | J24: 0 | K24: 0 | M24: 0 | N24: 0 | O24: 4.655 | P24: 0 | Q24: 4.655 | R24: 0
C25: Herbicide Application | D25: 2 | F25: Acre | G25: 7.5 | I25: 15 | J25: 0 | K25: 0 | M25: 0 | N25: 0 | O25: 15 | P25: 0 | Q25: 15 | R25: 0
B26: Insecticide
C27: Sevin Insecticide - Vegetables | D27: 0.17 | F27: Gallon | G27: 214 | I27: 36.38 | J27: 0 | K27: 0 | M27: 0 | N27: 0 | O27: 36.38 | P27: 0 | Q27: 36.38 | R27: 0
C28: Insecticide Application | D28: 1 | F28: Acre | G28: 8 | I28: 8 | J28: 0 | K28: 0 | M28: 0 | N28: 0 | O28: 8 | P28: 0 | Q28: 8 | R28: 0
B29: Miscellaneous
C30: Toro 15mil Drip Tape - 12" drip emitter spacing | D30: 2.2 | F30: Roll | G30: 163.5 | I30: 359.7 | J30: 0 | K30: 0 | M30: 0 | N30: 0 | O30: 359.7 | P30: 0 | Q30: 359.7 | R30: 0
C31: Drip Tape Fittings | D31: 527 | F31: Unit | G31: 1.74 | I31: 916.98 | J31: 0 | K31: 0 | M31: 0 | N31: 0 | O31: 916.98 | P31: 0 | Q31: 916.98 | R31: 0
C32: Black Plastic Mulch | D32: 2.2 | F32: Roll | G32: 201.65 | I32: 443.63 | J32: 0 | K32: 0 | M32: 0 | N32: 0 | O32: 443.63 | P32: 0 | Q32: 443.63 | R32: 0
B33: Custom
C34: Harvest, Pack & Count Vegetables | D34: 87.6 | F34: CWT | G34: 13.19 | I34: 1155.444 | J34: 0 | K34: 0 | M34: 0 | N34: 0 | O34: 1155.444 | P34: 0 | Q34: 1155.444 | R34: 0
D35: 0 | G35: 0 | I35: 0 | J35: 0 | K35: 0 | M35: 0 | N35: 0 | O35: 0 | P35: 0 | Q35: 0 | R35: 0
D36: 0 | G36: 0 | I36: 0 | J36: 0 | K36: 0 | M36: 0 | N36: 0 | O36: 0 | P36: 0 | Q36: 0 | R36: 0
D37: 0 | G37: 0 | I37: 0 | J37: =E37*H37 -> 0 | K37: 0 | M37: 0 | N37: =J37*L37 -> 0 | O37: 0 | P37: =+J37-N37 -> 0 | Q37: 0 | R37: =+J37*E$7 -> 0
B38: Irrigation
C39: Energy Cost | D39: 10.2186 | F39: AcreInch | G39: 3.8 | I39: 38.83068 | J39: =E39*H39 -> 0 | K39: 0 | M39: 0 | N39: =J39*L39 -> 0 | O39: 38.83068 | P39: =+J39-N39 -> 0 | Q39: 38.83068 | R39: =+J39*E$7 -> 0
C40: Irrigation Labor | D40: 0.189 | F40: Hour | G40: 17.94 | I40: 3.39066 | J40: 0 | K40: 0 | M40: 0 | N40: 0 | O40: 3.39066 | P40: 0 | Q40: 3.39066 | R40: 0
B41: Machinery Labor
C42: Tractors/Self-Propelled | D42: 0.51 | F42: Hour | G42: 17.65 | I42: 9.0015 | J42: =E42*H42 -> 0 | K42: 0 | M42: 0 | N42: =J42*L42 -> 0 | O42: 9.0015 | P42: =+J42-N42 -> 0 | Q42: 9.0015 | R42: =+J42*E$7 -> 0
C43: Other Labor | D43: 0.86 | F43: Hour | G43: 17.65 | I43: 15.179 | J43: =E43*H43 -> 0 | K43: 0 | M43: 0 | N43: =J43*L43 -> 0 | O43: 15.179 | P43: =+J43-N43 -> 0 | Q43: 15.179 | R43: =+J43*E$7 -> 0
B45: Diesel Fuel
C46: Pickup/General Use Equipment | D46: 1 | F46: Acre | G46: 0 | I46: 0 | J46: =E46*H46 -> 0 | K46: 0 | M46: 0 | N46: =J46*L46 -> 0 | O46: 0 | P46: =+J46-N46 -> 0 | Q46: 0 | R46: =+J46*E$7 -> 0
C47: Tractors/Self-Propelled | D47: 1.2 | F47: Gallon | G47: 3.1 | I47: 3.72 | J47: =E47*H47 -> 0 | K47: 0 | M47: 0 | N47: =J47*L47 -> 0 | O47: 3.72 | P47: =+J47-N47 -> 0 | Q47: 3.72 | R47: =+J47*E$7 -> 0
B49: Gasoline
C50: Pickup/General Use Equipment | D50: 1 | F50: Acre | G50: 120 | I50: 120 | J50: =E50*H50 -> 0 | K50: 0 | M50: 0 | N50: =J50*L50 -> 0 | O50: 120 | P50: =+J50-N50 -> 0 | Q50: 120 | R50: =+J50*E$7 -> 0
C51: Tractors/Self-Propelled | D51: 0 | F51: Gallon | G51: 2.4 | I51: 0 | J51: =E51*H51 -> 0 | K51: 0 | M51: 0 | N51: =J51*L51 -> 0 | O51: 0 | P51: =+J51-N51 -> 0 | Q51: 0 | R51: =+J51*E$7 -> 0
B53: Repairs & Maintenance
C54: Pickup/General Use Equipment | D54: 1 | F54: Acre | G54: 61.2 | I54: 61.2 | J54: =E54*H54 -> 0 | K54: 0 | M54: 0 | N54: =J54*L54 -> 0 | O54: 61.2 | P54: =+J54-N54 -> 0 | Q54: 61.2 | R54: =+J54*E$7 -> 0
C55: Irrigation Equipment | D55: 1 | F55: Acre | G55: 30.6558 | I55: 30.6558 | J55: 0 | K55: 0 | M55: 0 | N55: 0 | O55: 30.6558 | P55: 0 | Q55: 30.6558 | R55: 0
C56: Tractors/Self-Propelled | D56: 1 | F56: Acre | G56: 2.319556736 | I56: 2.319556736 | J56: 0 | K56: 0 | M56: 0 | N56: 0 | O56: 2.319556736 | P56: 0 | Q56: 2.319556736 | R56: 0
C57: Implements | D57: 1 | F57: Acre | G57: 1.260510763 | I57: 1.260510763 | J57: 0 | K57: 0 | M57: 0 | N57: 0 | O57: 1.260510763 | P57: 0 | Q57: 1.260510763 | R57: 0
I58: 0 | J58: 0 | K58: 0 | M58: 0 | N58: 0 | O58: 0 | P58: 0 | Q58: 0 | R58: 0
I59: 0 | J59: 0 | K59: 0 | M59: 0 | N59: 0 | O59: 0 | P59: 0 | Q59: 0 | R59: 0
B60: Interest on Credit Line | G60: 0.09 | I60: 124.7413041 | J60: =+SUM(J17:J59)/2*H60 -> 0 | M60: 0 | N60: =+SUM(N17:N59)/2*L60 -> 0 | O60: 124.7413041 | P60: =+SUM(P17:P59)/2*L60 -> 0 | Q60: 124.7413041 | R60: =+J60*E$7 -> 0
A61: Total Variable Costs | I61: 6430.538012 | J61: =SUM(J18:J60) -> 0 | M61: 0 | N61: =SUM(N18:N60) -> 0 | O61: 6430.538012 | P61: =SUM(P18:P60) -> 0 | Q61: 6430.538012 | R61: =SUM(R18:R60) -> 0
A62: Planned Returns Above Variable Costs: | I62: -5126.174012 | J62: =+J13-J61 -> 0 | M62: 0 | N62: =+N13-N61 -> 0 | O62: -5126.174012 | P62: =+P13-P61 -> 0 | Q62: -5126.174012 | R62: =+R13-R61 -> 0
B63: Breakeven Price to Cover Variable Costs | G63: 73.40796817 | H63: =IF(E10=0,"n/a",(YVarExp-(YTotExp+YTotRet-J10))/E10) -> n/a | I63: CWT
Q64: Enterprise | R64: Enterprise
A65: FIXED COSTS | D65: Quantity | E65: Quantity | F65: Units | G65: $/Unit | H65: $/Unit | I65: Total | J65: Total | K65: Share | L65: Share | M65: Landlord | N65: Landlord | O65: Tenant | P65: Tenant | Q65: Total | R65: Total
B66: Machinery Depreciation
C67: Pickup/General Use Equipment | D67: 1 | F67: Acre | G67: 64.26 | I67: 64.26 | J67: =E67*H67 -> 0 | K67: 0 | M67: 0 | N67: =J67*L67 -> 0 | O67: 64.26 | P67: =+J67-N67 -> 0 | Q67: 64.26 | R67: =+J67*E$7 -> 0
C68: Tractors/Self-Propelled | D68: 1 | F68: Acre | G68: 1.917500235 | I68: 1.917500235 | J68: 0 | K68: 0 | M68: 0 | N68: =J68*L68 -> 0 | O68: 1.917500235 | P68: 0 | Q68: 1.917500235 | R68: 0
C69: Implements | D69: 1 | F69: Acre | G69: 1.515235696 | I69: 1.515235696 | J69: 0 | K69: 0 | M69: 0 | N69: =J69*L69 -> 0 | O69: 1.515235696 | P69: 0 | Q69: 1.515235696 | R69: 0
B70: Equipment Investment
C71: Pickup/General Use Equipment | D71: 443.7 | F71: Dollars | G71: 0.09 | I71: 39.933 | J71: =E71*H71 -> 0 | K71: 0 | M71: 0 | N71: =J71*L71 -> 0 | O71: 39.933 | P71: =+J71-N71 -> 0 | Q71: 39.933 | R71: =+J71*E$7 -> 0
C72: Tractors/Self-Propelled | D72: 14.93794538 | F72: Dollars | G72: 0.09 | I72: 1.344415084 | J72: 0 | K72: 0 | M72: 0 | N72: =J72*L72 -> 0 | O72: 1.344415084 | P72: 0 | Q72: 1.344415084 | R72: 0
C73: Implements | D73: 9.066214649 | F73: Dollars | G73: 0.09 | I73: 0.8159593184 | J73: 0 | K73: 0 | M73: 0 | N73: =J73*L73 -> 0 | O73: 0.8159593184 | P73: 0 | Q73: 0.8159593184 | R73: 0
B74: Salaried Labor | D74: 1 | F74: Acre | G74: 0 | I74: 0 | J74: 0 | K74: 0 | M74: 0 | N74: =J74*L74 -> 0 | O74: 0 | P74: =+J74-N74 -> 0 | Q74: 0 | R74: =+J74*E$7 -> 0
B75: Management Fee, Owner/Operator Labor | D75: 1 | F75: Acre | G75: 0 | I75: 0 | J75: 0 | K75: 0 | M75: 0 | N75: 0 | O75: 0 | P75: 0 | Q75: 0 | R75: 0
B76: Allocated Establishment Cost | D76: 1 | F76: Acre | G76: 0 | I76: 0 | J76: 0 | K76: 0 | M76: 0 | N76: 0 | O76: 0 | P76: 0 | Q76: 0 | R76: 0
B77: Cash Rent - Irrigated | D77: 1 | F77: Acre | G77: 125 | I77: 125 | J77: 0 | K77: 0 | M77: 0 | N77: 0 | O77: 125 | P77: 0 | Q77: 125 | R77: 0
B78: Property Taxes | D78: 1 | F78: Acre | G78: 0 | I78: 0 | J78: 0 | K78: 0 | M78: 0 | N78: 0 | O78: 0 | P78: 0 | Q78: 0 | R78: 0
B79: Whole Farm Insurance | D79: 1 | F79: Acre | G79: 0 | I79: 0 | J79: 0 | K79: 0 | M79: 0 | N79: 0 | O79: 0 | P79: 0 | Q79: 0 | R79: 0
D80: 1 | G80: 0 | I80: 0 | J80: 0 | K80: 0 | M80: 0 | N80: 0 | O80: 0 | P80: 0 | Q80: 0 | R80: 0
D81: 1 | G81: 0 | I81: 0 | J81: =E81*H81 -> 0 | K81: 0 | M81: 0 | N81: 0 | O81: 0 | P81: 0 | Q81: 0 | R81: 0
A82: Total Fixed Costs | I82: 234.7861103 | J82: =+SUM(J67:J81) -> 0 | M82: 0 | N82: =+SUM(N67:N81) -> 0 | O82: 234.7861103 | P82: =+SUM(P67:P81) -> 0 | Q82: 234.7861103 | R82: =+SUM(R67:R81) -> 0
A83: Total Specified Costs | I83: 6665.324122 | J83: =+J61+J82 -> 0 | M83: 0 | N83: =+N61+N82 -> 0 | O83: 6665.324122 | P83: =+P61+P82 -> 0 | Q83: 6665.324122 | R83: =+R61+R82 -> 0
A85: Returns Above Specified Costs | I85: -5360.960122 | J85: =+J13-J83 -> 0 | M85: 0 | N85: =+N13-N83 -> 0 | O85: -5360.960122 | P85: =+P13-P83 -> 0 | Q85: -5360.960122 | R85: =+R13-R83 -> 0
A87: Breakeven Price to Cover Total Costs | G87: 76.08817491 | H87: =IF(E10=0,"n/a",(YTotExp-(YTotExp+YTotRet-J10))/E10) -> n/a | I87: CWT
D89: Example Breakeven Prices
B90: Example | C90: Example | D90: To Cover | G90: To Cover
B91: Yield | C91: Yield | D91: Variable | G91: Total
B92: Percent | C92: CWT | D92: Costs | G92: Costs
B93: 0.75 | C93: 65.7 | D93: 97.87729089 | G93: 101.4508999
B94: 0.9 | C94: 78.84 | D94: 81.56440908 | G94: 84.54241656
B95: 1 | C95: 87.6 | D95: 73.40796817 | G95: 76.08817491
B96: 1.1 | C96: 96.36 | D96: 66.73451652 | G96: 69.1710681
B97: 1.25 | C97: 109.5 | D97: 58.72637454 | G97: 60.87053993
A99: Developed by Justin Benavidez, Assistant Professor, Texas A&M AgriLife Extension, 806-677-5600.
A100: DeDe Jones, Extension Risk Management Specialist IV, Texas A&M AgriLife Extension
A101: Information presented is prepared solely as a general guide and not intended to recognize or predict the costs and returns from any one operation. Brand names are mentioned only as examples and imply no endorsement.

Sheet TomatoNoMulch
A1: Projections for Planning Purposes Only -- Not to be Used without Updating
A2: 2024 Estimated Costs and Returns per Acre
A3: Tomato, Drip Irrigated
A4: Enter your name for this budget in the cell above.
A5: Enter Your Values in the cells highlighed in MAROON.
E6: Your Acres | R6: Your
C7: Crop Acres | D7: 1 | L7: Your | Q7: Enterprise | R7: Enterprise
E8: Your | H8: Your | I8: Cash | J8: Your | K8: Landlord | L8: Landlord | N8: Your | P8: Your | Q8: Total | R8: Total
A9: REVENUE | D9: Quantity | E9: Quantity | F9: Units | G9: $/Unit | H9: $/Unit | I9: Total | J9: Total | K9: Share | L9: Share | M9: Landlord | N9: Landlord | O9: Tenant | P9: Tenant | Q9: (1 acres) | R9: ="(" & E7 & " acres)" -> ( acres)
B10: Tomato | D10: 259.6 | F10: CWT | G10: 49.12 | I10: 12751.552 | J10: =E10*H10 -> 0 | K10: 0 | M10: 0 | N10: =J10*L10 -> 0 | O10: 12751.552 | P10: =+J10-N10 -> 0 | Q10: 12751.552 | R10: =+J10*E$7 -> 0
D11: 0 | G11: 0 | I11: 0 | J11: 0 | K11: 0 | M11: 0 | N11: 0 | O11: 0 | P11: =+J11-N11 -> 0 | Q11: 0 | R11: 0
D12: 0 | G12: 0 | I12: 0 | J12: 0 | K12: 0 | M12: 0 | N12: 0 | O12: 0 | P12: 0 | Q12: 0 | R12: 0
A13: Total Revenue | I13: 12751.552 | J13: =SUM(J10:J12) -> 0 | M13: 0 | N13: =SUM(N10:N12) -> 0 | O13: 12751.552 | P13: =SUM(P10:P12) -> 0 | Q13: 12751.552 | R13: =SUM(R10:R12) -> 0
Q14: Enterprise | R14: Enterprise
A15: VARIABLE COSTS | D15: Quantity | E15: Quantity | F15: Units | G15: $/Unit | H15: $/Unit | I15: Total | J15: Total | K15: Share | L15: Share | M15: Landlord | N15: Landlord | O15: Tenant | P15: Tenant | Q15: Total | R15: Total
A16: Production Costs
B17: Seed
C18: Transplants - Tomato | D18: 5796 | F18: Plants | G18: 0.18 | I18: 1043.28 | J18: =E18*H18 -> 0 | K18: 0 | M18: 0 | N18: =J18*L18 -> 0 | O18: 1043.28 | P18: =+J18-N18 -> 0 | Q18: 1043.28 | R18: =+J18*E$7 -> 0
C19: Seed - Tomato | D19: 0 | F19: Bag | G19: 120 | I19: 0 | J19: 0 | K19: 0 | M19: 0 | N19: 0 | O19: 0 | P19: 0 | Q19: 0 | R19: 0
B20: Fertilizer
C21: Fertilizer (N) - Dry | D21: 150 | F21: Pound | G21: 0.522 | I21: 78.3 | J21: 0 | K21: 0 | M21: 0 | N21: 0 | O21: 78.3 | P21: 0 | Q21: 78.3 | R21: 0
C22: Fertilizer Application | D22: 1 | F22: Acre | G22: 7.5 | I22: 7.5 | J22: 0 | K22: 0 | M22: 0 | N22: 0 | O22: 7.5 | P22: 0 | Q22: 7.5 | R22: 0
B23: Herbicide
C24: Metolachlor | D24: 1.33 | F24: Pint | G24: 5 | I24: 6.65 | J24: 0 | K24: 0 | M24: 0 | N24: 0 | O24: 6.65 | P24: 0 | Q24: 6.65 | R24: 0
C25: Treflan | D25: 1.33 | F25: Pint | G25: 3.5 | I25: 4.655 | J25: 0 | K25: 0 | M25: 0 | N25: 0 | O25: 4.655 | P25: 0 | Q25: 4.655 | R25: 0
C26: Herbicide Application | D26: 2 | F26: Acre | G26: 7.5 | I26: 15 | J26: 0 | K26: 0 | M26: 0 | N26: 0 | O26: 15 | P26: 0 | Q26: 15 | R26: 0
B27: Insecticide
C28: Sevin Insecticide - Vegetables | D28: 0.17 | F28: Gallon | G28: 214 | I28: 36.38 | J28: 0 | K28: 0 | M28: 0 | N28: 0 | O28: 36.38 | P28: 0 | Q28: 36.38 | R28: 0
C29: Insecticide Application | D29: 1 | F29: Acre | G29: 8 | I29: 8 | J29: 0 | K29: 0 | M29: 0 | N29: 0 | O29: 8 | P29: 0 | Q29: 8 | R29: 0
B30: Miscellaneous
C31: Toro 15mil Drip Tape - 12" drip emitter spacing | D31: 2.2 | F31: Roll | G31: 163.5 | I31: 359.7 | J31: 0 | K31: 0 | M31: 0 | N31: 0 | O31: 359.7 | P31: 0 | Q31: 359.7 | R31: 0
C32: Drip Tape Fittings | D32: 527 | F32: Unit | G32: 1.74 | I32: 916.98 | J32: 0 | K32: 0 | M32: 0 | N32: 0 | O32: 916.98 | P32: 0 | Q32: 916.98 | R32: 0
C33: Tomato Trellis Twine, 7000ft | D33: 2.5 | F33: Roll | G33: 7.63 | I33: 19.075 | J33: 0 | K33: 0 | M33: 0 | N33: 0 | O33: 19.075 | P33: 0 | Q33: 19.075 | R33: 0
C34: Unallocated Labor | D34: 9.7 | F34: Hour | G34: 17.68 | I34: 171.496 | J34: 0 | K34: 0 | M34: 0 | N34: 0 | O34: 171.496 | P34: 0 | Q34: 171.496 | R34: 0
B35: Custom
C36: Harvest, Pack & Count Vegetables | D36: 259.6 | F36: CWT | G36: 13.19 | I36: 3424.124 | J36: 0 | K36: 0 | M36: 0 | N36: 0 | O36: 3424.124 | P36: 0 | Q36: 3424.124 | R36: 0
C37: Hand Weeding - Vegetables | D37: 220 | F37: Hour | G37: 11.18 | I37: 2459.6 | J37: 0 | K37: 0 | M37: 0 | N37: 0 | O37: 2459.6 | P37: 0 | Q37: 2459.6 | R37: 0
D38: 0 | G38: 0 | I38: 0 | J38: 0 | K38: 0 | M38: 0 | N38: 0 | O38: 0 | P38: 0 | Q38: 0 | R38: 0
D39: 0 | G39: 0 | I39: 0 | J39: 0 | K39: 0 | M39: 0 | N39: 0 | O39: 0 | P39: 0 | Q39: 0 | R39: 0
D40: 0 | G40: 0 | I40: 0 | J40: =E40*H40 -> 0 | K40: 0 | M40: 0 | N40: =J40*L40 -> 0 | O40: 0 | P40: =+J40-N40 -> 0 | Q40: 0 | R40: =+J40*E$7 -> 0
B41: Irrigation
C42: Energy Cost | D42: 11 | F42: AcreInch | G42: 3.8 | I42: 41.8 | J42: =E42*H42 -> 0 | K42: 0 | M42: 0 | N42: =J42*L42 -> 0 | O42: 41.8 | P42: =+J42-N42 -> 0 | Q42: 41.8 | R42: =+J42*E$7 -> 0
C43: Irrigation Labor | D43: 0.198 | F43: Hour | G43: 17.94 | I43: 3.55212 | J43: 0 | K43: 0 | M43: 0 | N43: 0 | O43: 3.55212 | P43: 0 | Q43: 3.55212 | R43: 0
B44: Machinery Labor
C45: Tractors/Self-Propelled | D45: 0.82 | F45: Hour | G45: 17.65 | I45: 14.473 | J45: =E45*H45 -> 0 | K45: 0 | M45: 0 | N45: =J45*L45 -> 0 | O45: 14.473 | P45: =+J45-N45 -> 0 | Q45: 14.473 | R45: =+J45*E$7 -> 0
C46: Other Labor | D46: 1.79 | F46: Hour | G46: 17.65 | I46: 31.5935 | J46: =E46*H46 -> 0 | K46: 0 | M46: 0 | N46: =J46*L46 -> 0 | O46: 31.5935 | P46: =+J46-N46 -> 0 | Q46: 31.5935 | R46: =+J46*E$7 -> 0
B48: Diesel Fuel
C49: Pickup/General Use Equipment | D49: 1 | F49: Acre | G49: 0 | I49: 0 | J49: =E49*H49 -> 0 | K49: 0 | M49: 0 | N49: =J49*L49 -> 0 | O49: 0 | P49: =+J49-N49 -> 0 | Q49: 0 | R49: =+J49*E$7 -> 0
C50: Tractors/Self-Propelled | D50: 1.55 | F50: Gallon | G50: 3.1 | I50: 4.805 | J50: =E50*H50 -> 0 | K50: 0 | M50: 0 | N50: =J50*L50 -> 0 | O50: 4.805 | P50: =+J50-N50 -> 0 | Q50: 4.805 | R50: =+J50*E$7 -> 0
B52: Gasoline
C53: Pickup/General Use Equipment | D53: 1 | F53: Acre | G53: 120 | I53: 120 | J53: =E53*H53 -> 0 | K53: 0 | M53: 0 | N53: =J53*L53 -> 0 | O53: 120 | P53: =+J53-N53 -> 0 | Q53: 120 | R53: =+J53*E$7 -> 0
C54: Tractors/Self-Propelled | D54: 0 | F54: Gallon | G54: 2.4 | I54: 0 | J54: =E54*H54 -> 0 | K54: 0 | M54: 0 | N54: =J54*L54 -> 0 | O54: 0 | P54: =+J54-N54 -> 0 | Q54: 0 | R54: =+J54*E$7 -> 0
B56: Repairs & Maintenance
C57: Pickup/General Use Equipment | D57: 1 | F57: Acre | G57: 68.228 | I57: 68.228 | J57: =E57*H57 -> 0 | K57: 0 | M57: 0 | N57: =J57*L57 -> 0 | O57: 68.228 | P57: =+J57-N57 -> 0 | Q57: 68.228 | R57: =+J57*E$7 -> 0
C58: Irrigation Equipment | D58: 1 | F58: Acre | G58: 33 | I58: 33 | J58: 0 | K58: 0 | M58: 0 | N58: 0 | O58: 33 | P58: 0 | Q58: 33 | R58: 0
C59: Tractors/Self-Propelled | D59: 1 | F59: Acre | G59: 2.995074627 | I59: 2.995074627 | J59: 0 | K59: 0 | M59: 0 | N59: 0 | O59: 2.995074627 | P59: 0 | Q59: 2.995074627 | R59: 0
C60: Implements | D60: 1 | F60: Acre | G60: 0.8613270865 | I60: 0.8613270865 | J60: 0 | K60: 0 | M60: 0 | N60: 0 | O60: 0.8613270865 | P60: 0 | Q60: 0.8613270865 | R60: 0
I61: 0 | J61: 0 | K61: 0 | M61: 0 | N61: 0 | O61: 0 | P61: 0 | Q61: 0 | R61: 0
I62: 0 | J62: 0 | K62: 0 | M62: 0 | N62: 0 | O62: 0 | P62: 0 | Q62: 0 | R62: 0
B63: Interest on Credit Line | G63: 0.09 | I63: 154.5003082 | J63: =+SUM(J17:J62)/2*H63 -> 0 | M63: 0 | N63: =+SUM(N17:N62)/2*L63 -> 0 | O63: 154.5003082 | P63: =+SUM(P17:P62)/2*L63 -> 0 | Q63: 154.5003082 | R63: =+J63*E$7 -> 0
A64: Total Variable Costs | I64: 9026.54833 | J64: =SUM(J18:J63) -> 0 | M64: 0 | N64: =SUM(N18:N63) -> 0 | O64: 9026.54833 | P64: =SUM(P18:P63) -> 0 | Q64: 9026.54833 | R64: =SUM(R18:R63) -> 0
A65: Planned Returns Above Variable Costs: | I65: 3725.00367 | J65: =+J13-J64 -> 0 | M65: 0 | N65: =+N13-N64 -> 0 | O65: 3725.00367 | P65: =+P13-P64 -> 0 | Q65: 3725.00367 | R65: =+R13-R64 -> 0
B66: Breakeven Price to Cover Variable Costs | G66: 34.7709874 | H66: =IF(E10=0,"n/a",(YVarExp-(YTotExp+YTotRet-J10))/E10) -> n/a | I66: CWT
Q67: Enterprise | R67: Enterprise
A68: FIXED COSTS | D68: Quantity | E68: Quantity | F68: Units | G68: $/Unit | H68: $/Unit | I68: Total | J68: Total | K68: Share | L68: Share | M68: Landlord | N68: Landlord | O68: Tenant | P68: Tenant | Q68: Total | R68: Total
B69: Machinery Depreciation
C70: Pickup/General Use Equipment | D70: 1 | F70: Acre | G70: 503.56 | I70: 503.56 | J70: =E70*H70 -> 0 | K70: 0 | M70: 0 | N70: =J70*L70 -> 0 | O70: 503.56 | P70: =+J70-N70 -> 0 | Q70: 503.56 | R70: =+J70*E$7 -> 0
C71: Tractors/Self-Propelled | D71: 1 | F71: Acre | G71: 2.475928358 | I71: 2.475928358 | J71: 0 | K71: 0 | M71: 0 | N71: =J71*L71 -> 0 | O71: 2.475928358 | P71: 0 | Q71: 2.475928358 | R71: 0
C72: Implements | D72: 1 | F72: Acre | G72: 1.001999541 | I72: 1.001999541 | J72: 0 | K72: 0 | M72: 0 | N72: =J72*L72 -> 0 | O72: 1.001999541 | P72: 0 | Q72: 1.001999541 | R72: 0
B73: Equipment Investment
C74: Pickup/General Use Equipment | D74: 3519.7 | F74: Dollars | G74: 0.09 | I74: 316.773 | J74: =E74*H74 -> 0 | K74: 0 | M74: 0 | N74: =J74*L74 -> 0 | O74: 316.773 | P74: =+J74-N74 -> 0 | Q74: 316.773 | R74: =+J74*E$7 -> 0
C75: Tractors/Self-Propelled | D75: 19.2882806 | F75: Dollars | G75: 0.09 | I75: 1.735945254 | J75: 0 | K75: 0 | M75: 0 | N75: =J75*L75 -> 0 | O75: 1.735945254 | P75: 0 | Q75: 1.735945254 | R75: 0
C76: Implements | D76: 5.577254939 | F76: Dollars | G76: 0.09 | I76: 0.5019529445 | J76: 0 | K76: 0 | M76: 0 | N76: =J76*L76 -> 0 | O76: 0.5019529445 | P76: 0 | Q76: 0.5019529445 | R76: 0
B77: Salaried Labor | D77: 1 | F77: Acre | G77: 0 | I77: 0 | J77: 0 | K77: 0 | M77: 0 | N77: =J77*L77 -> 0 | O77: 0 | P77: =+J77-N77 -> 0 | Q77: 0 | R77: =+J77*E$7 -> 0
B78: Management Fee, Owner/Operator Labor | D78: 1 | F78: Acre | G78: 0 | I78: 0 | J78: 0 | K78: 0 | M78: 0 | N78: 0 | O78: 0 | P78: 0 | Q78: 0 | R78: 0
B79: Allocated Establishment Cost | D79: 1 | F79: Acre | G79: 0 | I79: 0 | J79: 0 | K79: 0 | M79: 0 | N79: 0 | O79: 0 | P79: 0 | Q79: 0 | R79: 0
B80: Cash Rent - Irrigated | D80: 1 | F80: Acre | G80: 125 | I80: 125 | J80: 0 | K80: 0 | M80: 0 | N80: 0 | O80: 125 | P80: 0 | Q80: 125 | R80: 0
B81: Property Taxes | D81: 1 | F81: Acre | G81: 0 | I81: 0 | J81: 0 | K81: 0 | M81: 0 | N81: 0 | O81: 0 | P81: 0 | Q81: 0 | R81: 0
B82: Whole Farm Insurance | D82: 1 | F82: Acre | G82: 0 | I82: 0 | J82: 0 | K82: 0 | M82: 0 | N82: 0 | O82: 0 | P82: 0 | Q82: 0 | R82: 0
D83: 1 | G83: 0 | I83: 0 | J83: 0 | K83: 0 | M83: 0 | N83: 0 | O83: 0 | P83: 0 | Q83: 0 | R83: 0
D84: 1 | G84: 0 | I84: 0 | J84: =E84*H84 -> 0 | K84: 0 | M84: 0 | N84: 0 | O84: 0 | P84: 0 | Q84: 0 | R84: 0
A85: Total Fixed Costs | I85: 951.0488261 | J85: =+SUM(J70:J84) -> 0 | M85: 0 | N85: =+SUM(N70:N84) -> 0 | O85: 951.0488261 | P85: =+SUM(P70:P84) -> 0 | Q85: 951.0488261 | R85: =+SUM(R70:R84) -> 0
A86: Total Specified Costs | I86: 9977.597156 | J86: =+J64+J85 -> 0 | M86: 0 | N86: =+N64+N85 -> 0 | O86: 9977.597156 | P86: =+P64+P85 -> 0 | Q86: 9977.597156 | R86: =+R64+R85 -> 0
A88: Returns Above Specified Costs | I88: 2773.954844 | J88: =+J13-J86 -> 0 | M88: 0 | N88: =+N13-N86 -> 0 | O88: 2773.954844 | P88: =+P13-P86 -> 0 | Q88: 2773.954844 | R88: =+R13-R86 -> 0
A90: Breakeven Price to Cover Total Costs | G90: 38.43450368 | H90: =IF(E10=0,"n/a",(YTotExp-(YTotExp+YTotRet-J10))/E10) -> n/a | I90: CWT
D92: Example Breakeven Prices
B93: Example | C93: Example | D93: To Cover | G93: To Cover
B94: Yield | C94: Yield | D94: Variable | G94: Total
B95: Percent | C95: CWT | D95: Costs | G95: Costs
B96: 0.75 | C96: 194.7 | D96: 46.36131654 | G96: 51.24600491
B97: 0.9 | C97: 233.64 | D97: 38.63443045 | G97: 42.70500409
B98: 1 | C98: 259.6 | D98: 34.7709874 | G98: 38.43450368
B99: 1.1 | C99: 285.56 | D99: 31.60998855 | G99: 34.94045789
B100: 1.25 | C100: 324.5 | D100: 27.81678992 | G100: 30.74760295
A102: Developed by Justin Benavidez, Assistant Professor, Texas A&M AgriLife Extension, 806-677-5600.
A103: DeDe Jones, Extension Risk Management Specialist IV, Texas A&M AgriLife Extension
A104: Information presented is prepared solely as a general guide and not intended to recognize or predict the costs and returns from any one operation. Brand names are mentioned only as examples and imply no endorsement.

Sheet PepperNoMulch
A1: Projections for Planning Purposes Only -- Not to be Used without Updating
A2: 2024 Estimated Costs and Returns per Acre
A3: Jalapeño Pepper, Drip Irrigated
A4: Enter your name for this budget in the cell above.
A5: Enter Your Values in the cells highlighed in MAROON.
E6: Your Acres | R6: Your
C7: Crop Acres | D7: 1 | L7: Your | Q7: Enterprise | R7: Enterprise
E8: Your | H8: Your | I8: Cash | J8: Your | K8: Landlord | L8: Landlord | N8: Your | P8: Your | Q8: Total | R8: Total
A9: REVENUE | D9: Quantity | E9: Quantity | F9: Units | G9: $/Unit | H9: $/Unit | I9: Total | J9: Total | K9: Share | L9: Share | M9: Landlord | N9: Landlord | O9: Tenant | P9: Tenant | Q9: (1 acres) | R9: ="(" & E7 & " acres)" -> ( acres)
B10: Jalapeño Pepper | D10: 235.9 | F10: CWT | G10: 27.44 | I10: 6473.096 | J10: =E10*H10 -> 0 | K10: 0 | M10: 0 | N10: =J10*L10 -> 0 | O10: 6473.096 | P10: =+J10-N10 -> 0 | Q10: 6473.096 | R10: =+J10*E$7 -> 0
D11: 0 | G11: 0 | I11: 0 | J11: 0 | K11: 0 | M11: 0 | N11: 0 | O11: 0 | P11: =+J11-N11 -> 0 | Q11: 0 | R11: 0
D12: 0 | G12: 0 | I12: 0 | J12: 0 | K12: 0 | M12: 0 | N12: 0 | O12: 0 | P12: 0 | Q12: 0 | R12: 0
A13: Total Revenue | I13: 6473.096 | J13: =SUM(J10:J12) -> 0 | M13: 0 | N13: =SUM(N10:N12) -> 0 | O13: 6473.096 | P13: =SUM(P10:P12) -> 0 | Q13: 6473.096 | R13: =SUM(R10:R12) -> 0
Q14: Enterprise | R14: Enterprise
A15: VARIABLE COSTS | D15: Quantity | E15: Quantity | F15: Units | G15: $/Unit | H15: $/Unit | I15: Total | J15: Total | K15: Share | L15: Share | M15: Landlord | N15: Landlord | O15: Tenant | P15: Tenant | Q15: Total | R15: Total
A16: Production Costs
B17: Seed
C18: Transplants - Pepper | D18: 11591 | F18: Plants | G18: 0.18 | I18: 2086.38 | J18: =E18*H18 -> 0 | K18: 0 | M18: 0 | N18: =J18*L18 -> 0 | O18: 2086.38 | P18: =+J18-N18 -> 0 | Q18: 2086.38 | R18: =+J18*E$7 -> 0
C19: Seed - Pepper | D19: 0 | F19: Bag | G19: 186 | I19: 0 | J19: 0 | K19: 0 | M19: 0 | N19: 0 | O19: 0 | P19: 0 | Q19: 0 | R19: 0
B20: Fertilizer
C21: Fertilizer (N) - Dry | D21: 150 | F21: Pound | G21: 0.522 | I21: 78.3 | J21: 0 | K21: 0 | M21: 0 | N21: 0 | O21: 78.3 | P21: 0 | Q21: 78.3 | R21: 0
C22: Fertilizer Application | D22: 1 | F22: Acre | G22: 7.5 | I22: 7.5 | J22: 0 | K22: 0 | M22: 0 | N22: 0 | O22: 7.5 | P22: 0 | Q22: 7.5 | R22: 0
B23: Herbicide
C24: Metolachlor | D24: 1.33 | F24: Pint | G24: 5 | I24: 6.65 | J24: 0 | K24: 0 | M24: 0 | N24: 0 | O24: 6.65 | P24: 0 | Q24: 6.65 | R24: 0
C25: Treflan | D25: 1.33 | F25: Pint | G25: 3.5 | I25: 4.655 | J25: 0 | K25: 0 | M25: 0 | N25: 0 | O25: 4.655 | P25: 0 | Q25: 4.655 | R25: 0
C26: Herbicide Application | D26: 2 | F26: Acre | G26: 7.5 | I26: 15 | J26: 0 | K26: 0 | M26: 0 | N26: 0 | O26: 15 | P26: 0 | Q26: 15 | R26: 0
B27: Insecticide
C28: Sevin Insecticide - Vegetables | D28: 0.17 | F28: Gallon | G28: 214 | I28: 36.38 | J28: 0 | K28: 0 | M28: 0 | N28: 0 | O28: 36.38 | P28: 0 | Q28: 36.38 | R28: 0
C29: Insecticide Application | D29: 1 | F29: Acre | G29: 8 | I29: 8 | J29: 0 | K29: 0 | M29: 0 | N29: 0 | O29: 8 | P29: 0 | Q29: 8 | R29: 0
B30: Miscellaneous
C31: Toro 15mil Drip Tape - 12" drip emitter spacing | D31: 2.2 | F31: Roll | G31: 163.5 | I31: 359.7 | J31: 0 | K31: 0 | M31: 0 | N31: 0 | O31: 359.7 | P31: 0 | Q31: 359.7 | R31: 0
C32: Drip Tape Fittings | D32: 527 | F32: Unit | G32: 1.74 | I32: 916.98 | J32: 0 | K32: 0 | M32: 0 | N32: 0 | O32: 916.98 | P32: 0 | Q32: 916.98 | R32: 0
B33: Custom
C34: Harvest, Pack & Count Vegetables | D34: 235.9 | F34: CWT | G34: 13.19 | I34: 3111.521 | J34: 0 | K34: 0 | M34: 0 | N34: 0 | O34: 3111.521 | P34: 0 | Q34: 3111.521 | R34: 0
C35: Hand Weeding - Vegetables | D35: 358 | F35: Hour | G35: 11.18 | I35: 4002.44 | J35: 0 | K35: 0 | M35: 0 | N35: 0 | O35: 4002.44 | P35: 0 | Q35: 4002.44 | R35: 0
D36: 0 | G36: 0 | I36: 0 | J36: 0 | K36: 0 | M36: 0 | N36: 0 | O36: 0 | P36: 0 | Q36: 0 | R36: 0
D37: 0 | G37: 0 | I37: 0 | J37: 0 | K37: 0 | M37: 0 | N37: 0 | O37: 0 | P37: 0 | Q37: 0 | R37: 0
D38: 0 | G38: 0 | I38: 0 | J38: =E38*H38 -> 0 | K38: 0 | M38: 0 | N38: =J38*L38 -> 0 | O38: 0 | P38: =+J38-N38 -> 0 | Q38: 0 | R38: =+J38*E$7 -> 0
B39: Irrigation
C40: Energy Cost | D40: 11 | F40: AcreInch | G40: 3.8 | I40: 41.8 | J40: =E40*H40 -> 0 | K40: 0 | M40: 0 | N40: =J40*L40 -> 0 | O40: 41.8 | P40: =+J40-N40 -> 0 | Q40: 41.8 | R40: =+J40*E$7 -> 0
C41: Irrigation Labor | D41: 0.198 | F41: Hour | G41: 17.94 | I41: 3.55212 | J41: 0 | K41: 0 | M41: 0 | N41: 0 | O41: 3.55212 | P41: 0 | Q41: 3.55212 | R41: 0
B42: Machinery Labor
C43: Tractors/Self-Propelled | D43: 0.82 | F43: Hour | G43: 17.65 | I43: 14.473 | J43: =E43*H43 -> 0 | K43: 0 | M43: 0 | N43: =J43*L43 -> 0 | O43: 14.473 | P43: =+J43-N43 -> 0 | Q43: 14.473 | R43: =+J43*E$7 -> 0
C44: Other Labor | D44: 1.79 | F44: Hour | G44: 17.65 | I44: 31.5935 | J44: =E44*H44 -> 0 | K44: 0 | M44: 0 | N44: =J44*L44 -> 0 | O44: 31.5935 | P44: =+J44-N44 -> 0 | Q44: 31.5935 | R44: =+J44*E$7 -> 0
B46: Diesel Fuel
C47: Pickup/General Use Equipment | D47: 1 | F47: Acre | G47: 0 | I47: 0 | J47: =E47*H47 -> 0 | K47: 0 | M47: 0 | N47: =J47*L47 -> 0 | O47: 0 | P47: =+J47-N47 -> 0 | Q47: 0 | R47: =+J47*E$7 -> 0
C48: Tractors/Self-Propelled | D48: 1.55 | F48: Gallon | G48: 3.1 | I48: 4.805 | J48: =E48*H48 -> 0 | K48: 0 | M48: 0 | N48: =J48*L48 -> 0 | O48: 4.805 | P48: =+J48-N48 -> 0 | Q48: 4.805 | R48: =+J48*E$7 -> 0
B50: Gasoline
C51: Pickup/General Use Equipment | D51: 1 | F51: Acre | G51: 120 | I51: 120 | J51: =E51*H51 -> 0 | K51: 0 | M51: 0 | N51: =J51*L51 -> 0 | O51: 120 | P51: =+J51-N51 -> 0 | Q51: 120 | R51: =+J51*E$7 -> 0
C52: Tractors/Self-Propelled | D52: 0 | F52: Gallon | G52: 2.4 | I52: 0 | J52: =E52*H52 -> 0 | K52: 0 | M52: 0 | N52: =J52*L52 -> 0 | O52: 0 | P52: =+J52-N52 -> 0 | Q52: 0 | R52: =+J52*E$7 -> 0
B54: Repairs & Maintenance
C55: Pickup/General Use Equipment | D55: 1 | F55: Acre | G55: 61.2 | I55: 61.2 | J55: =E55*H55 -> 0 | K55: 0 | M55: 0 | N55: =J55*L55 -> 0 | O55: 61.2 | P55: =+J55-N55 -> 0 | Q55: 61.2 | R55: =+J55*E$7 -> 0
C56: Irrigation Equipment | D56: 1 | F56: Acre | G56: 33 | I56: 33 | J56: 0 | K56: 0 | M56: 0 | N56: 0 | O56: 33 | P56: 0 | Q56: 33 | R56: 0
C57: Tractors/Self-Propelled | D57: 1 | F57: Acre | G57: 2.995074627 | I57: 2.995074627 | J57: 0 | K57: 0 | M57: 0 | N57: 0 | O57: 2.995074627 | P57: 0 | Q57: 2.995074627 | R57: 0
C58: Implements | D58: 1 | F58: Acre | G58: 0.8613270865 | I58: 0.8613270865 | J58: 0 | K58: 0 | M58: 0 | N58: 0 | O58: 0.8613270865 | P58: 0 | Q58: 0.8613270865 | R58: 0
I59: 0 | J59: 0 | K59: 0 | M59: 0 | N59: 0 | O59: 0 | P59: 0 | Q59: 0 | R59: 0
I60: 0 | J60: 0 | K60: 0 | M60: 0 | N60: 0 | O60: 0 | P60: 0 | Q60: 0 | R60: 0
B61: Interest on Credit Line | G61: 0.09 | I61: 211.4890808 | J61: =+SUM(J17:J60)/2*H61 -> 0 | M61: 0 | N61: =+SUM(N17:N60)/2*L61 -> 0 | O61: 211.4890808 | P61: =+SUM(P17:P60)/2*L61 -> 0 | Q61: 211.4890808 | R61: =+J61*E$7 -> 0
A62: Total Variable Costs | I62: 11159.2751 | J62: =SUM(J18:J61) -> 0 | M62: 0 | N62: =SUM(N18:N61) -> 0 | O62: 11159.2751 | P62: =SUM(P18:P61) -> 0 | Q62: 11159.2751 | R62: =SUM(R18:R61) -> 0
A63: Planned Returns Above Variable Costs: | I63: -4686.179102 | J63: =+J13-J62 -> 0 | M63: 0 | N63: =+N13-N62 -> 0 | O63: -4686.179102 | P63: =+P13-P62 -> 0 | Q63: -4686.179102 | R63: =+R13-R62 -> 0
B64: Breakeven Price to Cover Variable Costs | G64: 47.30510853 | H64: =IF(E10=0,"n/a",(YVarExp-(YTotExp+YTotRet-J10))/E10) -> n/a | I64: CWT
Q65: Enterprise | R65: Enterprise
A66: FIXED COSTS | D66: Quantity | E66: Quantity | F66: Units | G66: $/Unit | H66: $/Unit | I66: Total | J66: Total | K66: Share | L66: Share | M66: Landlord | N66: Landlord | O66: Tenant | P66: Tenant | Q66: Total | R66: Total
B67: Machinery Depreciation
C68: Pickup/General Use Equipment | D68: 1 | F68: Acre | G68: 64.26 | I68: 64.26 | J68: =E68*H68 -> 0 | K68: 0 | M68: 0 | N68: =J68*L68 -> 0 | O68: 64.26 | P68: =+J68-N68 -> 0 | Q68: 64.26 | R68: =+J68*E$7 -> 0
C69: Tractors/Self-Propelled | D69: 1 | F69: Acre | G69: 2.475928358 | I69: 2.475928358 | J69: 0 | K69: 0 | M69: 0 | N69: =J69*L69 -> 0 | O69: 2.475928358 | P69: 0 | Q69: 2.475928358 | R69: 0
C70: Implements | D70: 1 | F70: Acre | G70: 1.001999541 | I70: 1.001999541 | J70: 0 | K70: 0 | M70: 0 | N70: =J70*L70 -> 0 | O70: 1.001999541 | P70: 0 | Q70: 1.001999541 | R70: 0
B71: Equipment Investment
C72: Pickup/General Use Equipment | D72: 443.7 | F72: Dollars | G72: 0.09 | I72: 39.933 | J72: =E72*H72 -> 0 | K72: 0 | M72: 0 | N72: =J72*L72 -> 0 | O72: 39.933 | P72: =+J72-N72 -> 0 | Q72: 39.933 | R72: =+J72*E$7 -> 0
C73: Tractors/Self-Propelled | D73: 19.2882806 | F73: Dollars | G73: 0.09 | I73: 1.735945254 | J73: 0 | K73: 0 | M73: 0 | N73: =J73*L73 -> 0 | O73: 1.735945254 | P73: 0 | Q73: 1.735945254 | R73: 0
C74: Implements | D74: 5.577254939 | F74: Dollars | G74: 0.09 | I74: 0.5019529445 | J74: 0 | K74: 0 | M74: 0 | N74: =J74*L74 -> 0 | O74: 0.5019529445 | P74: 0 | Q74: 0.5019529445 | R74: 0
B75: Salaried Labor | D75: 1 | F75: Acre | G75: 0 | I75: 0 | J75: 0 | K75: 0 | M75: 0 | N75: =J75*L75 -> 0 | O75: 0 | P75: =+J75-N75 -> 0 | Q75: 0 | R75: =+J75*E$7 -> 0
B76: Management Fee, Owner/Operator Labor | D76: 1 | F76: Acre | G76: 0 | I76: 0 | J76: 0 | K76: 0 | M76: 0 | N76: 0 | O76: 0 | P76: 0 | Q76: 0 | R76: 0
B77: Allocated Establishment Cost | D77: 1 | F77: Acre | G77: 0 | I77: 0 | J77: 0 | K77: 0 | M77: 0 | N77: 0 | O77: 0 | P77: 0 | Q77: 0 | R77: 0
B78: Cash Rent - Irrigated | D78: 1 | F78: Acre | G78: 125 | I78: 125 | J78: 0 | K78: 0 | M78: 0 | N78: 0 | O78: 125 | P78: 0 | Q78: 125 | R78: 0
B79: Property Taxes | D79: 1 | F79: Acre | G79: 0 | I79: 0 | J79: 0 | K79: 0 | M79: 0 | N79: 0 | O79: 0 | P79: 0 | Q79: 0 | R79: 0
B80: Whole Farm Insurance | D80: 1 | F80: Acre | G80: 0 | I80: 0 | J80: 0 | K80: 0 | M80: 0 | N80: 0 | O80: 0 | P80: 0 | Q80: 0 | R80: 0
D81: 1 | G81: 0 | I81: 0 | J81: 0 | K81: 0 | M81: 0 | N81: 0 | O81: 0 | P81: 0 | Q81: 0 | R81: 0
D82: 1 | G82: 0 | I82: 0 | J82: =E82*H82 -> 0 | K82: 0 | M82: 0 | N82: 0 | O82: 0 | P82: 0 | Q82: 0 | R82: 0
A83: Total Fixed Costs | I83: 234.9088261 | J83: =+SUM(J68:J82) -> 0 | M83: 0 | N83: =+SUM(N68:N82) -> 0 | O83: 234.9088261 | P83: =+SUM(P68:P82) -> 0 | Q83: 234.9088261 | R83: =+SUM(R68:R82) -> 0
A84: Total Specified Costs | I84: 11394.18393 | J84: =+J62+J83 -> 0 | M84: 0 | N84: =+N62+N83 -> 0 | O84: 11394.18393 | P84: =+P62+P83 -> 0 | Q84: 11394.18393 | R84: =+R62+R83 -> 0
A86: Returns Above Specified Costs | I86: -4921.087929 | J86: =+J13-J84 -> 0 | M86: 0 | N86: =+N13-N84 -> 0 | O86: -4921.087929 | P86: =+P13-P84 -> 0 | Q86: -4921.087929 | R86: =+R13-R84 -> 0
A88: Breakeven Price to Cover Total Costs | G88: 48.30090686 | H88: =IF(E10=0,"n/a",(YTotExp-(YTotExp+YTotRet-J10))/E10) -> n/a | I88: CWT
D90: Example Breakeven Prices
B91: Example | C91: Example | D91: To Cover | G91: To Cover
B92: Yield | C92: Yield | D92: Variable | G92: Total
B93: Percent | C93: CWT | D93: Costs | G93: Costs
B94: 0.75 | C94: 176.925 | D94: 63.07347804 | G94: 64.40120915
B95: 0.9 | C95: 212.31 | D95: 52.5612317 | G95: 53.66767429
B96: 1 | C96: 235.9 | D96: 47.30510853 | G96: 48.30090686
B97: 1.1 | C97: 259.49 | D97: 43.00464412 | G97: 43.90991533
B98: 1.25 | C98: 294.875 | D98: 37.84408682 | G98: 38.64072549
A100: Developed by Justin Benavidez, Assistant Professor, Texas A&M AgriLife Extension, 806-677-5600.
A101: DeDe Jones, Extension Risk Management Specialist IV, Texas A&M AgriLife Extension
A102: Information presented is prepared solely as a general guide and not intended to recognize or predict the costs and returns from any one operation. Brand names are mentioned only as examples and imply no endorsement.

Sheet SweetCornNoMulch
A1: Projections for Planning Purposes Only -- Not to be Used without Updating
A2: 2024 Estimated Costs and Returns per Acre
A3: Sweet Corn, Drip Irrigated
A4: Enter your name for this budget in the cell above.
A5: Enter Your Values in the cells highlighed in MAROON.
E6: Your Acres | R6: Your
C7: Crop Acres | D7: 1 | L7: Your | Q7: Enterprise | R7: Enterprise
E8: Your | H8: Your | I8: Cash | J8: Your | K8: Landlord | L8: Landlord | N8: Your | P8: Your | Q8: Total | R8: Total
A9: REVENUE | D9: Quantity | E9: Quantity | F9: Units | G9: $/Unit | H9: $/Unit | I9: Total | J9: Total | K9: Share | L9: Share | M9: Landlord | N9: Landlord | O9: Tenant | P9: Tenant | Q9: (1 acres) | R9: ="(" & E7 & " acres)" -> ( acres)
B10: Sweet Corn | D10: 92.2 | F10: CWT | G10: 14.89 | I10: 1372.858 | J10: =E10*H10 -> 0 | K10: 0 | M10: 0 | N10: =J10*L10 -> 0 | O10: 1372.858 | P10: =+J10-N10 -> 0 | Q10: 1372.858 | R10: =+J10*E$7 -> 0
D11: 0 | G11: 0 | I11: 0 | J11: 0 | K11: 0 | M11: 0 | N11: 0 | O11: 0 | P11: =+J11-N11 -> 0 | Q11: 0 | R11: 0
D12: 0 | G12: 0 | I12: 0 | J12: 0 | K12: 0 | M12: 0 | N12: 0 | O12: 0 | P12: 0 | Q12: 0 | R12: 0
A13: Total Revenue | I13: 1372.858 | J13: =SUM(J10:J12) -> 0 | M13: 0 | N13: =SUM(N10:N12) -> 0 | O13: 1372.858 | P13: =SUM(P10:P12) -> 0 | Q13: 1372.858 | R13: =SUM(R10:R12) -> 0
Q14: Enterprise | R14: Enterprise
A15: VARIABLE COSTS | D15: Quantity | E15: Quantity | F15: Units | G15: $/Unit | H15: $/Unit | I15: Total | J15: Total | K15: Share | L15: Share | M15: Landlord | N15: Landlord | O15: Tenant | P15: Tenant | Q15: Total | R15: Total
A16: Production Costs
B17: Seed
C18: Seed - Corn, Sweet | D18: 7.47 | F18: Bag | G18: 400 | I18: 2988 | J18: =E18*H18 -> 0 | K18: 0 | M18: 0 | N18: =J18*L18 -> 0 | O18: 2988 | P18: =+J18-N18 -> 0 | Q18: 2988 | R18: =+J18*E$7 -> 0
B19: Fertilizer
C20: Fertilizer (N) - Dry | D20: 150 | F20: Pound | G20: 0.522 | I20: 78.3 | J20: 0 | K20: 0 | M20: 0 | N20: 0 | O20: 78.3 | P20: 0 | Q20: 78.3 | R20: 0
C21: Fertilizer Application | D21: 1 | F21: Acre | G21: 7.5 | I21: 7.5 | J21: 0 | K21: 0 | M21: 0 | N21: 0 | O21: 7.5 | P21: 0 | Q21: 7.5 | R21: 0
B22: Herbicide
C23: Metolachlor | D23: 1.33 | F23: Pint | G23: 5 | I23: 6.65 | J23: 0 | K23: 0 | M23: 0 | N23: 0 | O23: 6.65 | P23: 0 | Q23: 6.65 | R23: 0
C24: Treflan | D24: 1.33 | F24: Pint | G24: 3.5 | I24: 4.655 | J24: 0 | K24: 0 | M24: 0 | N24: 0 | O24: 4.655 | P24: 0 | Q24: 4.655 | R24: 0
C25: Herbicide Application | D25: 2 | F25: Acre | G25: 7.5 | I25: 15 | J25: 0 | K25: 0 | M25: 0 | N25: 0 | O25: 15 | P25: 0 | Q25: 15 | R25: 0
B26: Insecticide
C27: Sevin Insecticide - Vegetables | D27: 0.17 | F27: Gallon | G27: 214 | I27: 36.38 | J27: 0 | K27: 0 | M27: 0 | N27: 0 | O27: 36.38 | P27: 0 | Q27: 36.38 | R27: 0
C28: Insecticide Application | D28: 1 | F28: Acre | G28: 8 | I28: 8 | J28: 0 | K28: 0 | M28: 0 | N28: 0 | O28: 8 | P28: 0 | Q28: 8 | R28: 0
B29: Miscellaneous
C30: Toro 15mil Drip Tape - 12" drip emitter spacing | D30: 2.2 | F30: Roll | G30: 163.5 | I30: 359.7 | J30: 0 | K30: 0 | M30: 0 | N30: 0 | O30: 359.7 | P30: 0 | Q30: 359.7 | R30: 0
C31: Drip Tape Fittings | D31: 527 | F31: Unit | G31: 1.74 | I31: 916.98 | J31: 0 | K31: 0 | M31: 0 | N31: 0 | O31: 916.98 | P31: 0 | Q31: 916.98 | R31: 0
B32: Custom
C33: Harvest, Pack & Count Vegetables | D33: 92.2 | F33: CWT | G33: 13.19 | I33: 1216.118 | J33: 0 | K33: 0 | M33: 0 | N33: 0 | O33: 1216.118 | P33: 0 | Q33: 1216.118 | R33: 0
D34: 0 | G34: 0 | I34: 0 | J34: 0 | K34: 0 | M34: 0 | N34: 0 | O34: 0 | P34: 0 | Q34: 0 | R34: 0
D35: 0 | G35: 0 | I35: 0 | J35: 0 | K35: 0 | M35: 0 | N35: 0 | O35: 0 | P35: 0 | Q35: 0 | R35: 0
D36: 0 | G36: 0 | I36: 0 | J36: =E36*H36 -> 0 | K36: 0 | M36: 0 | N36: =J36*L36 -> 0 | O36: 0 | P36: =+J36-N36 -> 0 | Q36: 0 | R36: =+J36*E$7 -> 0
B37: Irrigation
C38: Energy Cost | D38: 10.2186 | F38: AcreInch | G38: 3.8 | I38: 38.83068 | J38: =E38*H38 -> 0 | K38: 0 | M38: 0 | N38: =J38*L38 -> 0 | O38: 38.83068 | P38: =+J38-N38 -> 0 | Q38: 38.83068 | R38: =+J38*E$7 -> 0
C39: Irrigation Labor | D39: 0.189 | F39: Hour | G39: 17.94 | I39: 3.39066 | J39: 0 | K39: 0 | M39: 0 | N39: 0 | O39: 3.39066 | P39: 0 | Q39: 3.39066 | R39: 0
B40: Machinery Labor
C41: Tractors/Self-Propelled | D41: 0.51 | F41: Hour | G41: 17.65 | I41: 9.0015 | J41: =E41*H41 -> 0 | K41: 0 | M41: 0 | N41: =J41*L41 -> 0 | O41: 9.0015 | P41: =+J41-N41 -> 0 | Q41: 9.0015 | R41: =+J41*E$7 -> 0
C42: Other Labor | D42: 0.86 | F42: Hour | G42: 17.65 | I42: 15.179 | J42: =E42*H42 -> 0 | K42: 0 | M42: 0 | N42: =J42*L42 -> 0 | O42: 15.179 | P42: =+J42-N42 -> 0 | Q42: 15.179 | R42: =+J42*E$7 -> 0
B44: Diesel Fuel
C45: Pickup/General Use Equipment | D45: 1 | F45: Acre | G45: 0 | I45: 0 | J45: =E45*H45 -> 0 | K45: 0 | M45: 0 | N45: =J45*L45 -> 0 | O45: 0 | P45: =+J45-N45 -> 0 | Q45: 0 | R45: =+J45*E$7 -> 0
C46: Tractors/Self-Propelled | D46: 1.2 | F46: Gallon | G46: 3.1 | I46: 3.72 | J46: =E46*H46 -> 0 | K46: 0 | M46: 0 | N46: =J46*L46 -> 0 | O46: 3.72 | P46: =+J46-N46 -> 0 | Q46: 3.72 | R46: =+J46*E$7 -> 0
B48: Gasoline
C49: Pickup/General Use Equipment | D49: 1 | F49: Acre | G49: 120 | I49: 120 | J49: =E49*H49 -> 0 | K49: 0 | M49: 0 | N49: =J49*L49 -> 0 | O49: 120 | P49: =+J49-N49 -> 0 | Q49: 120 | R49: =+J49*E$7 -> 0
C50: Tractors/Self-Propelled | D50: 0 | F50: Gallon | G50: 2.4 | I50: 0 | J50: =E50*H50 -> 0 | K50: 0 | M50: 0 | N50: =J50*L50 -> 0 | O50: 0 | P50: =+J50-N50 -> 0 | Q50: 0 | R50: =+J50*E$7 -> 0
B52: Repairs & Maintenance
C53: Pickup/General Use Equipment | D53: 1 | F53: Acre | G53: 61.2 | I53: 61.2 | J53: =E53*H53 -> 0 | K53: 0 | M53: 0 | N53: =J53*L53 -> 0 | O53: 61.2 | P53: =+J53-N53 -> 0 | Q53: 61.2 | R53: =+J53*E$7 -> 0
C54: Irrigation Equipment | D54: 1 | F54: Acre | G54: 30.6558 | I54: 30.6558 | J54: 0 | K54: 0 | M54: 0 | N54: 0 | O54: 30.6558 | P54: 0 | Q54: 30.6558 | R54: 0
C55: Tractors/Self-Propelled | D55: 1 | F55: Acre | G55: 2.319556736 | I55: 2.319556736 | J55: 0 | K55: 0 | M55: 0 | N55: 0 | O55: 2.319556736 | P55: 0 | Q55: 2.319556736 | R55: 0
C56: Implements | D56: 1 | F56: Acre | G56: 1.260510763 | I56: 1.260510763 | J56: 0 | K56: 0 | M56: 0 | N56: 0 | O56: 1.260510763 | P56: 0 | Q56: 1.260510763 | R56: 0
I57: 0 | J57: 0 | K57: 0 | M57: 0 | N57: 0 | O57: 0 | P57: 0 | Q57: 0 | R57: 0
I58: 0 | J58: 0 | K58: 0 | M58: 0 | N58: 0 | O58: 0 | P58: 0 | Q58: 0 | R58: 0
B59: Interest on Credit Line | G59: 0.09 | I59: 112.394425 | J59: =+SUM(J17:J58)/2*H59 -> 0 | M59: 0 | N59: =+SUM(N17:N58)/2*L59 -> 0 | O59: 112.394425 | P59: =+SUM(P17:P58)/2*L59 -> 0 | Q59: 112.394425 | R59: =+J59*E$7 -> 0
A60: Total Variable Costs | I60: 6035.235133 | J60: =SUM(J18:J59) -> 0 | M60: 0 | N60: =SUM(N18:N59) -> 0 | O60: 6035.235133 | P60: =SUM(P18:P59) -> 0 | Q60: 6035.235133 | R60: =SUM(R18:R59) -> 0
A61: Planned Returns Above Variable Costs: | I61: -4662.377133 | J61: =+J13-J60 -> 0 | M61: 0 | N61: =+N13-N60 -> 0 | O61: -4662.377133 | P61: =+P13-P60 -> 0 | Q61: -4662.377133 | R61: =+R13-R60 -> 0
B62: Breakeven Price to Cover Variable Costs | G62: 65.4580817 | H62: =IF(E10=0,"n/a",(YVarExp-(YTotExp+YTotRet-J10))/E10) -> n/a | I62: CWT
Q63: Enterprise | R63: Enterprise
A64: FIXED COSTS | D64: Quantity | E64: Quantity | F64: Units | G64: $/Unit | H64: $/Unit | I64: Total | J64: Total | K64: Share | L64: Share | M64: Landlord | N64: Landlord | O64: Tenant | P64: Tenant | Q64: Total | R64: Total
B65: Machinery Depreciation
C66: Pickup/General Use Equipment | D66: 1 | F66: Acre | G66: 64.26 | I66: 64.26 | J66: =E66*H66 -> 0 | K66: 0 | M66: 0 | N66: =J66*L66 -> 0 | O66: 64.26 | P66: =+J66-N66 -> 0 | Q66: 64.26 | R66: =+J66*E$7 -> 0
C67: Tractors/Self-Propelled | D67: 1 | F67: Acre | G67: 1.917500235 | I67: 1.917500235 | J67: 0 | K67: 0 | M67: 0 | N67: =J67*L67 -> 0 | O67: 1.917500235 | P67: 0 | Q67: 1.917500235 | R67: 0
C68: Implements | D68: 1 | F68: Acre | G68: 1.515235696 | I68: 1.515235696 | J68: 0 | K68: 0 | M68: 0 | N68: =J68*L68 -> 0 | O68: 1.515235696 | P68: 0 | Q68: 1.515235696 | R68: 0
B69: Equipment Investment
C70: Pickup/General Use Equipment | D70: 443.7 | F70: Dollars | G70: 0.09 | I70: 39.933 | J70: =E70*H70 -> 0 | K70: 0 | M70: 0 | N70: =J70*L70 -> 0 | O70: 39.933 | P70: =+J70-N70 -> 0 | Q70: 39.933 | R70: =+J70*E$7 -> 0
C71: Tractors/Self-Propelled | D71: 14.93794538 | F71: Dollars | G71: 0.09 | I71: 1.344415084 | J71: 0 | K71: 0 | M71: 0 | N71: =J71*L71 -> 0 | O71: 1.344415084 | P71: 0 | Q71: 1.344415084 | R71: 0
C72: Implements | D72: 9.066214649 | F72: Dollars | G72: 0.09 | I72: 0.8159593184 | J72: 0 | K72: 0 | M72: 0 | N72: =J72*L72 -> 0 | O72: 0.8159593184 | P72: 0 | Q72: 0.8159593184 | R72: 0
B73: Salaried Labor | D73: 1 | F73: Acre | G73: 0 | I73: 0 | J73: 0 | K73: 0 | M73: 0 | N73: =J73*L73 -> 0 | O73: 0 | P73: =+J73-N73 -> 0 | Q73: 0 | R73: =+J73*E$7 -> 0
B74: Management Fee, Owner/Operator Labor | D74: 1 | F74: Acre | G74: 0 | I74: 0 | J74: 0 | K74: 0 | M74: 0 | N74: 0 | O74: 0 | P74: 0 | Q74: 0 | R74: 0
B75: Allocated Establishment Cost | D75: 1 | F75: Acre | G75: 0 | I75: 0 | J75: 0 | K75: 0 | M75: 0 | N75: 0 | O75: 0 | P75: 0 | Q75: 0 | R75: 0
B76: Cash Rent - Irrigated | D76: 1 | F76: Acre | G76: 125 | I76: 125 | J76: 0 | K76: 0 | M76: 0 | N76: 0 | O76: 125 | P76: 0 | Q76: 125 | R76: 0
B77: Property Taxes | D77: 1 | F77: Acre | G77: 0 | I77: 0 | J77: 0 | K77: 0 | M77: 0 | N77: 0 | O77: 0 | P77: 0 | Q77: 0 | R77: 0
B78: Whole Farm Insurance | D78: 1 | F78: Acre | G78: 0 | I78: 0 | J78: 0 | K78: 0 | M78: 0 | N78: 0 | O78: 0 | P78: 0 | Q78: 0 | R78: 0
D79: 1 | G79: 0 | I79: 0 | J79: 0 | K79: 0 | M79: 0 | N79: 0 | O79: 0 | P79: 0 | Q79: 0 | R79: 0
D80: 1 | G80: 0 | I80: 0 | J80: =E80*H80 -> 0 | K80: 0 | M80: 0 | N80: 0 | O80: 0 | P80: 0 | Q80: 0 | R80: 0
A81: Total Fixed Costs | I81: 234.7861103 | J81: =+SUM(J66:J80) -> 0 | M81: 0 | N81: =+SUM(N66:N80) -> 0 | O81: 234.7861103 | P81: =+SUM(P66:P80) -> 0 | Q81: 234.7861103 | R81: =+SUM(R66:R80) -> 0
A82: Total Specified Costs | I82: 6270.021243 | J82: =+J60+J81 -> 0 | M82: 0 | N82: =+N60+N81 -> 0 | O82: 6270.021243 | P82: =+P60+P81 -> 0 | Q82: 6270.021243 | R82: =+R60+R81 -> 0
A84: Returns Above Specified Costs | I84: -4897.163243 | J84: =+J13-J82 -> 0 | M84: 0 | N84: =+N13-N82 -> 0 | O84: -4897.163243 | P84: =+P13-P82 -> 0 | Q84: -4897.163243 | R84: =+R13-R82 -> 0
A86: Breakeven Price to Cover Total Costs | G86: 68.00456879 | H86: =IF(E10=0,"n/a",(YTotExp-(YTotExp+YTotRet-J10))/E10) -> n/a | I86: CWT
D88: Example Breakeven Prices
B89: Example | C89: Example | D89: To Cover | G89: To Cover
B90: Yield | C90: Yield | D90: Variable | G90: Total
B91: Percent | C91: CWT | D91: Costs | G91: Costs
B92: 0.75 | C92: 69.15 | D92: 87.27744226 | G92: 90.67275839
B93: 0.9 | C93: 82.98 | D93: 72.73120189 | G93: 75.56063199
B94: 1 | C94: 92.2 | D94: 65.4580817 | G94: 68.00456879
B95: 1.1 | C95: 101.42 | D95: 59.507347 | G95: 61.82233527
B96: 1.25 | C96: 115.25 | D96: 52.36646536 | G96: 54.40365504
A98: Developed by Justin Benavidez, Assistant Professor, Texas A&M AgriLife Extension, 806-677-5600.
A99: DeDe Jones, Extension Risk Management Specialist IV, Texas A&M AgriLife Extension
A100: Information presented is prepared solely as a general guide and not intended to recognize or predict the costs and returns from any one operation. Brand names are mentioned only as examples and imply no endorsement.

Sheet AlfalfaEstablish
A1: Projections for Planning Purposes Only -- Not to be Used without Updating
A2: 2024 Estimated Costs and Returns per Acre
A3: Alfalfa Establishment, Sprinkler Irrigated (NG), Fall Seeding Only
A4: Enter your name for this budget in the cell above.
A5: Enter Your Values in the cells highlighed in MAROON.
E6: Your Acres | R6: Your
C7: Crop Acres | D7: 122 | L7: Your | Q7: Enterprise | R7: Enterprise
E8: Your | H8: Your | I8: Cash | J8: Your | K8: Landlord | L8: Landlord | N8: Your | P8: Your | Q8: Total | R8: Total
A9: REVENUE | D9: Quantity | E9: Quantity | F9: Units | G9: $/Unit | H9: $/Unit | I9: Total | J9: Total | K9: Share | L9: Share | M9: Landlord | N9: Landlord | O9: Tenant | P9: Tenant | Q9: (122 acres) | R9: ="(" & E7 & " acres)" -> ( acres)
B10: 0 | D10: 0 | G10: 0 | I10: 0 | J10: =E10*H10 -> 0 | K10: 0 | M10: 0 | N10: =J10*L10 -> 0 | O10: 0 | P10: =+J10-N10 -> 0 | Q10: 0 | R10: =+J10*E$7 -> 0
D11: 0 | G11: 0 | I11: 0 | J11: 0 | K11: 0 | M11: 0 | N11: 0 | O11: 0 | P11: 0 | Q11: 0 | R11: 0
D12: 0 | G12: 0 | I12: 0 | J12: 0 | K12: 0 | M12: 0 | N12: 0 | O12: 0 | P12: 0 | Q12: 0 | R12: 0
A13: Total Revenue | I13: 0 | J13: =SUM(J10:J12) -> 0 | M13: 0 | N13: =SUM(N10:N12) -> 0 | O13: 0 | P13: =SUM(P10:P12) -> 0 | Q13: 0 | R13: =SUM(R10:R12) -> 0
Q14: Enterprise | R14: Enterprise
A15: VARIABLE COSTS | D15: Quantity | E15: Quantity | F15: Units | G15: $/Unit | H15: $/Unit | I15: Total | J15: Total | K15: Share | L15: Share | M15: Landlord | N15: Landlord | O15: Tenant | P15: Tenant | Q15: Total | R15: Total
A16: Production Costs
B17: Custom
C18: Fertilizer Application | D18: 1 | F18: Acre | G18: 7.5 | I18: 7.5 | J18: =E18*H18 -> 0 | K18: 0 | M18: 0 | N18: =J18*L18 -> 0 | O18: 7.5 | P18: =+J18-N18 -> 0 | Q18: 915 | R18: =+J18*E$7 -> 0
B19: Fertilizer
C20: Fertilizer (P) - Dry | D20: 80 | F20: Pound | G20: 0.803 | I20: 64.24 | J20: 0 | K20: 0 | M20: 0 | N20: 0 | O20: 64.24 | P20: 0 | Q20: 7837.28 | R20: 0
B21: Herbicide
C22: Herbicide and Application Alfalfa | D22: 1 | F22: Acre | G22: 58.37 | I22: 58.37 | J22: 0 | K22: 0 | M22: 0 | N22: 0 | O22: 58.37 | P22: 0 | Q22: 7121.14 | R22: 0
B23: Seed
C24: Seed - Alfalfa | D24: 18 | F24: Pound | G24: 5.54 | I24: 99.72 | J24: 0 | K24: 0 | M24: 0 | N24: 0 | O24: 99.72 | P24: 0 | Q24: 12165.84 | R24: 0
D25: 0 | G25: 0 | I25: 0 | J25: 0 | K25: 0 | M25: 0 | N25: 0 | O25: 0 | P25: 0 | Q25: 0 | R25: 0
D26: 0 | G26: 0 | I26: 0 | J26: 0 | K26: 0 | M26: 0 | N26: 0 | O26: 0 | P26: 0 | Q26: 0 | R26: 0
D27: 0 | G27: 0 | I27: 0 | J27: =E27*H27 -> 0 | K27: 0 | M27: 0 | N27: =J27*L27 -> 0 | O27: 0 | P27: =+J27-N27 -> 0 | Q27: 0 | R27: =+J27*E$7 -> 0
B28: Irrigation
C29: Energy Cost | D29: 6 | F29: AcreInch | G29: 3.8 | I29: 22.8 | J29: =E29*H29 -> 0 | K29: 0 | M29: 0 | N29: =J29*L29 -> 0 | O29: 22.8 | P29: =+J29-N29 -> 0 | Q29: 2781.6 | R29: =+J29*E$7 -> 0
C30: Irrigation Labor | D30: 0.384 | F30: Hour | G30: 17.94 | I30: 6.88896 | J30: 0 | K30: 0 | M30: 0 | N30: 0 | O30: 6.88896 | P30: 0 | Q30: 840.45312 | R30: 0
B31: Machinery Labor
C32: Tractors/Self-Propelled | D32: 0.41 | F32: Hour | G32: 17.65 | I32: 7.2365 | J32: =E32*H32 -> 0 | K32: 0 | M32: 0 | N32: =J32*L32 -> 0 | O32: 7.2365 | P32: =+J32-N32 -> 0 | Q32: 882.853 | R32: =+J32*E$7 -> 0
C33: Other Labor | D33: 0.48 | F33: Hour | G33: 17.65 | I33: 8.472 | J33: =E33*H33 -> 0 | K33: 0 | M33: 0 | N33: =J33*L33 -> 0 | O33: 8.472 | P33: =+J33-N33 -> 0 | Q33: 1033.584 | R33: =+J33*E$7 -> 0
B35: Diesel Fuel
C36: Pickup/General Use Equipment | D36: 1 | F36: Acre | G36: 0 | I36: 0 | J36: =E36*H36 -> 0 | K36: 0 | M36: 0 | N36: =J36*L36 -> 0 | O36: 0 | P36: =+J36-N36 -> 0 | Q36: 0 | R36: =+J36*E$7 -> 0
C37: Tractors/Self-Propelled | D37: 2.21 | F37: Gallon | G37: 3.1 | I37: 6.851 | J37: =E37*H37 -> 0 | K37: 0 | M37: 0 | N37: =J37*L37 -> 0 | O37: 6.851 | P37: =+J37-N37 -> 0 | Q37: 835.822 | R37: =+J37*E$7 -> 0
B39: Gasoline
C40: Pickup/General Use Equipment | D40: 1 | F40: Acre | G40: 4.918032787 | I40: 4.918032787 | J40: =E40*H40 -> 0 | K40: 0 | M40: 0 | N40: =J40*L40 -> 0 | O40: 4.918032787 | P40: =+J40-N40 -> 0 | Q40: 600 | R40: =+J40*E$7 -> 0
C41: Tractors/Self-Propelled | D41: 0 | F41: Gallon | G41: 2.4 | I41: 0 | J41: =E41*H41 -> 0 | K41: 0 | M41: 0 | N41: =J41*L41 -> 0 | O41: 0 | P41: =+J41-N41 -> 0 | Q41: 0 | R41: =+J41*E$7 -> 0
B43: Repairs & Maintenance
C44: Pickup/General Use Equipment | D44: 1 | F44: Acre | G44: 2.508196721 | I44: 2.508196721 | J44: =E44*H44 -> 0 | K44: 0 | M44: 0 | N44: =J44*L44 -> 0 | O44: 2.508196721 | P44: =+J44-N44 -> 0 | Q44: 306 | R44: =+J44*E$7 -> 0
C45: Irrigation Equipment | D45: 1 | F45: Acre | G45: 22.5 | I45: 22.5 | J45: 0 | K45: 0 | M45: 0 | N45: 0 | O45: 22.5 | P45: 0 | Q45: 2745 | R45: 0
C46: Tractors/Self-Propelled | D46: 1 | F46: Acre | G46: 3.770179003 | I46: 3.770179003 | J46: 0 | K46: 0 | M46: 0 | N46: 0 | O46: 3.770179003 | P46: 0 | Q46: 459.9618384 | R46: 0
C47: Implements | D47: 1 | F47: Acre | G47: 6.780455707 | I47: 6.780455707 | J47: 0 | K47: 0 | M47: 0 | N47: 0 | O47: 6.780455707 | P47: 0 | Q47: 827.2155963 | R47: 0
I48: 0 | J48: 0 | K48: 0 | M48: 0 | N48: 0 | O48: 0 | P48: 0 | Q48: 0 | R48: =+J48*E$7 -> 0
I49: 0 | J49: 0 | K49: 0 | M49: 0 | N49: 0 | O49: 0 | P49: 0 | Q49: 0 | R49: 0
B50: Interest on Credit Line | G50: 0.09 | I50: 9.828948554 | J50: =+SUM(J17:J49)/2*H50 -> 0 | M50: 0 | N50: =+SUM(N17:N49)/2*L50 -> 0 | O50: 9.828948554 | P50: =+SUM(P17:P49)/2*L50 -> 0 | Q50: 1199.131724 | R50: =+J50*E$7 -> 0
A51: Total Variable Costs | I51: 332.3842728 | J51: =SUM(J18:J50) -> 0 | M51: 0 | N51: =SUM(N18:N50) -> 0 | O51: 332.3842728 | P51: =SUM(P18:P50) -> 0 | Q51: 40550.88128 | R51: =SUM(R18:R50) -> 0
A52: Planned Returns Above Variable Costs: | I52: -332.3842728 | J52: =+J13-J51 -> 0 | M52: 0 | N52: =+N13-N51 -> 0 | O52: -332.3842728 | P52: =+P13-P51 -> 0 | Q52: -40550.88128 | R52: =+R13-R51 -> 0
B53: Breakeven Price to Cover Variable Costs | G53: n/a | H53: =IF(E10=0,"n/a",(YVarExp-(YTotExp+YTotRet-J10))/E10) -> n/a
Q54: Enterprise | R54: Enterprise
A55: FIXED COSTS | D55: Quantity | E55: Quantity | F55: Units | G55: $/Unit | H55: $/Unit | J55: Total | K55: Share | L55: Share | M55: Landlord | N55: Landlord | O55: Tenant | P55: Tenant | Q55: Total | R55: Total
B56: Machinery Depreciation
C57: Pickup/General Use Equipment | D57: 1 | F57: Acre | G57: 2.633606557 | I57: 2.633606557 | J57: =E57*H57 -> 0 | K57: 0 | M57: 0 | N57: =J57*L57 -> 0 | O57: 2.633606557 | P57: =+J57-N57 -> 0 | Q57: 321.3 | R57: =+J57*E$7 -> 0
C58: Irrigation Equipment | D58: 1 | F58: Acre | G58: 11.83401639 | I58: 11.83401639 | J58: 0 | K58: 0 | M58: 0 | N58: =J58*L58 -> 0 | O58: 11.83401639 | P58: 0 | Q58: 1443.75 | R58: 0
C59: Tractors/Self-Propelled | D59: 1 | F59: Acre | G59: 3.768947661 | I59: 3.768947661 | J59: 0 | K59: 0 | M59: 0 | N59: =J59*L59 -> 0 | O59: 3.768947661 | P59: 0 | Q59: 459.8116147 | R59: 0
C60: Implements | D60: 1 | F60: Acre | G60: 8.068488044 | I60: 8.068488044 | J60: 0 | K60: 0 | M60: 0 | N60: =J60*L60 -> 0 | O60: 8.068488044 | P60: 0 | Q60: 984.3555413 | R60: 0
B61: Equipment Investment
C62: Pickup/General Use Equipment | D62: 18.18442623 | F62: Dollars | G62: 0.09 | I62: 1.636598361 | J62: =E62*H62 -> 0 | K62: 0 | M62: 0 | N62: =J62*L62 -> 0 | O62: 1.636598361 | P62: =+J62-N62 -> 0 | Q62: 199.665 | R62: =+J62*E$7 -> 0
C63: Irrigation Equipment | D63: 142.9303279 | F63: Dollars | G63: 0.09 | I63: 12.86372951 | J63: 0 | K63: 0 | M63: 0 | N63: =J63*L63 -> 0 | O63: 12.86372951 | P63: 0 | Q63: 1569.375 | R63: 0
C64: Tractors/Self-Propelled | D64: 29.36131807 | F64: Dollars | G64: 0.09 | I64: 2.642518626 | J64: 0 | K64: 0 | M64: 0 | N64: =J64*L64 -> 0 | O64: 2.642518626 | P64: 0 | Q64: 322.3872724 | R64: 0
C65: Implements | D65: 34.51519885 | F65: Dollars | G65: 0.09 | I65: 3.106367897 | J65: 0 | K65: 0 | M65: 0 | N65: =J65*L65 -> 0 | O65: 3.106367897 | P65: 0 | Q65: 378.9768834 | R65: 0
B66: Salaried Labor | D66: 1 | F66: Acre | G66: 0 | I66: 0 | J66: 0 | K66: 0 | M66: 0 | N66: =J66*L66 -> 0 | O66: 0 | P66: =+J66-N66 -> 0 | Q66: 0 | R66: =+J66*E$7 -> 0
B67: Management Fee, Owner/Operator Labor | D67: 1 | F67: Acre | G67: 0 | I67: 0 | J67: 0 | K67: 0 | M67: 0 | N67: 0 | O67: 0 | P67: 0 | Q67: 0 | R67: 0
B68: Allocated Establishment Cost | D68: 1 | F68: Acre | G68: 0 | I68: 0 | J68: 0 | K68: 0 | M68: 0 | N68: 0 | O68: 0 | P68: 0 | Q68: 0 | R68: 0
B69: Cash Rent - Alfalfa | D69: 1 | F69: Acre | G69: 200 | I69: 200 | J69: 0 | K69: 0 | M69: 0 | N69: 0 | O69: 200 | P69: 0 | Q69: 24400 | R69: 0
B70: Property Taxes | D70: 1 | F70: Acre | G70: 0 | I70: 0 | J70: =E70*H70 -> 0 | K70: 0 | M70: 0 | N70: 0 | O70: 0 | P70: 0 | Q70: 0 | R70: =+J70*E$7 -> 0
B71: Whole Farm Insurance | D71: 1 | F71: Acre | G71: 0 | I71: 0 | J71: 0 | K71: 0 | M71: 0 | N71: 0 | O71: 0 | P71: 0 | Q71: 0 | R71: 0
D72: 1 | G72: 0 | I72: 0 | J72: 0 | K72: 0 | M72: 0 | N72: 0 | O72: 0 | P72: 0 | Q72: 0 | R72: 0
D73: 1 | G73: 0 | I73: 0 | J73: 0 | K73: 0 | M73: 0 | N73: 0 | O73: 0 | P73: 0 | Q73: 0 | R73: 0
A74: Total Fixed Costs | I74: 246.554273 | J74: =+SUM(J57:J73) -> 0 | M74: 0 | N74: =+SUM(N57:N73) -> 0 | O74: 246.554273 | P74: =+SUM(P57:P73) -> 0 | Q74: 30079.62131 | R74: =+SUM(R57:R73) -> 0
A75: Total Specified Costs | I75: 578.9385458 | J75: =+J51+J74 -> 0 | M75: 0 | N75: =+N51+N74 -> 0 | O75: 578.9385458 | P75: =+P51+P74 -> 0 | Q75: 70630.50259 | R75: =+R51+R74 -> 0
A77: Returns Above Specified Costs | I77: -578.9385458 | J77: =+J13-J75 -> 0 | M77: 0 | N77: =+N13-N75 -> 0 | O77: -578.9385458 | P77: =+P13-P75 -> 0 | Q77: -70630.50259 | R77: =+R13-R75 -> 0
A79: Breakeven Price to Cover Total Costs | G79: n/a | H79: =IF(E10=0,"n/a",(YTotExp-(YTotExp+YTotRet-J10))/E10) -> n/a
D81: Example Breakeven Prices
B82: Example | C82: Example | D82: To Cover | G82: To Cover
B83: Yield | C83: Yield | D83: Variable | G83: Total
B84: Percent | D84: Costs | G84: Costs
B85: 0.75 | C85: 0 | D85: 0 | G85: 0
B86: 0.9 | C86: 0 | D86: 0 | G86: 0
B87: 1 | C87: 0 | D87: 0 | G87: 0
B88: 1.1 | C88: 0 | D88: 0 | G88: 0
B89: 1.25 | C89: 0 | D89: 0 | G89: 0
A91: Developed by Justin Benavidez, Assistant Professor, Texas A&M AgriLife Extension, 806-677-5600.
A93: Information presented is prepared solely as a general guide and not intended to recognize or predict the costs and returns from any one operation. Brand names are mentioned only as examples and imply no endorsement.

Sheet AlfalfaHay
A1: Projections for Planning Purposes Only -- Not to be Used without Updating
A2: 2024 Estimated Costs and Returns per Acre
A3: Alfalfa, Sprinkler Irrigated (NG)
A4: Enter your name for this budget in the cell above.
A5: Enter Your Values in the cells highlighed in MAROON.
E6: Your Acres | R6: Your
C7: Crop Acres | D7: 122 | L7: Your | Q7: Enterprise | R7: Enterprise
E8: Your | H8: Your | I8: Cash | J8: Your | K8: Landlord | L8: Landlord | N8: Your | P8: Your | Q8: Total | R8: Total
A9: REVENUE | D9: Quantity | E9: Quantity | F9: Units | G9: $/Unit | H9: $/Unit | I9: Total | J9: Total | K9: Share | L9: Share | M9: Landlord | N9: Landlord | O9: Tenant | P9: Tenant | Q9: (122 acres) | R9: ="(" & E7 & " acres)" -> ( acres)
B10: Hay - Alfalfa | D10: 5.5 | F10: Ton | G10: 300 | I10: 1650 | J10: =E10*H10 -> 0 | K10: 0 | M10: 0 | N10: =J10*L10 -> 0 | O10: 1650 | P10: =+J10-N10 -> 0 | Q10: 201300 | R10: =+J10*E$7 -> 0
D11: 0 | G11: 0 | I11: 0 | J11: 0 | K11: 0 | M11: 0 | N11: 0 | O11: 0 | P11: =+J11-N11 -> 0 | Q11: 0 | R11: 0
D12: 0 | G12: 0 | I12: 0 | J12: 0 | K12: 0 | M12: 0 | N12: 0 | O12: 0 | P12: 0 | Q12: 0 | R12: 0
A13: Total Revenue | I13: 1650 | J13: =SUM(J10:J12) -> 0 | M13: 0 | N13: =SUM(N10:N12) -> 0 | O13: 1650 | P13: =SUM(P10:P12) -> 0 | Q13: 201300 | R13: =SUM(R10:R12) -> 0
Q14: Enterprise | R14: Enterprise
A15: VARIABLE COSTS | D15: Quantity | E15: Quantity | F15: Units | G15: $/Unit | H15: $/Unit | I15: Total | J15: Total | K15: Share | L15: Share | M15: Landlord | N15: Landlord | O15: Tenant | P15: Tenant | Q15: Total | R15: Total
A16: Production Costs
B17: Custom
C18: Fertilizer Application | D18: 1 | F18: Acre | G18: 7.5 | I18: 7.5 | J18: =E18*H18 -> 0 | K18: 0 | M18: 0 | N18: =J18*L18 -> 0 | O18: 7.5 | P18: =+J18-N18 -> 0 | Q18: 915 | R18: =+J18*E$7 -> 0
C19: Custom Baling | D19: 5.5 | F19: Ton | G19: 65 | I19: 357.5 | J19: 0 | K19: 0 | M19: 0 | N19: 0 | O19: 357.5 | P19: 0 | Q19: 43615 | R19: 0
B20: Fertilizer
C21: Fertilizer (P) - Liquid | D21: 60 | F21: Pound | G21: 0.882 | I21: 52.92 | J21: 0 | K21: 0 | M21: 0 | N21: 0 | O21: 52.92 | P21: 0 | Q21: 6456.24 | R21: 0
B22: Herbicide
C23: Herbicide & Application Alfalfa | D23: 1 | F23: Acre | G23: 50.15 | I23: 50.15 | J23: 0 | K23: 0 | M23: 0 | N23: 0 | O23: 50.15 | P23: 0 | Q23: 6118.3 | R23: 0
B24: Insecticide
C25: Insecticide & Application Alfalfa | D25: 1 | F25: Acre | G25: 7.1 | I25: 7.1 | J25: 0 | K25: 0 | M25: 0 | N25: 0 | O25: 7.1 | P25: 0 | Q25: 866.2 | R25: 0
D26: 0 | G26: 0 | I26: 0 | J26: 0 | K26: 0 | M26: 0 | N26: 0 | O26: 0 | P26: 0 | Q26: 0 | R26: 0
D27: 0 | G27: 0 | I27: 0 | J27: 0 | K27: 0 | M27: 0 | N27: 0 | O27: 0 | P27: 0 | Q27: 0 | R27: 0
D28: 0 | G28: 0 | I28: 0 | J28: =E28*H28 -> 0 | K28: 0 | M28: 0 | N28: =J28*L28 -> 0 | O28: 0 | P28: =+J28-N28 -> 0 | Q28: 0 | R28: =+J28*E$7 -> 0
B29: Irrigation
C30: Energy Cost | D30: 24 | F30: AcreInch | G30: 3.8 | I30: 91.2 | J30: =E30*H30 -> 0 | K30: 0 | M30: 0 | N30: =J30*L30 -> 0 | O30: 91.2 | P30: =+J30-N30 -> 0 | Q30: 11126.4 | R30: =+J30*E$7 -> 0
C31: Irrigation Labor | D31: 1.536 | F31: Hour | G31: 17.94 | I31: 27.55584 | J31: 0 | K31: 0 | M31: 0 | N31: 0 | O31: 27.55584 | P31: 0 | Q31: 3361.81248 | R31: 0
B32: Machinery Labor
C33: Tractors/Self-Propelled | D33: 0 | F33: Hour | G33: 17.65 | I33: 0 | J33: =E33*H33 -> 0 | K33: 0 | M33: 0 | N33: =J33*L33 -> 0 | O33: 0 | P33: =+J33-N33 -> 0 | Q33: 0 | R33: =+J33*E$7 -> 0
C34: Other Labor | D34: 0 | F34: Hour | G34: 17.65 | I34: 0 | J34: =E34*H34 -> 0 | K34: 0 | M34: 0 | N34: =J34*L34 -> 0 | O34: 0 | P34: =+J34-N34 -> 0 | Q34: 0 | R34: =+J34*E$7 -> 0
B36: Diesel Fuel
C37: Pickup/General Use Equipment | D37: 1 | F37: Acre | G37: 0 | I37: 0 | J37: =E37*H37 -> 0 | K37: 0 | M37: 0 | N37: =J37*L37 -> 0 | O37: 0 | P37: =+J37-N37 -> 0 | Q37: 0 | R37: =+J37*E$7 -> 0
C38: Tractors/Self-Propelled | D38: 0 | F38: Gallon | G38: 3.1 | I38: 0 | J38: =E38*H38 -> 0 | K38: 0 | M38: 0 | N38: =J38*L38 -> 0 | O38: 0 | P38: =+J38-N38 -> 0 | Q38: 0 | R38: =+J38*E$7 -> 0
B40: Gasoline
C41: Pickup/General Use Equipment | D41: 1 | F41: Acre | G41: 4.918032787 | I41: 4.918032787 | J41: =E41*H41 -> 0 | K41: 0 | M41: 0 | N41: =J41*L41 -> 0 | O41: 4.918032787 | P41: =+J41-N41 -> 0 | Q41: 600 | R41: =+J41*E$7 -> 0
C42: Tractors/Self-Propelled | D42: 0 | F42: Gallon | G42: 2.4 | I42: 0 | J42: =E42*H42 -> 0 | K42: 0 | M42: 0 | N42: =J42*L42 -> 0 | O42: 0 | P42: =+J42-N42 -> 0 | Q42: 0 | R42: =+J42*E$7 -> 0
B44: Repairs & Maintenance
C45: Pickup/General Use Equipment | D45: 1 | F45: Acre | G45: 2.508196721 | I45: 2.508196721 | J45: =E45*H45 -> 0 | K45: 0 | M45: 0 | N45: =J45*L45 -> 0 | O45: 2.508196721 | P45: =+J45-N45 -> 0 | Q45: 306 | R45: =+J45*E$7 -> 0
C46: Irrigation Equipment | D46: 1 | F46: Acre | G46: 90 | I46: 90 | J46: 0 | K46: 0 | M46: 0 | N46: 0 | O46: 90 | P46: 0 | Q46: 10980 | R46: 0
C47: Tractors/Self-Propelled | D47: 1 | F47: Acre | G47: 0 | I47: 0 | J47: 0 | K47: 0 | M47: 0 | N47: 0 | O47: 0 | P47: 0 | Q47: 0 | R47: 0
C48: Implements | D48: 1 | F48: Acre | G48: 0 | I48: 0 | J48: 0 | K48: 0 | M48: 0 | N48: 0 | O48: 0 | P48: 0 | Q48: 0 | R48: 0
I49: 0 | J49: 0 | K49: 0 | M49: 0 | N49: 0 | O49: 0 | P49: 0 | Q49: 0 | R49: 0
I50: 0 | J50: 0 | K50: 0 | M50: 0 | N50: 0 | O50: 0 | P50: 0 | Q50: 0 | R50: 0
B51: Interest on Credit Line | G51: 0.09 | I51: 10.17021688 | J51: =+SUM(J17:J50)/2*H51 -> 0 | M51: 0 | N51: =+SUM(N17:N50)/2*L51 -> 0 | O51: 10.17021688 | P51: =+SUM(P17:P50)/2*L51 -> 0 | Q51: 1240.766459 | R51: =+J51*E$7 -> 0
A52: Total Variable Costs | I52: 701.5222864 | J52: =SUM(J18:J51) -> 0 | M52: 0 | N52: =SUM(N18:N51) -> 0 | O52: 701.5222864 | P52: =SUM(P18:P51) -> 0 | Q52: 85585.71894 | R52: =SUM(R18:R51) -> 0
A53: Planned Returns Above Variable Costs: | I53: 948.4777136 | J53: =+J13-J52 -> 0 | M53: 0 | N53: =+N13-N52 -> 0 | O53: 948.4777136 | P53: =+P13-P52 -> 0 | Q53: 115714.2811 | R53: =+R13-R52 -> 0
B54: Breakeven Price to Cover Variable Costs | G54: 127.5495066 | H54: =IF(E10=0,"n/a",(YVarExp-(YTotExp+YTotRet-J10))/E10) -> n/a | I54: Ton
Q55: Enterprise | R55: Enterprise
A56: FIXED COSTS | D56: Quantity | E56: Quantity | F56: Units | G56: $/Unit | H56: $/Unit | I56: Total | J56: Total | K56: Share | L56: Share | M56: Landlord | N56: Landlord | O56: Tenant | P56: Tenant | Q56: Total | R56: Total
B57: Machinery Depreciation
C58: Pickup/General Use Equipment | D58: 1 | F58: Acre | G58: 2.633606557 | I58: 2.633606557 | J58: =E58*H58 -> 0 | K58: 0 | M58: 0 | N58: =J58*L58 -> 0 | O58: 2.633606557 | P58: =+J58-N58 -> 0 | Q58: 321.3 | R58: =+J58*E$7 -> 0
C59: Irrigation Equipment | D59: 1 | F59: Acre | G59: 47.33606557 | I59: 47.33606557 | J59: 0 | K59: 0 | M59: 0 | N59: =J59*L59 -> 0 | O59: 47.33606557 | P59: 0 | Q59: 5775 | R59: 0
B60: Equipment Investment
C61: Pickup/General Use Equipment | D61: 18.18442623 | F61: Dollars | G61: 0.09 | I61: 1.636598361 | J61: =E61*H61 -> 0 | K61: 0 | M61: 0 | N61: =J61*L61 -> 0 | O61: 1.636598361 | P61: =+J61-N61 -> 0 | Q61: 199.665 | R61: =+J61*E$7 -> 0
C62: Irrigation Equipment | D62: 571.7213115 | F62: Dollars | G62: 0.09 | I62: 51.45491803 | J62: 0 | K62: 0 | M62: 0 | N62: =J62*L62 -> 0 | O62: 51.45491803 | P62: 0 | Q62: 6277.5 | R62: 0
B63: Salaried Labor | D63: 1 | F63: Acre | G63: 0 | I63: 0 | J63: 0 | K63: 0 | M63: 0 | N63: =J63*L63 -> 0 | O63: 0 | P63: =+J63-N63 -> 0 | Q63: 0 | R63: =+J63*E$7 -> 0
B64: Management Fee, Owner/Operator Labor | D64: 1 | F64: Acre | G64: 0 | I64: 0 | J64: 0 | K64: 0 | M64: 0 | N64: 0 | O64: 0 | P64: 0 | Q64: 0 | R64: 0
B65: Allocated Establishment Cost | D65: 1 | F65: Acre | G65: 90 | I65: 90 | J65: 0 | K65: 0 | M65: 0 | N65: 0 | O65: 90 | P65: 0 | Q65: 10980 | R65: 0
B66: Cash Rent - Alfalfa | D66: 1 | F66: Acre | G66: 200 | I66: 200 | J66: 0 | K66: 0 | M66: 0 | N66: 0 | O66: 200 | P66: 0 | Q66: 24400 | R66: 0
B67: Property Taxes | D67: 1 | F67: Acre | G67: 0 | I67: 0 | J67: 0 | K67: 0 | M67: 0 | N67: 0 | O67: 0 | P67: 0 | Q67: 0 | R67: 0
B68: Whole Farm Insurance | D68: 1 | F68: Acre | G68: 0 | I68: 0 | J68: 0 | K68: 0 | M68: 0 | N68: 0 | O68: 0 | P68: 0 | Q68: 0 | R68: 0
D69: 1 | G69: 0 | I69: 0 | J69: 0 | K69: 0 | M69: 0 | N69: 0 | O69: 0 | P69: 0 | Q69: 0 | R69: 0
D70: 1 | G70: 0 | I70: 0 | J70: =E70*H70 -> 0 | K70: 0 | M70: 0 | N70: 0 | O70: 0 | P70: 0 | Q70: 0 | R70: 0
A71: Total Fixed Costs | I71: 393.0611885 | J71: =+SUM(J58:J70) -> 0 | M71: 0 | N71: =+SUM(N58:N70) -> 0 | O71: 393.0611885 | P71: =+SUM(P58:P70) -> 0 | Q71: 47953.465 | R71: =+SUM(R58:R70) -> 0
A72: Total Specified Costs | I72: 1094.583475 | J72: =+J52+J71 -> 0 | M72: 0 | N72: =+N52+N71 -> 0 | O72: 1094.583475 | P72: =+P52+P71 -> 0 | Q72: 133539.1839 | R72: =+R52+R71 -> 0
A74: Returns Above Specified Costs | I74: 555.4165251 | J74: =+J13-J72 -> 0 | M74: 0 | N74: =+N13-N72 -> 0 | O74: 555.4165251 | P74: =+P13-P72 -> 0 | Q74: 67760.81606 | R74: =+R13-R72 -> 0
A76: Breakeven Price to Cover Total Costs | G76: 199.0151773 | H76: =IF(E10=0,"n/a",(YTotExp-(YTotExp+YTotRet-J10))/E10) -> n/a | I76: Ton
D78: Example Breakeven Prices
B79: Example | C79: Example | D79: To Cover | G79: To Cover
B80: Yield | C80: Yield | D80: Variable | G80: Total
B81: Percent | C81: Ton | D81: Costs | G81: Costs
B82: 0.75 | C82: 4.125 | D82: 170.0660088 | G82: 265.3535697
B83: 0.9 | C83: 4.95 | D83: 141.721674 | G83: 221.1279747
B84: 1 | C84: 5.5 | D84: 127.5495066 | G84: 199.0151773
B85: 1.1 | C85: 6.05 | D85: 115.9540969 | G85: 180.9228884
B86: 1.25 | C86: 6.875 | D86: 102.0396053 | G86: 159.2121418
A88: Developed by Justin Benavidez, Assistant Professor, Texas A&M AgriLife Extension, 806-677-5600.
A90: Information presented is prepared solely as a general guide and not intended to recognize or predict the costs and returns from any one operation. Brand names are mentioned only as examples and imply no endorsement.

Sheet CornSprinkler
A1: Projections for Planning Purposes Only -- Not to be Used without Updating
A2: 2024 Estimated Costs and Returns per Acre
A3: Bt Corn for Grain, Sprinkler Irrigated (NG)
A4: Enter your name for this budget in the cell above.
A5: Enter Your Values in the cells highlighed in MAROON.
E6: Your Acres | R6: Your
C7: Crop Acres | D7: 122 | L7: Your | Q7: Enterprise | R7: Enterprise
E8: Your | H8: Your | I8: Cash | J8: Your | K8: Landlord | L8: Landlord | N8: Your | P8: Your | Q8: Total | R8: Total
A9: REVENUE | D9: Quantity | E9: Quantity | F9: Units | G9: $/Unit | H9: $/Unit | I9: Total | J9: Total | K9: Share | L9: Share | M9: Landlord | N9: Landlord | O9: Tenant | P9: Tenant | Q9: (122 acres) | R9: ="(" & E7 & " acres)" -> ( acres)
B10: Corn | D10: 225 | F10: Bushel | G10: 5.35 | I10: 1203.75 | J10: =E10*H10 -> 0 | K10: 0 | M10: 0 | N10: =J10*L10 -> 0 | O10: 1203.75 | P10: =+J10-N10 -> 0 | Q10: 146857.5 | R10: =+J10*E$7 -> 0
D11: 0 | G11: 0 | I11: 0 | J11: 0 | K11: 0 | M11: 0 | N11: 0 | O11: 0 | P11: =+J11-N11 -> 0 | Q11: 0 | R11: 0
D12: 0 | G12: 0 | I12: 0 | J12: 0 | K12: 0 | M12: 0 | N12: 0 | O12: 0 | P12: 0 | Q12: 0 | R12: 0
A13: Total Revenue | I13: 1203.75 | J13: =SUM(J10:J12) -> 0 | M13: 0 | N13: =SUM(N10:N12) -> 0 | O13: 1203.75 | P13: =SUM(P10:P12) -> 0 | Q13: 146857.5 | R13: =SUM(R10:R12) -> 0
Q14: Enterprise | R14: Enterprise
A15: VARIABLE COSTS | D15: Quantity | E15: Quantity | F15: Units | G15: $/Unit | H15: $/Unit | I15: Total | J15: Total | K15: Share | L15: Share | M15: Landlord | N15: Landlord | O15: Tenant | P15: Tenant | Q15: Total | R15: Total
A16: Production Costs
B17: Custom
C18: Fertilizer Application - ANH3 | D18: 1 | F18: Acre | G18: 18 | I18: 18 | J18: =E18*H18 -> 0 | K18: 0 | M18: 0 | N18: =J18*L18 -> 0 | O18: 18 | P18: =+J18-N18 -> 0 | Q18: 2196 | R18: =+J18*E$7 -> 0
C19: Crop Consultant | D19: 1 | F19: Acre | G19: 12 | I19: 12 | J19: 0 | K19: 0 | M19: 0 | N19: 0 | O19: 12 | P19: 0 | Q19: 1464 | R19: 0
C20: Harvest and Haul - Corn | D20: 225 | F20: Bushel | G20: 0.48 | I20: 108 | J20: 0 | K20: 0 | M20: 0 | N20: 0 | O20: 108 | P20: 0 | Q20: 13176 | R20: 0
B21: Fertilizer
C22: Fertilizer (P) - Liquid | D22: 90 | F22: Pound | G22: 0.882 | I22: 79.38 | J22: 0 | K22: 0 | M22: 0 | N22: 0 | O22: 79.38 | P22: 0 | Q22: 9684.36 | R22: 0
C23: Fertilizer (N) - ANH3 | D23: 140 | F23: Pound | G23: 0.427 | I23: 59.78 | J23: 0 | K23: 0 | M23: 0 | N23: 0 | O23: 59.78 | P23: 0 | Q23: 7293.16 | R23: 0
C24: Fertilizer (N) - Liquid | D24: 85 | F24: Pound | G24: 0.578 | I24: 49.13 | J24: 0 | K24: 0 | M24: 0 | N24: 0 | O24: 49.13 | P24: 0 | Q24: 5993.86 | R24: 0
B25: Herbicide
C26: Herbicide - Corn Preplant | D26: 1 | F26: Acre | G26: 46.25 | I26: 46.25 | J26: 0 | K26: 0 | M26: 0 | N26: 0 | O26: 46.25 | P26: 0 | Q26: 5642.5 | R26: 0
C27: Herbicide - Corn Postplant | D27: 1 | F27: Acre | G27: 51 | I27: 51 | J27: 0 | K27: 0 | M27: 0 | N27: 0 | O27: 51 | P27: 0 | Q27: 6222 | R27: 0
B28: Insecticide
C29: Miticide | D29: 1 | F29: Acre | G29: 45 | I29: 45 | J29: 0 | K29: 0 | M29: 0 | N29: 0 | O29: 45 | P29: 0 | Q29: 5490 | R29: 0
B30: Miscellaneous
C31: Crop Insurance Corn Irrigated | D31: 1 | F31: Acre | G31: 50 | I31: 50 | J31: 0 | K31: 0 | M31: 0 | N31: 0 | O31: 50 | P31: 0 | Q31: 6100 | R31: 0
B32: Seed
C33: Seed - Bt Corn for Grain | D33: 0.38 | F33: Bag | G33: 320 | I33: 121.6 | J33: 0 | K33: 0 | M33: 0 | N33: 0 | O33: 121.6 | P33: 0 | Q33: 14835.2 | R33: 0
D34: 0 | G34: 0 | I34: 0 | J34: 0 | K34: 0 | M34: 0 | N34: 0 | O34: 0 | P34: 0 | Q34: 0 | R34: 0
D35: 0 | G35: 0 | I35: 0 | J35: 0 | K35: 0 | M35: 0 | N35: 0 | O35: 0 | P35: 0 | Q35: 0 | R35: 0
D36: 0 | G36: 0 | I36: 0 | J36: =E36*H36 -> 0 | K36: 0 | M36: 0 | N36: =J36*L36 -> 0 | O36: 0 | P36: =+J36-N36 -> 0 | Q36: 0 | R36: =+J36*E$7 -> 0
B37: Irrigation
C38: Energy Cost | D38: 22 | F38: AcreInch | G38: 3.8 | I38: 83.6 | J38: =E38*H38 -> 0 | K38: 0 | M38: 0 | N38: =J38*L38 -> 0 | O38: 83.6 | P38: =+J38-N38 -> 0 | Q38: 10199.2 | R38: =+J38*E$7 -> 0
C39: Irrigation Labor | D39: 1.344 | F39: Hour | G39: 17.94 | I39: 24.11136 | J39: 0 | K39: 0 | M39: 0 | N39: 0 | O39: 24.11136 | P39: 0 | Q39: 2941.58592 | R39: 0
B40: Machinery Labor
C41: Tractors/Self-Propelled | D41: 0.32 | F41: Hour | G41: 17.65 | I41: 5.648 | J41: =E41*H41 -> 0 | K41: 0 | M41: 0 | N41: =J41*L41 -> 0 | O41: 5.648 | P41: =+J41-N41 -> 0 | Q41: 689.056 | R41: =+J41*E$7 -> 0
C42: Other Labor | D42: 0.38 | F42: Hour | G42: 17.65 | I42: 6.707 | J42: =E42*H42 -> 0 | K42: 0 | M42: 0 | N42: =J42*L42 -> 0 | O42: 6.707 | P42: =+J42-N42 -> 0 | Q42: 818.254 | R42: =+J42*E$7 -> 0
B44: Diesel Fuel
C45: Pickup/General Use Equipment | D45: 1 | F45: Acre | G45: 0 | I45: 0 | J45: =E45*H45 -> 0 | K45: 0 | M45: 0 | N45: =J45*L45 -> 0 | O45: 0 | P45: =+J45-N45 -> 0 | Q45: 0 | R45: =+J45*E$7 -> 0
C46: Tractors/Self-Propelled | D46: 2.03 | F46: Gallon | G46: 3.1 | I46: 6.293 | J46: =E46*H46 -> 0 | K46: 0 | M46: 0 | N46: =J46*L46 -> 0 | O46: 6.293 | P46: =+J46-N46 -> 0 | Q46: 767.746 | R46: =+J46*E$7 -> 0
B48: Gasoline
C49: Pickup/General Use Equipment | D49: 1 | F49: Acre | G49: 7.37704918 | I49: 7.37704918 | J49: =E49*H49 -> 0 | K49: 0 | M49: 0 | N49: =J49*L49 -> 0 | O49: 7.37704918 | P49: =+J49-N49 -> 0 | Q49: 900 | R49: =+J49*E$7 -> 0
C50: Tractors/Self-Propelled | D50: 0 | F50: Gallon | G50: 2.4 | I50: 0 | J50: =E50*H50 -> 0 | K50: 0 | M50: 0 | N50: =J50*L50 -> 0 | O50: 0 | P50: =+J50-N50 -> 0 | Q50: 0 | R50: =+J50*E$7 -> 0
B52: Repairs & Maintenance
C53: Pickup/General Use Equipment | D53: 1 | F53: Acre | G53: 3.762295082 | I53: 3.762295082 | J53: =E53*H53 -> 0 | K53: 0 | M53: 0 | N53: =J53*L53 -> 0 | O53: 3.762295082 | P53: =+J53-N53 -> 0 | Q53: 459 | R53: =+J53*E$7 -> 0
C54: Irrigation Equipment | D54: 1 | F54: Acre | G54: 82.5 | I54: 82.5 | J54: 0 | K54: 0 | M54: 0 | N54: 0 | O54: 82.5 | P54: 0 | Q54: 10065 | R54: 0
C55: Tractors/Self-Propelled | D55: 1 | F55: Acre | G55: 4.077473599 | I55: 4.077473599 | J55: 0 | K55: 0 | M55: 0 | N55: 0 | O55: 4.077473599 | P55: 0 | Q55: 497.4517791 | R55: 0
C56: Implements | D56: 1 | F56: Acre | G56: 5.286129861 | I56: 5.286129861 | J56: 0 | K56: 0 | M56: 0 | N56: 0 | O56: 5.286129861 | P56: 0 | Q56: 644.9078431 | R56: 0
I57: 0 | J57: 0 | K57: 0 | M57: 0 | N57: 0 | O57: 0 | P57: 0 | Q57: 0 | R57: 0
I58: 0 | J58: 0 | K58: 0 | M58: 0 | N58: 0 | O58: 0 | P58: 0 | Q58: 0 | R58: 0
B59: Interest on Credit Line | G59: 0.09 | I59: 24.32169558 | J59: =+SUM(J17:J58)/2*H59 -> 0 | M59: 0 | N59: =+SUM(N17:N58)/2*L59 -> 0 | O59: 24.32169558 | P59: =+SUM(P17:P58)/2*L59 -> 0 | Q59: 2967.24686 | R59: =+J59*E$7 -> 0
A60: Total Variable Costs | I60: 893.8240033 | J60: =SUM(J18:J59) -> 0 | M60: 0 | N60: =SUM(N18:N59) -> 0 | O60: 893.8240033 | P60: =SUM(P18:P59) -> 0 | Q60: 109046.5284 | R60: =SUM(R18:R59) -> 0
A61: Planned Returns Above Variable Costs: | I61: 309.9259967 | J61: =+J13-J60 -> 0 | M61: 0 | N61: =+N13-N60 -> 0 | O61: 309.9259967 | P61: =+P13-P60 -> 0 | Q61: 37810.9716 | R61: =+R13-R60 -> 0
B62: Breakeven Price to Cover Variable Costs | G62: 3.972551126 | H62: =IF(E10=0,"n/a",(YVarExp-(YTotExp+YTotRet-J10))/E10) -> n/a | I62: Bushel
Q63: Enterprise | R63: Enterprise
A64: FIXED COSTS | D64: Quantity | E64: Quantity | F64: Units | G64: $/Unit | H64: $/Unit | I64: Total | J64: Total | K64: Share | L64: Share | M64: Landlord | N64: Landlord | O64: Tenant | P64: Tenant | Q64: Total | R64: Total
B65: Machinery Depreciation
C66: Pickup/General Use Equipment | D66: 1 | F66: Acre | G66: 3.950409836 | I66: 3.950409836 | J66: =E66*H66 -> 0 | K66: 0 | M66: 0 | N66: =J66*L66 -> 0 | O66: 3.950409836 | P66: =+J66-N66 -> 0 | Q66: 481.95 | R66: =+J66*E$7 -> 0
C67: Irrigation Equipment | D67: 1 | F67: Acre | G67: 47.33606557 | I67: 47.33606557 | J67: 0 | K67: 0 | M67: 0 | N67: =J67*L67 -> 0 | O67: 47.33606557 | P67: 0 | Q67: 5775 | R67: 0
C68: Tractors/Self-Propelled | D68: 1 | F68: Acre | G68: 4.171444705 | I68: 4.171444705 | J68: 0 | K68: 0 | M68: 0 | N68: =J68*L68 -> 0 | O68: 4.171444705 | P68: 0 | Q68: 508.916254 | R68: 0
C69: Implements | D69: 1 | F69: Acre | G69: 6.612703988 | I69: 6.612703988 | J69: 0 | K69: 0 | M69: 0 | N69: =J69*L69 -> 0 | O69: 6.612703988 | P69: 0 | Q69: 806.7498866 | R69: 0
B70: Equipment Investment
C71: Pickup/General Use Equipment | D71: 27.27663934 | F71: Dollars | G71: 0.09 | I71: 2.454897541 | J71: =E71*H71 -> 0 | K71: 0 | M71: 0 | N71: =J71*L71 -> 0 | O71: 2.454897541 | P71: =+J71-N71 -> 0 | Q71: 299.4975 | R71: =+J71*E$7 -> 0
C72: Irrigation Equipment | D72: 571.7213115 | F72: Dollars | G72: 0.09 | I72: 51.45491803 | J72: 0 | K72: 0 | M72: 0 | N72: =J72*L72 -> 0 | O72: 51.45491803 | P72: 0 | Q72: 6277.5 | R72: 0
C73: Tractors/Self-Propelled | D73: 32.49689988 | F73: Dollars | G73: 0.09 | I73: 2.924720989 | J73: 0 | K73: 0 | M73: 0 | N73: =J73*L73 -> 0 | O73: 2.924720989 | P73: 0 | Q73: 356.8159607 | R73: 0
C74: Implements | D74: 28.28767817 | F74: Dollars | G74: 0.09 | I74: 2.545891035 | J74: 0 | K74: 0 | M74: 0 | N74: =J74*L74 -> 0 | O74: 2.545891035 | P74: 0 | Q74: 310.5987063 | R74: 0
B75: Salaried Labor | D75: 1 | F75: Acre | G75: 0 | I75: 0 | J75: 0 | K75: 0 | M75: 0 | N75: =J75*L75 -> 0 | O75: 0 | P75: =+J75-N75 -> 0 | Q75: 0 | R75: =+J75*E$7 -> 0
B76: Management Fee, Owner/Operator Labor | D76: 1 | F76: Acre | G76: 0 | I76: 0 | J76: 0 | K76: 0 | M76: 0 | N76: 0 | O76: 0 | P76: 0 | Q76: 0 | R76: 0
B77: Allocated Establishment Cost | D77: 1 | F77: Acre | G77: 0 | I77: 0 | J77: 0 | K77: 0 | M77: 0 | N77: 0 | O77: 0 | P77: 0 | Q77: 0 | R77: 0
B78: Cash Rent - Corn | D78: 1 | F78: Acre | G78: 200 | I78: 200 | J78: 0 | K78: 0 | M78: 0 | N78: 0 | O78: 200 | P78: 0 | Q78: 24400 | R78: 0
B79: Property Taxes | D79: 1 | F79: Acre | G79: 0 | I79: 0 | J79: 0 | K79: 0 | M79: 0 | N79: 0 | O79: 0 | P79: 0 | Q79: 0 | R79: 0
B80: Whole Farm Insurance | D80: 1 | F80: Acre | G80: 0 | I80: 0 | J80: 0 | K80: 0 | M80: 0 | N80: 0 | O80: 0 | P80: 0 | Q80: 0 | R80: 0
D81: 1 | G81: 0 | I81: 0 | J81: 0 | K81: 0 | M81: 0 | N81: 0 | O81: 0 | P81: 0 | Q81: 0 | R81: 0
D82: 1 | G82: 0 | I82: 0 | J82: =E82*H82 -> 0 | K82: 0 | M82: 0 | N82: 0 | O82: 0 | P82: 0 | Q82: 0 | R82: 0
A83: Total Fixed Costs | I83: 321.4510517 | J83: =+SUM(J66:J82) -> 0 | M83: 0 | N83: =+SUM(N66:N82) -> 0 | O83: 321.4510517 | P83: =+SUM(P66:P82) -> 0 | Q83: 39217.02831 | R83: =+SUM(R66:R82) -> 0
A84: Total Specified Costs | I84: 1215.275055 | J84: =+J60+J83 -> 0 | M84: 0 | N84: =+N60+N83 -> 0 | O84: 1215.275055 | P84: =+P60+P83 -> 0 | Q84: 148263.5567 | R84: =+R60+R83 -> 0
A86: Returns Above Specified Costs | I86: -11.525055 | J86: =+J13-J84 -> 0 | M86: 0 | N86: =+N13-N84 -> 0 | O86: -11.525055 | P86: =+P13-P84 -> 0 | Q86: -1406.05671 | R86: =+R13-R84 -> 0
A88: Breakeven Price to Cover Total Costs | G88: 5.401222467 | H88: =IF(E10=0,"n/a",(YTotExp-(YTotExp+YTotRet-J10))/E10) -> n/a | I88: Bushel
D90: Example Breakeven Prices
B91: Example | C91: Example | D91: To Cover | G91: To Cover
B92: Yield | C92: Yield | D92: Variable | G92: Total
B93: Percent | C93: Bushel | D93: Costs | G93: Costs
B94: 0.75 | C94: 168.75 | D94: 5.296734834 | G94: 7.201629956
B95: 0.9 | C95: 202.5 | D95: 4.413945695 | G95: 6.001358296
B96: 1 | C96: 225 | D96: 3.972551126 | G96: 5.401222467
B97: 1.1 | C97: 247.5 | D97: 3.611410114 | G97: 4.910202242
B98: 1.25 | C98: 281.25 | D98: 3.178040901 | G98: 4.320977973
A100: Developed by Justin Benavidez, Assistant Professor, Texas A&M AgriLife Extension, 806-677-5600.
A102: Information presented is prepared solely as a general guide and not intended to recognize or predict the costs and returns from any one operation. Brand names are mentioned only as examples and imply no endorsement.

Sheet CornStripTill
A1: Projections for Planning Purposes Only -- Not to be Used without Updating
A2: 2024 Estimated Costs and Returns per Acre
A3: Bt Corn for Grain, Strip Till
A4: Enter your name for this budget in the cell above.
A5: Enter Your Values in the cells highlighed in MAROON.
E6: Your Acres | R6: Your
C7: Crop Acres | D7: 122 | L7: Your | Q7: Enterprise | R7: Enterprise
E8: Your | H8: Your | I8: Cash | J8: Your | K8: Landlord | L8: Landlord | N8: Your | P8: Your | Q8: Total | R8: Total
A9: REVENUE | D9: Quantity | E9: Quantity | F9: Units | G9: $/Unit | H9: $/Unit | I9: Total | J9: Total | K9: Share | L9: Share | M9: Landlord | N9: Landlord | O9: Tenant | P9: Tenant | Q9: (122 acres) | R9: ="(" & E7 & " acres)" -> ( acres)
B10: Corn | D10: 225 | F10: Bushel | G10: 5.35 | I10: 1203.75 | J10: =E10*H10 -> 0 | K10: 0 | M10: 0 | N10: =J10*L10 -> 0 | O10: 1203.75 | P10: =+J10-N10 -> 0 | Q10: 146857.5 | R10: =+J10*E$7 -> 0
D11: 0 | G11: 0 | I11: 0 | J11: 0 | K11: 0 | M11: 0 | N11: 0 | O11: 0 | P11: =+J11-N11 -> 0 | Q11: 0 | R11: 0
D12: 0 | G12: 0 | I12: 0 | J12: 0 | K12: 0 | M12: 0 | N12: 0 | O12: 0 | P12: 0 | Q12: 0 | R12: 0
A13: Total Revenue | I13: 1203.75 | J13: =SUM(J10:J12) -> 0 | M13: 0 | N13: =SUM(N10:N12) -> 0 | O13: 1203.75 | P13: =SUM(P10:P12) -> 0 | Q13: 146857.5 | R13: =SUM(R10:R12) -> 0
Q14: Enterprise | R14: Enterprise
A15: VARIABLE COSTS | D15: Quantity | E15: Quantity | F15: Units | G15: $/Unit | H15: $/Unit | I15: Total | J15: Total | K15: Share | L15: Share | M15: Landlord | N15: Landlord | O15: Tenant | P15: Tenant | Q15: Total | R15: Total
A16: Production Costs
B17: Custom
C18: Fertilizer Application - ANH3 | D18: 1 | F18: Acre | G18: 18 | I18: 18 | J18: =E18*H18 -> 0 | K18: 0 | M18: 0 | N18: =J18*L18 -> 0 | O18: 18 | P18: =+J18-N18 -> 0 | Q18: 2196 | R18: =+J18*E$7 -> 0
C19: Crop Consultant | D19: 1 | F19: Acre | G19: 12 | I19: 12 | J19: 0 | K19: 0 | M19: 0 | N19: 0 | O19: 12 | P19: 0 | Q19: 1464 | R19: 0
C20: Harvest and Haul - Corn | D20: 225 | F20: Bushel | G20: 0.48 | I20: 108 | J20: 0 | K20: 0 | M20: 0 | N20: 0 | O20: 108 | P20: 0 | Q20: 13176 | R20: 0
C21: Strip Till | D21: 1 | F21: Acre | G21: 30.62 | I21: 30.62 | J21: 0 | K21: 0 | M21: 0 | N21: 0 | O21: 30.62 | P21: 0 | Q21: 3735.64 | R21: 0
B22: Fertilizer
C23: Fertilizer (P) - Liquid | D23: 90 | F23: Pound | G23: 0.882 | I23: 79.38 | J23: 0 | K23: 0 | M23: 0 | N23: 0 | O23: 79.38 | P23: 0 | Q23: 9684.36 | R23: 0
C24: Fertilizer (N) - ANH3 | D24: 140 | F24: Pound | G24: 0.427 | I24: 59.78 | J24: 0 | K24: 0 | M24: 0 | N24: 0 | O24: 59.78 | P24: 0 | Q24: 7293.16 | R24: 0
C25: Fertilizer (N) - Liquid | D25: 85 | F25: Pound | G25: 0.578 | I25: 49.13 | J25: 0 | K25: 0 | M25: 0 | N25: 0 | O25: 49.13 | P25: 0 | Q25: 5993.86 | R25: 0
B26: Herbicide
C27: Herbicide - Corn Preplant | D27: 1 | F27: Acre | G27: 46.25 | I27: 46.25 | J27: 0 | K27: 0 | M27: 0 | N27: 0 | O27: 46.25 | P27: 0 | Q27: 5642.5 | R27: 0
C28: Herbicide - Corn Postplant | D28: 1 | F28: Acre | G28: 51 | I28: 51 | J28: 0 | K28: 0 | M28: 0 | N28: 0 | O28: 51 | P28: 0 | Q28: 6222 | R28: 0
C29: Burndown Herbicide | D29: 1 | F29: Acre | G29: 13.5 | I29: 13.5 | J29: 0 | K29: 0 | M29: 0 | N29: 0 | O29: 13.5 | P29: 0 | Q29: 1647 | R29: 0
B30: Insecticide
C31: Miticide | D31: 1 | F31: Acre | G31: 45 | I31: 45 | J31: 0 | K31: 0 | M31: 0 | N31: 0 | O31: 45 | P31: 0 | Q31: 5490 | R31: 0
B32: Miscellaneous
C33: Crop Insurance Corn Irrigated | D33: 1 | F33: Acre | G33: 50 | I33: 50 | J33: 0 | K33: 0 | M33: 0 | N33: 0 | O33: 50 | P33: 0 | Q33: 6100 | R33: 0
B34: Seed
C35: Seed - Bt Corn for Grain | D35: 0.38 | F35: Bag | G35: 320 | I35: 121.6 | J35: 0 | K35: 0 | M35: 0 | N35: 0 | O35: 121.6 | P35: 0 | Q35: 14835.2 | R35: 0
D36: 0 | G36: 0 | I36: 0 | J36: 0 | K36: 0 | M36: 0 | N36: 0 | O36: 0 | P36: 0 | Q36: 0 | R36: 0
D37: 0 | G37: 0 | I37: 0 | J37: 0 | K37: 0 | M37: 0 | N37: 0 | O37: 0 | P37: 0 | Q37: 0 | R37: 0
D38: 0 | G38: 0 | I38: 0 | J38: =E38*H38 -> 0 | K38: 0 | M38: 0 | N38: =J38*L38 -> 0 | O38: 0 | P38: =+J38-N38 -> 0 | Q38: 0 | R38: =+J38*E$7 -> 0
B39: Irrigation
C40: Energy Cost | D40: 20 | F40: AcreInch | G40: 3.8 | I40: 76 | J40: =E40*H40 -> 0 | K40: 0 | M40: 0 | N40: =J40*L40 -> 0 | O40: 76 | P40: =+J40-N40 -> 0 | Q40: 9272 | R40: =+J40*E$7 -> 0
C41: Irrigation Labor | D41: 1.28 | F41: Hour | G41: 17.94 | I41: 22.9632 | J41: 0 | K41: 0 | M41: 0 | N41: 0 | O41: 22.9632 | P41: 0 | Q41: 2801.5104 | R41: 0
B42: Machinery Labor
C43: Tractors/Self-Propelled | D43: 0.03 | F43: Hour | G43: 17.65 | I43: 0.5295 | J43: =E43*H43 -> 0 | K43: 0 | M43: 0 | N43: =J43*L43 -> 0 | O43: 0.5295 | P43: =+J43-N43 -> 0 | Q43: 64.599 | R43: =+J43*E$7 -> 0
C44: Other Labor | D44: 0.03 | F44: Hour | G44: 17.65 | I44: 0.5295 | J44: =E44*H44 -> 0 | K44: 0 | M44: 0 | N44: =J44*L44 -> 0 | O44: 0.5295 | P44: =+J44-N44 -> 0 | Q44: 64.599 | R44: =+J44*E$7 -> 0
B46: Diesel Fuel
C47: Pickup/General Use Equipment | D47: 1 | F47: Acre | G47: 0 | I47: 0 | J47: =E47*H47 -> 0 | K47: 0 | M47: 0 | N47: =J47*L47 -> 0 | O47: 0 | P47: =+J47-N47 -> 0 | Q47: 0 | R47: =+J47*E$7 -> 0
C48: Tractors/Self-Propelled | D48: 0.13 | F48: Gallon | G48: 3.1 | I48: 0.403 | J48: =E48*H48 -> 0 | K48: 0 | M48: 0 | N48: =J48*L48 -> 0 | O48: 0.403 | P48: =+J48-N48 -> 0 | Q48: 49.166 | R48: =+J48*E$7 -> 0
B50: Gasoline
C51: Pickup/General Use Equipment | D51: 1 | F51: Acre | G51: 7.37704918 | I51: 7.37704918 | J51: =E51*H51 -> 0 | K51: 0 | M51: 0 | N51: =J51*L51 -> 0 | O51: 7.37704918 | P51: =+J51-N51 -> 0 | Q51: 900 | R51: =+J51*E$7 -> 0
C52: Tractors/Self-Propelled | D52: 0 | F52: Gallon | G52: 2.4 | I52: 0 | J52: =E52*H52 -> 0 | K52: 0 | M52: 0 | N52: =J52*L52 -> 0 | O52: 0 | P52: =+J52-N52 -> 0 | Q52: 0 | R52: =+J52*E$7 -> 0
B54: Repairs & Maintenance
C55: Pickup/General Use Equipment | D55: 1 | F55: Acre | G55: 3.762295082 | I55: 3.762295082 | J55: =E55*H55 -> 0 | K55: 0 | M55: 0 | N55: =J55*L55 -> 0 | O55: 3.762295082 | P55: =+J55-N55 -> 0 | Q55: 459 | R55: =+J55*E$7 -> 0
C56: Irrigation Equipment | D56: 1 | F56: Acre | G56: 75 | I56: 75 | J56: 0 | K56: 0 | M56: 0 | N56: 0 | O56: 75 | P56: 0 | Q56: 9150 | R56: 0
C57: Tractors/Self-Propelled | D57: 1 | F57: Acre | G57: 0.2029581334 | I57: 0.2029581334 | J57: 0 | K57: 0 | M57: 0 | N57: 0 | O57: 0.2029581334 | P57: 0 | Q57: 24.76089227 | R57: 0
C58: Implements | D58: 1 | F58: Acre | G58: 1.852885388 | I58: 1.852885388 | J58: 0 | K58: 0 | M58: 0 | N58: 0 | O58: 1.852885388 | P58: 0 | Q58: 226.0520173 | R58: 0
I59: 0 | J59: 0 | K59: 0 | M59: 0 | N59: 0 | O59: 0 | P59: 0 | Q59: 0 | R59: 0
I60: 0 | J60: 0 | K60: 0 | M60: 0 | N60: 0 | O60: 0 | P60: 0 | Q60: 0 | R60: 0
B61: Interest on Credit Line | G61: 0.09 | I61: 25.99088988 | J61: =+SUM(J17:J60)/2*H61 -> 0 | M61: 0 | N61: =+SUM(N17:N60)/2*L61 -> 0 | O61: 25.99088988 | P61: =+SUM(P17:P60)/2*L61 -> 0 | Q61: 3170.888566 | R61: =+J61*E$7 -> 0
A62: Total Variable Costs | I62: 898.8712777 | J62: =SUM(J18:J61) -> 0 | M62: 0 | N62: =SUM(N18:N61) -> 0 | O62: 898.8712777 | P62: =SUM(P18:P61) -> 0 | Q62: 109662.2959 | R62: =SUM(R18:R61) -> 0
A63: Planned Returns Above Variable Costs: | I63: 304.8787223 | J63: =+J13-J62 -> 0 | M63: 0 | N63: =+N13-N62 -> 0 | O63: 304.8787223 | P63: =+P13-P62 -> 0 | Q63: 37195.20412 | R63: =+R13-R62 -> 0
B64: Breakeven Price to Cover Variable Costs | G64: 3.994983456 | H64: =IF(E10=0,"n/a",(YVarExp-(YTotExp+YTotRet-J10))/E10) -> n/a | I64: Bushel
Q65: Enterprise | R65: Enterprise
A66: FIXED COSTS | D66: Quantity | E66: Quantity | F66: Units | G66: $/Unit | H66: $/Unit | I66: Total | J66: Total | K66: Share | L66: Share | M66: Landlord | N66: Landlord | O66: Tenant | P66: Tenant | Q66: Total | R66: Total
B67: Machinery Depreciation
C68: Pickup/General Use Equipment | D68: 1 | F68: Acre | G68: 3.950409836 | I68: 3.950409836 | J68: =E68*H68 -> 0 | K68: 0 | M68: 0 | N68: =J68*L68 -> 0 | O68: 3.950409836 | P68: =+J68-N68 -> 0 | Q68: 481.95 | R68: =+J68*E$7 -> 0
C69: Irrigation Equipment | D69: 1 | F69: Acre | G69: 47.33606557 | I69: 47.33606557 | J69: 0 | K69: 0 | M69: 0 | N69: =J69*L69 -> 0 | O69: 47.33606557 | P69: 0 | Q69: 5775 | R69: 0
C70: Tractors/Self-Propelled | D70: 1 | F70: Acre | G70: 0.1677787236 | I70: 0.1677787236 | J70: 0 | K70: 0 | M70: 0 | N70: =J70*L70 -> 0 | O70: 0.1677787236 | P70: 0 | Q70: 20.46900428 | R70: 0
C71: Implements | D71: 1 | F71: Acre | G71: 2.382281213 | I71: 2.382281213 | J71: 0 | K71: 0 | M71: 0 | N71: =J71*L71 -> 0 | O71: 2.382281213 | P71: 0 | Q71: 290.638308 | R71: 0
B72: Equipment Investment
C73: Pickup/General Use Equipment | D73: 27.27663934 | F73: Dollars | G73: 0.09 | I73: 2.454897541 | J73: =E73*H73 -> 0 | K73: 0 | M73: 0 | N73: =J73*L73 -> 0 | O73: 2.454897541 | P73: =+J73-N73 -> 0 | Q73: 299.4975 | R73: =+J73*E$7 -> 0
C74: Irrigation Equipment | D74: 571.7213115 | F74: Dollars | G74: 0.09 | I74: 51.45491803 | J74: 0 | K74: 0 | M74: 0 | N74: =J74*L74 -> 0 | O74: 51.45491803 | P74: 0 | Q74: 6277.5 | R74: 0
C75: Tractors/Self-Propelled | D75: 1.307050379 | F75: Dollars | G75: 0.09 | I75: 0.1176345341 | J75: 0 | K75: 0 | M75: 0 | N75: =J75*L75 -> 0 | O75: 0.1176345341 | P75: 0 | Q75: 14.35141316 | R75: 0
C76: Implements | D76: 10.19086963 | F76: Dollars | G76: 0.09 | I76: 0.9171782669 | J76: 0 | K76: 0 | M76: 0 | N76: =J76*L76 -> 0 | O76: 0.9171782669 | P76: 0 | Q76: 111.8957486 | R76: 0
B77: Salaried Labor | D77: 1 | F77: Acre | G77: 0 | I77: 0 | J77: 0 | K77: 0 | M77: 0 | N77: =J77*L77 -> 0 | O77: 0 | P77: =+J77-N77 -> 0 | Q77: 0 | R77: =+J77*E$7 -> 0
B78: Management Fee, Owner/Operator Labor | D78: 1 | F78: Acre | G78: 0 | I78: 0 | J78: 0 | K78: 0 | M78: 0 | N78: 0 | O78: 0 | P78: 0 | Q78: 0 | R78: 0
B79: Allocated Establishment Cost | D79: 1 | F79: Acre | G79: 0 | I79: 0 | J79: 0 | K79: 0 | M79: 0 | N79: 0 | O79: 0 | P79: 0 | Q79: 0 | R79: 0
B80: Cash Rent - Corn | D80: 1 | F80: Acre | G80: 200 | I80: 200 | J80: 0 | K80: 0 | M80: 0 | N80: 0 | O80: 200 | P80: 0 | Q80: 24400 | R80: 0
B81: Property Taxes | D81: 1 | F81: Acre | G81: 0 | I81: 0 | J81: 0 | K81: 0 | M81: 0 | N81: 0 | O81: 0 | P81: 0 | Q81: 0 | R81: 0
B82: Whole Farm Insurance | D82: 1 | F82: Acre | G82: 0 | I82: 0 | J82: 0 | K82: 0 | M82: 0 | N82: 0 | O82: 0 | P82: 0 | Q82: 0 | R82: 0
D83: 1 | G83: 0 | I83: 0 | J83: 0 | K83: 0 | M83: 0 | N83: 0 | O83: 0 | P83: 0 | Q83: 0 | R83: 0
D84: 1 | G84: 0 | I84: 0 | J84: =E84*H84 -> 0 | K84: 0 | M84: 0 | N84: 0 | O84: 0 | P84: 0 | Q84: 0 | R84: 0
A85: Total Fixed Costs | I85: 308.7811637 | J85: =+SUM(J68:J84) -> 0 | M85: 0 | N85: =+SUM(N68:N84) -> 0 | O85: 308.7811637 | P85: =+SUM(P68:P84) -> 0 | Q85: 37671.30197 | R85: =+SUM(R68:R84) -> 0
A86: Total Specified Costs | I86: 1207.652441 | J86: =+J62+J85 -> 0 | M86: 0 | N86: =+N62+N85 -> 0 | O86: 1207.652441 | P86: =+P62+P85 -> 0 | Q86: 147333.5978 | R86: =+R62+R85 -> 0
A88: Returns Above Specified Costs | I88: -3.902441388 | J88: =+J13-J86 -> 0 | M88: 0 | N88: =+N13-N86 -> 0 | O88: -3.902441388 | P88: =+P13-P86 -> 0 | Q88: -476.0978493 | R88: =+R13-R86 -> 0
A90: Breakeven Price to Cover Total Costs | G90: 5.367344184 | H90: =IF(E10=0,"n/a",(YTotExp-(YTotExp+YTotRet-J10))/E10) -> n/a | I90: Bushel
D92: Example Breakeven Prices
B93: Example | C93: Example | D93: To Cover | G93: To Cover
B94: Yield | C94: Yield | D94: Variable | G94: Total
B95: Percent | C95: Bushel | D95: Costs | G95: Costs
B96: 0.75 | C96: 168.75 | D96: 5.326644608 | G96: 7.156458912
B97: 0.9 | C97: 202.5 | D97: 4.438870507 | G97: 5.96371576
B98: 1 | C98: 225 | D98: 3.994983456 | G98: 5.367344184
B99: 1.1 | C99: 247.5 | D99: 3.631803142 | G99: 4.879403804
B100: 1.25 | C100: 281.25 | D100: 3.195986765 | G100: 4.293875347
A102: Developed by Justin Benavidez, Assistant Professor, Texas A&M AgriLife Extension, 806-677-5600.
A104: Information presented is prepared solely as a general guide and not intended to recognize or predict the costs and returns from any one operation. Brand names are mentioned only as examples and imply no endorsement.

Sheet CornSilage
A1: Projections for Planning Purposes Only -- Not to be Used without Updating
A2: 2024 Estimated Costs and Returns per Acre
A3: Corn Silage, Bt, Sprinkler Irrigated (NG)
A4: Enter your name for this budget in the cell above.
A5: Enter Your Values in the cells highlighed in MAROON.
E6: Your Acres | R6: Your
C7: Crop Acres | D7: 122 | L7: Your | Q7: Enterprise | R7: Enterprise
E8: Your | H8: Your | I8: Cash | J8: Your | K8: Landlord | L8: Landlord | N8: Your | P8: Your | Q8: Total | R8: Total
A9: REVENUE | D9: Quantity | E9: Quantity | F9: Units | G9: $/Unit | H9: $/Unit | I9: Total | J9: Total | K9: Share | L9: Share | M9: Landlord | N9: Landlord | O9: Tenant | P9: Tenant | Q9: (122 acres) | R9: ="(" & E7 & " acres)" -> ( acres)
B10: Corn Silage | D10: 27 | F10: Ton | G10: 60 | I10: 1620 | J10: =E10*H10 -> 0 | K10: 0 | M10: 0 | N10: =J10*L10 -> 0 | O10: 1620 | P10: =+J10-N10 -> 0 | Q10: 197640 | R10: =+J10*E$7 -> 0
D11: 0 | G11: 0 | I11: 0 | J11: 0 | K11: 0 | M11: 0 | N11: 0 | O11: 0 | P11: =+J11-N11 -> 0 | Q11: 0 | R11: 0
D12: 0 | G12: 0 | I12: 0 | J12: 0 | K12: 0 | M12: 0 | N12: 0 | O12: 0 | P12: 0 | Q12: 0 | R12: 0
A13: Total Revenue | I13: 1620 | J13: =SUM(J10:J12) -> 0 | M13: 0 | N13: =SUM(N10:N12) -> 0 | O13: 1620 | P13: =SUM(P10:P12) -> 0 | Q13: 197640 | R13: =SUM(R10:R12) -> 0
Q14: Enterprise | R14: Enterprise
A15: VARIABLE COSTS | D15: Quantity | E15: Quantity | F15: Units | G15: $/Unit | H15: $/Unit | I15: Total | J15: Total | K15: Share | L15: Share | M15: Landlord | N15: Landlord | O15: Tenant | P15: Tenant | Q15: Total | R15: Total
A16: Production Costs
B17: Custom
C18: Fertilizer Application - ANH3 | D18: 1 | F18: Acre | G18: 18 | I18: 18 | J18: =E18*H18 -> 0 | K18: 0 | M18: 0 | N18: =J18*L18 -> 0 | O18: 18 | P18: =+J18-N18 -> 0 | Q18: 2196 | R18: =+J18*E$7 -> 0
C19: Harvest and Haul - Corn Silage | D19: 27 | F19: Ton | G19: 12.5 | I19: 337.5 | J19: 0 | K19: 0 | M19: 0 | N19: 0 | O19: 337.5 | P19: 0 | Q19: 41175 | R19: 0
B20: Fertilizer
C21: Fertilizer (P) - Liquid | D21: 90 | F21: Pound | G21: 0.882 | I21: 79.38 | J21: 0 | K21: 0 | M21: 0 | N21: 0 | O21: 79.38 | P21: 0 | Q21: 9684.36 | R21: 0
C22: Fertilizer (N) - ANH3 | D22: 160 | F22: Pound | G22: 0.427 | I22: 68.32 | J22: 0 | K22: 0 | M22: 0 | N22: 0 | O22: 68.32 | P22: 0 | Q22: 8335.04 | R22: 0
C23: Fertilizer (N) - Liquid | D23: 95 | F23: Pound | G23: 0.578 | I23: 54.91 | J23: 0 | K23: 0 | M23: 0 | N23: 0 | O23: 54.91 | P23: 0 | Q23: 6699.02 | R23: 0
B24: Herbicide
C25: Herbicide - Corn Preplant | D25: 1 | F25: Acre | G25: 46.25 | I25: 46.25 | J25: 0 | K25: 0 | M25: 0 | N25: 0 | O25: 46.25 | P25: 0 | Q25: 5642.5 | R25: 0
C26: Herbicide - Corn Postplant | D26: 1 | F26: Acre | G26: 51 | I26: 51 | J26: 0 | K26: 0 | M26: 0 | N26: 0 | O26: 51 | P26: 0 | Q26: 6222 | R26: 0
B27: Insecticide
C28: Miticide | D28: 1 | F28: Acre | G28: 45 | I28: 45 | J28: 0 | K28: 0 | M28: 0 | N28: 0 | O28: 45 | P28: 0 | Q28: 5490 | R28: 0
C29: Insecticide and Apply Corn Silage | D29: 1 | F29: Acre | G29: 0 | I29: 0 | J29: 0 | K29: 0 | M29: 0 | N29: 0 | O29: 0 | P29: 0 | Q29: 0 | R29: 0
B30: Miscellaneous
C31: Crop Insurance Corn Silage Irrigated | D31: 1 | F31: Acre | G31: 45 | I31: 45 | J31: 0 | K31: 0 | M31: 0 | N31: 0 | O31: 45 | P31: 0 | Q31: 5490 | R31: 0
B32: Seed
C33: Seed - Corn Silage | D33: 0.44 | F33: Bag | G33: 300 | I33: 132 | J33: 0 | K33: 0 | M33: 0 | N33: 0 | O33: 132 | P33: 0 | Q33: 16104 | R33: 0
D34: 0 | G34: 0 | I34: 0 | J34: 0 | K34: 0 | M34: 0 | N34: 0 | O34: 0 | P34: 0 | Q34: 0 | R34: 0
D35: 0 | G35: 0 | I35: 0 | J35: 0 | K35: 0 | M35: 0 | N35: 0 | O35: 0 | P35: 0 | Q35: 0 | R35: 0
D36: 0 | G36: 0 | I36: 0 | J36: =E36*H36 -> 0 | K36: 0 | M36: 0 | N36: =J36*L36 -> 0 | O36: 0 | P36: =+J36-N36 -> 0 | Q36: 0 | R36: =+J36*E$7 -> 0
B37: Irrigation
C38: Energy Cost | D38: 20 | F38: AcreInch | G38: 3.8 | I38: 76 | J38: =E38*H38 -> 0 | K38: 0 | M38: 0 | N38: =J38*L38 -> 0 | O38: 76 | P38: =+J38-N38 -> 0 | Q38: 9272 | R38: =+J38*E$7 -> 0
C39: Irrigation Labor | D39: 1.28 | F39: Hour | G39: 17.94 | I39: 22.9632 | J39: 0 | K39: 0 | M39: 0 | N39: 0 | O39: 22.9632 | P39: 0 | Q39: 2801.5104 | R39: 0
B40: Machinery Labor
C41: Tractors/Self-Propelled | D41: 0.35 | F41: Hour | G41: 17.65 | I41: 6.1775 | J41: =E41*H41 -> 0 | K41: 0 | M41: 0 | N41: =J41*L41 -> 0 | O41: 6.1775 | P41: =+J41-N41 -> 0 | Q41: 753.655 | R41: =+J41*E$7 -> 0
C42: Other Labor | D42: 0.42 | F42: Hour | G42: 17.65 | I42: 7.413 | J42: =E42*H42 -> 0 | K42: 0 | M42: 0 | N42: =J42*L42 -> 0 | O42: 7.413 | P42: =+J42-N42 -> 0 | Q42: 904.386 | R42: =+J42*E$7 -> 0
B44: Diesel Fuel
C45: Pickup/General Use Equipment | D45: 1 | F45: Acre | G45: 0 | I45: 0 | J45: =E45*H45 -> 0 | K45: 0 | M45: 0 | N45: =J45*L45 -> 0 | O45: 0 | P45: =+J45-N45 -> 0 | Q45: 0 | R45: =+J45*E$7 -> 0
C46: Tractors/Self-Propelled | D46: 2.21 | F46: Gallon | G46: 3.1 | I46: 6.851 | J46: =E46*H46 -> 0 | K46: 0 | M46: 0 | N46: =J46*L46 -> 0 | O46: 6.851 | P46: =+J46-N46 -> 0 | Q46: 835.822 | R46: =+J46*E$7 -> 0
B48: Gasoline
C49: Pickup/General Use Equipment | D49: 1 | F49: Acre | G49: 7.37704918 | I49: 7.37704918 | J49: =E49*H49 -> 0 | K49: 0 | M49: 0 | N49: =J49*L49 -> 0 | O49: 7.37704918 | P49: =+J49-N49 -> 0 | Q49: 900 | R49: =+J49*E$7 -> 0
C50: Tractors/Self-Propelled | D50: 0 | F50: Gallon | G50: 2.4 | I50: 0 | J50: =E50*H50 -> 0 | K50: 0 | M50: 0 | N50: =J50*L50 -> 0 | O50: 0 | P50: =+J50-N50 -> 0 | Q50: 0 | R50: =+J50*E$7 -> 0
B52: Repairs & Maintenance
C53: Pickup/General Use Equipment | D53: 1 | F53: Acre | G53: 3.762295082 | I53: 3.762295082 | J53: =E53*H53 -> 0 | K53: 0 | M53: 0 | N53: =J53*L53 -> 0 | O53: 3.762295082 | P53: =+J53-N53 -> 0 | Q53: 459 | R53: =+J53*E$7 -> 0
C54: Irrigation Equipment | D54: 1 | F54: Acre | G54: 75 | I54: 75 | J54: 0 | K54: 0 | M54: 0 | N54: 0 | O54: 75 | P54: 0 | Q54: 9150 | R54: 0
C55: Tractors/Self-Propelled | D55: 1 | F55: Acre | G55: 4.382032788 | I55: 4.382032788 | J55: 0 | K55: 0 | M55: 0 | N55: 0 | O55: 4.382032788 | P55: 0 | Q55: 534.6080001 | R55: 0
C56: Implements | D56: 1 | F56: Acre | G56: 7.275685526 | I56: 7.275685526 | J56: 0 | K56: 0 | M56: 0 | N56: 0 | O56: 7.275685526 | P56: 0 | Q56: 887.6336342 | R56: 0
I57: 0 | J57: 0 | K57: 0 | M57: 0 | N57: 0 | O57: 0 | P57: 0 | Q57: 0 | R57: 0
I58: 0 | J58: 0 | K58: 0 | M58: 0 | N58: 0 | O58: 0 | P58: 0 | Q58: 0 | R58: 0
B59: Interest on Credit Line | G59: 0.09 | I59: 28.24910223 | J59: =+SUM(J17:J58)/2*H59 -> 0 | M59: 0 | N59: =+SUM(N17:N58)/2*L59 -> 0 | O59: 28.24910223 | P59: =+SUM(P17:P58)/2*L59 -> 0 | Q59: 3446.390471 | R59: =+J59*E$7 -> 0
A60: Total Variable Costs | I60: 1122.810865 | J60: =SUM(J18:J59) -> 0 | M60: 0 | N60: =SUM(N18:N59) -> 0 | O60: 1122.810865 | P60: =SUM(P18:P59) -> 0 | Q60: 136982.9255 | R60: =SUM(R18:R59) -> 0
A61: Planned Returns Above Variable Costs: | I61: 497.1891352 | J61: =+J13-J60 -> 0 | M61: 0 | N61: =+N13-N60 -> 0 | O61: 497.1891352 | P61: =+P13-P60 -> 0 | Q61: 60657.07449 | R61: =+R13-R60 -> 0
B62: Breakeven Price to Cover Variable Costs | G62: 41.58558759 | H62: =IF(E10=0,"n/a",(YVarExp-(YTotExp+YTotRet-J10))/E10) -> n/a | I62: Ton
Q63: Enterprise | R63: Enterprise
A64: FIXED COSTS | D64: Quantity | E64: Quantity | F64: Units | G64: $/Unit | H64: $/Unit | I64: Total | J64: Total | K64: Share | L64: Share | M64: Landlord | N64: Landlord | O64: Tenant | P64: Tenant | Q64: Total | R64: Total
B65: Machinery Depreciation
C66: Pickup/General Use Equipment | D66: 1 | F66: Acre | G66: 3.950409836 | I66: 3.950409836 | J66: =E66*H66 -> 0 | K66: 0 | M66: 0 | N66: =J66*L66 -> 0 | O66: 3.950409836 | P66: =+J66-N66 -> 0 | Q66: 481.95 | R66: =+J66*E$7 -> 0
C67: Irrigation Equipment | D67: 1 | F67: Acre | G67: 47.33606557 | I67: 47.33606557 | J67: 0 | K67: 0 | M67: 0 | N67: =J67*L67 -> 0 | O67: 47.33606557 | P67: 0 | Q67: 5775 | R67: 0
C68: Tractors/Self-Propelled | D68: 1 | F68: Acre | G68: 4.486155867 | I68: 4.486155867 | J68: 0 | K68: 0 | M68: 0 | N68: =J68*L68 -> 0 | O68: 4.486155867 | P68: 0 | Q68: 547.3110157 | R68: 0
C69: Implements | D69: 1 | F69: Acre | G69: 8.850954111 | I69: 8.850954111 | J69: 0 | K69: 0 | M69: 0 | N69: =J69*L69 -> 0 | O69: 8.850954111 | P69: 0 | Q69: 1079.816402 | R69: 0
B70: Equipment Investment
C71: Pickup/General Use Equipment | D71: 27.27663934 | F71: Dollars | G71: 0.09 | I71: 2.454897541 | J71: =E71*H71 -> 0 | K71: 0 | M71: 0 | N71: =J71*L71 -> 0 | O71: 2.454897541 | P71: =+J71-N71 -> 0 | Q71: 299.4975 | R71: =+J71*E$7 -> 0
C72: Irrigation Equipment | D72: 571.7213115 | F72: Dollars | G72: 0.09 | I72: 51.45491803 | J72: 0 | K72: 0 | M72: 0 | N72: =J72*L72 -> 0 | O72: 51.45491803 | P72: 0 | Q72: 6277.5 | R72: 0
C73: Tractors/Self-Propelled | D73: 34.94860135 | F73: Dollars | G73: 0.09 | I73: 3.145374121 | J73: 0 | K73: 0 | M73: 0 | N73: =J73*L73 -> 0 | O73: 3.145374121 | P73: 0 | Q73: 383.7356428 | R73: 0
C74: Implements | D74: 37.86241481 | F74: Dollars | G74: 0.09 | I74: 3.407617333 | J74: 0 | K74: 0 | M74: 0 | N74: =J74*L74 -> 0 | O74: 3.407617333 | P74: 0 | Q74: 415.7293146 | R74: 0
B75: Salaried Labor | D75: 1 | F75: Acre | G75: 0 | I75: 0 | J75: 0 | K75: 0 | M75: 0 | N75: =J75*L75 -> 0 | O75: 0 | P75: =+J75-N75 -> 0 | Q75: 0 | R75: =+J75*E$7 -> 0
B76: Management Fee, Owner/Operator Labor | D76: 1 | F76: Acre | G76: 0 | I76: 0 | J76: 0 | K76: 0 | M76: 0 | N76: 0 | O76: 0 | P76: 0 | Q76: 0 | R76: 0
B77: Allocated Establishment Cost | D77: 1 | F77: Acre | G77: 0 | I77: 0 | J77: 0 | K77: 0 | M77: 0 | N77: 0 | O77: 0 | P77: 0 | Q77: 0 | R77: 0
B78: Cash Rent - Corn | D78: 1 | F78: Acre | G78: 200 | I78: 200 | J78: 0 | K78: 0 | M78: 0 | N78: 0 | O78: 200 | P78: 0 | Q78: 24400 | R78: 0
B79: Property Taxes | D79: 1 | F79: Acre | G79: 0 | I79: 0 | J79: 0 | K79: 0 | M79: 0 | N79: 0 | O79: 0 | P79: 0 | Q79: 0 | R79: 0
B80: Whole Farm Insurance | D80: 1 | F80: Acre | G80: 0 | I80: 0 | J80: 0 | K80: 0 | M80: 0 | N80: 0 | O80: 0 | P80: 0 | Q80: 0 | R80: 0
D81: 1 | G81: 0 | I81: 0 | J81: 0 | K81: 0 | M81: 0 | N81: 0 | O81: 0 | P81: 0 | Q81: 0 | R81: 0
D82: 1 | G82: 0 | I82: 0 | J82: =E82*H82 -> 0 | K82: 0 | M82: 0 | N82: 0 | O82: 0 | P82: 0 | Q82: 0 | R82: 0
A83: Total Fixed Costs | I83: 325.0863924 | J83: =+SUM(J66:J82) -> 0 | M83: 0 | N83: =+SUM(N66:N82) -> 0 | O83: 325.0863924 | P83: =+SUM(P66:P82) -> 0 | Q83: 39660.53987 | R83: =+SUM(R66:R82) -> 0
A84: Total Specified Costs | I84: 1447.897257 | J84: =+J60+J83 -> 0 | M84: 0 | N84: =+N60+N83 -> 0 | O84: 1447.897257 | P84: =+P60+P83 -> 0 | Q84: 176643.4654 | R84: =+R60+R83 -> 0
A86: Returns Above Specified Costs | I86: 172.1027428 | J86: =+J13-J84 -> 0 | M86: 0 | N86: =+N13-N84 -> 0 | O86: 172.1027428 | P86: =+P13-P84 -> 0 | Q86: 20996.53462 | R86: =+R13-R84 -> 0
A88: Breakeven Price to Cover Total Costs | G88: 53.62582434 | H88: =IF(E10=0,"n/a",(YTotExp-(YTotExp+YTotRet-J10))/E10) -> n/a | I88: Ton
D90: Example Breakeven Prices
B91: Example | C91: Example | D91: To Cover | G91: To Cover
B92: Yield | C92: Yield | D92: Variable | G92: Total
B93: Percent | C93: Ton | D93: Costs | G93: Costs
B94: 0.75 | C94: 20.25 | D94: 55.44745011 | G94: 71.50109912
B95: 0.9 | C95: 24.3 | D95: 46.20620843 | G95: 59.58424927
B96: 1 | C96: 27 | D96: 41.58558759 | G96: 53.62582434
B97: 1.1 | C97: 29.7 | D97: 37.80507962 | G97: 48.7507494
B98: 1.25 | C98: 33.75 | D98: 33.26847007 | G98: 42.90065947
A100: Developed by Justin Benavidez, Assistant Professor, Texas A&M AgriLife Extension, 806-677-5600.
A102: Information presented is prepared solely as a general guide and not intended to recognize or predict the costs and returns from any one operation. Brand names are mentioned only as examples and imply no endorsement.

Sheet CottonDryland
A1: Projections for Planning Purposes Only -- Not to be Used without Updating
A2: 2024 Estimated Costs and Returns per Acre
A3: Cotton, Dryland (Roundup Ready Flex)
A4: Enter your name for this budget in the cell above.
A5: Enter Your Values in the cells highlighed in MAROON.
E6: Your Acres | R6: Your
C7: Crop Acres | D7: 160 | L7: Your | Q7: Enterprise | R7: Enterprise
E8: Your | H8: Your | I8: Cash | J8: Your | K8: Landlord | L8: Landlord | N8: Your | P8: Your | Q8: Total | R8: Total
A9: REVENUE | D9: Quantity | E9: Quantity | F9: Units | G9: $/Unit | H9: $/Unit | I9: Total | J9: Total | K9: Share | L9: Share | M9: Landlord | N9: Landlord | O9: Tenant | P9: Tenant | Q9: (160 acres) | R9: ="(" & E7 & " acres)" -> ( acres)
B10: Cotton Lint | D10: 400 | F10: Pound | G10: 0.74 | I10: 296 | J10: =E10*H10 -> 0 | K10: 0 | M10: 0 | N10: =J10*L10 -> 0 | O10: 296 | P10: =+J10-N10 -> 0 | Q10: 47360 | R10: =+J10*E$7 -> 0
B11: Cottonseed | D11: 0.3 | F11: Ton | G11: 225 | I11: 67.5 | J11: 0 | K11: 0 | M11: 0 | N11: 0 | O11: 67.5 | P11: =+J11-N11 -> 0 | Q11: 10800 | R11: 0
D12: 0 | G12: 0 | I12: 0 | J12: 0 | K12: 0 | M12: 0 | N12: 0 | O12: 0 | P12: 0 | Q12: 0 | R12: 0
D13: 0 | G13: 0 | I13: 0 | J13: 0 | K13: 0 | M13: 0 | N13: 0 | O13: 0 | P13: 0 | Q13: 0 | R13: 0
A14: Total Revenue | I14: 363.5 | J14: =SUM(J10:J13) -> 0 | M14: 0 | N14: =SUM(N10:N13) -> 0 | O14: 363.5 | P14: =SUM(P10:P13) -> 0 | Q14: 58160 | R14: =SUM(R10:R13) -> 0
Q15: Enterprise | R15: Enterprise
A16: VARIABLE COSTS | D16: Quantity | E16: Quantity | F16: Units | G16: $/Unit | H16: $/Unit | I16: Total | J16: Total | K16: Share | L16: Share | M16: Landlord | N16: Landlord | O16: Tenant | P16: Tenant | Q16: Total | R16: Total
A17: Production Costs
B18: Custom
C19: Fertilizer Application | D19: 1 | F19: Acre | G19: 7.5 | I19: 7.5 | J19: =E19*H19 -> 0 | K19: 0 | M19: 0 | N19: =J19*L19 -> 0 | O19: 7.5 | P19: =+J19-N19 -> 0 | Q19: 1200 | R19: =+J19*E$7 -> 0
C20: Strip and Module - Cotton | D20: 4 | F20: CWT | G20: 12 | I20: 48 | J20: 0 | K20: 0 | M20: 0 | N20: 0 | O20: 48 | P20: 0 | Q20: 7680 | R20: 0
C21: Ginning - Cotton | D21: 18 | F21: CWT | G21: 3.25 | I21: 58.5 | J21: 0 | K21: 0 | M21: 0 | N21: 0 | O21: 58.5 | P21: 0 | Q21: 9360 | R21: 0
B22: Fertilizer
C23: Fertilizer (P) - Dry | D23: 20 | F23: Pound | G23: 0.803 | I23: 16.06 | J23: 0 | K23: 0 | M23: 0 | N23: 0 | O23: 16.06 | P23: 0 | Q23: 2569.6 | R23: 0
C24: Fertilizer (N) - Dry | D24: 30 | F24: Pound | G24: 0.522 | I24: 15.66 | J24: 0 | K24: 0 | M24: 0 | N24: 0 | O24: 15.66 | P24: 0 | Q24: 2505.6 | R24: 0
B25: Herbicide
C26: Herbicide and Apply Preplant | D26: 1 | F26: Acre | G26: 60.15 | I26: 60.15 | J26: 0 | K26: 0 | M26: 0 | N26: 0 | O26: 60.15 | P26: 0 | Q26: 9624 | R26: 0
C27: Herbicide and Apply Postemerge Dry | D27: 1 | F27: Acre | G27: 33.49 | I27: 33.49 | J27: 0 | K27: 0 | M27: 0 | N27: 0 | O27: 33.49 | P27: 0 | Q27: 5358.4 | R27: 0
B28: Insecticide
C29: Insecticide and Apply Cotton | D29: 0.5 | F29: Acre | G29: 15.73 | I29: 7.865 | J29: 0 | K29: 0 | M29: 0 | N29: 0 | O29: 7.865 | P29: 0 | Q29: 1258.4 | R29: 0
C30: Boll Weevil Assessment Dryland | D30: 1 | F30: Acre | G30: 1 | I30: 1 | J30: 0 | K30: 0 | M30: 0 | N30: 0 | O30: 1 | P30: 0 | Q30: 160 | R30: 0
B31: Miscellaneous
C32: Crop Insurance Cotton - Dryland | D32: 1 | F32: Acre | G32: 25 | I32: 25 | J32: 0 | K32: 0 | M32: 0 | N32: 0 | O32: 25 | P32: 0 | Q32: 4000 | R32: 0
B33: Seed
C34: Seed - Cotton Dryland | D34: 0.18 | F34: Bag | G34: 335 | I34: 60.3 | J34: 0 | K34: 0 | M34: 0 | N34: 0 | O34: 60.3 | P34: 0 | Q34: 9648 | R34: 0
B35: Other Chemicals
C36: Harvest Aid Apply Cotton Dryland | D36: 0.5 | F36: Acre | G36: 36.25 | I36: 18.125 | J36: 0 | K36: 0 | M36: 0 | N36: 0 | O36: 18.125 | P36: 0 | Q36: 2900 | R36: 0
D37: 0 | G37: 0 | I37: 0 | J37: 0 | K37: 0 | M37: 0 | N37: 0 | O37: 0 | P37: 0 | Q37: 0 | R37: 0
D38: 0 | G38: 0 | I38: 0 | J38: 0 | K38: 0 | M38: 0 | N38: 0 | O38: 0 | P38: 0 | Q38: 0 | R38: 0
D39: 0 | G39: 0 | I39: 0 | J39: =E39*H39 -> 0 | K39: 0 | M39: 0 | N39: =J39*L39 -> 0 | O39: 0 | P39: =+J39-N39 -> 0 | Q39: 0 | R39: =+J39*E$7 -> 0
B40: Machinery Labor
C41: Tractors/Self-Propelled | D41: 0.3 | F41: Hour | G41: 17.65 | I41: 5.295 | J41: =E41*H41 -> 0 | K41: 0 | M41: 0 | N41: =J41*L41 -> 0 | O41: 5.295 | P41: =+J41-N41 -> 0 | Q41: 847.2 | R41: =+J41*E$7 -> 0
C42: Other Labor | D42: 0.35 | F42: Hour | G42: 17.65 | I42: 6.1775 | J42: =E42*H42 -> 0 | K42: 0 | M42: 0 | N42: =J42*L42 -> 0 | O42: 6.1775 | P42: =+J42-N42 -> 0 | Q42: 988.4 | R42: =+J42*E$7 -> 0
B44: Diesel Fuel
C45: Pickup/General Use Equipment | D45: 1 | F45: Acre | G45: 0 | I45: 0 | J45: =E45*H45 -> 0 | K45: 0 | M45: 0 | N45: =J45*L45 -> 0 | O45: 0 | P45: =+J45-N45 -> 0 | Q45: 0 | R45: =+J45*E$7 -> 0
C46: Tractors/Self-Propelled | D46: 1.74 | F46: Gallon | G46: 3.1 | I46: 5.394 | J46: =E46*H46 -> 0 | K46: 0 | M46: 0 | N46: =J46*L46 -> 0 | O46: 5.394 | P46: =+J46-N46 -> 0 | Q46: 863.04 | R46: =+J46*E$7 -> 0
B48: Gasoline
C49: Pickup/General Use Equipment | D49: 1 | F49: Acre | G49: 4.875 | I49: 4.875 | J49: =E49*H49 -> 0 | K49: 0 | M49: 0 | N49: =J49*L49 -> 0 | O49: 4.875 | P49: =+J49-N49 -> 0 | Q49: 780 | R49: =+J49*E$7 -> 0
C50: Tractors/Self-Propelled | D50: 0 | F50: Gallon | G50: 2.4 | I50: 0 | J50: =E50*H50 -> 0 | K50: 0 | M50: 0 | N50: =J50*L50 -> 0 | O50: 0 | P50: =+J50-N50 -> 0 | Q50: 0 | R50: =+J50*E$7 -> 0
B52: Repairs & Maintenance
C53: Pickup/General Use Equipment | D53: 1 | F53: Acre | G53: 2.48625 | I53: 2.48625 | J53: =E53*H53 -> 0 | K53: 0 | M53: 0 | N53: =J53*L53 -> 0 | O53: 2.48625 | P53: =+J53-N53 -> 0 | Q53: 397.8 | R53: =+J53*E$7 -> 0
C54: Irrigation Equipment | D54: 1 | F54: Acre | G54: 0 | I54: 0 | J54: 0 | K54: 0 | M54: 0 | N54: 0 | O54: 0 | P54: 0 | Q54: 0 | R54: 0
C55: Tractors/Self-Propelled | D55: 1 | F55: Acre | G55: 3.285647593 | I55: 3.285647593 | J55: 0 | K55: 0 | M55: 0 | N55: 0 | O55: 3.285647593 | P55: 0 | Q55: 525.7036149 | R55: 0
C56: Implements | D56: 1 | F56: Acre | G56: 5.617822456 | I56: 5.617822456 | J56: 0 | K56: 0 | M56: 0 | N56: 0 | O56: 5.617822456 | P56: 0 | Q56: 898.851593 | R56: 0
I57: 0 | J57: 0 | K57: 0 | M57: 0 | N57: 0 | O57: 0 | P57: 0 | Q57: 0 | R57: 0
I58: 0 | J58: 0 | K58: 0 | M58: 0 | N58: 0 | O58: 0 | P58: 0 | Q58: 0 | R58: 0
B59: Interest on Credit Line | G59: 0.09 | I59: 15.1062086 | J59: =+SUM(J18:J58)/2*H59 -> 0 | M59: 0 | N59: =+SUM(N18:N58)/2*L59 -> 0 | O59: 15.1062086 | P59: =+SUM(P18:P58)/2*L59 -> 0 | Q59: 2416.993377 | R59: =+J59*E$7 -> 0
A60: Total Variable Costs | I60: 399.8874287 | J60: =SUM(J19:J59) -> 0 | M60: 0 | N60: =SUM(N19:N59) -> 0 | O60: 399.8874287 | P60: =SUM(P19:P59) -> 0 | Q60: 63981.98858 | R60: =SUM(R19:R59) -> 0
A61: Planned Returns Above Variable Costs: | I61: -36.38742865 | J61: =+J14-J60 -> 0 | M61: 0 | N61: =+N14-N60 -> 0 | O61: -36.38742865 | P61: =+P14-P60 -> 0 | Q61: -5821.988584 | R61: =+R14-R60 -> 0
B62: Breakeven Price to Cover Variable Costs | G62: 0.8309685716 | H62: =IF(E10=0,"n/a",(YVarExp-(YTotExp+YTotRet-J10))/E10) -> n/a | I62: Pound
Q63: Enterprise | R63: Enterprise
A64: FIXED COSTS | D64: Quantity | E64: Quantity | F64: Units | G64: $/Unit | H64: $/Unit | I64: Total | J64: Total | K64: Share | L64: Share | M64: Landlord | N64: Landlord | O64: Tenant | P64: Tenant | Q64: Total | R64: Total
B65: Machinery Depreciation
C66: Pickup/General Use Equipment | D66: 1 | F66: Acre | G66: 2.6105625 | I66: 2.6105625 | J66: =E66*H66 -> 0 | K66: 0 | M66: 0 | N66: =J66*L66 -> 0 | O66: 2.6105625 | P66: =+J66-N66 -> 0 | Q66: 417.69 | R66: =+J66*E$7 -> 0
C67: Tractors/Self-Propelled | D67: 1 | F67: Acre | G67: 3.246698325 | I67: 3.246698325 | J67: 0 | K67: 0 | M67: 0 | N67: =J67*L67 -> 0 | O67: 3.246698325 | P67: 0 | Q67: 519.471732 | R67: 0
C68: Implements | D68: 1 | F68: Acre | G68: 6.905558382 | I68: 6.905558382 | J68: 0 | K68: 0 | M68: 0 | N68: =J68*L68 -> 0 | O68: 6.905558382 | P68: 0 | Q68: 1104.889341 | R68: 0
B69: Equipment Investment
C70: Pickup/General Use Equipment | D70: 18.0253125 | F70: Dollars | G70: 0.09 | I70: 1.622278125 | J70: =E70*H70 -> 0 | K70: 0 | M70: 0 | N70: =J70*L70 -> 0 | O70: 1.622278125 | P70: =+J70-N70 -> 0 | Q70: 259.5645 | R70: =+J70*E$7 -> 0
C71: Tractors/Self-Propelled | D71: 25.29282727 | F71: Dollars | G71: 0.09 | I71: 2.276354455 | J71: 0 | K71: 0 | M71: 0 | N71: =J71*L71 -> 0 | O71: 2.276354455 | P71: 0 | Q71: 364.2167127 | R71: 0
C72: Implements | D72: 29.54044419 | F72: Dollars | G72: 0.09 | I72: 2.658639977 | J72: 0 | K72: 0 | M72: 0 | N72: =J72*L72 -> 0 | O72: 2.658639977 | P72: 0 | Q72: 425.3823963 | R72: 0
B73: Salaried Labor | D73: 1 | F73: Acre | G73: 0 | I73: 0 | J73: 0 | K73: 0 | M73: 0 | N73: =J73*L73 -> 0 | O73: 0 | P73: =+J73-N73 -> 0 | Q73: 0 | R73: =+J73*E$7 -> 0
B74: Management Fee, Owner/Operator Labor | D74: 1 | F74: Acre | G74: 0 | I74: 0 | J74: 0 | K74: 0 | M74: 0 | N74: 0 | O74: 0 | P74: 0 | Q74: 0 | R74: 0
B75: Allocated Establishment Cost | D75: 1 | F75: Acre | G75: 0 | I75: 0 | J75: 0 | K75: 0 | M75: 0 | N75: 0 | O75: 0 | P75: 0 | Q75: 0 | R75: 0
B76: Cash Rent - Cotton Dryland | D76: 1 | F76: Acre | G76: 30 | I76: 30 | J76: 0 | K76: 0 | M76: 0 | N76: 0 | O76: 30 | P76: 0 | Q76: 4800 | R76: 0
B77: Property Taxes | D77: 1 | F77: Acre | G77: 0 | I77: 0 | J77: 0 | K77: 0 | M77: 0 | N77: 0 | O77: 0 | P77: 0 | Q77: 0 | R77: 0
B78: Whole Farm Insurance | D78: 1 | F78: Acre | G78: 0 | I78: 0 | J78: 0 | K78: 0 | M78: 0 | N78: 0 | O78: 0 | P78: 0 | Q78: 0 | R78: 0
D79: 1 | G79: 0 | I79: 0 | J79: 0 | K79: 0 | M79: 0 | N79: 0 | O79: 0 | P79: 0 | Q79: 0 | R79: 0
D80: 1 | G80: 0 | I80: 0 | J80: =E80*H80 -> 0 | K80: 0 | M80: 0 | N80: 0 | O80: 0 | P80: 0 | Q80: 0 | R80: 0
A81: Total Fixed Costs | I81: 49.32009176 | J81: =+SUM(J66:J80) -> 0 | M81: 0 | N81: =+SUM(N66:N80) -> 0 | O81: 49.32009176 | P81: =+SUM(P66:P80) -> 0 | Q81: 7891.214682 | R81: =+SUM(R66:R80) -> 0
A82: Total Specified Costs | I82: 449.2075204 | J82: =+J60+J81 -> 0 | M82: 0 | N82: =+N60+N81 -> 0 | O82: 449.2075204 | P82: =+P60+P81 -> 0 | Q82: 71873.20327 | R82: =+R60+R81 -> 0
A84: Returns Above Specified Costs | I84: -85.70752042 | J84: =+J14-J82 -> 0 | M84: 0 | N84: =+N14-N82 -> 0 | O84: -85.70752042 | P84: =+P14-P82 -> 0 | Q84: -13713.20327 | R84: =+R14-R82 -> 0
A86: Breakeven Price to Cover Total Costs | G86: 0.954268801 | H86: =IF(E10=0,"n/a",(YTotExp-(YTotExp+YTotRet-J10))/E10) -> n/a | I86: Pound
D88: Example Breakeven Prices
B89: Example | C89: Example | D89: To Cover | G89: To Cover
B90: Yield | C90: Yield | D90: Variable | G90: Total
B91: Percent | C91: Pound | D91: Costs | G91: Costs
B92: 0.75 | C92: 300 | D92: 1.107958096 | G92: 1.272358401
B93: 0.9 | C93: 360 | D93: 0.9232984129 | G93: 1.060298668
B94: 1 | C94: 400 | D94: 0.8309685716 | G94: 0.954268801
B95: 1.1 | C95: 440 | D95: 0.7554259742 | G95: 0.8675170919
B96: 1.25 | C96: 500 | D96: 0.6647748573 | G96: 0.7634150408
A98: Developed by Justin Benavidez, Assistant Professor, Texas A&M AgriLife Extension, 806-677-5600.
A100: Information presented is prepared solely as a general guide and not intended to recognize or predict the costs and returns from any one operation. Brand names are mentioned only as examples and imply no endorsement.

Sheet CottonIrrigated
A1: Projections for Planning Purposes Only -- Not to be Used without Updating
A2: 2024 Estimated Costs and Returns per Acre
A3: Cotton, Sprinkler Irrigated (Roundup Ready Flex)
A4: Enter your name for this budget in the cell above.
A5: Enter Your Values in the cells highlighed in MAROON.
E6: Your Acres | R6: Your
C7: Crop Acres | D7: 122 | L7: Your | Q7: Enterprise | R7: Enterprise
E8: Your | H8: Your | I8: Cash | J8: Your | K8: Landlord | L8: Landlord | N8: Your | P8: Your | Q8: Total | R8: Total
A9: REVENUE | D9: Quantity | E9: Quantity | F9: Units | G9: $/Unit | H9: $/Unit | I9: Total | J9: Total | K9: Share | L9: Share | M9: Landlord | N9: Landlord | O9: Tenant | P9: Tenant | Q9: (122 acres) | R9: ="(" & E7 & " acres)" -> ( acres)
B10: Cotton Lint | D10: 1500 | F10: Pound | G10: 0.74 | I10: 1110 | J10: =E10*H10 -> 0 | K10: 0 | M10: 0 | N10: =J10*L10 -> 0 | O10: 1110 | P10: =+J10-N10 -> 0 | Q10: 135420 | R10: =+J10*E$7 -> 0
B11: Cottonseed | D11: 1.125 | F11: Ton | G11: 225 | I11: 253.125 | J11: 0 | K11: 0 | M11: 0 | N11: 0 | O11: 253.125 | P11: =+J11-N11 -> 0 | Q11: 30881.25 | R11: 0
D12: 0 | G12: 0 | I12: 0 | J12: 0 | K12: 0 | M12: 0 | N12: 0 | O12: 0 | P12: 0 | Q12: 0 | R12: 0
D13: 0 | G13: 0 | I13: 0 | J13: 0 | K13: 0 | M13: 0 | N13: 0 | O13: 0 | P13: 0 | Q13: 0 | R13: 0
A14: Total Revenue | I14: 1363.125 | J14: =SUM(J10:J13) -> 0 | M14: 0 | N14: =SUM(N10:N13) -> 0 | O14: 1363.125 | P14: =SUM(P10:P13) -> 0 | Q14: 166301.25 | R14: =SUM(R10:R13) -> 0
Q15: Enterprise | R15: Enterprise
A16: VARIABLE COSTS | D16: Quantity | E16: Quantity | F16: Units | G16: $/Unit | H16: $/Unit | I16: Total | J16: Total | K16: Share | L16: Share | M16: Landlord | N16: Landlord | O16: Tenant | P16: Tenant | Q16: Total | R16: Total
A17: Production Costs
B18: Custom
C19: Fertilizer Application | D19: 1 | F19: Acre | G19: 7.5 | I19: 7.5 | J19: =E19*H19 -> 0 | K19: 0 | M19: 0 | N19: =J19*L19 -> 0 | O19: 7.5 | P19: =+J19-N19 -> 0 | Q19: 915 | R19: =+J19*E$7 -> 0
C20: Strip and Module - Cotton | D20: 15 | F20: CWT | G20: 12 | I20: 180 | J20: 0 | K20: 0 | M20: 0 | N20: 0 | O20: 180 | P20: 0 | Q20: 21960 | R20: 0
C21: Ginning - Cotton | D21: 54.95 | F21: CWT | G21: 3.25 | I21: 178.5875 | J21: 0 | K21: 0 | M21: 0 | N21: 0 | O21: 178.5875 | P21: 0 | Q21: 21787.675 | R21: 0
B22: Fertilizer
C23: Fertilizer (P) - Dry | D23: 65 | F23: Pound | G23: 0.803 | I23: 52.195 | J23: 0 | K23: 0 | M23: 0 | N23: 0 | O23: 52.195 | P23: 0 | Q23: 6367.79 | R23: 0
C24: Fertilizer (N) - Dry | D24: 135 | F24: Pound | G24: 0.522 | I24: 70.47 | J24: 0 | K24: 0 | M24: 0 | N24: 0 | O24: 70.47 | P24: 0 | Q24: 8597.34 | R24: 0
B25: Herbicide
C26: Herbicide and Apply Preplant | D26: 1 | F26: Acre | G26: 60.15 | I26: 60.15 | J26: 0 | K26: 0 | M26: 0 | N26: 0 | O26: 60.15 | P26: 0 | Q26: 7338.3 | R26: 0
C27: Herbicide and Apply Postemerge | D27: 1 | F27: Acre | G27: 49 | I27: 49 | J27: 0 | K27: 0 | M27: 0 | N27: 0 | O27: 49 | P27: 0 | Q27: 5978 | R27: 0
B28: Insecticide
C29: Insecticide and Apply Cotton | D29: 1 | F29: Acre | G29: 15.73 | I29: 15.73 | J29: 0 | K29: 0 | M29: 0 | N29: 0 | O29: 15.73 | P29: 0 | Q29: 1919.06 | R29: 0
C30: Boll Weevil Assessment Irrigated | D30: 1 | F30: Acre | G30: 1 | I30: 1 | J30: 0 | K30: 0 | M30: 0 | N30: 0 | O30: 1 | P30: 0 | Q30: 122 | R30: 0
B31: Miscellaneous
C32: Crop Insurance Cotton - Irrigated | D32: 1 | F32: Acre | G32: 58 | I32: 58 | J32: 0 | K32: 0 | M32: 0 | N32: 0 | O32: 58 | P32: 0 | Q32: 7076 | R32: 0
B33: Seed
C34: Seed - Cotton | D34: 0.26 | F34: Bag | G34: 375 | I34: 97.5 | J34: 0 | K34: 0 | M34: 0 | N34: 0 | O34: 97.5 | P34: 0 | Q34: 11895 | R34: 0
B35: Other Chemicals
C36: Harvest Aid Apply Cotton Irrigated | D36: 1 | F36: Acre | G36: 36.25 | I36: 36.25 | J36: 0 | K36: 0 | M36: 0 | N36: 0 | O36: 36.25 | P36: 0 | Q36: 4422.5 | R36: 0
D37: 0 | G37: 0 | I37: 0 | J37: 0 | K37: 0 | M37: 0 | N37: 0 | O37: 0 | P37: 0 | Q37: 0 | R37: 0
D38: 0 | G38: 0 | I38: 0 | J38: 0 | K38: 0 | M38: 0 | N38: 0 | O38: 0 | P38: 0 | Q38: 0 | R38: 0
D39: 0 | G39: 0 | I39: 0 | J39: =E39*H39 -> 0 | K39: 0 | M39: 0 | N39: =J39*L39 -> 0 | O39: 0 | P39: =+J39-N39 -> 0 | Q39: 0 | R39: =+J39*E$7 -> 0
B40: Irrigation
C41: Energy Cost | D41: 14 | F41: AcreInch | G41: 3.8 | I41: 53.2 | J41: =E41*H41 -> 0 | K41: 0 | M41: 0 | N41: =J41*L41 -> 0 | O41: 53.2 | P41: =+J41-N41 -> 0 | Q41: 6490.4 | R41: =+J41*E$7 -> 0
C42: Irrigation Labor | D42: 0.768 | F42: Hour | G42: 17.94 | I42: 13.77792 | J42: 0 | K42: 0 | M42: 0 | N42: 0 | O42: 13.77792 | P42: 0 | Q42: 1680.90624 | R42: 0
B43: Machinery Labor
C44: Tractors/Self-Propelled | D44: 0.36 | F44: Hour | G44: 17.65 | I44: 6.354 | J44: =E44*H44 -> 0 | K44: 0 | M44: 0 | N44: =J44*L44 -> 0 | O44: 6.354 | P44: =+J44-N44 -> 0 | Q44: 775.188 | R44: =+J44*E$7 -> 0
C45: Other Labor | D45: 0.41 | F45: Hour | G45: 17.65 | I45: 7.2365 | J45: =E45*H45 -> 0 | K45: 0 | M45: 0 | N45: =J45*L45 -> 0 | O45: 7.2365 | P45: =+J45-N45 -> 0 | Q45: 882.853 | R45: =+J45*E$7 -> 0
B47: Diesel Fuel
C48: Pickup/General Use Equipment | D48: 1 | F48: Acre | G48: 0 | I48: 0 | J48: =E48*H48 -> 0 | K48: 0 | M48: 0 | N48: =J48*L48 -> 0 | O48: 0 | P48: =+J48-N48 -> 0 | Q48: 0 | R48: =+J48*E$7 -> 0
C49: Tractors/Self-Propelled | D49: 1.97 | F49: Gallon | G49: 3.1 | I49: 6.107 | J49: =E49*H49 -> 0 | K49: 0 | M49: 0 | N49: =J49*L49 -> 0 | O49: 6.107 | P49: =+J49-N49 -> 0 | Q49: 745.054 | R49: =+J49*E$7 -> 0
B51: Gasoline
C52: Pickup/General Use Equipment | D52: 1 | F52: Acre | G52: 8.360655738 | I52: 8.360655738 | J52: =E52*H52 -> 0 | K52: 0 | M52: 0 | N52: =J52*L52 -> 0 | O52: 8.360655738 | P52: =+J52-N52 -> 0 | Q52: 1020 | R52: =+J52*E$7 -> 0
C53: Tractors/Self-Propelled | D53: 0 | F53: Gallon | G53: 2.4 | I53: 0 | J53: =E53*H53 -> 0 | K53: 0 | M53: 0 | N53: =J53*L53 -> 0 | O53: 0 | P53: =+J53-N53 -> 0 | Q53: 0 | R53: =+J53*E$7 -> 0
B55: Repairs & Maintenance
C56: Pickup/General Use Equipment | D56: 1 | F56: Acre | G56: 4.263934426 | I56: 4.263934426 | J56: =E56*H56 -> 0 | K56: 0 | M56: 0 | N56: =J56*L56 -> 0 | O56: 4.263934426 | P56: =+J56-N56 -> 0 | Q56: 520.2 | R56: =+J56*E$7 -> 0
C57: Irrigation Equipment | D57: 1 | F57: Acre | G57: 45 | I57: 45 | J57: 0 | K57: 0 | M57: 0 | N57: 0 | O57: 45 | P57: 0 | Q57: 5490 | R57: 0
C58: Tractors/Self-Propelled | D58: 1 | F58: Acre | G58: 0 | I58: 0 | J58: 0 | K58: 0 | M58: 0 | N58: 0 | O58: 0 | P58: 0 | Q58: 0 | R58: 0
C59: Implements | D59: 1 | F59: Acre | G59: 0 | I59: 0 | J59: 0 | K59: 0 | M59: 0 | N59: 0 | O59: 0 | P59: 0 | Q59: 0 | R59: 0
I60: 0 | J60: 0 | K60: 0 | M60: 0 | N60: 0 | O60: 0 | P60: 0 | Q60: 0 | R60: 0
I61: 0 | J61: 0 | K61: 0 | M61: 0 | N61: 0 | O61: 0 | P61: 0 | Q61: 0 | R61: 0
B62: Interest on Credit Line | G62: 0.09 | I62: 28.94082928 | J62: =+SUM(J18:J61)/2*H62 -> 0 | M62: 0 | N62: =+SUM(N18:N61)/2*L62 -> 0 | O62: 28.94082928 | P62: =+SUM(P18:P61)/2*L62 -> 0 | Q62: 3530.781173 | R62: =+J62*E$7 -> 0
A63: Total Variable Costs | I63: 979.6233394 | J63: =SUM(J19:J62) -> 0 | M63: 0 | N63: =SUM(N19:N62) -> 0 | O63: 979.6233394 | P63: =SUM(P19:P62) -> 0 | Q63: 119514.0474 | R63: =SUM(R19:R62) -> 0
A64: Planned Returns Above Variable Costs: | I64: 383.5016606 | J64: =+J14-J63 -> 0 | M64: 0 | N64: =+N14-N63 -> 0 | O64: 383.5016606 | P64: =+P14-P63 -> 0 | Q64: 46787.20259 | R64: =+R14-R63 -> 0
B65: Breakeven Price to Cover Variable Costs | G65: 0.4843322263 | H65: =IF(E10=0,"n/a",(YVarExp-(YTotExp+YTotRet-J10))/E10) -> n/a | I65: Pound
Q66: Enterprise | R66: Enterprise
A67: FIXED COSTS | D67: Quantity | E67: Quantity | F67: Units | G67: $/Unit | H67: $/Unit | I67: Total | J67: Total | K67: Share | L67: Share | M67: Landlord | N67: Landlord | O67: Tenant | P67: Tenant | Q67: Total | R67: Total
B68: Machinery Depreciation
C69: Pickup/General Use Equipment | D69: 1 | F69: Acre | G69: 4.477131148 | I69: 4.477131148 | J69: =E69*H69 -> 0 | K69: 0 | M69: 0 | N69: =J69*L69 -> 0 | O69: 4.477131148 | P69: =+J69-N69 -> 0 | Q69: 546.21 | R69: =+J69*E$7 -> 0
C70: Irrigation Equipment | D70: 1 | F70: Acre | G70: 33.50409836 | I70: 33.50409836 | J70: 0 | K70: 0 | M70: 0 | N70: =J70*L70 -> 0 | O70: 33.50409836 | P70: 0 | Q70: 4087.5 | R70: 0
B71: Equipment Investment
C72: Pickup/General Use Equipment | D72: 30.91352459 | F72: Dollars | G72: 0.09 | I72: 2.782217213 | J72: =E72*H72 -> 0 | K72: 0 | M72: 0 | N72: =J72*L72 -> 0 | O72: 2.782217213 | P72: =+J72-N72 -> 0 | Q72: 339.4305 | R72: =+J72*E$7 -> 0
C73: Irrigation Equipment | D73: 470.2868852 | F73: Dollars | G73: 0.09 | I73: 42.32581967 | J73: 0 | K73: 0 | M73: 0 | N73: =J73*L73 -> 0 | O73: 42.32581967 | P73: 0 | Q73: 5163.75 | R73: 0
B74: Salaried Labor | D74: 1 | F74: Acre | G74: 0 | I74: 0 | J74: 0 | K74: 0 | M74: 0 | N74: =J74*L74 -> 0 | O74: 0 | P74: =+J74-N74 -> 0 | Q74: 0 | R74: =+J74*E$7 -> 0
B75: Management Fee, Owner/Operator Labor | D75: 1 | F75: Acre | G75: 0 | I75: 0 | J75: 0 | K75: 0 | M75: 0 | N75: 0 | O75: 0 | P75: 0 | Q75: 0 | R75: 0
B76: Allocated Establishment Cost | D76: 1 | F76: Acre | G76: 0 | I76: 0 | J76: 0 | K76: 0 | M76: 0 | N76: 0 | O76: 0 | P76: 0 | Q76: 0 | R76: 0
B77: Cash Rent - Cotton Irrigated | D77: 1 | F77: Acre | G77: 125 | I77: 125 | J77: 0 | K77: 0 | M77: 0 | N77: 0 | O77: 125 | P77: 0 | Q77: 15250 | R77: 0
B78: Property Taxes | D78: 1 | F78: Acre | G78: 0 | I78: 0 | J78: 0 | K78: 0 | M78: 0 | N78: 0 | O78: 0 | P78: 0 | Q78: 0 | R78: 0
B79: Whole Farm Insurance | D79: 1 | F79: Acre | G79: 0 | I79: 0 | J79: 0 | K79: 0 | M79: 0 | N79: 0 | O79: 0 | P79: 0 | Q79: 0 | R79: 0
D80: 1 | G80: 0 | I80: 0 | J80: 0 | K80: 0 | M80: 0 | N80: 0 | O80: 0 | P80: 0 | Q80: 0 | R80: 0
D81: 1 | G81: 0 | I81: 0 | J81: =E81*H81 -> 0 | K81: 0 | M81: 0 | N81: 0 | O81: 0 | P81: 0 | Q81: 0 | R81: 0
A82: Total Fixed Costs | I82: 208.0892664 | J82: =+SUM(J69:J81) -> 0 | M82: 0 | N82: =+SUM(N69:N81) -> 0 | O82: 208.0892664 | P82: =+SUM(P69:P81) -> 0 | Q82: 25386.8905 | R82: =+SUM(R69:R81) -> 0
A83: Total Specified Costs | I83: 1187.712606 | J83: =+J63+J82 -> 0 | M83: 0 | N83: =+N63+N82 -> 0 | O83: 1187.712606 | P83: =+P63+P82 -> 0 | Q83: 144900.9379 | R83: =+R63+R82 -> 0
A85: Returns Above Specified Costs | I85: 175.4123942 | J85: =+J14-J83 -> 0 | M85: 0 | N85: =+N14-N83 -> 0 | O85: 175.4123942 | P85: =+P14-P83 -> 0 | Q85: 21400.31209 | R85: =+R14-R83 -> 0
A87: Breakeven Price to Cover Total Costs | G87: 0.6230584039 | H87: =IF(E10=0,"n/a",(YTotExp-(YTotExp+YTotRet-J10))/E10) -> n/a | I87: Pound
D89: Example Breakeven Prices
B90: Example | C90: Example | D90: To Cover | G90: To Cover
B91: Yield | C91: Yield | D91: Variable | G91: Total
B92: Percent | C92: Pound | D92: Costs | G92: Costs
B93: 0.75 | C93: 1125 | D93: 0.6457763017 | G93: 0.8307445385
B94: 0.9 | C94: 1350 | D94: 0.5381469181 | G94: 0.6922871154
B95: 1 | C95: 1500 | D95: 0.4843322263 | G95: 0.6230584039
B96: 1.1 | C96: 1650 | D96: 0.4403020239 | G96: 0.5664167308
B97: 1.25 | C97: 1875 | D97: 0.387465781 | G97: 0.4984467231
A99: Developed by Justin Benavidez, Assistant Professor, Texas A&M AgriLife Extension, 806-677-5600.
A101: Information presented is prepared solely as a general guide and not intended to recognize or predict the costs and returns from any one operation. Brand names are mentioned only as examples and imply no endorsement.

Sheet Peanuts
A1: Projections for Planning Purposes Only -- Not to be Used without Updating
A2: 2024 Estimated Costs and Returns per Acre
A3: Peanuts, Runner, Sprinkler Irrigated
A4: Enter your name for this budget in the cell above.
A5: Enter Your Values in the cells highlighed in MAROON.
E6: Your Acres | R6: Your
C7: Crop Acres | D7: 122 | L7: Your | Q7: Enterprise | R7: Enterprise
E8: Your | H8: Your | I8: Cash | J8: Your | K8: Landlord | L8: Landlord | N8: Your | P8: Your | Q8: Total | R8: Total
A9: REVENUE | D9: Quantity | E9: Quantity | F9: Units | G9: $/Unit | H9: $/Unit | I9: Total | J9: Total | K9: Share | L9: Share | M9: Landlord | N9: Landlord | O9: Tenant | P9: Tenant | Q9: (122 acres) | R9: ="(" & E7 & " acres)" -> ( acres)
B10: Peanuts - Runner | D10: 2.25 | F10: Ton | G10: 600 | I10: 1350 | J10: =E10*H10 -> 0 | K10: 0 | M10: 0 | N10: =J10*L10 -> 0 | O10: 1350 | P10: =+J10-N10 -> 0 | Q10: 164700 | R10: =+J10*E$7 -> 0
D11: 0 | G11: 0 | I11: 0 | J11: 0 | K11: 0 | M11: 0 | N11: 0 | O11: 0 | P11: =+J11-N11 -> 0 | Q11: 0 | R11: 0
D12: 0 | G12: 0 | I12: 0 | J12: 0 | K12: 0 | M12: 0 | N12: 0 | O12: 0 | P12: 0 | Q12: 0 | R12: 0
A13: Total Revenue | I13: 1350 | J13: =SUM(J10:J12) -> 0 | M13: 0 | N13: =SUM(N10:N12) -> 0 | O13: 1350 | P13: =SUM(P10:P12) -> 0 | Q13: 164700 | R13: =SUM(R10:R12) -> 0
Q14: Enterprise | R14: Enterprise
A15: VARIABLE COSTS | D15: Quantity | E15: Quantity | F15: Units | G15: $/Unit | H15: $/Unit | I15: Total | J15: Total | K15: Share | L15: Share | M15: Landlord | N15: Landlord | O15: Tenant | P15: Tenant | Q15: Total | R15: Total
A16: Production Costs
B17: Custom
C18: Fertilizer Application | D18: 1 | F18: Acre | G18: 7.5 | I18: 7.5 | J18: =E18*H18 -> 0 | K18: 0 | M18: 0 | N18: =J18*L18 -> 0 | O18: 7.5 | P18: =+J18-N18 -> 0 | Q18: 915 | R18: =+J18*E$7 -> 0
C19: Dig and Shake | D19: 1 | F19: Acre | G19: 30 | I19: 30 | J19: 0 | K19: 0 | M19: 0 | N19: 0 | O19: 30 | P19: 0 | Q19: 3660 | R19: 0
C20: Harvest and Haul - Peanuts | D20: 2.25 | F20: Ton | G20: 60 | I20: 135 | J20: 0 | K20: 0 | M20: 0 | N20: 0 | O20: 135 | P20: 0 | Q20: 16470 | R20: 0
C21: Drying - Peanuts | D21: 2.25 | F21: Ton | G21: 20 | I21: 45 | J21: 0 | K21: 0 | M21: 0 | N21: 0 | O21: 45 | P21: 0 | Q21: 5490 | R21: 0
B22: Fertilizer
C23: Fertilizer (P) - Dry | D23: 50 | F23: Pound | G23: 0.803 | I23: 40.15 | J23: 0 | K23: 0 | M23: 0 | N23: 0 | O23: 40.15 | P23: 0 | Q23: 4898.3 | R23: 0
C24: Fertilizer (N) - Dry | D24: 80 | F24: Pound | G24: 0.522 | I24: 41.76 | J24: 0 | K24: 0 | M24: 0 | N24: 0 | O24: 41.76 | P24: 0 | Q24: 5094.72 | R24: 0
B25: Herbicide
C26: Herbicide - Peanut | D26: 1 | F26: Acre | G26: 50.15 | I26: 50.15 | J26: 0 | K26: 0 | M26: 0 | N26: 0 | O26: 50.15 | P26: 0 | Q26: 6118.3 | R26: 0
B27: Insecticide
C28: Insecticide and Apply Peanut | D28: 1 | F28: Application | G28: 15.73 | I28: 15.73 | J28: 0 | K28: 0 | M28: 0 | N28: 0 | O28: 15.73 | P28: 0 | Q28: 1919.06 | R28: 0
B29: Miscellaneous
C30: Crop Insurance Peanuts - Irrigated | D30: 1 | F30: Acre | G30: 65 | I30: 65 | J30: 0 | K30: 0 | M30: 0 | N30: 0 | O30: 65 | P30: 0 | Q30: 7930 | R30: 0
B31: Seed
C32: Seed - Peanut | D32: 100 | F32: Pound | G32: 0.95 | I32: 95 | J32: 0 | K32: 0 | M32: 0 | N32: 0 | O32: 95 | P32: 0 | Q32: 11590 | R32: 0
C33: Innoculant Peanut | D33: 1 | F33: Acre | G33: 6.6 | I33: 6.6 | J33: 0 | K33: 0 | M33: 0 | N33: 0 | O33: 6.6 | P33: 0 | Q33: 805.2 | R33: 0
B34: Fungicides
C35: Fungicide and Apply Peanut | D35: 3 | F35: Application | G35: 25.7 | I35: 77.1 | J35: 0 | K35: 0 | M35: 0 | N35: 0 | O35: 77.1 | P35: 0 | Q35: 9406.2 | R35: 0
B36: Other Labor
C37: Hoeing - Peanut | D37: 1 | F37: Acre | G37: 27.14 | I37: 27.14 | J37: 0 | K37: 0 | M37: 0 | N37: 0 | O37: 27.14 | P37: 0 | Q37: 3311.08 | R37: 0
D38: 0 | G38: 0 | I38: 0 | J38: 0 | K38: 0 | M38: 0 | N38: 0 | O38: 0 | P38: 0 | Q38: 0 | R38: 0
D39: 0 | G39: 0 | I39: 0 | J39: 0 | K39: 0 | M39: 0 | N39: 0 | O39: 0 | P39: 0 | Q39: 0 | R39: 0
D40: 0 | G40: 0 | I40: 0 | J40: =E40*H40 -> 0 | K40: 0 | M40: 0 | N40: =J40*L40 -> 0 | O40: 0 | P40: =+J40-N40 -> 0 | Q40: 0 | R40: =+J40*E$7 -> 0
B41: Irrigation
C42: Energy Cost | D42: 21 | F42: AcreInch | G42: 3.8 | I42: 79.8 | J42: =E42*H42 -> 0 | K42: 0 | M42: 0 | N42: =J42*L42 -> 0 | O42: 79.8 | P42: =+J42-N42 -> 0 | Q42: 9735.6 | R42: =+J42*E$7 -> 0
C43: Irrigation Labor | D43: 1.344 | F43: Hour | G43: 17.94 | I43: 24.11136 | J43: 0 | K43: 0 | M43: 0 | N43: 0 | O43: 24.11136 | P43: 0 | Q43: 2941.58592 | R43: 0
B44: Machinery Labor
C45: Tractors/Self-Propelled | D45: 0.52 | F45: Hour | G45: 17.65 | I45: 9.178 | J45: =E45*H45 -> 0 | K45: 0 | M45: 0 | N45: =J45*L45 -> 0 | O45: 9.178 | P45: =+J45-N45 -> 0 | Q45: 1119.716 | R45: =+J45*E$7 -> 0
C46: Other Labor | D46: 0.6 | F46: Hour | G46: 17.65 | I46: 10.59 | J46: =E46*H46 -> 0 | K46: 0 | M46: 0 | N46: =J46*L46 -> 0 | O46: 10.59 | P46: =+J46-N46 -> 0 | Q46: 1291.98 | R46: =+J46*E$7 -> 0
B48: Diesel Fuel
C49: Pickup/General Use Equipment | D49: 1 | F49: Acre | G49: 0 | I49: 0 | J49: =E49*H49 -> 0 | K49: 0 | M49: 0 | N49: =J49*L49 -> 0 | O49: 0 | P49: =+J49-N49 -> 0 | Q49: 0 | R49: =+J49*E$7 -> 0
C50: Tractors/Self-Propelled | D50: 2.99 | F50: Gallon | G50: 3.1 | I50: 9.269 | J50: =E50*H50 -> 0 | K50: 0 | M50: 0 | N50: =J50*L50 -> 0 | O50: 9.269 | P50: =+J50-N50 -> 0 | Q50: 1130.818 | R50: =+J50*E$7 -> 0
B52: Gasoline
C53: Pickup/General Use Equipment | D53: 1 | F53: Acre | G53: 4.918032787 | I53: 4.918032787 | J53: =E53*H53 -> 0 | K53: 0 | M53: 0 | N53: =J53*L53 -> 0 | O53: 4.918032787 | P53: =+J53-N53 -> 0 | Q53: 600 | R53: =+J53*E$7 -> 0
C54: Tractors/Self-Propelled | D54: 0 | F54: Gallon | G54: 2.4 | I54: 0 | J54: =E54*H54 -> 0 | K54: 0 | M54: 0 | N54: =J54*L54 -> 0 | O54: 0 | P54: =+J54-N54 -> 0 | Q54: 0 | R54: =+J54*E$7 -> 0
B56: Repairs & Maintenance
C57: Pickup/General Use Equipment | D57: 1 | F57: Acre | G57: 2.508196721 | I57: 2.508196721 | J57: =E57*H57 -> 0 | K57: 0 | M57: 0 | N57: =J57*L57 -> 0 | O57: 2.508196721 | P57: =+J57-N57 -> 0 | Q57: 306 | R57: =+J57*E$7 -> 0
C58: Irrigation Equipment | D58: 1 | F58: Acre | G58: 78.75 | I58: 78.75 | J58: 0 | K58: 0 | M58: 0 | N58: 0 | O58: 78.75 | P58: 0 | Q58: 9607.5 | R58: 0
C59: Tractors/Self-Propelled | D59: 1 | F59: Acre | G59: 5.310375837 | I59: 5.310375837 | J59: 0 | K59: 0 | M59: 0 | N59: 0 | O59: 5.310375837 | P59: 0 | Q59: 647.8658521 | R59: 0
C60: Implements | D60: 1 | F60: Acre | G60: 12.67106434 | I60: 12.67106434 | J60: 0 | K60: 0 | M60: 0 | N60: 0 | O60: 12.67106434 | P60: 0 | Q60: 1545.869849 | R60: 0
I61: 0 | J61: 0 | K61: 0 | M61: 0 | N61: 0 | O61: 0 | P61: 0 | Q61: 0 | R61: 0
I62: 0 | J62: 0 | K62: 0 | M62: 0 | N62: 0 | O62: 0 | P62: 0 | Q62: 0 | R62: 0
B63: Interest on Credit Line | G63: 0.09 | I63: 26.15619901 | J63: =+SUM(J17:J62)/2*H63 -> 0 | M63: 0 | N63: =+SUM(N17:N62)/2*L63 -> 0 | O63: 26.15619901 | P63: =+SUM(P17:P62)/2*L63 -> 0 | Q63: 3191.05628 | R63: =+J63*E$7 -> 0
A64: Total Variable Costs | I64: 899.3922287 | J64: =SUM(J18:J63) -> 0 | M64: 0 | N64: =SUM(N18:N63) -> 0 | O64: 899.3922287 | P64: =SUM(P18:P63) -> 0 | Q64: 109725.8519 | R64: =SUM(R18:R63) -> 0
A65: Planned Returns Above Variable Costs: | I65: 450.6077713 | J65: =+J13-J64 -> 0 | M65: 0 | N65: =+N13-N64 -> 0 | O65: 450.6077713 | P65: =+P13-P64 -> 0 | Q65: 54974.1481 | R65: =+R13-R64 -> 0
B66: Breakeven Price to Cover Variable Costs | G66: 399.7298794 | H66: =IF(E10=0,"n/a",(YVarExp-(YTotExp+YTotRet-J10))/E10) -> n/a | I66: Ton
Q67: Enterprise | R67: Enterprise
A68: FIXED COSTS | D68: Quantity | E68: Quantity | F68: Units | G68: $/Unit | H68: $/Unit | I68: Total | J68: Total | K68: Share | L68: Share | M68: Landlord | N68: Landlord | O68: Tenant | P68: Tenant | Q68: Total | R68: Total
B69: Machinery Depreciation
C70: Pickup/General Use Equipment | D70: 1 | F70: Acre | G70: 2.633606557 | I70: 2.633606557 | J70: =E70*H70 -> 0 | K70: 0 | M70: 0 | N70: =J70*L70 -> 0 | O70: 2.633606557 | P70: =+J70-N70 -> 0 | Q70: 321.3 | R70: =+J70*E$7 -> 0
C71: Irrigation Equipment | D71: 1 | F71: Acre | G71: 47.33606557 | I71: 47.33606557 | J71: 0 | K71: 0 | M71: 0 | N71: =J71*L71 -> 0 | O71: 47.33606557 | P71: 0 | Q71: 5775 | R71: 0
C72: Tractors/Self-Propelled | D72: 1 | F72: Acre | G72: 5.375535883 | I72: 5.375535883 | J72: 0 | K72: 0 | M72: 0 | N72: =J72*L72 -> 0 | O72: 5.375535883 | P72: 0 | Q72: 655.8153777 | R72: 0
C73: Implements | D73: 1 | F73: Acre | G73: 14.72589009 | I73: 14.72589009 | J73: 0 | K73: 0 | M73: 0 | N73: =J73*L73 -> 0 | O73: 14.72589009 | P73: 0 | Q73: 1796.558591 | R73: 0
B74: Equipment Investment
C75: Pickup/General Use Equipment | D75: 18.18442623 | F75: Dollars | G75: 0.09 | I75: 1.636598361 | J75: =E75*H75 -> 0 | K75: 0 | M75: 0 | N75: =J75*L75 -> 0 | O75: 1.636598361 | P75: =+J75-N75 -> 0 | Q75: 199.665 | R75: =+J75*E$7 -> 0
C76: Irrigation Equipment | D76: 571.7213115 | F76: Dollars | G76: 0.09 | I76: 51.45491803 | J76: 0 | K76: 0 | M76: 0 | N76: =J76*L76 -> 0 | O76: 51.45491803 | P76: 0 | Q76: 6277.5 | R76: 0
C77: Tractors/Self-Propelled | D77: 41.87715857 | F77: Dollars | G77: 0.09 | I77: 3.768944271 | J77: 0 | K77: 0 | M77: 0 | N77: =J77*L77 -> 0 | O77: 3.768944271 | P77: 0 | Q77: 459.8112011 | R77: 0
C78: Implements | D78: 62.99408538 | F78: Dollars | G78: 0.09 | I78: 5.669467684 | J78: 0 | K78: 0 | M78: 0 | N78: =J78*L78 -> 0 | O78: 5.669467684 | P78: 0 | Q78: 691.6750575 | R78: 0
B79: Salaried Labor | D79: 1 | F79: Acre | G79: 0 | I79: 0 | J79: 0 | K79: 0 | M79: 0 | N79: =J79*L79 -> 0 | O79: 0 | P79: =+J79-N79 -> 0 | Q79: 0 | R79: =+J79*E$7 -> 0
B80: Management Fee, Owner/Operator Labor | D80: 1 | F80: Acre | G80: 0 | I80: 0 | J80: 0 | K80: 0 | M80: 0 | N80: 0 | O80: 0 | P80: 0 | Q80: 0 | R80: 0
B81: Allocated Establishment Cost | D81: 1 | F81: Acre | G81: 0 | I81: 0 | J81: 0 | K81: 0 | M81: 0 | N81: 0 | O81: 0 | P81: 0 | Q81: 0 | R81: 0
B82: Cash Rent - Peanuts | D82: 1 | F82: Acre | G82: 125 | I82: 125 | J82: 0 | K82: 0 | M82: 0 | N82: 0 | O82: 125 | P82: 0 | Q82: 15250 | R82: 0
B83: Property Taxes | D83: 1 | F83: Acre | G83: 0 | I83: 0 | J83: 0 | K83: 0 | M83: 0 | N83: 0 | O83: 0 | P83: 0 | Q83: 0 | R83: 0
B84: Whole Farm Insurance | D84: 1 | F84: Acre | G84: 0 | I84: 0 | J84: 0 | K84: 0 | M84: 0 | N84: 0 | O84: 0 | P84: 0 | Q84: 0 | R84: 0
D85: 1 | G85: 0 | I85: 0 | J85: 0 | K85: 0 | M85: 0 | N85: 0 | O85: 0 | P85: 0 | Q85: 0 | R85: 0
D86: 1 | G86: 0 | I86: 0 | J86: =E86*H86 -> 0 | K86: 0 | M86: 0 | N86: 0 | O86: 0 | P86: 0 | Q86: 0 | R86: 0
A87: Total Fixed Costs | I87: 257.6010265 | J87: =+SUM(J70:J86) -> 0 | M87: 0 | N87: =+SUM(N70:N86) -> 0 | O87: 257.6010265 | P87: =+SUM(P70:P86) -> 0 | Q87: 31427.32523 | R87: =+SUM(R70:R86) -> 0
A88: Total Specified Costs | I88: 1156.993255 | J88: =+J64+J87 -> 0 | M88: 0 | N88: =+N64+N87 -> 0 | O88: 1156.993255 | P88: =+P64+P87 -> 0 | Q88: 141153.1771 | R88: =+R64+R87 -> 0
A90: Returns Above Specified Costs | I90: 193.0067449 | J90: =+J13-J88 -> 0 | M90: 0 | N90: =+N13-N88 -> 0 | O90: 193.0067449 | P90: =+P13-P88 -> 0 | Q90: 23546.82287 | R90: =+R13-R88 -> 0
A92: Breakeven Price to Cover Total Costs | G92: 514.2192245 | H92: =IF(E10=0,"n/a",(YTotExp-(YTotExp+YTotRet-J10))/E10) -> n/a | I92: Ton
D94: Example Breakeven Prices
B95: Example | C95: Example | D95: To Cover | G95: To Cover
B96: Yield | C96: Yield | D96: Variable | G96: Total
B97: Percent | C97: Ton | D97: Costs | G97: Costs
B98: 0.75 | C98: 1.6875 | D98: 532.9731726 | G98: 685.6256327
B99: 0.9 | C99: 2.025 | D99: 444.1443105 | G99: 571.3546939
B100: 1 | C100: 2.25 | D100: 399.7298794 | G100: 514.2192245
B101: 1.1 | C101: 2.475 | D101: 363.3907995 | G101: 467.4720223
B102: 1.25 | C102: 2.8125 | D102: 319.7839035 | G102: 411.3753796
A104: Developed by Justin Benavidez, Assistant Professor, Texas A&M AgriLife Extension, 806-677-5600.
A106: Information presented is prepared solely as a general guide and not intended to recognize or predict the costs and returns from any one operation. Brand names are mentioned only as examples and imply no endorsement.

Sheet SorghumRotation
A1: Projections for Planning Purposes Only -- Not to be Used without Updating
A2: 2024 Estimated Costs and Returns per Acre
A3: Rotation, Sorghum-Fallow-Wheat, Minimum Till, Sorghum
A4: Enter your name for this budget in the cell above.
A5: Enter Your Values in the cells highlighed in MAROON.
E6: Your Acres | R6: Your
C7: Crop Acres | D7: 160 | L7: Your | Q7: Enterprise | R7: Enterprise
E8: Your | H8: Your | I8: Cash | J8: Your | K8: Landlord | L8: Landlord | N8: Your | P8: Your | Q8: Total | R8: Total
A9: REVENUE | D9: Quantity | E9: Quantity | F9: Units | G9: $/Unit | H9: $/Unit | I9: Total | J9: Total | K9: Share | L9: Share | M9: Landlord | N9: Landlord | O9: Tenant | P9: Tenant | Q9: (160 acres) | R9: ="(" & E7 & " acres)" -> ( acres)
B10: Grain Sorghum | D10: 25 | F10: CWT | G10: 8.25 | I10: 206.25 | J10: =E10*H10 -> 0 | K10: 0 | M10: 0 | N10: =J10*L10 -> 0 | O10: 206.25 | P10: =+J10-N10 -> 0 | Q10: 33000 | R10: =+J10*E$7 -> 0
D11: 0 | G11: 0 | I11: 0 | J11: 0 | K11: 0 | M11: 0 | N11: 0 | O11: 0 | P11: =+J11-N11 -> 0 | Q11: 0 | R11: 0
D12: 0 | G12: 0 | I12: 0 | J12: 0 | K12: 0 | M12: 0 | N12: 0 | O12: 0 | P12: 0 | Q12: 0 | R12: 0
A13: Total Revenue | I13: 206.25 | J13: =SUM(J10:J12) -> 0 | M13: 0 | N13: =SUM(N10:N12) -> 0 | O13: 206.25 | P13: =SUM(P10:P12) -> 0 | Q13: 33000 | R13: =SUM(R10:R12) -> 0
Q14: Enterprise | R14: Enterprise
A15: VARIABLE COSTS | D15: Quantity | E15: Quantity | F15: Units | G15: $/Unit | H15: $/Unit | I15: Total | J15: Total | K15: Share | L15: Share | M15: Landlord | N15: Landlord | O15: Tenant | P15: Tenant | Q15: Total | R15: Total
A16: Production Costs
B17: Custom
C18: Fertilizer Application - ANH3 | D18: 1 | F18: Acre | G18: 18 | I18: 18 | J18: =E18*H18 -> 0 | K18: 0 | M18: 0 | N18: =J18*L18 -> 0 | O18: 18 | P18: =+J18-N18 -> 0 | Q18: 2880 | R18: =+J18*E$7 -> 0
C19: Custom Harvest - Sorghum Dryland | D19: 1 | F19: Acre | G19: 35 | I19: 35 | J19: 0 | K19: 0 | M19: 0 | N19: 0 | O19: 35 | P19: 0 | Q19: 5600 | R19: 0
C20: Custom Haul - Sorghum Dryland | D20: 25 | F20: CWT | G20: 0.35 | I20: 8.75 | J20: 0 | K20: 0 | M20: 0 | N20: 0 | O20: 8.75 | P20: 0 | Q20: 1400 | R20: 0
B21: Fertilizer
C22: Fertilizer (N) - ANH3 | D22: 40 | F22: Pound | G22: 0.427 | I22: 17.08 | J22: 0 | K22: 0 | M22: 0 | N22: 0 | O22: 17.08 | P22: 0 | Q22: 2732.8 | R22: 0
B23: Herbicide
C24: Herbicide and Apply Sorghum | D24: 1 | F24: Acre | G24: 49.5 | I24: 49.5 | J24: 0 | K24: 0 | M24: 0 | N24: 0 | O24: 49.5 | P24: 0 | Q24: 7920 | R24: 0
B25: Insecticide
C26: Insecticide Head Worm | D26: 0.33 | F26: Application | G26: 27.5 | I26: 9.075 | J26: 0 | K26: 0 | M26: 0 | N26: 0 | O26: 9.075 | P26: 0 | Q26: 1452 | R26: 0
C27: Insecticide Sugar Cane Aphid | D27: 1 | F27: Application | G27: 21 | I27: 21 | J27: 0 | K27: 0 | M27: 0 | N27: 0 | O27: 21 | P27: 0 | Q27: 3360 | R27: 0
B28: Miscellaneous
C29: Crop Insurance Sorghum - Dryland | D29: 1 | F29: Acre | G29: 20 | I29: 20 | J29: 0 | K29: 0 | M29: 0 | N29: 0 | O29: 20 | P29: 0 | Q29: 3200 | R29: 0
B30: Seed
C31: Seed - Sorghum | D31: 2.25 | F31: Pound | G31: 3.2 | I31: 7.2 | J31: 0 | K31: 0 | M31: 0 | N31: 0 | O31: 7.2 | P31: 0 | Q31: 1152 | R31: 0
D32: 0 | G32: 0 | I32: 0 | J32: 0 | K32: 0 | M32: 0 | N32: 0 | O32: 0 | P32: 0 | Q32: 0 | R32: 0
D33: 0 | G33: 0 | I33: 0 | J33: 0 | K33: 0 | M33: 0 | N33: 0 | O33: 0 | P33: 0 | Q33: 0 | R33: 0
D34: 0 | G34: 0 | I34: 0 | J34: =E34*H34 -> 0 | K34: 0 | M34: 0 | N34: =J34*L34 -> 0 | O34: 0 | P34: =+J34-N34 -> 0 | Q34: 0 | R34: =+J34*E$7 -> 0
B35: Machinery Labor
C36: Tractors/Self-Propelled | D36: 0.13 | F36: Hour | G36: 17.65 | I36: 2.2945 | J36: =E36*H36 -> 0 | K36: 0 | M36: 0 | N36: =J36*L36 -> 0 | O36: 2.2945 | P36: =+J36-N36 -> 0 | Q36: 367.12 | R36: =+J36*E$7 -> 0
C37: Other Labor | D37: 0.15 | F37: Hour | G37: 17.65 | I37: 2.6475 | J37: =E37*H37 -> 0 | K37: 0 | M37: 0 | N37: =J37*L37 -> 0 | O37: 2.6475 | P37: =+J37-N37 -> 0 | Q37: 423.6 | R37: =+J37*E$7 -> 0
B39: Diesel Fuel
C40: Pickup/General Use Equipment | D40: 1 | F40: Acre | G40: 0 | I40: 0 | J40: =E40*H40 -> 0 | K40: 0 | M40: 0 | N40: =J40*L40 -> 0 | O40: 0 | P40: =+J40-N40 -> 0 | Q40: 0 | R40: =+J40*E$7 -> 0
C41: Tractors/Self-Propelled | D41: 0.88 | F41: Gallon | G41: 3.1 | I41: 2.728 | J41: =E41*H41 -> 0 | K41: 0 | M41: 0 | N41: =J41*L41 -> 0 | O41: 2.728 | P41: =+J41-N41 -> 0 | Q41: 436.48 | R41: =+J41*E$7 -> 0
B43: Gasoline
C44: Pickup/General Use Equipment | D44: 1 | F44: Acre | G44: 4.875 | I44: 4.875 | J44: =E44*H44 -> 0 | K44: 0 | M44: 0 | N44: =J44*L44 -> 0 | O44: 4.875 | P44: =+J44-N44 -> 0 | Q44: 780 | R44: =+J44*E$7 -> 0
C45: Tractors/Self-Propelled | D45: 0 | F45: Gallon | G45: 2.4 | I45: 0 | J45: =E45*H45 -> 0 | K45: 0 | M45: 0 | N45: =J45*L45 -> 0 | O45: 0 | P45: =+J45-N45 -> 0 | Q45: 0 | R45: =+J45*E$7 -> 0
B47: Repairs & Maintenance
C48: Pickup/General Use Equipment | D48: 1 | F48: Acre | G48: 2.48625 | I48: 2.48625 | J48: =E48*H48 -> 0 | K48: 0 | M48: 0 | N48: =J48*L48 -> 0 | O48: 2.48625 | P48: =+J48-N48 -> 0 | Q48: 397.8 | R48: =+J48*E$7 -> 0
C49: Irrigation Equipment | D49: 1 | F49: Acre | G49: 0 | I49: 0 | J49: 0 | K49: 0 | M49: 0 | N49: 0 | O49: 0 | P49: 0 | Q49: 0 | R49: 0
C50: Tractors/Self-Propelled | D50: 1 | F50: Acre | G50: 2.060046412 | I50: 2.060046412 | J50: 0 | K50: 0 | M50: 0 | N50: 0 | O50: 2.060046412 | P50: 0 | Q50: 329.6074259 | R50: 0
C51: Implements | D51: 1 | F51: Acre | G51: 3.941478109 | I51: 3.941478109 | J51: 0 | K51: 0 | M51: 0 | N51: 0 | O51: 3.941478109 | P51: 0 | Q51: 630.6364974 | R51: 0
I52: 0 | J52: 0 | K52: 0 | M52: 0 | N52: 0 | O52: 0 | P52: 0 | Q52: 0 | R52: 0
I53: 0 | J53: 0 | K53: 0 | M53: 0 | N53: 0 | O53: 0 | P53: 0 | Q53: 0 | R53: 0
B54: Interest on Credit Line | G54: 0.09 | I54: 5.84689625 | J54: =+SUM(J17:J53)/2*H54 -> 0 | M54: 0 | N54: =+SUM(N17:N53)/2*L54 -> 0 | O54: 5.84689625 | P54: =+SUM(P17:P53)/2*L54 -> 0 | Q54: 935.5034001 | R54: =+J54*E$7 -> 0
A55: Total Variable Costs | I55: 212.4846708 | J55: =SUM(J18:J54) -> 0 | M55: 0 | N55: =SUM(N18:N54) -> 0 | O55: 212.4846708 | P55: =SUM(P18:P54) -> 0 | Q55: 33997.54732 | R55: =SUM(R18:R54) -> 0
A56: Planned Returns Above Variable Costs: | I56: -6.234670771 | J56: =+J13-J55 -> 0 | M56: 0 | N56: =+N13-N55 -> 0 | O56: -6.234670771 | P56: =+P13-P55 -> 0 | Q56: -997.5473233 | R56: =+R13-R55 -> 0
B57: Breakeven Price to Cover Variable Costs | G57: 8.499386831 | H57: =IF(E10=0,"n/a",(YVarExp-(YTotExp+YTotRet-J10))/E10) -> n/a | I57: CWT
Q58: Enterprise | R58: Enterprise
A59: FIXED COSTS | D59: Quantity | E59: Quantity | F59: Units | G59: $/Unit | H59: $/Unit | I59: Total | J59: Total | K59: Share | L59: Share | M59: Landlord | N59: Landlord | O59: Tenant | P59: Tenant | Q59: Total | R59: Total
B60: Machinery Depreciation
C61: Pickup/General Use Equipment | D61: 1 | F61: Acre | G61: 2.6105625 | I61: 2.6105625 | J61: =E61*H61 -> 0 | K61: 0 | M61: 0 | N61: =J61*L61 -> 0 | O61: 2.6105625 | P61: =+J61-N61 -> 0 | Q61: 417.69 | R61: =+J61*E$7 -> 0
C62: Tractors/Self-Propelled | D62: 1 | F62: Acre | G62: 2.086769945 | I62: 2.086769945 | J62: 0 | K62: 0 | M62: 0 | N62: =J62*L62 -> 0 | O62: 2.086769945 | P62: 0 | Q62: 333.8831911 | R62: 0
C63: Implements | D63: 1 | F63: Acre | G63: 5.135360172 | I63: 5.135360172 | J63: 0 | K63: 0 | M63: 0 | N63: =J63*L63 -> 0 | O63: 5.135360172 | P63: 0 | Q63: 821.6576275 | R63: 0
B64: Equipment Investment
C65: Pickup/General Use Equipment | D65: 18.0253125 | F65: Dollars | G65: 0.09 | I65: 1.622278125 | J65: =E65*H65 -> 0 | K65: 0 | M65: 0 | N65: =J65*L65 -> 0 | O65: 1.622278125 | P65: =+J65-N65 -> 0 | Q65: 259.5645 | R65: =+J65*E$7 -> 0
C66: Tractors/Self-Propelled | D66: 16.25661102 | F66: Dollars | G66: 0.09 | I66: 1.463094992 | J66: 0 | K66: 0 | M66: 0 | N66: =J66*L66 -> 0 | O66: 1.463094992 | P66: 0 | Q66: 234.0951987 | R66: 0
C67: Implements | D67: 21.96792963 | F67: Dollars | G67: 0.09 | I67: 1.977113666 | J67: 0 | K67: 0 | M67: 0 | N67: =J67*L67 -> 0 | O67: 1.977113666 | P67: 0 | Q67: 316.3381866 | R67: 0
B68: Salaried Labor | D68: 1 | F68: Acre | G68: 0 | I68: 0 | J68: 0 | K68: 0 | M68: 0 | N68: =J68*L68 -> 0 | O68: 0 | P68: =+J68-N68 -> 0 | Q68: 0 | R68: =+J68*E$7 -> 0
B69: Management Fee, Owner/Operator Labor | D69: 1 | F69: Acre | G69: 0 | I69: 0 | J69: 0 | K69: 0 | M69: 0 | N69: 0 | O69: 0 | P69: 0 | Q69: 0 | R69: 0
B70: Allocated Establishment Cost | D70: 1 | F70: Acre | G70: 0 | I70: 0 | J70: 0 | K70: 0 | M70: 0 | N70: 0 | O70: 0 | P70: 0 | Q70: 0 | R70: 0
B71: Cash Rent - Sorghum | D71: 1 | F71: Acre | G71: 30 | I71: 30 | J71: 0 | K71: 0 | M71: 0 | N71: 0 | O71: 30 | P71: 0 | Q71: 4800 | R71: 0
B72: Property Taxes | D72: 1 | F72: Acre | G72: 0 | I72: 0 | J72: 0 | K72: 0 | M72: 0 | N72: 0 | O72: 0 | P72: 0 | Q72: 0 | R72: 0
B73: Whole Farm Insurance | D73: 1 | F73: Acre | G73: 0 | I73: 0 | J73: 0 | K73: 0 | M73: 0 | N73: 0 | O73: 0 | P73: 0 | Q73: 0 | R73: 0
D74: 1 | G74: 0 | I74: 0 | J74: 0 | K74: 0 | M74: 0 | N74: 0 | O74: 0 | P74: 0 | Q74: 0 | R74: 0
D75: 1 | G75: 0 | I75: 0 | J75: =E75*H75 -> 0 | K75: 0 | M75: 0 | N75: 0 | O75: 0 | P75: 0 | Q75: 0 | R75: 0
A76: Total Fixed Costs | I76: 44.8951794 | J76: =+SUM(J61:J75) -> 0 | M76: 0 | N76: =+SUM(N61:N75) -> 0 | O76: 44.8951794 | P76: =+SUM(P61:P75) -> 0 | Q76: 7183.228704 | R76: =+SUM(R61:R75) -> 0
A77: Total Specified Costs | I77: 257.3798502 | J77: =+J55+J76 -> 0 | M77: 0 | N77: =+N55+N76 -> 0 | O77: 257.3798502 | P77: =+P55+P76 -> 0 | Q77: 41180.77603 | R77: =+R55+R76 -> 0
A79: Returns Above Specified Costs | I79: -51.12985017 | J79: =+J13-J77 -> 0 | M79: 0 | N79: =+N13-N77 -> 0 | O79: -51.12985017 | P79: =+P13-P77 -> 0 | Q79: -8180.776027 | R79: =+R13-R77 -> 0
A81: Breakeven Price to Cover Total Costs | G81: 10.29519401 | H81: =IF(E10=0,"n/a",(YTotExp-(YTotExp+YTotRet-J10))/E10) -> n/a | I81: CWT
D83: Example Breakeven Prices
B84: Example | C84: Example | D84: To Cover | G84: To Cover
B85: Yield | C85: Yield | D85: Variable | G85: Total
B86: Percent | C86: CWT | D86: Costs | G86: Costs
B87: 0.75 | C87: 18.75 | D87: 11.33251577 | G87: 13.72692534
B88: 0.9 | C88: 22.5 | D88: 9.443763145 | G88: 11.43910445
B89: 1 | C89: 25 | D89: 8.499386831 | G89: 10.29519401
B90: 1.1 | C90: 27.5 | D90: 7.726715301 | G90: 9.359267279
B91: 1.25 | C91: 31.25 | D91: 6.799509465 | G91: 8.236155205
A93: Developed by Justin Benavidez, Assistant Professor, Texas A&M AgriLife Extension, 806-677-5600.
A95: Information presented is prepared solely as a general guide and not intended to recognize or predict the costs and returns from any one operation. Brand names are mentioned only as examples and imply no endorsement.

Sheet FallowRotation
A1: Projections for Planning Purposes Only -- Not to be Used without Updating
A2: 2024 Estimated Costs and Returns per Acre
A3: Rotation, Sorghum-Fallow-Wheat, Minimum Till, Fallow
A4: Enter your name for this budget in the cell above.
A5: Enter Your Values in the cells highlighed in MAROON.
E6: Your Acres | R6: Your
C7: Crop Acres | D7: 160 | L7: Your | Q7: Enterprise | R7: Enterprise
E8: Your | H8: Your | I8: Cash | J8: Your | K8: Landlord | L8: Landlord | N8: Your | P8: Your | Q8: Total | R8: Total
A9: REVENUE | D9: Quantity | E9: Quantity | F9: Units | G9: $/Unit | H9: $/Unit | I9: Total | J9: Total | K9: Share | L9: Share | M9: Landlord | N9: Landlord | O9: Tenant | P9: Tenant | Q9: (160 acres) | R9: ="(" & E7 & " acres)" -> ( acres)
B10: 0 | D10: 0 | G10: 0 | I10: 0 | J10: =E10*H10 -> 0 | K10: 0 | M10: 0 | N10: =J10*L10 -> 0 | O10: 0 | P10: =+J10-N10 -> 0 | Q10: 0 | R10: =+J10*E$7 -> 0
D11: 0 | G11: 0 | I11: 0 | J11: 0 | K11: 0 | M11: 0 | N11: 0 | O11: 0 | P11: =+J11-N11 -> 0 | Q11: 0 | R11: 0
D12: 0 | G12: 0 | I12: 0 | J12: 0 | K12: 0 | M12: 0 | N12: 0 | O12: 0 | P12: 0 | Q12: 0 | R12: 0
A13: Total Revenue | I13: 0 | J13: =SUM(J10:J12) -> 0 | M13: 0 | N13: =SUM(N10:N12) -> 0 | O13: 0 | P13: =SUM(P10:P12) -> 0 | Q13: 0 | R13: =SUM(R10:R12) -> 0
Q14: Enterprise | R14: Enterprise
A15: VARIABLE COSTS | D15: Quantity | E15: Quantity | F15: Units | G15: $/Unit | H15: $/Unit | I15: Total | J15: Total | K15: Share | L15: Share | M15: Landlord | N15: Landlord | O15: Tenant | P15: Tenant | Q15: Total | R15: Total
A16: Production Costs
B17: Herbicide
C18: Herbicide and Apply Fallow | D18: 2 | F18: Acre | G18: 28.02 | I18: 56.04 | J18: =E18*H18 -> 0 | K18: 0 | M18: 0 | N18: =J18*L18 -> 0 | O18: 56.04 | P18: =+J18-N18 -> 0 | Q18: 8966.4 | R18: =+J18*E$7 -> 0
D19: 0 | G19: 0 | I19: 0 | J19: 0 | K19: 0 | M19: 0 | N19: 0 | O19: 0 | P19: 0 | Q19: 0 | R19: 0
D20: 0 | G20: 0 | I20: 0 | J20: 0 | K20: 0 | M20: 0 | N20: 0 | O20: 0 | P20: 0 | Q20: 0 | R20: 0
D21: 0 | G21: 0 | I21: 0 | J21: =E21*H21 -> 0 | K21: 0 | M21: 0 | N21: =J21*L21 -> 0 | O21: 0 | P21: =+J21-N21 -> 0 | Q21: 0 | R21: =+J21*E$7 -> 0
B22: Machinery Labor
C23: Tractors/Self-Propelled | D23: 0.1 | F23: Hour | G23: 17.65 | I23: 1.765 | J23: =E23*H23 -> 0 | K23: 0 | M23: 0 | N23: =J23*L23 -> 0 | O23: 1.765 | P23: =+J23-N23 -> 0 | Q23: 282.4 | R23: =+J23*E$7 -> 0
C24: Other Labor | D24: 0.12 | F24: Hour | G24: 17.65 | I24: 2.118 | J24: =E24*H24 -> 0 | K24: 0 | M24: 0 | N24: =J24*L24 -> 0 | O24: 2.118 | P24: =+J24-N24 -> 0 | Q24: 338.88 | R24: =+J24*E$7 -> 0
B26: Diesel Fuel
C27: Pickup/General Use Equipment | D27: 1 | F27: Acre | G27: 0 | I27: 0 | J27: =E27*H27 -> 0 | K27: 0 | M27: 0 | N27: =J27*L27 -> 0 | O27: 0 | P27: =+J27-N27 -> 0 | Q27: 0 | R27: =+J27*E$7 -> 0
C28: Tractors/Self-Propelled | D28: 0.78 | F28: Gallon | G28: 3.1 | I28: 2.418 | J28: =E28*H28 -> 0 | K28: 0 | M28: 0 | N28: =J28*L28 -> 0 | O28: 2.418 | P28: =+J28-N28 -> 0 | Q28: 386.88 | R28: =+J28*E$7 -> 0
B30: Gasoline
C31: Pickup/General Use Equipment | D31: 1 | F31: Acre | G31: 0 | I31: 0 | J31: =E31*H31 -> 0 | K31: 0 | M31: 0 | N31: =J31*L31 -> 0 | O31: 0 | P31: =+J31-N31 -> 0 | Q31: 0 | R31: =+J31*E$7 -> 0
C32: Tractors/Self-Propelled | D32: 0 | F32: Gallon | G32: 2.4 | I32: 0 | J32: =E32*H32 -> 0 | K32: 0 | M32: 0 | N32: =J32*L32 -> 0 | O32: 0 | P32: =+J32-N32 -> 0 | Q32: 0 | R32: =+J32*E$7 -> 0
B34: Repairs & Maintenance
C35: Pickup/General Use Equipment | D35: 1 | F35: Acre | G35: 0 | I35: 0 | J35: =E35*H35 -> 0 | K35: 0 | M35: 0 | N35: =J35*L35 -> 0 | O35: 0 | P35: =+J35-N35 -> 0 | Q35: 0 | R35: =+J35*E$7 -> 0
C36: Irrigation Equipment | D36: 1 | F36: Acre | G36: 0 | I36: 0 | J36: 0 | K36: 0 | M36: 0 | N36: 0 | O36: 0 | P36: 0 | Q36: 0 | R36: 0
C37: Tractors/Self-Propelled | D37: 1 | F37: Acre | G37: 2.045894287 | I37: 2.045894287 | J37: 0 | K37: 0 | M37: 0 | N37: 0 | O37: 2.045894287 | P37: 0 | Q37: 327.3430858 | R37: 0
C38: Implements | D38: 1 | F38: Acre | G38: 2.408445364 | I38: 2.408445364 | J38: 0 | K38: 0 | M38: 0 | N38: 0 | O38: 2.408445364 | P38: 0 | Q38: 385.3512582 | R38: 0
I39: 0 | J39: 0 | K39: 0 | M39: 0 | N39: 0 | O39: 0 | P39: 0 | Q39: 0 | R39: 0
I40: 0 | J40: 0 | K40: 0 | M40: 0 | N40: 0 | O40: 0 | P40: 0 | Q40: 0 | R40: 0
B41: Interest on Credit Line | G41: 0.09 | I41: 3.293764404 | J41: =+SUM(J17:J40)/2*H41 -> 0 | M41: 0 | N41: =+SUM(N17:N40)/2*L41 -> 0 | O41: 3.293764404 | P41: =+SUM(P17:P40)/2*L41 -> 0 | Q41: 527.0023046 | R41: =+J41*E$7 -> 0
A42: Total Variable Costs | I42: 70.08910405 | J42: =SUM(J18:J41) -> 0 | M42: 0 | N42: =SUM(N18:N41) -> 0 | O42: 70.08910405 | P42: =SUM(P18:P41) -> 0 | Q42: 11214.25665 | R42: =SUM(R18:R41) -> 0
A43: Planned Returns Above Variable Costs: | I43: -70.08910405 | J43: =+J13-J42 -> 0 | M43: 0 | N43: =+N13-N42 -> 0 | O43: -70.08910405 | P43: =+P13-P42 -> 0 | Q43: -11214.25665 | R43: =+R13-R42 -> 0
B44: Breakeven Price to Cover Variable Costs | G44: n/a | H44: =IF(E10=0,"n/a",(YVarExp-(YTotExp+YTotRet-J10))/E10) -> n/a
Q45: Enterprise | R45: Enterprise
A46: FIXED COSTS | D46: Quantity | E46: Quantity | F46: Units | G46: $/Unit | H46: $/Unit | I46: Total | J46: Total | K46: Share | L46: Share | M46: Landlord | N46: Landlord | O46: Tenant | P46: Tenant | Q46: Total | R46: Total
B47: Machinery Depreciation
C48: Tractors/Self-Propelled | D48: 1 | F48: Acre | G48: 2.114090763 | I48: 2.114090763 | J48: =E48*H48 -> 0 | K48: 0 | M48: 0 | N48: =J48*L48 -> 0 | O48: 2.114090763 | P48: =+J48-N48 -> 0 | Q48: 338.254522 | R48: =+J48*E$7 -> 0
C49: Implements | D49: 1 | F49: Acre | G49: 3.096572611 | I49: 3.096572611 | J49: 0 | K49: 0 | M49: 0 | N49: =J49*L49 -> 0 | O49: 3.096572611 | P49: 0 | Q49: 495.4516177 | R49: 0
B50: Equipment Investment
C51: Tractors/Self-Propelled | D51: 16.46944901 | F51: Dollars | G51: 0.09 | I51: 1.482250411 | J51: =E51*H51 -> 0 | K51: 0 | M51: 0 | N51: =J51*L51 -> 0 | O51: 1.482250411 | P51: =+J51-N51 -> 0 | Q51: 237.1600657 | R51: =+J51*E$7 -> 0
C52: Implements | D52: 13.2464495 | F52: Dollars | G52: 0.09 | I52: 1.192180455 | J52: 0 | K52: 0 | M52: 0 | N52: =J52*L52 -> 0 | O52: 1.192180455 | P52: 0 | Q52: 190.7488728 | R52: 0
B53: Salaried Labor | D53: 1 | F53: Acre | G53: 0 | I53: 0 | J53: 0 | K53: 0 | M53: 0 | N53: =J53*L53 -> 0 | O53: 0 | P53: =+J53-N53 -> 0 | Q53: 0 | R53: =+J53*E$7 -> 0
B54: Management Fee, Owner/Operator Labor | D54: 1 | F54: Acre | G54: 0 | I54: 0 | J54: 0 | K54: 0 | M54: 0 | N54: 0 | O54: 0 | P54: 0 | Q54: 0 | R54: 0
B55: Allocated Establishment Cost | D55: 1 | F55: Acre | G55: 0 | I55: 0 | J55: 0 | K55: 0 | M55: 0 | N55: 0 | O55: 0 | P55: 0 | Q55: 0 | R55: 0
B56: Cash Rent - Wheat Dryland | D56: 1 | F56: Acre | G56: 30 | I56: 30 | J56: 0 | K56: 0 | M56: 0 | N56: 0 | O56: 30 | P56: 0 | Q56: 4800 | R56: 0
B57: Property Taxes | D57: 1 | F57: Acre | G57: 0 | I57: 0 | J57: 0 | K57: 0 | M57: 0 | N57: 0 | O57: 0 | P57: 0 | Q57: 0 | R57: 0
B58: Whole Farm Insurance | D58: 1 | F58: Acre | G58: 0 | I58: 0 | J58: 0 | K58: 0 | M58: 0 | N58: 0 | O58: 0 | P58: 0 | Q58: 0 | R58: 0
D59: 1 | G59: 0 | I59: 0 | J59: 0 | K59: 0 | M59: 0 | N59: 0 | O59: 0 | P59: 0 | Q59: 0 | R59: 0
D60: 1 | G60: 0 | I60: 0 | J60: =E60*H60 -> 0 | K60: 0 | M60: 0 | N60: 0 | O60: 0 | P60: 0 | Q60: 0 | R60: 0
A61: Total Fixed Costs | I61: 37.88509424 | J61: =+SUM(J48:J60) -> 0 | M61: 0 | N61: =+SUM(N48:N60) -> 0 | O61: 37.88509424 | P61: =+SUM(P48:P60) -> 0 | Q61: 6061.615078 | R61: =+SUM(R48:R60) -> 0
A62: Total Specified Costs | I62: 107.9741983 | J62: =+J42+J61 -> 0 | M62: 0 | N62: =+N42+N61 -> 0 | O62: 107.9741983 | P62: =+P42+P61 -> 0 | Q62: 17275.87173 | R62: =+R42+R61 -> 0
A64: Returns Above Specified Costs | I64: -107.9741983 | J64: =+J13-J62 -> 0 | M64: 0 | N64: =+N13-N62 -> 0 | O64: -107.9741983 | P64: =+P13-P62 -> 0 | Q64: -17275.87173 | R64: =+R13-R62 -> 0
A66: Breakeven Price to Cover Total Costs | G66: n/a | H66: =IF(E10=0,"n/a",(YTotExp-(YTotExp+YTotRet-J10))/E10) -> n/a
D68: Example Breakeven Prices
B69: Example | C69: Example | D69: To Cover | G69: To Cover
B70: Yield | C70: Yield | D70: Variable | G70: Total
B71: Percent | D71: Costs | G71: Costs
B72: 0.75 | C72: 0 | D72: 0 | G72: 0
B73: 0.9 | C73: 0 | D73: 0 | G73: 0
B74: 1 | C74: 0 | D74: 0 | G74: 0
B75: 1.1 | C75: 0 | D75: 0 | G75: 0
B76: 1.25 | C76: 0 | D76: 0 | G76: 0
A78: Developed by Justin Benavidez, Assistant Professor, Texas A&M AgriLife Extension, 806-677-5600.
A80: Information presented is prepared solely as a general guide and not intended to recognize or predict the costs and returns from any one operation. Brand names are mentioned only as examples and imply no endorsement.

Sheet WheatRotation
A1: Projections for Planning Purposes Only -- Not to be Used without Updating
A2: 2024 Estimated Costs and Returns per Acre
A3: Rotation, Sorghum-Fallow-Wheat, Minimum Till, Wheat with Grazing
A4: Enter your name for this budget in the cell above.
A5: Enter Your Values in the cells highlighed in MAROON.
E6: Your Acres | R6: Your
C7: Crop Acres | D7: 160 | L7: Your | Q7: Enterprise | R7: Enterprise
E8: Your | H8: Your | I8: Cash | J8: Your | K8: Landlord | L8: Landlord | N8: Your | P8: Your | Q8: Total | R8: Total
A9: REVENUE | D9: Quantity | E9: Quantity | F9: Units | G9: $/Unit | H9: $/Unit | I9: Total | J9: Total | K9: Share | L9: Share | M9: Landlord | N9: Landlord | O9: Tenant | P9: Tenant | Q9: (160 acres) | R9: ="(" & E7 & " acres)" -> ( acres)
B10: Wheat | D10: 26 | F10: Bushel | G10: 5.75 | I10: 149.5 | J10: =E10*H10 -> 0 | K10: 0 | M10: 0 | N10: =J10*L10 -> 0 | O10: 149.5 | P10: =+J10-N10 -> 0 | Q10: 23920 | R10: =+J10*E$7 -> 0
B11: Grazing - Wheat | D11: 73 | F11: Pound | G11: 0.9 | I11: 65.7 | J11: 0 | K11: 0 | M11: 0 | N11: 0 | O11: 65.7 | P11: =+J11-N11 -> 0 | Q11: 10512 | R11: 0
D12: 0 | G12: 0 | I12: 0 | J12: 0 | K12: 0 | M12: 0 | N12: 0 | O12: 0 | P12: 0 | Q12: 0 | R12: 0
D13: 0 | G13: 0 | I13: 0 | J13: 0 | K13: 0 | M13: 0 | N13: 0 | O13: 0 | P13: 0 | Q13: 0 | R13: 0
A14: Total Revenue | I14: 215.2 | J14: =SUM(J10:J13) -> 0 | M14: 0 | N14: =SUM(N10:N13) -> 0 | O14: 215.2 | P14: =SUM(P10:P13) -> 0 | Q14: 34432 | R14: =SUM(R10:R13) -> 0
Q15: Enterprise | R15: Enterprise
A16: VARIABLE COSTS | D16: Quantity | E16: Quantity | F16: Units | G16: $/Unit | H16: $/Unit | I16: Total | J16: Total | K16: Share | L16: Share | M16: Landlord | N16: Landlord | O16: Tenant | P16: Tenant | Q16: Total | R16: Total
A17: Production Costs
B18: Seed
C19: Seed - Wheat Dryland | D19: 1 | F19: Bushel | G19: 12.5 | I19: 12.5 | J19: =E19*H19 -> 0 | K19: 0 | M19: 0 | N19: =J19*L19 -> 0 | O19: 12.5 | P19: =+J19-N19 -> 0 | Q19: 2000 | R19: =+J19*E$7 -> 0
B20: Fertilizer
C21: Fertilizer (N) - Dry | D21: 30 | F21: Pound | G21: 0.522 | I21: 15.66 | J21: 0 | K21: 0 | M21: 0 | N21: 0 | O21: 15.66 | P21: 0 | Q21: 2505.6 | R21: 0
B22: Custom
C23: Fertilizer Application | D23: 1 | F23: Acre | G23: 7.5 | I23: 7.5 | J23: 0 | K23: 0 | M23: 0 | N23: 0 | O23: 7.5 | P23: 0 | Q23: 1200 | R23: 0
C24: Custom Harvest - Wheat | D24: 1 | F24: Acre | G24: 35 | I24: 35 | J24: 0 | K24: 0 | M24: 0 | N24: 0 | O24: 35 | P24: 0 | Q24: 5600 | R24: 0
C25: Custom Haul - Wheat | D25: 26 | F25: Bushel | G25: 0.35 | I25: 9.1 | J25: 0 | K25: 0 | M25: 0 | N25: 0 | O25: 9.1 | P25: 0 | Q25: 1456 | R25: 0
D26: 0 | G26: 0 | I26: 0 | J26: 0 | K26: 0 | M26: 0 | N26: 0 | O26: 0 | P26: 0 | Q26: 0 | R26: 0
D27: 0 | G27: 0 | I27: 0 | J27: 0 | K27: 0 | M27: 0 | N27: 0 | O27: 0 | P27: 0 | Q27: 0 | R27: 0
D28: 0 | G28: 0 | I28: 0 | J28: =E28*H28 -> 0 | K28: 0 | M28: 0 | N28: =J28*L28 -> 0 | O28: 0 | P28: =+J28-N28 -> 0 | Q28: 0 | R28: =+J28*E$7 -> 0
B29: Machinery Labor
C30: Tractors/Self-Propelled | D30: 0.05 | F30: Hour | G30: 17.65 | I30: 0.8825 | J30: =E30*H30 -> 0 | K30: 0 | M30: 0 | N30: =J30*L30 -> 0 | O30: 0.8825 | P30: =+J30-N30 -> 0 | Q30: 141.2 | R30: =+J30*E$7 -> 0
C31: Other Labor | D31: 0.05 | F31: Hour | G31: 17.65 | I31: 0.8825 | J31: =E31*H31 -> 0 | K31: 0 | M31: 0 | N31: =J31*L31 -> 0 | O31: 0.8825 | P31: =+J31-N31 -> 0 | Q31: 141.2 | R31: =+J31*E$7 -> 0
B33: Diesel Fuel
C34: Pickup/General Use Equipment | D34: 1 | F34: Acre | G34: 0 | I34: 0 | J34: =E34*H34 -> 0 | K34: 0 | M34: 0 | N34: =J34*L34 -> 0 | O34: 0 | P34: =+J34-N34 -> 0 | Q34: 0 | R34: =+J34*E$7 -> 0
C35: Tractors/Self-Propelled | D35: 0.2 | F35: Gallon | G35: 3.1 | I35: 0.62 | J35: =E35*H35 -> 0 | K35: 0 | M35: 0 | N35: =J35*L35 -> 0 | O35: 0.62 | P35: =+J35-N35 -> 0 | Q35: 99.2 | R35: =+J35*E$7 -> 0
B37: Gasoline
C38: Pickup/General Use Equipment | D38: 1 | F38: Acre | G38: 4.875 | I38: 4.875 | J38: =E38*H38 -> 0 | K38: 0 | M38: 0 | N38: =J38*L38 -> 0 | O38: 4.875 | P38: =+J38-N38 -> 0 | Q38: 780 | R38: =+J38*E$7 -> 0
C39: Tractors/Self-Propelled | D39: 0 | F39: Gallon | G39: 2.4 | I39: 0 | J39: =E39*H39 -> 0 | K39: 0 | M39: 0 | N39: =J39*L39 -> 0 | O39: 0 | P39: =+J39-N39 -> 0 | Q39: 0 | R39: =+J39*E$7 -> 0
B41: Repairs & Maintenance
C42: Pickup/General Use Equipment | D42: 1 | F42: Acre | G42: 2.48625 | I42: 2.48625 | J42: =E42*H42 -> 0 | K42: 0 | M42: 0 | N42: =J42*L42 -> 0 | O42: 2.48625 | P42: =+J42-N42 -> 0 | Q42: 397.8 | R42: =+J42*E$7 -> 0
C43: Irrigation Equipment | D43: 1 | F43: Acre | G43: 0 | I43: 0 | J43: 0 | K43: 0 | M43: 0 | N43: 0 | O43: 0 | P43: 0 | Q43: 0 | R43: 0
C44: Tractors/Self-Propelled | D44: 1 | F44: Acre | G44: 0.2396298504 | I44: 0.2396298504 | J44: 0 | K44: 0 | M44: 0 | N44: 0 | O44: 0.2396298504 | P44: 0 | Q44: 38.34077606 | R44: 0
C45: Implements | D45: 1 | F45: Acre | G45: 1.655039048 | I45: 1.655039048 | J45: 0 | K45: 0 | M45: 0 | N45: 0 | O45: 1.655039048 | P45: 0 | Q45: 264.8062476 | R45: 0
I46: 0 | J46: 0 | K46: 0 | M46: 0 | N46: 0 | O46: 0 | P46: 0 | Q46: 0 | R46: 0
I47: 0 | J47: 0 | K47: 0 | M47: 0 | N47: 0 | O47: 0 | P47: 0 | Q47: 0 | R47: 0
B48: Interest on Credit Line | G48: 0.09 | I48: 1.715143655 | J48: =+SUM(J18:J47)/2*H48 -> 0 | M48: 0 | N48: =+SUM(N18:N47)/2*L48 -> 0 | O48: 1.715143655 | P48: =+SUM(P18:P47)/2*L48 -> 0 | Q48: 274.4229848 | R48: =+J48*E$7 -> 0
A49: Total Variable Costs | I49: 93.11606255 | J49: =SUM(J19:J48) -> 0 | M49: 0 | N49: =SUM(N19:N48) -> 0 | O49: 93.11606255 | P49: =SUM(P19:P48) -> 0 | Q49: 14898.57001 | R49: =SUM(R19:R48) -> 0
A50: Planned Returns Above Variable Costs: | I50: 122.0839374 | J50: =+J14-J49 -> 0 | M50: 0 | N50: =+N14-N49 -> 0 | O50: 122.0839374 | P50: =+P14-P49 -> 0 | Q50: 19533.42999 | R50: =+R14-R49 -> 0
B51: Breakeven Price to Cover Variable Costs | G51: 1.054463944 | H51: =IF(E10=0,"n/a",(YVarExp-(YTotExp+YTotRet-J10))/E10) -> n/a | I51: Bushel
Q52: Enterprise | R52: Enterprise
A53: FIXED COSTS | D53: Quantity | E53: Quantity | F53: Units | G53: $/Unit | H53: $/Unit | I53: Total | J53: Total | K53: Share | L53: Share | M53: Landlord | N53: Landlord | O53: Tenant | P53: Tenant | Q53: Total | R53: Total
B54: Machinery Depreciation
C55: Pickup/General Use Equipment | D55: 1 | F55: Acre | G55: 2.6105625 | I55: 2.6105625 | J55: =E55*H55 -> 0 | K55: 0 | M55: 0 | N55: =J55*L55 -> 0 | O55: 2.6105625 | P55: =+J55-N55 -> 0 | Q55: 417.69 | R55: =+J55*E$7 -> 0
C56: Tractors/Self-Propelled | D56: 1 | F56: Acre | G56: 0.1980940097 | I56: 0.1980940097 | J56: 0 | K56: 0 | M56: 0 | N56: =J56*L56 -> 0 | O56: 0.1980940097 | P56: 0 | Q56: 31.69504154 | R56: 0
C57: Implements | D57: 1 | F57: Acre | G57: 2.127907347 | I57: 2.127907347 | J57: 0 | K57: 0 | M57: 0 | N57: =J57*L57 -> 0 | O57: 2.127907347 | P57: 0 | Q57: 340.4651755 | R57: 0
B58: Equipment Investment
C59: Pickup/General Use Equipment | D59: 18.0253125 | F59: Dollars | G59: 0.09 | I59: 1.622278125 | J59: =E59*H59 -> 0 | K59: 0 | M59: 0 | N59: =J59*L59 -> 0 | O59: 1.622278125 | P59: =+J59-N59 -> 0 | Q59: 259.5645 | R59: =+J59*E$7 -> 0
C60: Tractors/Self-Propelled | D60: 1.543216236 | F60: Dollars | G60: 0.09 | I60: 0.1388894613 | J60: 0 | K60: 0 | M60: 0 | N60: =J60*L60 -> 0 | O60: 0.1388894613 | P60: 0 | Q60: 22.22231381 | R60: 0
C61: Implements | D61: 9.102714762 | F61: Dollars | G61: 0.09 | I61: 0.8192443286 | J61: 0 | K61: 0 | M61: 0 | N61: =J61*L61 -> 0 | O61: 0.8192443286 | P61: 0 | Q61: 131.0790926 | R61: 0
B62: Salaried Labor | D62: 1 | F62: Acre | G62: 0 | I62: 0 | J62: 0 | K62: 0 | M62: 0 | N62: =J62*L62 -> 0 | O62: 0 | P62: =+J62-N62 -> 0 | Q62: 0 | R62: =+J62*E$7 -> 0
B63: Management Fee, Owner/Operator Labor | D63: 1 | F63: Acre | G63: 0 | I63: 0 | J63: 0 | K63: 0 | M63: 0 | N63: 0 | O63: 0 | P63: 0 | Q63: 0 | R63: 0
B64: Allocated Establishment Cost | D64: 1 | F64: Acre | G64: 0 | I64: 0 | J64: 0 | K64: 0 | M64: 0 | N64: 0 | O64: 0 | P64: 0 | Q64: 0 | R64: 0
B65: Cash Rent - Wheat Dryland | D65: 1 | F65: Acre | G65: 30 | I65: 30 | J65: 0 | K65: 0 | M65: 0 | N65: 0 | O65: 30 | P65: 0 | Q65: 4800 | R65: 0
B66: Property Taxes | D66: 1 | F66: Acre | G66: 0 | I66: 0 | J66: 0 | K66: 0 | M66: 0 | N66: 0 | O66: 0 | P66: 0 | Q66: 0 | R66: 0
B67: Whole Farm Insurance | D67: 1 | F67: Acre | G67: 0 | I67: 0 | J67: 0 | K67: 0 | M67: 0 | N67: 0 | O67: 0 | P67: 0 | Q67: 0 | R67: 0
D68: 1 | G68: 0 | I68: 0 | J68: 0 | K68: 0 | M68: 0 | N68: 0 | O68: 0 | P68: 0 | Q68: 0 | R68: 0
D69: 1 | G69: 0 | I69: 0 | J69: =E69*H69 -> 0 | K69: 0 | M69: 0 | N69: 0 | O69: 0 | P69: 0 | Q69: 0 | R69: 0
A70: Total Fixed Costs | I70: 37.51697577 | J70: =+SUM(J55:J69) -> 0 | M70: 0 | N70: =+SUM(N55:N69) -> 0 | O70: 37.51697577 | P70: =+SUM(P55:P69) -> 0 | Q70: 6002.716123 | R70: =+SUM(R55:R69) -> 0
A71: Total Specified Costs | I71: 130.6330383 | J71: =+J49+J70 -> 0 | M71: 0 | N71: =+N49+N70 -> 0 | O71: 130.6330383 | P71: =+P49+P70 -> 0 | Q71: 20901.28613 | R71: =+R49+R70 -> 0
A73: Returns Above Specified Costs | I73: 84.56696168 | J73: =+J14-J71 -> 0 | M73: 0 | N73: =+N14-N71 -> 0 | O73: 84.56696168 | P73: =+P14-P71 -> 0 | Q73: 13530.71387 | R73: =+R14-R71 -> 0
A75: Breakeven Price to Cover Total Costs | G75: 2.497424551 | H75: =IF(E10=0,"n/a",(YTotExp-(YTotExp+YTotRet-J10))/E10) -> n/a | I75: Bushel
D77: Example Breakeven Prices
B78: Example | C78: Example | D78: To Cover | G78: To Cover
B79: Yield | C79: Yield | D79: Variable | G79: Total
B80: Percent | C80: Bushel | D80: Costs | G80: Costs
B81: 0.75 | C81: 19.5 | D81: 1.405951926 | G81: 3.329899401
B82: 0.9 | C82: 23.4 | D82: 1.171626605 | G82: 2.774916168
B83: 1 | C83: 26 | D83: 1.054463944 | G83: 2.497424551
B84: 1.1 | C84: 28.6 | D84: 0.9586035858 | G84: 2.270385955
B85: 1.25 | C85: 32.5 | D85: 0.8435711555 | G85: 1.997939641
A87: Developed by Justin Benavidez, Assistant Professor, Texas A&M AgriLife Extension, 806-677-5600.
A89: Information presented is prepared solely as a general guide and not intended to recognize or predict the costs and returns from any one operation. Brand names are mentioned only as examples and imply no endorsement.

Sheet SorghumDryland
A1: Projections for Planning Purposes Only -- Not to be Used without Updating
A2: 2024 Estimated Costs and Returns per Acre
A3: Sorghum, Dryland, Continuous, Minimum Tillage
A4: Enter your name for this budget in the cell above.
A5: Enter Your Values in the cells highlighed in MAROON.
E6: Your Acres | R6: Your
C7: Crop Acres | D7: 160 | L7: Your | Q7: Enterprise | R7: Enterprise
E8: Your | H8: Your | I8: Cash | J8: Your | K8: Landlord | L8: Landlord | N8: Your | P8: Your | Q8: Total | R8: Total
A9: REVENUE | D9: Quantity | E9: Quantity | F9: Units | G9: $/Unit | H9: $/Unit | I9: Total | J9: Total | K9: Share | L9: Share | M9: Landlord | N9: Landlord | O9: Tenant | P9: Tenant | Q9: (160 acres) | R9: ="(" & E7 & " acres)" -> ( acres)
B10: Grain Sorghum | D10: 25 | F10: CWT | G10: 8.25 | I10: 206.25 | J10: =E10*H10 -> 0 | K10: 0 | M10: 0 | N10: =J10*L10 -> 0 | O10: 206.25 | P10: =+J10-N10 -> 0 | Q10: 33000 | R10: =+J10*E$7 -> 0
D11: 0 | G11: 0 | I11: 0 | J11: 0 | K11: 0 | M11: 0 | N11: 0 | O11: 0 | P11: =+J11-N11 -> 0 | Q11: 0 | R11: 0
D12: 0 | G12: 0 | I12: 0 | J12: 0 | K12: 0 | M12: 0 | N12: 0 | O12: 0 | P12: 0 | Q12: 0 | R12: 0
A13: Total Revenue | I13: 206.25 | J13: =SUM(J10:J12) -> 0 | M13: 0 | N13: =SUM(N10:N12) -> 0 | O13: 206.25 | P13: =SUM(P10:P12) -> 0 | Q13: 33000 | R13: =SUM(R10:R12) -> 0
Q14: Enterprise | R14: Enterprise
A15: VARIABLE COSTS | D15: Quantity | E15: Quantity | F15: Units | G15: $/Unit | H15: $/Unit | I15: Total | J15: Total | K15: Share | L15: Share | M15: Landlord | N15: Landlord | O15: Tenant | P15: Tenant | Q15: Total | R15: Total
A16: Production Costs
B17: Herbicide
C18: Herbicide and Apply Sorghum | D18: 1 | F18: Acre | G18: 49.5 | I18: 49.5 | J18: =E18*H18 -> 0 | K18: 0 | M18: 0 | N18: =J18*L18 -> 0 | O18: 49.5 | P18: =+J18-N18 -> 0 | Q18: 7920 | R18: =+J18*E$7 -> 0
B19: Seed
C20: Seed - Sorghum | D20: 2.25 | F20: Pound | G20: 3.2 | I20: 7.2 | J20: 0 | K20: 0 | M20: 0 | N20: 0 | O20: 7.2 | P20: 0 | Q20: 1152 | R20: 0
B21: Fertilizer
C22: Fertilizer (N) - ANH3 | D22: 40 | F22: Pound | G22: 0.427 | I22: 17.08 | J22: 0 | K22: 0 | M22: 0 | N22: 0 | O22: 17.08 | P22: 0 | Q22: 2732.8 | R22: 0
B23: Custom
C24: Fertilizer Application - ANH3 | D24: 1 | F24: Acre | G24: 18 | I24: 18 | J24: 0 | K24: 0 | M24: 0 | N24: 0 | O24: 18 | P24: 0 | Q24: 2880 | R24: 0
C25: Custom Harvest - Sorghum Dryland | D25: 1 | F25: Acre | G25: 35 | I25: 35 | J25: 0 | K25: 0 | M25: 0 | N25: 0 | O25: 35 | P25: 0 | Q25: 5600 | R25: 0
C26: Custom Haul - Sorghum Dryland | D26: 25 | F26: CWT | G26: 0.35 | I26: 8.75 | J26: 0 | K26: 0 | M26: 0 | N26: 0 | O26: 8.75 | P26: 0 | Q26: 1400 | R26: 0
B27: Miscellaneous
C28: Crop Insurance Sorghum - Dryland | D28: 1 | F28: Acre | G28: 20 | I28: 20 | J28: 0 | K28: 0 | M28: 0 | N28: 0 | O28: 20 | P28: 0 | Q28: 3200 | R28: 0
B29: Insecticide
C30: Insecticide Head Worm | D30: 0.67 | F30: Application | G30: 27.5 | I30: 18.425 | J30: 0 | K30: 0 | M30: 0 | N30: 0 | O30: 18.425 | P30: 0 | Q30: 2948 | R30: 0
C31: Insecticide Sugar Cane Aphid | D31: 1 | F31: Application | G31: 21 | I31: 21 | J31: 0 | K31: 0 | M31: 0 | N31: 0 | O31: 21 | P31: 0 | Q31: 3360 | R31: 0
D32: 0 | G32: 0 | I32: 0 | J32: 0 | K32: 0 | M32: 0 | N32: 0 | O32: 0 | P32: 0 | Q32: 0 | R32: 0
D33: 0 | G33: 0 | I33: 0 | J33: 0 | K33: 0 | M33: 0 | N33: 0 | O33: 0 | P33: 0 | Q33: 0 | R33: 0
D34: 0 | G34: 0 | I34: 0 | J34: =E34*H34 -> 0 | K34: 0 | M34: 0 | N34: =J34*L34 -> 0 | O34: 0 | P34: =+J34-N34 -> 0 | Q34: 0 | R34: =+J34*E$7 -> 0
B35: Machinery Labor
C36: Tractors/Self-Propelled | D36: 0.13 | F36: Hour | G36: 17.65 | I36: 2.2945 | J36: =E36*H36 -> 0 | K36: 0 | M36: 0 | N36: =J36*L36 -> 0 | O36: 2.2945 | P36: =+J36-N36 -> 0 | Q36: 367.12 | R36: =+J36*E$7 -> 0
C37: Other Labor | D37: 0.15 | F37: Hour | G37: 17.65 | I37: 2.6475 | J37: =E37*H37 -> 0 | K37: 0 | M37: 0 | N37: =J37*L37 -> 0 | O37: 2.6475 | P37: =+J37-N37 -> 0 | Q37: 423.6 | R37: =+J37*E$7 -> 0
B39: Diesel Fuel
C40: Pickup/General Use Equipment | D40: 1 | F40: Acre | G40: 0 | I40: 0 | J40: =E40*H40 -> 0 | K40: 0 | M40: 0 | N40: =J40*L40 -> 0 | O40: 0 | P40: =+J40-N40 -> 0 | Q40: 0 | R40: =+J40*E$7 -> 0
C41: Tractors/Self-Propelled | D41: 0.88 | F41: Gallon | G41: 3.1 | I41: 2.728 | J41: =E41*H41 -> 0 | K41: 0 | M41: 0 | N41: =J41*L41 -> 0 | O41: 2.728 | P41: =+J41-N41 -> 0 | Q41: 436.48 | R41: =+J41*E$7 -> 0
B43: Gasoline
C44: Pickup/General Use Equipment | D44: 1 | F44: Acre | G44: 4.875 | I44: 4.875 | J44: =E44*H44 -> 0 | K44: 0 | M44: 0 | N44: =J44*L44 -> 0 | O44: 4.875 | P44: =+J44-N44 -> 0 | Q44: 780 | R44: =+J44*E$7 -> 0
C45: Tractors/Self-Propelled | D45: 0 | F45: Gallon | G45: 2.4 | I45: 0 | J45: =E45*H45 -> 0 | K45: 0 | M45: 0 | N45: =J45*L45 -> 0 | O45: 0 | P45: =+J45-N45 -> 0 | Q45: 0 | R45: =+J45*E$7 -> 0
B47: Repairs & Maintenance
C48: Pickup/General Use Equipment | D48: 1 | F48: Acre | G48: 2.48625 | I48: 2.48625 | J48: =E48*H48 -> 0 | K48: 0 | M48: 0 | N48: =J48*L48 -> 0 | O48: 2.48625 | P48: =+J48-N48 -> 0 | Q48: 397.8 | R48: =+J48*E$7 -> 0
C49: Irrigation Equipment | D49: 1 | F49: Acre | G49: 0 | I49: 0 | J49: 0 | K49: 0 | M49: 0 | N49: 0 | O49: 0 | P49: 0 | Q49: 0 | R49: 0
C50: Tractors/Self-Propelled | D50: 1 | F50: Acre | G50: 2.060046412 | I50: 2.060046412 | J50: 0 | K50: 0 | M50: 0 | N50: 0 | O50: 2.060046412 | P50: 0 | Q50: 329.6074259 | R50: 0
C51: Implements | D51: 1 | F51: Acre | G51: 3.941478109 | I51: 3.941478109 | J51: 0 | K51: 0 | M51: 0 | N51: 0 | O51: 3.941478109 | P51: 0 | Q51: 630.6364974 | R51: 0
I52: 0 | J52: 0 | K52: 0 | M52: 0 | N52: 0 | O52: 0 | P52: 0 | Q52: 0 | R52: 0
I53: 0 | J53: 0 | K53: 0 | M53: 0 | N53: 0 | O53: 0 | P53: 0 | Q53: 0 | R53: 0
B54: Interest on Credit Line | G54: 0.09 | I54: 6.047472963 | J54: =+SUM(J17:J53)/2*H54 -> 0 | M54: 0 | N54: =+SUM(N17:N53)/2*L54 -> 0 | O54: 6.047472963 | P54: =+SUM(P17:P53)/2*L54 -> 0 | Q54: 967.595674 | R54: =+J54*E$7 -> 0
A55: Total Variable Costs | I55: 222.0352475 | J55: =SUM(J18:J54) -> 0 | M55: 0 | N55: =SUM(N18:N54) -> 0 | O55: 222.0352475 | P55: =SUM(P18:P54) -> 0 | Q55: 35525.6396 | R55: =SUM(R18:R54) -> 0
A56: Planned Returns Above Variable Costs: | I56: -15.78524748 | J56: =+J13-J55 -> 0 | M56: 0 | N56: =+N13-N55 -> 0 | O56: -15.78524748 | P56: =+P13-P55 -> 0 | Q56: -2525.639597 | R56: =+R13-R55 -> 0
B57: Breakeven Price to Cover Variable Costs | G57: 8.881409899 | H57: =IF(E10=0,"n/a",(YVarExp-(YTotExp+YTotRet-J10))/E10) -> n/a | I57: CWT
Q58: Enterprise | R58: Enterprise
A59: FIXED COSTS | D59: Quantity | E59: Quantity | F59: Units | G59: $/Unit | H59: $/Unit | I59: Total | J59: Total | K59: Share | L59: Share | M59: Landlord | N59: Landlord | O59: Tenant | P59: Tenant | Q59: Total | R59: Total
B60: Machinery Depreciation
C61: Pickup/General Use Equipment | D61: 1 | F61: Acre | G61: 2.6105625 | I61: 2.6105625 | J61: =E61*H61 -> 0 | K61: 0 | M61: 0 | N61: =J61*L61 -> 0 | O61: 2.6105625 | P61: =+J61-N61 -> 0 | Q61: 417.69 | R61: =+J61*E$7 -> 0
C62: Tractors/Self-Propelled | D62: 1 | F62: Acre | G62: 2.086769945 | I62: 2.086769945 | J62: 0 | K62: 0 | M62: 0 | N62: =J62*L62 -> 0 | O62: 2.086769945 | P62: 0 | Q62: 333.8831911 | R62: 0
C63: Implements | D63: 1 | F63: Acre | G63: 5.135360172 | I63: 5.135360172 | J63: 0 | K63: 0 | M63: 0 | N63: =J63*L63 -> 0 | O63: 5.135360172 | P63: 0 | Q63: 821.6576275 | R63: 0
B64: Equipment Investment
C65: Pickup/General Use Equipment | D65: 18.0253125 | F65: Dollars | G65: 0.09 | I65: 1.622278125 | J65: =E65*H65 -> 0 | K65: 0 | M65: 0 | N65: =J65*L65 -> 0 | O65: 1.622278125 | P65: =+J65-N65 -> 0 | Q65: 259.5645 | R65: =+J65*E$7 -> 0
C66: Tractors/Self-Propelled | D66: 16.25661102 | F66: Dollars | G66: 0.09 | I66: 1.463094992 | J66: 0 | K66: 0 | M66: 0 | N66: =J66*L66 -> 0 | O66: 1.463094992 | P66: 0 | Q66: 234.0951987 | R66: 0
C67: Implements | D67: 21.96792963 | F67: Dollars | G67: 0.09 | I67: 1.977113666 | J67: 0 | K67: 0 | M67: 0 | N67: =J67*L67 -> 0 | O67: 1.977113666 | P67: 0 | Q67: 316.3381866 | R67: 0
B68: Salaried Labor | D68: 1 | F68: Acre | G68: 0 | I68: 0 | J68: 0 | K68: 0 | M68: 0 | N68: =J68*L68 -> 0 | O68: 0 | P68: =+J68-N68 -> 0 | Q68: 0 | R68: =+J68*E$7 -> 0
B69: Management Fee, Owner/Operator Labor | D69: 1 | F69: Acre | G69: 0 | I69: 0 | J69: 0 | K69: 0 | M69: 0 | N69: 0 | O69: 0 | P69: 0 | Q69: 0 | R69: 0
B70: Allocated Establishment Cost | D70: 1 | F70: Acre | G70: 0 | I70: 0 | J70: 0 | K70: 0 | M70: 0 | N70: 0 | O70: 0 | P70: 0 | Q70: 0 | R70: 0
B71: Cash Rent - Sorghum | D71: 1 | F71: Acre | G71: 30 | I71: 30 | J71: 0 | K71: 0 | M71: 0 | N71: 0 | O71: 30 | P71: 0 | Q71: 4800 | R71: 0
B72: Property Taxes | D72: 1 | F72: Acre | G72: 0 | I72: 0 | J72: 0 | K72: 0 | M72: 0 | N72: 0 | O72: 0 | P72: 0 | Q72: 0 | R72: 0
B73: Whole Farm Insurance | D73: 1 | F73: Acre | G73: 0 | I73: 0 | J73: 0 | K73: 0 | M73: 0 | N73: 0 | O73: 0 | P73: 0 | Q73: 0 | R73: 0
D74: 1 | G74: 0 | I74: 0 | J74: 0 | K74: 0 | M74: 0 | N74: 0 | O74: 0 | P74: 0 | Q74: 0 | R74: 0
D75: 1 | G75: 0 | I75: 0 | J75: =E75*H75 -> 0 | K75: 0 | M75: 0 | N75: 0 | O75: 0 | P75: 0 | Q75: 0 | R75: 0
A76: Total Fixed Costs | I76: 44.8951794 | J76: =+SUM(J61:J75) -> 0 | M76: 0 | N76: =+SUM(N61:N75) -> 0 | O76: 44.8951794 | P76: =+SUM(P61:P75) -> 0 | Q76: 7183.228704 | R76: =+SUM(R61:R75) -> 0
A77: Total Specified Costs | I77: 266.9304269 | J77: =+J55+J76 -> 0 | M77: 0 | N77: =+N55+N76 -> 0 | O77: 266.9304269 | P77: =+P55+P76 -> 0 | Q77: 42708.8683 | R77: =+R55+R76 -> 0
A79: Returns Above Specified Costs | I79: -60.68042688 | J79: =+J13-J77 -> 0 | M79: 0 | N79: =+N13-N77 -> 0 | O79: -60.68042688 | P79: =+P13-P77 -> 0 | Q79: -9708.868301 | R79: =+R13-R77 -> 0
A81: Breakeven Price to Cover Total Costs | G81: 10.67721708 | H81: =IF(E10=0,"n/a",(YTotExp-(YTotExp+YTotRet-J10))/E10) -> n/a | I81: CWT
D83: Example Breakeven Prices
B84: Example | C84: Example | D84: To Cover | G84: To Cover
B85: Yield | C85: Yield | D85: Variable | G85: Total
B86: Percent | C86: CWT | D86: Costs | G86: Costs
B87: 0.75 | C87: 18.75 | D87: 11.84187987 | G87: 14.23628943
B88: 0.9 | C88: 22.5 | D88: 9.868233221 | G88: 11.86357453
B89: 1 | C89: 25 | D89: 8.881409899 | G89: 10.67721708
B90: 1.1 | C90: 27.5 | D90: 8.074008999 | G90: 9.706560978
B91: 1.25 | C91: 31.25 | D91: 7.105127919 | G91: 8.54177366
A93: Developed by Justin Benavidez, Assistant Professor, Texas A&M AgriLife Extension, 806-677-5600.
A95: Information presented is prepared solely as a general guide and not intended to recognize or predict the costs and returns from any one operation. Brand names are mentioned only as examples and imply no endorsement.

Sheet SorghumSprinkler
A1: Projections for Planning Purposes Only -- Not to be Used without Updating
A2: 2024 Estimated Costs and Returns per Acre
A3: Continuous Sorghum, Sprinkler Irrigated (NG)
A4: Enter your name for this budget in the cell above.
A5: Enter Your Values in the cells highlighed in MAROON.
E6: Your Acres | R6: Your
C7: Crop Acres | D7: 122 | L7: Your | Q7: Enterprise | R7: Enterprise
E8: Your | H8: Your | I8: Cash | J8: Your | K8: Landlord | L8: Landlord | N8: Your | P8: Your | Q8: Total | R8: Total
A9: REVENUE | D9: Quantity | E9: Quantity | F9: Units | G9: $/Unit | H9: $/Unit | I9: Total | J9: Total | K9: Share | L9: Share | M9: Landlord | N9: Landlord | O9: Tenant | P9: Tenant | Q9: (122 acres) | R9: ="(" & E7 & " acres)" -> ( acres)
B10: Grain Sorghum | D10: 60 | F10: CWT | G10: 8.25 | I10: 495 | J10: =E10*H10 -> 0 | K10: 0 | M10: 0 | N10: =J10*L10 -> 0 | O10: 495 | P10: =+J10-N10 -> 0 | Q10: 60390 | R10: =+J10*E$7 -> 0
D11: 0 | G11: 0 | I11: 0 | J11: 0 | K11: 0 | M11: 0 | N11: 0 | O11: 0 | P11: =+J11-N11 -> 0 | Q11: 0 | R11: 0
D12: 0 | G12: 0 | I12: 0 | J12: 0 | K12: 0 | M12: 0 | N12: 0 | O12: 0 | P12: 0 | Q12: 0 | R12: 0
A13: Total Revenue | I13: 495 | J13: =SUM(J10:J12) -> 0 | M13: 0 | N13: =SUM(N10:N12) -> 0 | O13: 495 | P13: =SUM(P10:P12) -> 0 | Q13: 60390 | R13: =SUM(R10:R12) -> 0
Q14: Enterprise | R14: Enterprise
A15: VARIABLE COSTS | D15: Quantity | E15: Quantity | F15: Units | G15: $/Unit | H15: $/Unit | I15: Total | J15: Total | K15: Share | L15: Share | M15: Landlord | N15: Landlord | O15: Tenant | P15: Tenant | Q15: Total | R15: Total
A16: Production Costs
B17: Herbicide
C18: Herbicide and Apply Sorghum Irrig. | D18: 1 | F18: Acre | G18: 57.75 | I18: 57.75 | J18: =E18*H18 -> 0 | K18: 0 | M18: 0 | N18: =J18*L18 -> 0 | O18: 57.75 | P18: =+J18-N18 -> 0 | Q18: 7045.5 | R18: =+J18*E$7 -> 0
B19: Seed
C20: Seed - Sorghum | D20: 4 | F20: Pound | G20: 3.2 | I20: 12.8 | J20: 0 | K20: 0 | M20: 0 | N20: 0 | O20: 12.8 | P20: 0 | Q20: 1561.6 | R20: 0
B21: Fertilizer
C22: Fertilizer (N) - ANH3 | D22: 60 | F22: Pound | G22: 0.427 | I22: 25.62 | J22: 0 | K22: 0 | M22: 0 | N22: 0 | O22: 25.62 | P22: 0 | Q22: 3125.64 | R22: 0
C23: Fertilizer (P) - Liquid | D23: 40 | F23: Pound | G23: 0.882 | I23: 35.28 | J23: 0 | K23: 0 | M23: 0 | N23: 0 | O23: 35.28 | P23: 0 | Q23: 4304.16 | R23: 0
C24: Fertilizer (N) - Liquid | D24: 50 | F24: Pound | G24: 0.578 | I24: 28.9 | J24: 0 | K24: 0 | M24: 0 | N24: 0 | O24: 28.9 | P24: 0 | Q24: 3525.8 | R24: 0
B25: Custom
C26: Fertilizer Application - ANH3 | D26: 1 | F26: Acre | G26: 18 | I26: 18 | J26: 0 | K26: 0 | M26: 0 | N26: 0 | O26: 18 | P26: 0 | Q26: 2196 | R26: 0
C27: Harvest and Haul - Sorghum | D27: 60 | F27: CWT | G27: 1 | I27: 60 | J27: 0 | K27: 0 | M27: 0 | N27: 0 | O27: 60 | P27: 0 | Q27: 7320 | R27: 0
B28: Miscellaneous
C29: Crop Insurance Sorghum - Irrigated | D29: 1 | F29: Acre | G29: 30 | I29: 30 | J29: 0 | K29: 0 | M29: 0 | N29: 0 | O29: 30 | P29: 0 | Q29: 3660 | R29: 0
B30: Insecticide
C31: Insecticide Head Worm | D31: 0.67 | F31: Application | G31: 27.5 | I31: 18.425 | J31: 0 | K31: 0 | M31: 0 | N31: 0 | O31: 18.425 | P31: 0 | Q31: 2247.85 | R31: 0
C32: Insecticide Sugar Cane Aphid | D32: 1 | F32: Application | G32: 21 | I32: 21 | J32: 0 | K32: 0 | M32: 0 | N32: 0 | O32: 21 | P32: 0 | Q32: 2562 | R32: 0
D33: 0 | G33: 0 | I33: 0 | J33: 0 | K33: 0 | M33: 0 | N33: 0 | O33: 0 | P33: 0 | Q33: 0 | R33: 0
D34: 0 | G34: 0 | I34: 0 | J34: 0 | K34: 0 | M34: 0 | N34: 0 | O34: 0 | P34: 0 | Q34: 0 | R34: 0
D35: 0 | G35: 0 | I35: 0 | J35: =E35*H35 -> 0 | K35: 0 | M35: 0 | N35: =J35*L35 -> 0 | O35: 0 | P35: =+J35-N35 -> 0 | Q35: 0 | R35: =+J35*E$7 -> 0
B36: Irrigation
C37: Energy Cost | D37: 10 | F37: AcreInch | G37: 3.8 | I37: 38 | J37: =E37*H37 -> 0 | K37: 0 | M37: 0 | N37: =J37*L37 -> 0 | O37: 38 | P37: =+J37-N37 -> 0 | Q37: 4636 | R37: =+J37*E$7 -> 0
C38: Irrigation Labor | D38: 0.896 | F38: Hour | G38: 17.94 | I38: 16.07424 | J38: 0 | K38: 0 | M38: 0 | N38: 0 | O38: 16.07424 | P38: 0 | Q38: 1961.05728 | R38: 0
B39: Machinery Labor
C40: Tractors/Self-Propelled | D40: 0.16 | F40: Hour | G40: 17.65 | I40: 2.824 | J40: =E40*H40 -> 0 | K40: 0 | M40: 0 | N40: =J40*L40 -> 0 | O40: 2.824 | P40: =+J40-N40 -> 0 | Q40: 344.528 | R40: =+J40*E$7 -> 0
C41: Other Labor | D41: 0.19 | F41: Hour | G41: 17.65 | I41: 3.3535 | J41: =E41*H41 -> 0 | K41: 0 | M41: 0 | N41: =J41*L41 -> 0 | O41: 3.3535 | P41: =+J41-N41 -> 0 | Q41: 409.127 | R41: =+J41*E$7 -> 0
B43: Diesel Fuel
C44: Pickup/General Use Equipment | D44: 1 | F44: Acre | G44: 0 | I44: 0 | J44: =E44*H44 -> 0 | K44: 0 | M44: 0 | N44: =J44*L44 -> 0 | O44: 0 | P44: =+J44-N44 -> 0 | Q44: 0 | R44: =+J44*E$7 -> 0
C45: Tractors/Self-Propelled | D45: 1.09 | F45: Gallon | G45: 3.1 | I45: 3.379 | J45: =E45*H45 -> 0 | K45: 0 | M45: 0 | N45: =J45*L45 -> 0 | O45: 3.379 | P45: =+J45-N45 -> 0 | Q45: 412.238 | R45: =+J45*E$7 -> 0
B47: Gasoline
C48: Pickup/General Use Equipment | D48: 1 | F48: Acre | G48: 4.918032787 | I48: 4.918032787 | J48: =E48*H48 -> 0 | K48: 0 | M48: 0 | N48: =J48*L48 -> 0 | O48: 4.918032787 | P48: =+J48-N48 -> 0 | Q48: 600 | R48: =+J48*E$7 -> 0
C49: Tractors/Self-Propelled | D49: 0 | F49: Gallon | G49: 2.4 | I49: 0 | J49: =E49*H49 -> 0 | K49: 0 | M49: 0 | N49: =J49*L49 -> 0 | O49: 0 | P49: =+J49-N49 -> 0 | Q49: 0 | R49: =+J49*E$7 -> 0
B51: Repairs & Maintenance
C52: Pickup/General Use Equipment | D52: 1 | F52: Acre | G52: 2.508196721 | I52: 2.508196721 | J52: =E52*H52 -> 0 | K52: 0 | M52: 0 | N52: =J52*L52 -> 0 | O52: 2.508196721 | P52: =+J52-N52 -> 0 | Q52: 306 | R52: =+J52*E$7 -> 0
C53: Irrigation Equipment | D53: 1 | F53: Acre | G53: 37.5 | I53: 37.5 | J53: 0 | K53: 0 | M53: 0 | N53: 0 | O53: 37.5 | P53: 0 | Q53: 4575 | R53: 0
C54: Tractors/Self-Propelled | D54: 1 | F54: Acre | G54: 2.553411609 | I54: 2.553411609 | J54: 0 | K54: 0 | M54: 0 | N54: 0 | O54: 2.553411609 | P54: 0 | Q54: 311.5162163 | R54: 0
C55: Implements | D55: 1 | F55: Acre | G55: 6.250886416 | I55: 6.250886416 | J55: 0 | K55: 0 | M55: 0 | N55: 0 | O55: 6.250886416 | P55: 0 | Q55: 762.6081428 | R55: 0
I56: 0 | J56: 0 | K56: 0 | M56: 0 | N56: 0 | O56: 0 | P56: 0 | Q56: 0 | R56: 0
I57: 0 | J57: 0 | K57: 0 | M57: 0 | N57: 0 | O57: 0 | P57: 0 | Q57: 0 | R57: 0
B58: Interest on Credit Line | G58: 0.09 | I58: 13.55661886 | J58: =+SUM(J17:J57)/2*H58 -> 0 | M58: 0 | N58: =+SUM(N17:N57)/2*L58 -> 0 | O58: 13.55661886 | P58: =+SUM(P17:P57)/2*L58 -> 0 | Q58: 1653.907501 | R58: =+J58*E$7 -> 0
A59: Total Variable Costs | I59: 438.6928864 | J59: =SUM(J18:J58) -> 0 | M59: 0 | N59: =SUM(N18:N58) -> 0 | O59: 438.6928864 | P59: =SUM(P18:P58) -> 0 | Q59: 53520.53214 | R59: =SUM(R18:R58) -> 0
A60: Planned Returns Above Variable Costs: | I60: 56.30711361 | J60: =+J13-J59 -> 0 | M60: 0 | N60: =+N13-N59 -> 0 | O60: 56.30711361 | P60: =+P13-P59 -> 0 | Q60: 6869.46786 | R60: =+R13-R59 -> 0
B61: Breakeven Price to Cover Variable Costs | G61: 7.311548107 | H61: =IF(E10=0,"n/a",(YVarExp-(YTotExp+YTotRet-J10))/E10) -> n/a | I61: CWT
Q62: Enterprise | R62: Enterprise
A63: FIXED COSTS | D63: Quantity | E63: Quantity | F63: Units | G63: $/Unit | H63: $/Unit | I63: Total | J63: Total | K63: Share | L63: Share | M63: Landlord | N63: Landlord | O63: Tenant | P63: Tenant | Q63: Total | R63: Total
B64: Machinery Depreciation
C65: Pickup/General Use Equipment | D65: 1 | F65: Acre | G65: 2.633606557 | I65: 2.633606557 | J65: =E65*H65 -> 0 | K65: 0 | M65: 0 | N65: =J65*L65 -> 0 | O65: 2.633606557 | P65: =+J65-N65 -> 0 | Q65: 321.3 | R65: =+J65*E$7 -> 0
C66: Irrigation Equipment | D66: 1 | F66: Acre | G66: 47.33606557 | I66: 47.33606557 | J66: 0 | K66: 0 | M66: 0 | N66: =J66*L66 -> 0 | O66: 47.33606557 | P66: 0 | Q66: 5775 | R66: 0
C67: Tractors/Self-Propelled | D67: 1 | F67: Acre | G67: 2.596580648 | I67: 2.596580648 | J67: 0 | K67: 0 | M67: 0 | N67: =J67*L67 -> 0 | O67: 2.596580648 | P67: 0 | Q67: 316.7828391 | R67: 0
C68: Implements | D68: 1 | F68: Acre | G68: 7.717103946 | I68: 7.717103946 | J68: 0 | K68: 0 | M68: 0 | N68: =J68*L68 -> 0 | O68: 7.717103946 | P68: 0 | Q68: 941.4866815 | R68: 0
B69: Equipment Investment
C70: Pickup/General Use Equipment | D70: 18.18442623 | F70: Dollars | G70: 0.09 | I70: 1.636598361 | J70: =E70*H70 -> 0 | K70: 0 | M70: 0 | N70: =J70*L70 -> 0 | O70: 1.636598361 | P70: =+J70-N70 -> 0 | Q70: 199.665 | R70: =+J70*E$7 -> 0
C71: Irrigation Equipment | D71: 571.7213115 | F71: Dollars | G71: 0.09 | I71: 51.45491803 | J71: 0 | K71: 0 | M71: 0 | N71: =J71*L71 -> 0 | O71: 51.45491803 | P71: 0 | Q71: 6277.5 | R71: 0
C72: Tractors/Self-Propelled | D72: 20.22820086 | F72: Dollars | G72: 0.09 | I72: 1.820538077 | J72: 0 | K72: 0 | M72: 0 | N72: =J72*L72 -> 0 | O72: 1.820538077 | P72: 0 | Q72: 222.1056454 | R72: 0
C73: Implements | D73: 33.01205577 | F73: Dollars | G73: 0.09 | I73: 2.971085019 | J73: 0 | K73: 0 | M73: 0 | N73: =J73*L73 -> 0 | O73: 2.971085019 | P73: 0 | Q73: 362.4723724 | R73: 0
B74: Salaried Labor | D74: 1 | F74: Acre | G74: 0 | I74: 0 | J74: 0 | K74: 0 | M74: 0 | N74: =J74*L74 -> 0 | O74: 0 | P74: =+J74-N74 -> 0 | Q74: 0 | R74: =+J74*E$7 -> 0
B75: Management Fee, Owner/Operator Labor | D75: 1 | F75: Acre | G75: 0 | I75: 0 | J75: 0 | K75: 0 | M75: 0 | N75: 0 | O75: 0 | P75: 0 | Q75: 0 | R75: 0
B76: Allocated Establishment Cost | D76: 1 | F76: Acre | G76: 0 | I76: 0 | J76: 0 | K76: 0 | M76: 0 | N76: 0 | O76: 0 | P76: 0 | Q76: 0 | R76: 0
B77: Cash Rent - Sorghum f | D77: 1 | F77: Acre | G77: 125 | I77: 125 | J77: 0 | K77: 0 | M77: 0 | N77: 0 | O77: 125 | P77: 0 | Q77: 15250 | R77: 0
B78: Property Taxes | D78: 1 | F78: Acre | G78: 0 | I78: 0 | J78: 0 | K78: 0 | M78: 0 | N78: 0 | O78: 0 | P78: 0 | Q78: 0 | R78: 0
B79: Whole Farm Insurance | D79: 1 | F79: Acre | G79: 0 | I79: 0 | J79: 0 | K79: 0 | M79: 0 | N79: 0 | O79: 0 | P79: 0 | Q79: 0 | R79: 0
D80: 1 | G80: 0 | I80: 0 | J80: 0 | K80: 0 | M80: 0 | N80: 0 | O80: 0 | P80: 0 | Q80: 0 | R80: 0
D81: 1 | G81: 0 | I81: 0 | J81: =E81*H81 -> 0 | K81: 0 | M81: 0 | N81: 0 | O81: 0 | P81: 0 | Q81: 0 | R81: 0
A82: Total Fixed Costs | I82: 243.1664962 | J82: =+SUM(J65:J81) -> 0 | M82: 0 | N82: =+SUM(N65:N81) -> 0 | O82: 243.1664962 | P82: =+SUM(P65:P81) -> 0 | Q82: 29666.31254 | R82: =+SUM(R65:R81) -> 0
A83: Total Specified Costs | I83: 681.8593826 | J83: =+J59+J82 -> 0 | M83: 0 | N83: =+N59+N82 -> 0 | O83: 681.8593826 | P83: =+P59+P82 -> 0 | Q83: 83186.84468 | R83: =+R59+R82 -> 0
A85: Returns Above Specified Costs | I85: -186.8593826 | J85: =+J13-J83 -> 0 | M85: 0 | N85: =+N13-N83 -> 0 | O85: -186.8593826 | P85: =+P13-P83 -> 0 | Q85: -22796.84468 | R85: =+R13-R83 -> 0
A87: Breakeven Price to Cover Total Costs | G87: 11.36432304 | H87: =IF(E10=0,"n/a",(YTotExp-(YTotExp+YTotRet-J10))/E10) -> n/a | I87: CWT
D89: Example Breakeven Prices
B90: Example | C90: Example | D90: To Cover | G90: To Cover
B91: Yield | C91: Yield | D91: Variable | G91: Total
B92: Percent | C92: CWT | D92: Costs | G92: Costs
B93: 0.75 | C93: 45 | D93: 9.748730809 | G93: 15.15243072
B94: 0.9 | C94: 54 | D94: 8.123942341 | G94: 12.6270256
B95: 1 | C95: 60 | D95: 7.311548107 | G95: 11.36432304
B96: 1.1 | C96: 66 | D96: 6.646861915 | G96: 10.33120277
B97: 1.25 | C97: 75 | D97: 5.849238485 | G97: 9.091458435
A99: Developed by Justin Benavidez, Assistant Professor, Texas A&M AgriLife Extension, 806-677-5600.
A101: Information presented is prepared solely as a general guide and not intended to recognize or predict the costs and returns from any one operation. Brand names are mentioned only as examples and imply no endorsement.

Sheet SeedSorghum
A1: Projections for Planning Purposes Only -- Not to be Used without Updating
A2: 2024 Estimated Costs and Returns per Acre
A3: Seed Sorghum, Sprinkler Irrigated (NG)
A4: Enter your name for this budget in the cell above.
A5: Enter Your Values in the cells highlighed in MAROON.
E6: Your Acres | R6: Your
C7: Crop Acres | D7: 122 | L7: Your | Q7: Enterprise | R7: Enterprise
E8: Your | H8: Your | I8: Cash | J8: Your | K8: Landlord | L8: Landlord | N8: Your | P8: Your | Q8: Total | R8: Total
A9: REVENUE | D9: Quantity | E9: Quantity | F9: Units | G9: $/Unit | H9: $/Unit | I9: Total | J9: Total | K9: Share | L9: Share | M9: Landlord | N9: Landlord | O9: Tenant | P9: Tenant | Q9: (122 acres) | R9: ="(" & E7 & " acres)" -> ( acres)
B10: Seed Sorghum - Female Only | D10: 45 | F10: CWT | G10: 24.06 | I10: 1082.7 | J10: =E10*H10 -> 0 | K10: 0 | M10: 0 | N10: =J10*L10 -> 0 | O10: 1082.7 | P10: =+J10-N10 -> 0 | Q10: 132089.4 | R10: =+J10*E$7 -> 0
D11: 0 | G11: 0 | I11: 0 | J11: 0 | K11: 0 | M11: 0 | N11: 0 | O11: 0 | P11: =+J11-N11 -> 0 | Q11: 0 | R11: 0
D12: 0 | G12: 0 | I12: 0 | J12: 0 | K12: 0 | M12: 0 | N12: 0 | O12: 0 | P12: 0 | Q12: 0 | R12: 0
A13: Total Revenue | I13: 1082.7 | J13: =SUM(J10:J12) -> 0 | M13: 0 | N13: =SUM(N10:N12) -> 0 | O13: 1082.7 | P13: =SUM(P10:P12) -> 0 | Q13: 132089.4 | R13: =SUM(R10:R12) -> 0
Q14: Enterprise | R14: Enterprise
A15: VARIABLE COSTS | D15: Quantity | E15: Quantity | F15: Units | G15: $/Unit | H15: $/Unit | I15: Total | J15: Total | K15: Share | L15: Share | M15: Landlord | N15: Landlord | O15: Tenant | P15: Tenant | Q15: Total | R15: Total
A16: Production Costs
B17: Herbicide
C18: Herbicide and Apply Sorghum Irrig. | D18: 1 | F18: Acre | G18: 57.75 | I18: 57.75 | J18: =E18*H18 -> 0 | K18: 0 | M18: 0 | N18: =J18*L18 -> 0 | O18: 57.75 | P18: =+J18-N18 -> 0 | Q18: 7045.5 | R18: =+J18*E$7 -> 0
B19: Seed
C20: Seed - Sorghum | D20: 0 | F20: Pound | G20: 3.2 | I20: 0 | J20: 0 | K20: 0 | M20: 0 | N20: 0 | O20: 0 | P20: 0 | Q20: 0 | R20: 0
B21: Fertilizer
C22: Fertilizer (N) - ANH3 | D22: 65 | F22: Pound | G22: 0.427 | I22: 27.755 | J22: 0 | K22: 0 | M22: 0 | N22: 0 | O22: 27.755 | P22: 0 | Q22: 3386.11 | R22: 0
C23: Fertilizer (P) - Liquid | D23: 50 | F23: Pound | G23: 0.882 | I23: 44.1 | J23: 0 | K23: 0 | M23: 0 | N23: 0 | O23: 44.1 | P23: 0 | Q23: 5380.2 | R23: 0
C24: Fertilizer (N) - Liquid | D24: 60 | F24: Pound | G24: 0.578 | I24: 34.68 | J24: 0 | K24: 0 | M24: 0 | N24: 0 | O24: 34.68 | P24: 0 | Q24: 4230.96 | R24: 0
B25: Custom
C26: Fertilizer Application - ANH3 | D26: 1 | F26: Acre | G26: 18 | I26: 18 | J26: 0 | K26: 0 | M26: 0 | N26: 0 | O26: 18 | P26: 0 | Q26: 2196 | R26: 0
C27: Harvest and Haul - Sorghum | D27: 45 | F27: CWT | G27: 1 | I27: 45 | J27: 0 | K27: 0 | M27: 0 | N27: 0 | O27: 45 | P27: 0 | Q27: 5490 | R27: 0
B28: Miscellaneous
C29: Crop Insurance Sorghum - Irrigated | D29: 1 | F29: Acre | G29: 30 | I29: 30 | J29: 0 | K29: 0 | M29: 0 | N29: 0 | O29: 30 | P29: 0 | Q29: 3660 | R29: 0
B30: Insecticide
C31: Insecticide Head Worm | D31: 0.67 | F31: Application | G31: 27.5 | I31: 18.425 | J31: 0 | K31: 0 | M31: 0 | N31: 0 | O31: 18.425 | P31: 0 | Q31: 2247.85 | R31: 0
C32: Insecticide Sugar Cane Aphid | D32: 1 | F32: Application | G32: 21 | I32: 21 | J32: 0 | K32: 0 | M32: 0 | N32: 0 | O32: 21 | P32: 0 | Q32: 2562 | R32: 0
D33: 0 | G33: 0 | I33: 0 | J33: 0 | K33: 0 | M33: 0 | N33: 0 | O33: 0 | P33: 0 | Q33: 0 | R33: 0
D34: 0 | G34: 0 | I34: 0 | J34: 0 | K34: 0 | M34: 0 | N34: 0 | O34: 0 | P34: 0 | Q34: 0 | R34: 0
D35: 0 | G35: 0 | I35: 0 | J35: =E35*H35 -> 0 | K35: 0 | M35: 0 | N35: =J35*L35 -> 0 | O35: 0 | P35: =+J35-N35 -> 0 | Q35: 0 | R35: =+J35*E$7 -> 0
B36: Irrigation
C37: Energy Cost | D37: 16 | F37: AcreInch | G37: 3.8 | I37: 60.8 | J37: =E37*H37 -> 0 | K37: 0 | M37: 0 | N37: =J37*L37 -> 0 | O37: 60.8 | P37: =+J37-N37 -> 0 | Q37: 7417.6 | R37: =+J37*E$7 -> 0
C38: Irrigation Labor | D38: 1.024 | F38: Hour | G38: 17.94 | I38: 18.37056 | J38: 0 | K38: 0 | M38: 0 | N38: 0 | O38: 18.37056 | P38: 0 | Q38: 2241.20832 | R38: 0
B39: Machinery Labor
C40: Tractors/Self-Propelled | D40: 0.16 | F40: Hour | G40: 17.65 | I40: 2.824 | J40: =E40*H40 -> 0 | K40: 0 | M40: 0 | N40: =J40*L40 -> 0 | O40: 2.824 | P40: =+J40-N40 -> 0 | Q40: 344.528 | R40: =+J40*E$7 -> 0
C41: Other Labor | D41: 0.19 | F41: Hour | G41: 17.65 | I41: 3.3535 | J41: =E41*H41 -> 0 | K41: 0 | M41: 0 | N41: =J41*L41 -> 0 | O41: 3.3535 | P41: =+J41-N41 -> 0 | Q41: 409.127 | R41: =+J41*E$7 -> 0
B43: Diesel Fuel
C44: Pickup/General Use Equipment | D44: 1 | F44: Acre | G44: 0 | I44: 0 | J44: =E44*H44 -> 0 | K44: 0 | M44: 0 | N44: =J44*L44 -> 0 | O44: 0 | P44: =+J44-N44 -> 0 | Q44: 0 | R44: =+J44*E$7 -> 0
C45: Tractors/Self-Propelled | D45: 1.09 | F45: Gallon | G45: 3.1 | I45: 3.379 | J45: =E45*H45 -> 0 | K45: 0 | M45: 0 | N45: =J45*L45 -> 0 | O45: 3.379 | P45: =+J45-N45 -> 0 | Q45: 412.238 | R45: =+J45*E$7 -> 0
B47: Gasoline
C48: Pickup/General Use Equipment | D48: 1 | F48: Acre | G48: 4.918032787 | I48: 4.918032787 | J48: =E48*H48 -> 0 | K48: 0 | M48: 0 | N48: =J48*L48 -> 0 | O48: 4.918032787 | P48: =+J48-N48 -> 0 | Q48: 600 | R48: =+J48*E$7 -> 0
C49: Tractors/Self-Propelled | D49: 0 | F49: Gallon | G49: 2.4 | I49: 0 | J49: =E49*H49 -> 0 | K49: 0 | M49: 0 | N49: =J49*L49 -> 0 | O49: 0 | P49: =+J49-N49 -> 0 | Q49: 0 | R49: =+J49*E$7 -> 0
B51: Repairs & Maintenance
C52: Pickup/General Use Equipment | D52: 1 | F52: Acre | G52: 2.508196721 | I52: 2.508196721 | J52: =E52*H52 -> 0 | K52: 0 | M52: 0 | N52: =J52*L52 -> 0 | O52: 2.508196721 | P52: =+J52-N52 -> 0 | Q52: 306 | R52: =+J52*E$7 -> 0
C53: Irrigation Equipment | D53: 1 | F53: Acre | G53: 60 | I53: 60 | J53: 0 | K53: 0 | M53: 0 | N53: 0 | O53: 60 | P53: 0 | Q53: 7320 | R53: 0
C54: Tractors/Self-Propelled | D54: 1 | F54: Acre | G54: 2.553411609 | I54: 2.553411609 | J54: 0 | K54: 0 | M54: 0 | N54: 0 | O54: 2.553411609 | P54: 0 | Q54: 311.5162163 | R54: 0
C55: Implements | D55: 1 | F55: Acre | G55: 6.250886416 | I55: 6.250886416 | J55: 0 | K55: 0 | M55: 0 | N55: 0 | O55: 6.250886416 | P55: 0 | Q55: 762.6081428 | R55: 0
I56: 0 | J56: 0 | K56: 0 | M56: 0 | N56: 0 | O56: 0 | P56: 0 | Q56: 0 | R56: 0
I57: 0 | J57: 0 | K57: 0 | M57: 0 | N57: 0 | O57: 0 | P57: 0 | Q57: 0 | R57: 0
B58: Interest on Credit Line | G58: 0.09 | I58: 14.72984835 | J58: =+SUM(J17:J57)/2*H58 -> 0 | M58: 0 | N58: =+SUM(N17:N57)/2*L58 -> 0 | O58: 14.72984835 | P58: =+SUM(P17:P57)/2*L58 -> 0 | Q58: 1797.041499 | R58: =+J58*E$7 -> 0
A59: Total Variable Costs | I59: 476.3974359 | J59: =SUM(J18:J58) -> 0 | M59: 0 | N59: =SUM(N18:N58) -> 0 | O59: 476.3974359 | P59: =SUM(P18:P58) -> 0 | Q59: 58120.48718 | R59: =SUM(R18:R58) -> 0
A60: Planned Returns Above Variable Costs: | I60: 606.3025641 | J60: =+J13-J59 -> 0 | M60: 0 | N60: =+N13-N59 -> 0 | O60: 606.3025641 | P60: =+P13-P59 -> 0 | Q60: 73968.91282 | R60: =+R13-R59 -> 0
B61: Breakeven Price to Cover Variable Costs | G61: 10.58660969 | H61: =IF(E10=0,"n/a",(YVarExp-(YTotExp+YTotRet-J10))/E10) -> n/a | I61: CWT
Q62: Enterprise | R62: Enterprise
A63: FIXED COSTS | D63: Quantity | E63: Quantity | F63: Units | G63: $/Unit | H63: $/Unit | I63: Total | J63: Total | K63: Share | L63: Share | M63: Landlord | N63: Landlord | O63: Tenant | P63: Tenant | Q63: Total | R63: Total
B64: Machinery Depreciation
C65: Pickup/General Use Equipment | D65: 1 | F65: Acre | G65: 2.633606557 | I65: 2.633606557 | J65: =E65*H65 -> 0 | K65: 0 | M65: 0 | N65: =J65*L65 -> 0 | O65: 2.633606557 | P65: =+J65-N65 -> 0 | Q65: 321.3 | R65: =+J65*E$7 -> 0
C66: Irrigation Equipment | D66: 1 | F66: Acre | G66: 40.42008197 | I66: 40.42008197 | J66: 0 | K66: 0 | M66: 0 | N66: =J66*L66 -> 0 | O66: 40.42008197 | P66: 0 | Q66: 4931.25 | R66: 0
C67: Tractors/Self-Propelled | D67: 1 | F67: Acre | G67: 2.596580648 | I67: 2.596580648 | J67: 0 | K67: 0 | M67: 0 | N67: =J67*L67 -> 0 | O67: 2.596580648 | P67: 0 | Q67: 316.7828391 | R67: 0
C68: Implements | D68: 1 | F68: Acre | G68: 7.717103946 | I68: 7.717103946 | J68: 0 | K68: 0 | M68: 0 | N68: =J68*L68 -> 0 | O68: 7.717103946 | P68: 0 | Q68: 941.4866815 | R68: 0
B69: Equipment Investment
C70: Pickup/General Use Equipment | D70: 18.18442623 | F70: Dollars | G70: 0.09 | I70: 1.636598361 | J70: =E70*H70 -> 0 | K70: 0 | M70: 0 | N70: =J70*L70 -> 0 | O70: 1.636598361 | P70: =+J70-N70 -> 0 | Q70: 199.665 | R70: =+J70*E$7 -> 0
C71: Irrigation Equipment | D71: 521.0040984 | F71: Dollars | G71: 0.09 | I71: 46.89036885 | J71: 0 | K71: 0 | M71: 0 | N71: =J71*L71 -> 0 | O71: 46.89036885 | P71: 0 | Q71: 5720.625 | R71: 0
C72: Tractors/Self-Propelled | D72: 20.22820086 | F72: Dollars | G72: 0.09 | I72: 1.820538077 | J72: 0 | K72: 0 | M72: 0 | N72: =J72*L72 -> 0 | O72: 1.820538077 | P72: 0 | Q72: 222.1056454 | R72: 0
C73: Implements | D73: 33.01205577 | F73: Dollars | G73: 0.09 | I73: 2.971085019 | J73: 0 | K73: 0 | M73: 0 | N73: =J73*L73 -> 0 | O73: 2.971085019 | P73: 0 | Q73: 362.4723724 | R73: 0
B74: Salaried Labor | D74: 1 | F74: Acre | G74: 0 | I74: 0 | J74: 0 | K74: 0 | M74: 0 | N74: =J74*L74 -> 0 | O74: 0 | P74: =+J74-N74 -> 0 | Q74: 0 | R74: =+J74*E$7 -> 0
B75: Management Fee, Owner/Operator Labor | D75: 1 | F75: Acre | G75: 0 | I75: 0 | J75: 0 | K75: 0 | M75: 0 | N75: 0 | O75: 0 | P75: 0 | Q75: 0 | R75: 0
B76: Allocated Establishment Cost | D76: 1 | F76: Acre | G76: 0 | I76: 0 | J76: 0 | K76: 0 | M76: 0 | N76: 0 | O76: 0 | P76: 0 | Q76: 0 | R76: 0
B77: Cash Rent - Sorghum f | D77: 1 | F77: Acre | G77: 125 | I77: 125 | J77: 0 | K77: 0 | M77: 0 | N77: 0 | O77: 125 | P77: 0 | Q77: 15250 | R77: 0
B78: Property Taxes | D78: 1 | F78: Acre | G78: 0 | I78: 0 | J78: 0 | K78: 0 | M78: 0 | N78: 0 | O78: 0 | P78: 0 | Q78: 0 | R78: 0
B79: Whole Farm Insurance | D79: 1 | F79: Acre | G79: 0 | I79: 0 | J79: 0 | K79: 0 | M79: 0 | N79: 0 | O79: 0 | P79: 0 | Q79: 0 | R79: 0
D80: 1 | G80: 0 | I80: 0 | J80: 0 | K80: 0 | M80: 0 | N80: 0 | O80: 0 | P80: 0 | Q80: 0 | R80: 0
D81: 1 | G81: 0 | I81: 0 | J81: =E81*H81 -> 0 | K81: 0 | M81: 0 | N81: 0 | O81: 0 | P81: 0 | Q81: 0 | R81: 0
A82: Total Fixed Costs | I82: 231.6859634 | J82: =+SUM(J65:J81) -> 0 | M82: 0 | N82: =+SUM(N65:N81) -> 0 | O82: 231.6859634 | P82: =+SUM(P65:P81) -> 0 | Q82: 28265.68754 | R82: =+SUM(R65:R81) -> 0
A83: Total Specified Costs | I83: 708.0833993 | J83: =+J59+J82 -> 0 | M83: 0 | N83: =+N59+N82 -> 0 | O83: 708.0833993 | P83: =+P59+P82 -> 0 | Q83: 86386.17472 | R83: =+R59+R82 -> 0
A85: Returns Above Specified Costs | I85: 374.6166007 | J85: =+J13-J83 -> 0 | M85: 0 | N85: =+N13-N83 -> 0 | O85: 374.6166007 | P85: =+P13-P83 -> 0 | Q85: 45703.22528 | R85: =+R13-R83 -> 0
A87: Breakeven Price to Cover Total Costs | G87: 15.73518665 | H87: =IF(E10=0,"n/a",(YTotExp-(YTotExp+YTotRet-J10))/E10) -> n/a | I87: CWT
D89: Example Breakeven Prices
B90: Example | C90: Example | D90: To Cover | G90: To Cover
B91: Yield | C91: Yield | D91: Variable | G91: Total
B92: Percent | C92: CWT | D92: Costs | G92: Costs
B93: 0.75 | C93: 33.75 | D93: 14.11547958 | G93: 20.98024887
B94: 0.9 | C94: 40.5 | D94: 11.76289965 | G94: 17.48354072
B95: 1 | C95: 45 | D95: 10.58660969 | G95: 15.73518665
B96: 1.1 | C96: 49.5 | D96: 9.624190624 | G96: 14.30471514
B97: 1.25 | C97: 56.25 | D97: 8.469287749 | G97: 12.58814932
A99: Developed by Justin Benavidez, Assistant Professor, Texas A&M AgriLife Extension, 806-677-5600.
A101: Information presented is prepared solely as a general guide and not intended to recognize or predict the costs and returns from any one operation. Brand names are mentioned only as examples and imply no endorsement.

Sheet SoybeansSprinkler
A1: Projections for Planning Purposes Only -- Not to be Used without Updating
A2: 2024 Estimated Costs and Returns per Acre
A3: Soybeans, Roundup Ready, Sprinkler Irrigated (NG)
A4: Enter your name for this budget in the cell above.
A5: Enter Your Values in the cells highlighed in MAROON.
E6: Your Acres | R6: Your
C7: Crop Acres | D7: 122 | L7: Your | Q7: Enterprise | R7: Enterprise
E8: Your | H8: Your | I8: Cash | J8: Your | K8: Landlord | L8: Landlord | N8: Your | P8: Your | Q8: Total | R8: Total
A9: REVENUE | D9: Quantity | E9: Quantity | F9: Units | G9: $/Unit | H9: $/Unit | I9: Total | J9: Total | K9: Share | L9: Share | M9: Landlord | N9: Landlord | O9: Tenant | P9: Tenant | Q9: (122 acres) | R9: ="(" & E7 & " acres)" -> ( acres)
B10: Soybeans | D10: 60 | F10: Bushel | G10: 11 | I10: 660 | J10: =E10*H10 -> 0 | K10: 0 | M10: 0 | N10: =J10*L10 -> 0 | O10: 660 | P10: =+J10-N10 -> 0 | Q10: 80520 | R10: =+J10*E$7 -> 0
D11: 0 | G11: 0 | I11: 0 | J11: 0 | K11: 0 | M11: 0 | N11: 0 | O11: 0 | P11: =+J11-N11 -> 0 | Q11: 0 | R11: 0
D12: 0 | G12: 0 | I12: 0 | J12: 0 | K12: 0 | M12: 0 | N12: 0 | O12: 0 | P12: 0 | Q12: 0 | R12: 0
A13: Total Revenue | I13: 660 | J13: =SUM(J10:J12) -> 0 | M13: 0 | N13: =SUM(N10:N12) -> 0 | O13: 660 | P13: =SUM(P10:P12) -> 0 | Q13: 80520 | R13: =SUM(R10:R12) -> 0
Q14: Enterprise | R14: Enterprise
A15: VARIABLE COSTS | D15: Quantity | E15: Quantity | F15: Units | G15: $/Unit | H15: $/Unit | I15: Total | J15: Total | K15: Share | L15: Share | M15: Landlord | N15: Landlord | O15: Tenant | P15: Tenant | Q15: Total | R15: Total
A16: Production Costs
B17: Seed
C18: Seed - Soybeans | D18: 1 | F18: Bag | G18: 76 | I18: 76 | J18: =E18*H18 -> 0 | K18: 0 | M18: 0 | N18: =J18*L18 -> 0 | O18: 76 | P18: =+J18-N18 -> 0 | Q18: 9272 | R18: =+J18*E$7 -> 0
C19: Innoculant Soybeans | D19: 1 | F19: Acre | G19: 7.1 | I19: 7.1 | J19: 0 | K19: 0 | M19: 0 | N19: 0 | O19: 7.1 | P19: 0 | Q19: 866.2 | R19: 0
B20: Fertilizer
C21: Fertilizer (P) - Liquid | D21: 50 | F21: Pound | G21: 0.882 | I21: 44.1 | J21: 0 | K21: 0 | M21: 0 | N21: 0 | O21: 44.1 | P21: 0 | Q21: 5380.2 | R21: 0
B22: Custom
C23: Harvest and Haul - Soybeans | D23: 60 | F23: Bushel | G23: 1 | I23: 60 | J23: 0 | K23: 0 | M23: 0 | N23: 0 | O23: 60 | P23: 0 | Q23: 7320 | R23: 0
B24: Herbicide
C25: Herbicide and Apply Soybeans | D25: 2 | F25: Acre | G25: 30.25 | I25: 60.5 | J25: 0 | K25: 0 | M25: 0 | N25: 0 | O25: 60.5 | P25: 0 | Q25: 7381 | R25: 0
B26: Insecticide
C27: Insecticide and Apply Soybeans | D27: 0.5 | F27: Acre | G27: 14.77 | I27: 7.385 | J27: 0 | K27: 0 | M27: 0 | N27: 0 | O27: 7.385 | P27: 0 | Q27: 900.97 | R27: 0
B28: Miscellaneous
C29: Crop Insurance Soybeans | D29: 1 | F29: Acre | G29: 25 | I29: 25 | J29: 0 | K29: 0 | M29: 0 | N29: 0 | O29: 25 | P29: 0 | Q29: 3050 | R29: 0
D30: 0 | G30: 0 | I30: 0 | J30: 0 | K30: 0 | M30: 0 | N30: 0 | O30: 0 | P30: 0 | Q30: 0 | R30: 0
D31: 0 | G31: 0 | I31: 0 | J31: 0 | K31: 0 | M31: 0 | N31: 0 | O31: 0 | P31: 0 | Q31: 0 | R31: 0
D32: 0 | G32: 0 | I32: 0 | J32: =E32*H32 -> 0 | K32: 0 | M32: 0 | N32: =J32*L32 -> 0 | O32: 0 | P32: =+J32-N32 -> 0 | Q32: 0 | R32: =+J32*E$7 -> 0
B33: Irrigation
C34: Energy Cost | D34: 16 | F34: AcreInch | G34: 3.8 | I34: 60.8 | J34: =E34*H34 -> 0 | K34: 0 | M34: 0 | N34: =J34*L34 -> 0 | O34: 60.8 | P34: =+J34-N34 -> 0 | Q34: 7417.6 | R34: =+J34*E$7 -> 0
C35: Irrigation Labor | D35: 0.896 | F35: Hour | G35: 17.94 | I35: 16.07424 | J35: 0 | K35: 0 | M35: 0 | N35: 0 | O35: 16.07424 | P35: 0 | Q35: 1961.05728 | R35: 0
B36: Machinery Labor
C37: Tractors/Self-Propelled | D37: 0.12 | F37: Hour | G37: 17.65 | I37: 2.118 | J37: =E37*H37 -> 0 | K37: 0 | M37: 0 | N37: =J37*L37 -> 0 | O37: 2.118 | P37: =+J37-N37 -> 0 | Q37: 258.396 | R37: =+J37*E$7 -> 0
C38: Other Labor | D38: 0.14 | F38: Hour | G38: 17.65 | I38: 2.471 | J38: =E38*H38 -> 0 | K38: 0 | M38: 0 | N38: =J38*L38 -> 0 | O38: 2.471 | P38: =+J38-N38 -> 0 | Q38: 301.462 | R38: =+J38*E$7 -> 0
B40: Diesel Fuel
C41: Pickup/General Use Equipment | D41: 1 | F41: Acre | G41: 0 | I41: 0 | J41: =E41*H41 -> 0 | K41: 0 | M41: 0 | N41: =J41*L41 -> 0 | O41: 0 | P41: =+J41-N41 -> 0 | Q41: 0 | R41: =+J41*E$7 -> 0
C42: Tractors/Self-Propelled | D42: 0.78 | F42: Gallon | G42: 3.1 | I42: 2.418 | J42: =E42*H42 -> 0 | K42: 0 | M42: 0 | N42: =J42*L42 -> 0 | O42: 2.418 | P42: =+J42-N42 -> 0 | Q42: 294.996 | R42: =+J42*E$7 -> 0
B44: Gasoline
C45: Pickup/General Use Equipment | D45: 1 | F45: Acre | G45: 4.918032787 | I45: 4.918032787 | J45: =E45*H45 -> 0 | K45: 0 | M45: 0 | N45: =J45*L45 -> 0 | O45: 4.918032787 | P45: =+J45-N45 -> 0 | Q45: 600 | R45: =+J45*E$7 -> 0
C46: Tractors/Self-Propelled | D46: 0 | F46: Gallon | G46: 2.4 | I46: 0 | J46: =E46*H46 -> 0 | K46: 0 | M46: 0 | N46: =J46*L46 -> 0 | O46: 0 | P46: =+J46-N46 -> 0 | Q46: 0 | R46: =+J46*E$7 -> 0
B48: Repairs & Maintenance
C49: Pickup/General Use Equipment | D49: 1 | F49: Acre | G49: 2.508196721 | I49: 2.508196721 | J49: =E49*H49 -> 0 | K49: 0 | M49: 0 | N49: =J49*L49 -> 0 | O49: 2.508196721 | P49: =+J49-N49 -> 0 | Q49: 306 | R49: =+J49*E$7 -> 0
C50: Irrigation Equipment | D50: 1 | F50: Acre | G50: 52.5 | I50: 52.5 | J50: 0 | K50: 0 | M50: 0 | N50: 0 | O50: 52.5 | P50: 0 | Q50: 6405 | R50: 0
C51: Tractors/Self-Propelled | D51: 1 | F51: Acre | G51: 1.739471938 | I51: 1.739471938 | J51: 0 | K51: 0 | M51: 0 | N51: 0 | O51: 1.739471938 | P51: 0 | Q51: 212.2155765 | R51: 0
C52: Implements | D52: 1 | F52: Acre | G52: 5.52979821 | I52: 5.52979821 | J52: 0 | K52: 0 | M52: 0 | N52: 0 | O52: 5.52979821 | P52: 0 | Q52: 674.6353816 | R52: 0
I53: 0 | J53: 0 | K53: 0 | M53: 0 | N53: 0 | O53: 0 | P53: 0 | Q53: 0 | R53: 0
I54: 0 | J54: 0 | K54: 0 | M54: 0 | N54: 0 | O54: 0 | P54: 0 | Q54: 0 | R54: 0
B55: Interest on Credit Line | G55: 0.09 | I55: 11.93261448 | J55: =+SUM(J17:J54)/2*H55 -> 0 | M55: 0 | N55: =+SUM(N17:N54)/2*L55 -> 0 | O55: 11.93261448 | P55: =+SUM(P17:P54)/2*L55 -> 0 | Q55: 1455.778966 | R55: =+J55*E$7 -> 0
A56: Total Variable Costs | I56: 443.0943541 | J56: =SUM(J18:J55) -> 0 | M56: 0 | N56: =SUM(N18:N55) -> 0 | O56: 443.0943541 | P56: =SUM(P18:P55) -> 0 | Q56: 54057.5112 | R56: =SUM(R18:R55) -> 0
A57: Planned Returns Above Variable Costs: | I57: 216.9056459 | J57: =+J13-J56 -> 0 | M57: 0 | N57: =+N13-N56 -> 0 | O57: 216.9056459 | P57: =+P13-P56 -> 0 | Q57: 26462.4888 | R57: =+R13-R56 -> 0
B58: Breakeven Price to Cover Variable Costs | G58: 7.384905902 | H58: =IF(E10=0,"n/a",(YVarExp-(YTotExp+YTotRet-J10))/E10) -> n/a | I58: Bushel
Q59: Enterprise | R59: Enterprise
A60: FIXED COSTS | D60: Quantity | E60: Quantity | F60: Units | G60: $/Unit | H60: $/Unit | I60: Total | J60: Total | K60: Share | L60: Share | M60: Landlord | N60: Landlord | O60: Tenant | P60: Tenant | Q60: Total | R60: Total
B61: Machinery Depreciation
C62: Pickup/General Use Equipment | D62: 1 | F62: Acre | G62: 2.633606557 | I62: 2.633606557 | J62: =E62*H62 -> 0 | K62: 0 | M62: 0 | N62: =J62*L62 -> 0 | O62: 2.633606557 | P62: =+J62-N62 -> 0 | Q62: 321.3 | R62: =+J62*E$7 -> 0
C63: Irrigation Equipment | D63: 1 | F63: Acre | G63: 40.42008197 | I63: 40.42008197 | J63: 0 | K63: 0 | M63: 0 | N63: =J63*L63 -> 0 | O63: 40.42008197 | P63: 0 | Q63: 4931.25 | R63: 0
C64: Tractors/Self-Propelled | D64: 1 | F64: Acre | G64: 1.755509655 | I64: 1.755509655 | J64: 0 | K64: 0 | M64: 0 | N64: =J64*L64 -> 0 | O64: 1.755509655 | P64: 0 | Q64: 214.172178 | R64: 0
C65: Implements | D65: 1 | F65: Acre | G65: 6.956872015 | I65: 6.956872015 | J65: 0 | K65: 0 | M65: 0 | N65: =J65*L65 -> 0 | O65: 6.956872015 | P65: 0 | Q65: 848.7383859 | R65: 0
B66: Equipment Investment
C67: Pickup/General Use Equipment | D67: 18.18442623 | F67: Dollars | G67: 0.09 | I67: 1.636598361 | J67: =E67*H67 -> 0 | K67: 0 | M67: 0 | N67: =J67*L67 -> 0 | O67: 1.636598361 | P67: =+J67-N67 -> 0 | Q67: 199.665 | R67: =+J67*E$7 -> 0
C68: Irrigation Equipment | D68: 521.0040984 | F68: Dollars | G68: 0.09 | I68: 46.89036885 | J68: 0 | K68: 0 | M68: 0 | N68: =J68*L68 -> 0 | O68: 46.89036885 | P68: 0 | Q68: 5720.625 | R68: 0
C69: Tractors/Self-Propelled | D69: 13.67598651 | F69: Dollars | G69: 0.09 | I69: 1.230838786 | J69: 0 | K69: 0 | M69: 0 | N69: =J69*L69 -> 0 | O69: 1.230838786 | P69: 0 | Q69: 150.1623319 | R69: 0
C70: Implements | D70: 29.75995251 | F70: Dollars | G70: 0.09 | I70: 2.678395726 | J70: 0 | K70: 0 | M70: 0 | N70: =J70*L70 -> 0 | O70: 2.678395726 | P70: 0 | Q70: 326.7642786 | R70: 0
B71: Salaried Labor | D71: 1 | F71: Acre | G71: 0 | I71: 0 | J71: 0 | K71: 0 | M71: 0 | N71: =J71*L71 -> 0 | O71: 0 | P71: =+J71-N71 -> 0 | Q71: 0 | R71: =+J71*E$7 -> 0
B72: Management Fee, Owner/Operator Labor | D72: 1 | F72: Acre | G72: 0 | I72: 0 | J72: 0 | K72: 0 | M72: 0 | N72: 0 | O72: 0 | P72: 0 | Q72: 0 | R72: 0
B73: Allocated Establishment Cost | D73: 1 | F73: Acre | G73: 0 | I73: 0 | J73: 0 | K73: 0 | M73: 0 | N73: 0 | O73: 0 | P73: 0 | Q73: 0 | R73: 0
B74: Cash Rent - Soybeans | D74: 1 | F74: Acre | G74: 125 | I74: 125 | J74: 0 | K74: 0 | M74: 0 | N74: 0 | O74: 125 | P74: 0 | Q74: 15250 | R74: 0
B75: Property Taxes | D75: 1 | F75: Acre | G75: 0 | I75: 0 | J75: 0 | K75: 0 | M75: 0 | N75: 0 | O75: 0 | P75: 0 | Q75: 0 | R75: 0
B76: Whole Farm Insurance | D76: 1 | F76: Acre | G76: 0 | I76: 0 | J76: 0 | K76: 0 | M76: 0 | N76: 0 | O76: 0 | P76: 0 | Q76: 0 | R76: 0
D77: 1 | G77: 0 | I77: 0 | J77: 0 | K77: 0 | M77: 0 | N77: 0 | O77: 0 | P77: 0 | Q77: 0 | R77: 0
D78: 1 | G78: 0 | I78: 0 | J78: =E78*H78 -> 0 | K78: 0 | M78: 0 | N78: 0 | O78: 0 | P78: 0 | Q78: 0 | R78: 0
A79: Total Fixed Costs | I79: 229.2022719 | J79: =+SUM(J62:J78) -> 0 | M79: 0 | N79: =+SUM(N62:N78) -> 0 | O79: 229.2022719 | P79: =+SUM(P62:P78) -> 0 | Q79: 27962.67717 | R79: =+SUM(R62:R78) -> 0
A80: Total Specified Costs | I80: 672.2966261 | J80: =+J56+J79 -> 0 | M80: 0 | N80: =+N56+N79 -> 0 | O80: 672.2966261 | P80: =+P56+P79 -> 0 | Q80: 82020.18838 | R80: =+R56+R79 -> 0
A82: Returns Above Specified Costs | I82: -12.29662605 | J82: =+J13-J80 -> 0 | M82: 0 | N82: =+N13-N80 -> 0 | O82: -12.29662605 | P82: =+P13-P80 -> 0 | Q82: -1500.188379 | R82: =+R13-R80 -> 0
A84: Breakeven Price to Cover Total Costs | G84: 11.20494377 | H84: =IF(E10=0,"n/a",(YTotExp-(YTotExp+YTotRet-J10))/E10) -> n/a | I84: Bushel
D86: Example Breakeven Prices
B87: Example | C87: Example | D87: To Cover | G87: To Cover
B88: Yield | C88: Yield | D88: Variable | G88: Total
B89: Percent | C89: Bushel | D89: Costs | G89: Costs
B90: 0.75 | C90: 45 | D90: 9.846541203 | G90: 14.93992502
B91: 0.9 | C91: 54 | D91: 8.205451002 | G91: 12.44993752
B92: 1 | C92: 60 | D92: 7.384905902 | G92: 11.20494377
B93: 1.1 | C93: 66 | D93: 6.71355082 | G93: 10.18631252
B94: 1.25 | C94: 75 | D94: 5.907924722 | G94: 8.963955014
A96: Developed by Justin Benavidez, Assistant Professor, Texas A&M AgriLife Extension, 806-677-5600.
A98: Information presented is prepared solely as a general guide and not intended to recognize or predict the costs and returns from any one operation. Brand names are mentioned only as examples and imply no endorsement.

Sheet SunflowersDryland
A1: Projections for Planning Purposes Only -- Not to be Used without Updating
A2: 2024 Estimated Costs and Returns per Acre
A3: Oilseed Sunflowers, Dryland, Strip Tillage
A4: Enter your name for this budget in the cell above.
A5: Enter Your Values in the cells highlighed in MAROON.
E6: Your Acres | R6: Your
C7: Crop Acres | D7: 160 | L7: Your | Q7: Enterprise | R7: Enterprise
E8: Your | H8: Your | I8: Cash | J8: Your | K8: Landlord | L8: Landlord | N8: Your | P8: Your | Q8: Total | R8: Total
A9: REVENUE | D9: Quantity | E9: Quantity | F9: Units | G9: $/Unit | H9: $/Unit | I9: Total | J9: Total | K9: Share | L9: Share | M9: Landlord | N9: Landlord | O9: Tenant | P9: Tenant | Q9: (160 acres) | R9: ="(" & E7 & " acres)" -> ( acres)
B10: Oilseed Sunflowers | D10: 10 | F10: CWT | G10: 20 | I10: 200 | J10: =E10*H10 -> 0 | K10: 0 | M10: 0 | N10: =J10*L10 -> 0 | O10: 200 | P10: =+J10-N10 -> 0 | Q10: 32000 | R10: =+J10*E$7 -> 0
D11: 0 | G11: 0 | I11: 0 | J11: 0 | K11: 0 | M11: 0 | N11: 0 | O11: 0 | P11: =+J11-N11 -> 0 | Q11: 0 | R11: 0
D12: 0 | G12: 0 | I12: 0 | J12: 0 | K12: 0 | M12: 0 | N12: 0 | O12: 0 | P12: 0 | Q12: 0 | R12: 0
A13: Total Revenue | I13: 200 | J13: =SUM(J10:J12) -> 0 | M13: 0 | N13: =SUM(N10:N12) -> 0 | O13: 200 | P13: =SUM(P10:P12) -> 0 | Q13: 32000 | R13: =SUM(R10:R12) -> 0
Q14: Enterprise | R14: Enterprise
A15: VARIABLE COSTS | D15: Quantity | E15: Quantity | F15: Units | G15: $/Unit | H15: $/Unit | I15: Total | J15: Total | K15: Share | L15: Share | M15: Landlord | N15: Landlord | O15: Tenant | P15: Tenant | Q15: Total | R15: Total
A16: Production Costs
B17: Herbicide
C18: Glyphosate | D18: 3 | F18: Acre | G18: 12 | I18: 36 | J18: =E18*H18 -> 0 | K18: 0 | M18: 0 | N18: =J18*L18 -> 0 | O18: 36 | P18: =+J18-N18 -> 0 | Q18: 5760 | R18: =+J18*E$7 -> 0
C19: 2-4D | D19: 1 | F19: Acre | G19: 3 | I19: 3 | J19: 0 | K19: 0 | M19: 0 | N19: 0 | O19: 3 | P19: 0 | Q19: 480 | R19: 0
C20: Prowl H2O | D20: 1 | F20: Acre | G20: 14.5 | I20: 14.5 | J20: 0 | K20: 0 | M20: 0 | N20: 0 | O20: 14.5 | P20: 0 | Q20: 2320 | R20: 0
B21: Seed
C22: Seed - Sunflower | D22: 1 | F22: Acre | G22: 20 | I22: 20 | J22: 0 | K22: 0 | M22: 0 | N22: 0 | O22: 20 | P22: 0 | Q22: 3200 | R22: 0
B23: Fertilizer
C24: Fertilizer (N) - Liquid | D24: 40 | F24: Pound | G24: 0.578 | I24: 23.12 | J24: 0 | K24: 0 | M24: 0 | N24: 0 | O24: 23.12 | P24: 0 | Q24: 3699.2 | R24: 0
B25: Custom
C26: Herbicide Application | D26: 3 | F26: Acre | G26: 7.5 | I26: 22.5 | J26: 0 | K26: 0 | M26: 0 | N26: 0 | O26: 22.5 | P26: 0 | Q26: 3600 | R26: 0
C27: Pesticide Application | D27: 1 | F27: Acre | G27: 7.5 | I27: 7.5 | J27: 0 | K27: 0 | M27: 0 | N27: 0 | O27: 7.5 | P27: 0 | Q27: 1200 | R27: 0
C28: Custom Harvest - Sunflowers | D28: 1 | F28: Acre | G28: 45 | I28: 45 | J28: 0 | K28: 0 | M28: 0 | N28: 0 | O28: 45 | P28: 0 | Q28: 7200 | R28: 0
C29: Custom Haul - Sunflowers | D29: 10 | F29: CWT | G29: 0.7 | I29: 7 | J29: 0 | K29: 0 | M29: 0 | N29: 0 | O29: 7 | P29: 0 | Q29: 1120 | R29: 0
B30: Miscellaneous
C31: Crop Insurance Sunflowers - Dryland | D31: 1 | F31: Acre | G31: 15 | I31: 15 | J31: 0 | K31: 0 | M31: 0 | N31: 0 | O31: 15 | P31: 0 | Q31: 2400 | R31: 0
B32: Insecticide
C33: Seed Insecticide - Sunflower | D33: 1 | F33: Acre | G33: 10.3 | I33: 10.3 | J33: 0 | K33: 0 | M33: 0 | N33: 0 | O33: 10.3 | P33: 0 | Q33: 1648 | R33: 0
C34: Ammo | D34: 1 | F34: Acre | G34: 4 | I34: 4 | J34: 0 | K34: 0 | M34: 0 | N34: 0 | O34: 4 | P34: 0 | Q34: 640 | R34: 0
D35: 0 | G35: 0 | I35: 0 | J35: 0 | K35: 0 | M35: 0 | N35: 0 | O35: 0 | P35: 0 | Q35: 0 | R35: 0
D36: 0 | G36: 0 | I36: 0 | J36: 0 | K36: 0 | M36: 0 | N36: 0 | O36: 0 | P36: 0 | Q36: 0 | R36: 0
D37: 0 | G37: 0 | I37: 0 | J37: =E37*H37 -> 0 | K37: 0 | M37: 0 | N37: =J37*L37 -> 0 | O37: 0 | P37: =+J37-N37 -> 0 | Q37: 0 | R37: =+J37*E$7 -> 0
B38: Machinery Labor
C39: Tractors/Self-Propelled | D39: 0.08 | F39: Hour | G39: 17.65 | I39: 1.412 | J39: =E39*H39 -> 0 | K39: 0 | M39: 0 | N39: =J39*L39 -> 0 | O39: 1.412 | P39: =+J39-N39 -> 0 | Q39: 225.92 | R39: =+J39*E$7 -> 0
C40: Other Labor | D40: 0.1 | F40: Hour | G40: 17.65 | I40: 1.765 | J40: =E40*H40 -> 0 | K40: 0 | M40: 0 | N40: =J40*L40 -> 0 | O40: 1.765 | P40: =+J40-N40 -> 0 | Q40: 282.4 | R40: =+J40*E$7 -> 0
B42: Diesel Fuel
C43: Pickup/General Use Equipment | D43: 1 | F43: Acre | G43: 0 | I43: 0 | J43: =E43*H43 -> 0 | K43: 0 | M43: 0 | N43: =J43*L43 -> 0 | O43: 0 | P43: =+J43-N43 -> 0 | Q43: 0 | R43: =+J43*E$7 -> 0
C44: Tractors/Self-Propelled | D44: 0.64 | F44: Gallon | G44: 3.1 | I44: 1.984 | J44: =E44*H44 -> 0 | K44: 0 | M44: 0 | N44: =J44*L44 -> 0 | O44: 1.984 | P44: =+J44-N44 -> 0 | Q44: 317.44 | R44: =+J44*E$7 -> 0
B46: Gasoline
C47: Pickup/General Use Equipment | D47: 1 | F47: Acre | G47: 4.875 | I47: 4.875 | J47: =E47*H47 -> 0 | K47: 0 | M47: 0 | N47: =J47*L47 -> 0 | O47: 4.875 | P47: =+J47-N47 -> 0 | Q47: 780 | R47: =+J47*E$7 -> 0
C48: Tractors/Self-Propelled | D48: 0 | F48: Gallon | G48: 2.4 | I48: 0 | J48: =E48*H48 -> 0 | K48: 0 | M48: 0 | N48: =J48*L48 -> 0 | O48: 0 | P48: =+J48-N48 -> 0 | Q48: 0 | R48: =+J48*E$7 -> 0
B50: Repairs & Maintenance
C51: Pickup/General Use Equipment | D51: 1 | F51: Acre | G51: 2.48625 | I51: 2.48625 | J51: =E51*H51 -> 0 | K51: 0 | M51: 0 | N51: =J51*L51 -> 0 | O51: 2.48625 | P51: =+J51-N51 -> 0 | Q51: 397.8 | R51: =+J51*E$7 -> 0
C52: Irrigation Equipment | D52: 1 | F52: Acre | G52: 0 | I52: 0 | J52: 0 | K52: 0 | M52: 0 | N52: 0 | O52: 0 | P52: 0 | Q52: 0 | R52: 0
C53: Tractors/Self-Propelled | D53: 1 | F53: Acre | G53: 0 | I53: 0 | J53: 0 | K53: 0 | M53: 0 | N53: 0 | O53: 0 | P53: 0 | Q53: 0 | R53: 0
C54: Implements | D54: 1 | F54: Acre | G54: 0 | I54: 0 | J54: 0 | K54: 0 | M54: 0 | N54: 0 | O54: 0 | P54: 0 | Q54: 0 | R54: 0
I55: 0 | J55: 0 | K55: 0 | M55: 0 | N55: 0 | O55: 0 | P55: 0 | Q55: 0 | R55: 0
I56: 0 | J56: 0 | K56: 0 | M56: 0 | N56: 0 | O56: 0 | P56: 0 | Q56: 0 | R56: 0
B57: Interest on Credit Line | G57: 0.09 | I57: 9.316961249 | J57: =+SUM(J17:J56)/2*H57 -> 0 | M57: 0 | N57: =+SUM(N17:N56)/2*L57 -> 0 | O57: 9.316961249 | P57: =+SUM(P17:P56)/2*L57 -> 0 | Q57: 1490.7138 | R57: =+J57*E$7 -> 0
A58: Total Variable Costs | I58: 229.7592112 | J58: =SUM(J18:J57) -> 0 | M58: 0 | N58: =SUM(N18:N57) -> 0 | O58: 229.7592112 | P58: =SUM(P18:P57) -> 0 | Q58: 36761.4738 | R58: =SUM(R18:R57) -> 0
A59: Planned Returns Above Variable Costs: | I59: -29.75921125 | J59: =+J13-J58 -> 0 | M59: 0 | N59: =+N13-N58 -> 0 | O59: -29.75921125 | P59: =+P13-P58 -> 0 | Q59: -4761.4738 | R59: =+R13-R58 -> 0
B60: Breakeven Price to Cover Variable Costs | G60: 22.97592112 | H60: =IF(E10=0,"n/a",(YVarExp-(YTotExp+YTotRet-J10))/E10) -> n/a | I60: CWT
Q61: Enterprise | R61: Enterprise
A62: FIXED COSTS | D62: Quantity | E62: Quantity | F62: Units | G62: $/Unit | H62: $/Unit | I62: Total | J62: Total | K62: Share | L62: Share | M62: Landlord | N62: Landlord | O62: Tenant | P62: Tenant | Q62: Total | R62: Total
B63: Machinery Depreciation
C64: Pickup/General Use Equipment | D64: 1 | F64: Acre | G64: 2.6105625 | I64: 2.6105625 | J64: =E64*H64 -> 0 | K64: 0 | M64: 0 | N64: =J64*L64 -> 0 | O64: 2.6105625 | P64: =+J64-N64 -> 0 | Q64: 417.69 | R64: =+J64*E$7 -> 0
B65: Equipment Investment
C66: Pickup/General Use Equipment | D66: 18.0253125 | F66: Dollars | G66: 0.09 | I66: 1.622278125 | J66: =E66*H66 -> 0 | K66: 0 | M66: 0 | N66: =J66*L66 -> 0 | O66: 1.622278125 | P66: =+J66-N66 -> 0 | Q66: 259.5645 | R66: =+J66*E$7 -> 0
B67: Salaried Labor | D67: 1 | F67: Acre | G67: 0 | I67: 0 | J67: 0 | K67: 0 | M67: 0 | N67: =J67*L67 -> 0 | O67: 0 | P67: =+J67-N67 -> 0 | Q67: 0 | R67: =+J67*E$7 -> 0
B68: Management Fee, Owner/Operator Labor | D68: 1 | F68: Acre | G68: 0 | I68: 0 | J68: 0 | K68: 0 | M68: 0 | N68: 0 | O68: 0 | P68: 0 | Q68: 0 | R68: 0
B69: Allocated Establishment Cost | D69: 1 | F69: Acre | G69: 0 | I69: 0 | J69: 0 | K69: 0 | M69: 0 | N69: 0 | O69: 0 | P69: 0 | Q69: 0 | R69: 0
B70: Cash Rent - Sunflowers Dryland | D70: 1 | F70: Acre | G70: 30 | I70: 30 | J70: 0 | K70: 0 | M70: 0 | N70: 0 | O70: 30 | P70: 0 | Q70: 4800 | R70: 0
B71: Property Taxes | D71: 1 | F71: Acre | G71: 0 | I71: 0 | J71: 0 | K71: 0 | M71: 0 | N71: 0 | O71: 0 | P71: 0 | Q71: 0 | R71: 0
B72: Whole Farm Insurance | D72: 1 | F72: Acre | G72: 0 | I72: 0 | J72: 0 | K72: 0 | M72: 0 | N72: 0 | O72: 0 | P72: 0 | Q72: 0 | R72: 0
D73: 1 | G73: 0 | I73: 0 | J73: 0 | K73: 0 | M73: 0 | N73: 0 | O73: 0 | P73: 0 | Q73: 0 | R73: 0
D74: 1 | G74: 0 | I74: 0 | J74: =E74*H74 -> 0 | K74: 0 | M74: 0 | N74: 0 | O74: 0 | P74: 0 | Q74: 0 | R74: 0
A75: Total Fixed Costs | I75: 34.23284063 | J75: =+SUM(J64:J74) -> 0 | M75: 0 | N75: =+SUM(N64:N74) -> 0 | O75: 34.23284063 | P75: =+SUM(P64:P74) -> 0 | Q75: 5477.2545 | R75: =+SUM(R64:R74) -> 0
A76: Total Specified Costs | I76: 263.9920519 | J76: =+J58+J75 -> 0 | M76: 0 | N76: =+N58+N75 -> 0 | O76: 263.9920519 | P76: =+P58+P75 -> 0 | Q76: 42238.7283 | R76: =+R58+R75 -> 0
A78: Returns Above Specified Costs | I78: -63.99205187 | J78: =+J13-J76 -> 0 | M78: 0 | N78: =+N13-N76 -> 0 | O78: -63.99205187 | P78: =+P13-P76 -> 0 | Q78: -10238.7283 | R78: =+R13-R76 -> 0
A80: Breakeven Price to Cover Total Costs | G80: 26.39920519 | H80: =IF(E10=0,"n/a",(YTotExp-(YTotExp+YTotRet-J10))/E10) -> n/a | I80: CWT
D82: Example Breakeven Prices
B83: Example | C83: Example | D83: To Cover | G83: To Cover
B84: Yield | C84: Yield | D84: Variable | G84: Total
B85: Percent | C85: CWT | D85: Costs | G85: Costs
B86: 0.75 | C86: 7.5 | D86: 30.6345615 | G86: 35.19894025
B87: 0.9 | C87: 9 | D87: 25.52880125 | G87: 29.33245021
B88: 1 | C88: 10 | D88: 22.97592112 | G88: 26.39920519
B89: 1.1 | C89: 11 | D89: 20.88720102 | G89: 23.99927744
B90: 1.25 | C90: 12.5 | D90: 18.3807369 | G90: 21.11936415
A92: Developed by Justin Benavidez, Assistant Professor, Texas A&M AgriLife Extension, 806-677-5600.
A94: Information presented is prepared solely as a general guide and not intended to recognize or predict the costs and returns from any one operation. Brand names are mentioned only as examples and imply no endorsement.

Sheet SunflowersOilseed
A1: Projections for Planning Purposes Only -- Not to be Used without Updating
A2: 2024 Estimated Costs and Returns per Acre
A3: Oilseed Sunflowers, Sprinkler Irrigated, Strip Tillage
A4: Enter your name for this budget in the cell above.
A5: Enter Your Values in the cells highlighed in MAROON.
E6: Your Acres | R6: Your
C7: Crop Acres | D7: 122 | L7: Your | Q7: Enterprise | R7: Enterprise
E8: Your | H8: Your | I8: Cash | J8: Your | K8: Landlord | L8: Landlord | N8: Your | P8: Your | Q8: Total | R8: Total
A9: REVENUE | D9: Quantity | E9: Quantity | F9: Units | G9: $/Unit | H9: $/Unit | I9: Total | J9: Total | K9: Share | L9: Share | M9: Landlord | N9: Landlord | O9: Tenant | P9: Tenant | Q9: (122 acres) | R9: ="(" & E7 & " acres)" -> ( acres)
B10: Oilseed Sunflowers | D10: 20 | F10: CWT | G10: 20 | I10: 400 | J10: =E10*H10 -> 0 | K10: 0 | M10: 0 | N10: =J10*L10 -> 0 | O10: 400 | P10: =+J10-N10 -> 0 | Q10: 48800 | R10: =+J10*E$7 -> 0
D11: 0 | G11: 0 | I11: 0 | J11: 0 | K11: 0 | M11: 0 | N11: 0 | O11: 0 | P11: =+J11-N11 -> 0 | Q11: 0 | R11: 0
D12: 0 | G12: 0 | I12: 0 | J12: 0 | K12: 0 | M12: 0 | N12: 0 | O12: 0 | P12: 0 | Q12: 0 | R12: 0
A13: Total Revenue | I13: 400 | J13: =SUM(J10:J12) -> 0 | M13: 0 | N13: =SUM(N10:N12) -> 0 | O13: 400 | P13: =SUM(P10:P12) -> 0 | Q13: 48800 | R13: =SUM(R10:R12) -> 0
Q14: Enterprise | R14: Enterprise
A15: VARIABLE COSTS | D15: Quantity | E15: Quantity | F15: Units | G15: $/Unit | H15: $/Unit | I15: Total | J15: Total | K15: Share | L15: Share | M15: Landlord | N15: Landlord | O15: Tenant | P15: Tenant | Q15: Total | R15: Total
A16: Production Costs
B17: Herbicide
C18: Glyphosate | D18: 3 | F18: Acre | G18: 12 | I18: 36 | J18: =E18*H18 -> 0 | K18: 0 | M18: 0 | N18: =J18*L18 -> 0 | O18: 36 | P18: =+J18-N18 -> 0 | Q18: 4392 | R18: =+J18*E$7 -> 0
C19: 2-4D | D19: 1 | F19: Acre | G19: 3 | I19: 3 | J19: 0 | K19: 0 | M19: 0 | N19: 0 | O19: 3 | P19: 0 | Q19: 366 | R19: 0
C20: Prowl H2O | D20: 1 | F20: Acre | G20: 14.5 | I20: 14.5 | J20: 0 | K20: 0 | M20: 0 | N20: 0 | O20: 14.5 | P20: 0 | Q20: 1769 | R20: 0
B21: Seed
C22: Seed - Oilseed Sunflower | D22: 1 | F22: Acre | G22: 34 | I22: 34 | J22: 0 | K22: 0 | M22: 0 | N22: 0 | O22: 34 | P22: 0 | Q22: 4148 | R22: 0
B23: Fertilizer
C24: Fertilizer (N) - Liquid | D24: 70 | F24: Pound | G24: 0.578 | I24: 40.46 | J24: 0 | K24: 0 | M24: 0 | N24: 0 | O24: 40.46 | P24: 0 | Q24: 4936.12 | R24: 0
C25: Fertilizer (P) - Liquid | D25: 25 | F25: Pound | G25: 0.882 | I25: 22.05 | J25: 0 | K25: 0 | M25: 0 | N25: 0 | O25: 22.05 | P25: 0 | Q25: 2690.1 | R25: 0
B26: Custom
C27: Herbicide Application | D27: 3 | F27: Acre | G27: 7.5 | I27: 22.5 | J27: 0 | K27: 0 | M27: 0 | N27: 0 | O27: 22.5 | P27: 0 | Q27: 2745 | R27: 0
C28: Pesticide Application | D28: 1 | F28: Acre | G28: 7.5 | I28: 7.5 | J28: 0 | K28: 0 | M28: 0 | N28: 0 | O28: 7.5 | P28: 0 | Q28: 915 | R28: 0
C29: Custom Harvest - Sunflowers | D29: 1 | F29: Acre | G29: 45 | I29: 45 | J29: 0 | K29: 0 | M29: 0 | N29: 0 | O29: 45 | P29: 0 | Q29: 5490 | R29: 0
C30: Custom Haul - Sunflowers | D30: 20 | F30: CWT | G30: 0.7 | I30: 14 | J30: 0 | K30: 0 | M30: 0 | N30: 0 | O30: 14 | P30: 0 | Q30: 1708 | R30: 0
B31: Miscellaneous
C32: Crop Insurance Sunflowers - Irrigated | D32: 1 | F32: Acre | G32: 25 | I32: 25 | J32: 0 | K32: 0 | M32: 0 | N32: 0 | O32: 25 | P32: 0 | Q32: 3050 | R32: 0
B33: Insecticide
C34: Ammo | D34: 1 | F34: Acre | G34: 4 | I34: 4 | J34: 0 | K34: 0 | M34: 0 | N34: 0 | O34: 4 | P34: 0 | Q34: 488 | R34: 0
C35: Seed Insecticide - Sunflower Irrigated | D35: 1 | F35: Acre | G35: 12.63 | I35: 12.63 | J35: 0 | K35: 0 | M35: 0 | N35: 0 | O35: 12.63 | P35: 0 | Q35: 1540.86 | R35: 0
D36: 0 | G36: 0 | I36: 0 | J36: 0 | K36: 0 | M36: 0 | N36: 0 | O36: 0 | P36: 0 | Q36: 0 | R36: 0
D37: 0 | G37: 0 | I37: 0 | J37: 0 | K37: 0 | M37: 0 | N37: 0 | O37: 0 | P37: 0 | Q37: 0 | R37: 0
D38: 0 | G38: 0 | I38: 0 | J38: =E38*H38 -> 0 | K38: 0 | M38: 0 | N38: =J38*L38 -> 0 | O38: 0 | P38: =+J38-N38 -> 0 | Q38: 0 | R38: =+J38*E$7 -> 0
B39: Irrigation
C40: Energy Cost | D40: 7 | F40: AcreInch | G40: 3.8 | I40: 26.6 | J40: =E40*H40 -> 0 | K40: 0 | M40: 0 | N40: =J40*L40 -> 0 | O40: 26.6 | P40: =+J40-N40 -> 0 | Q40: 3245.2 | R40: =+J40*E$7 -> 0
C41: Irrigation Labor | D41: 0.448 | F41: Hour | G41: 17.94 | I41: 8.03712 | J41: 0 | K41: 0 | M41: 0 | N41: 0 | O41: 8.03712 | P41: 0 | Q41: 980.52864 | R41: 0
B42: Machinery Labor
C43: Tractors/Self-Propelled | D43: 0.08 | F43: Hour | G43: 17.65 | I43: 1.412 | J43: =E43*H43 -> 0 | K43: 0 | M43: 0 | N43: =J43*L43 -> 0 | O43: 1.412 | P43: =+J43-N43 -> 0 | Q43: 172.264 | R43: =+J43*E$7 -> 0
C44: Other Labor | D44: 0.1 | F44: Hour | G44: 17.65 | I44: 1.765 | J44: =E44*H44 -> 0 | K44: 0 | M44: 0 | N44: =J44*L44 -> 0 | O44: 1.765 | P44: =+J44-N44 -> 0 | Q44: 215.33 | R44: =+J44*E$7 -> 0
B46: Diesel Fuel
C47: Pickup/General Use Equipment | D47: 1 | F47: Acre | G47: 0 | I47: 0 | J47: =E47*H47 -> 0 | K47: 0 | M47: 0 | N47: =J47*L47 -> 0 | O47: 0 | P47: =+J47-N47 -> 0 | Q47: 0 | R47: =+J47*E$7 -> 0
C48: Tractors/Self-Propelled | D48: 0.64 | F48: Gallon | G48: 3.1 | I48: 1.984 | J48: =E48*H48 -> 0 | K48: 0 | M48: 0 | N48: =J48*L48 -> 0 | O48: 1.984 | P48: =+J48-N48 -> 0 | Q48: 242.048 | R48: =+J48*E$7 -> 0
B50: Gasoline
C51: Pickup/General Use Equipment | D51: 1 | F51: Acre | G51: 10.81967213 | I51: 10.81967213 | J51: =E51*H51 -> 0 | K51: 0 | M51: 0 | N51: =J51*L51 -> 0 | O51: 10.81967213 | P51: =+J51-N51 -> 0 | Q51: 1320 | R51: =+J51*E$7 -> 0
C52: Tractors/Self-Propelled | D52: 0 | F52: Gallon | G52: 2.4 | I52: 0 | J52: =E52*H52 -> 0 | K52: 0 | M52: 0 | N52: =J52*L52 -> 0 | O52: 0 | P52: =+J52-N52 -> 0 | Q52: 0 | R52: =+J52*E$7 -> 0
B54: Repairs & Maintenance
C55: Pickup/General Use Equipment | D55: 1 | F55: Acre | G55: 5.518032787 | I55: 5.518032787 | J55: =E55*H55 -> 0 | K55: 0 | M55: 0 | N55: =J55*L55 -> 0 | O55: 5.518032787 | P55: =+J55-N55 -> 0 | Q55: 673.2 | R55: =+J55*E$7 -> 0
C56: Irrigation Equipment | D56: 1 | F56: Acre | G56: 26.25 | I56: 26.25 | J56: 0 | K56: 0 | M56: 0 | N56: 0 | O56: 26.25 | P56: 0 | Q56: 3202.5 | R56: 0
C57: Tractors/Self-Propelled | D57: 1 | F57: Acre | G57: 1.636739464 | I57: 1.636739464 | J57: 0 | K57: 0 | M57: 0 | N57: 0 | O57: 1.636739464 | P57: 0 | Q57: 199.6822147 | R57: 0
C58: Implements | D58: 1 | F58: Acre | G58: 3.05710807 | I58: 3.05710807 | J58: 0 | K58: 0 | M58: 0 | N58: 0 | O58: 3.05710807 | P58: 0 | Q58: 372.9671845 | R58: 0
I59: 0 | J59: 0 | K59: 0 | M59: 0 | N59: 0 | O59: 0 | P59: 0 | Q59: 0 | R59: 0
I60: 0 | J60: 0 | K60: 0 | M60: 0 | N60: 0 | O60: 0 | P60: 0 | Q60: 0 | R60: 0
B61: Interest on Credit Line | G61: 0.09 | I61: 16.79233501 | J61: =+SUM(J17:J60)/2*H61 -> 0 | M61: 0 | N61: =+SUM(N17:N60)/2*L61 -> 0 | O61: 16.79233501 | P61: =+SUM(P17:P60)/2*L61 -> 0 | Q61: 2048.664872 | R61: =+J61*E$7 -> 0
A62: Total Variable Costs | I62: 384.5120075 | J62: =SUM(J18:J61) -> 0 | M62: 0 | N62: =SUM(N18:N61) -> 0 | O62: 384.5120075 | P62: =SUM(P18:P61) -> 0 | Q62: 46910.46491 | R62: =SUM(R18:R61) -> 0
A63: Planned Returns Above Variable Costs: | I63: 15.48799254 | J63: =+J13-J62 -> 0 | M63: 0 | N63: =+N13-N62 -> 0 | O63: 15.48799254 | P63: =+P13-P62 -> 0 | Q63: 1889.535089 | R63: =+R13-R62 -> 0
B64: Breakeven Price to Cover Variable Costs | G64: 19.22560037 | H64: =IF(E10=0,"n/a",(YVarExp-(YTotExp+YTotRet-J10))/E10) -> n/a | I64: CWT
Q65: Enterprise | R65: Enterprise
A66: FIXED COSTS | D66: Quantity | E66: Quantity | F66: Units | G66: $/Unit | H66: $/Unit | I66: Total | J66: Total | K66: Share | L66: Share | M66: Landlord | N66: Landlord | O66: Tenant | P66: Tenant | Q66: Total | R66: Total
B67: Machinery Depreciation
C68: Pickup/General Use Equipment | D68: 1 | F68: Acre | G68: 5.793934426 | I68: 5.793934426 | J68: =E68*H68 -> 0 | K68: 0 | M68: 0 | N68: =J68*L68 -> 0 | O68: 5.793934426 | P68: =+J68-N68 -> 0 | Q68: 706.86 | R68: =+J68*E$7 -> 0
C69: Irrigation Equipment | D69: 1 | F69: Acre | G69: 28.80122951 | I69: 28.80122951 | J69: 0 | K69: 0 | M69: 0 | N69: =J69*L69 -> 0 | O69: 28.80122951 | P69: 0 | Q69: 3513.75 | R69: 0
C70: Tractors/Self-Propelled | D70: 1 | F70: Acre | G70: 1.691297447 | I70: 1.691297447 | J70: 0 | K70: 0 | M70: 0 | N70: =J70*L70 -> 0 | O70: 1.691297447 | P70: 0 | Q70: 206.3382885 | R70: 0
C71: Implements | D71: 1 | F71: Acre | G71: 3.930567518 | I71: 3.930567518 | J71: 0 | K71: 0 | M71: 0 | N71: =J71*L71 -> 0 | O71: 3.930567518 | P71: 0 | Q71: 479.5292372 | R71: 0
B72: Equipment Investment
C73: Pickup/General Use Equipment | D73: 40.0057377 | F73: Dollars | G73: 0.09 | I73: 3.600516393 | J73: =E73*H73 -> 0 | K73: 0 | M73: 0 | N73: =J73*L73 -> 0 | O73: 3.600516393 | P73: =+J73-N73 -> 0 | Q73: 439.263 | R73: =+J73*E$7 -> 0
C74: Irrigation Equipment | D74: 435.7991803 | F74: Dollars | G74: 0.09 | I74: 39.22192623 | J74: 0 | K74: 0 | M74: 0 | N74: =J74*L74 -> 0 | O74: 39.22192623 | P74: 0 | Q74: 4785.075 | R74: 0
C75: Tractors/Self-Propelled | D75: 13.17575269 | F75: Dollars | G75: 0.09 | I75: 1.185817742 | J75: 0 | K75: 0 | M75: 0 | N75: =J75*L75 -> 0 | O75: 1.185817742 | P75: 0 | Q75: 144.6697645 | R75: 0
C76: Implements | D76: 16.81409438 | F76: Dollars | G76: 0.09 | I76: 1.513268495 | J76: 0 | K76: 0 | M76: 0 | N76: =J76*L76 -> 0 | O76: 1.513268495 | P76: 0 | Q76: 184.6187563 | R76: 0
B77: Salaried Labor | D77: 1 | F77: Acre | G77: 0 | I77: 0 | J77: 0 | K77: 0 | M77: 0 | N77: =J77*L77 -> 0 | O77: 0 | P77: =+J77-N77 -> 0 | Q77: 0 | R77: =+J77*E$7 -> 0
B78: Management Fee, Owner/Operator Labor | D78: 1 | F78: Acre | G78: 0 | I78: 0 | J78: 0 | K78: 0 | M78: 0 | N78: 0 | O78: 0 | P78: 0 | Q78: 0 | R78: 0
B79: Allocated Establishment Cost | D79: 1 | F79: Acre | G79: 0 | I79: 0 | J79: 0 | K79: 0 | M79: 0 | N79: 0 | O79: 0 | P79: 0 | Q79: 0 | R79: 0
B80: Cash Rent - Sunflowers Irrigated | D80: 1 | F80: Acre | G80: 125 | I80: 125 | J80: 0 | K80: 0 | M80: 0 | N80: 0 | O80: 125 | P80: 0 | Q80: 15250 | R80: 0
B81: Property Taxes | D81: 1 | F81: Acre | G81: 0 | I81: 0 | J81: 0 | K81: 0 | M81: 0 | N81: 0 | O81: 0 | P81: 0 | Q81: 0 | R81: 0
B82: Whole Farm Insurance | D82: 1 | F82: Acre | G82: 0 | I82: 0 | J82: 0 | K82: 0 | M82: 0 | N82: 0 | O82: 0 | P82: 0 | Q82: 0 | R82: 0
D83: 1 | G83: 0 | I83: 0 | J83: 0 | K83: 0 | M83: 0 | N83: 0 | O83: 0 | P83: 0 | Q83: 0 | R83: 0
D84: 1 | G84: 0 | I84: 0 | J84: =E84*H84 -> 0 | K84: 0 | M84: 0 | N84: 0 | O84: 0 | P84: 0 | Q84: 0 | R84: 0
A85: Total Fixed Costs | I85: 210.7385578 | J85: =+SUM(J68:J84) -> 0 | M85: 0 | N85: =+SUM(N68:N84) -> 0 | O85: 210.7385578 | P85: =+SUM(P68:P84) -> 0 | Q85: 25710.10405 | R85: =+SUM(R68:R84) -> 0
A86: Total Specified Costs | I86: 595.2505652 | J86: =+J62+J85 -> 0 | M86: 0 | N86: =+N62+N85 -> 0 | O86: 595.2505652 | P86: =+P62+P85 -> 0 | Q86: 72620.56896 | R86: =+R62+R85 -> 0
A88: Returns Above Specified Costs | I88: -195.2505652 | J88: =+J13-J86 -> 0 | M88: 0 | N88: =+N13-N86 -> 0 | O88: -195.2505652 | P88: =+P13-P86 -> 0 | Q88: -23820.56896 | R88: =+R13-R86 -> 0
A90: Breakeven Price to Cover Total Costs | G90: 29.76252826 | H90: =IF(E10=0,"n/a",(YTotExp-(YTotExp+YTotRet-J10))/E10) -> n/a | I90: CWT
D92: Example Breakeven Prices
B93: Example | C93: Example | D93: To Cover | G93: To Cover
B94: Yield | C94: Yield | D94: Variable | G94: Total
B95: Percent | C95: CWT | D95: Costs | G95: Costs
B96: 0.75 | C96: 15 | D96: 25.63413383 | G96: 39.68337101
B97: 0.9 | C97: 18 | D97: 21.36177819 | G97: 33.06947585
B98: 1 | C98: 20 | D98: 19.22560037 | G98: 29.76252826
B99: 1.1 | C99: 22 | D99: 17.47781852 | G99: 27.05684387
B100: 1.25 | C100: 25 | D100: 15.3804803 | G100: 23.81002261
A102: Developed by Justin Benavidez, Assistant Professor, Texas A&M AgriLife Extension, 806-677-5600.
A104: Information presented is prepared solely as a general guide and not intended to recognize or predict the costs and returns from any one operation. Brand names are mentioned only as examples and imply no endorsement.

Sheet SunflowersConfectionary
A1: Projections for Planning Purposes Only -- Not to be Used without Updating
A2: 2024 Estimated Costs and Returns per Acre
A3: Confectionary Sunflowers, Sprinkler Irrigated, Strip Tillage
A4: Enter your name for this budget in the cell above.
A5: Enter Your Values in the cells highlighed in MAROON.
E6: Your Acres | R6: Your
C7: Crop Acres | D7: 122 | L7: Your | Q7: Enterprise | R7: Enterprise
E8: Your | H8: Your | I8: Cash | J8: Your | K8: Landlord | L8: Landlord | N8: Your | P8: Your | Q8: Total | R8: Total
A9: REVENUE | D9: Quantity | E9: Quantity | F9: Units | G9: $/Unit | H9: $/Unit | I9: Total | J9: Total | K9: Share | L9: Share | M9: Landlord | N9: Landlord | O9: Tenant | P9: Tenant | Q9: (122 acres) | R9: ="(" & E7 & " acres)" -> ( acres)
B10: Confectionary Sunflowers | D10: 18 | F10: CWT | G10: 25 | I10: 450 | J10: =E10*H10 -> 0 | K10: 0 | M10: 0 | N10: =J10*L10 -> 0 | O10: 450 | P10: =+J10-N10 -> 0 | Q10: 54900 | R10: =+J10*E$7 -> 0
D11: 0 | G11: 0 | I11: 0 | J11: 0 | K11: 0 | M11: 0 | N11: 0 | O11: 0 | P11: =+J11-N11 -> 0 | Q11: 0 | R11: 0
D12: 0 | G12: 0 | I12: 0 | J12: 0 | K12: 0 | M12: 0 | N12: 0 | O12: 0 | P12: 0 | Q12: 0 | R12: 0
A13: Total Revenue | I13: 450 | J13: =SUM(J10:J12) -> 0 | M13: 0 | N13: =SUM(N10:N12) -> 0 | O13: 450 | P13: =SUM(P10:P12) -> 0 | Q13: 54900 | R13: =SUM(R10:R12) -> 0
Q14: Enterprise | R14: Enterprise
A15: VARIABLE COSTS | D15: Quantity | E15: Quantity | F15: Units | G15: $/Unit | H15: $/Unit | I15: Total | J15: Total | K15: Share | L15: Share | M15: Landlord | N15: Landlord | O15: Tenant | P15: Tenant | Q15: Total | R15: Total
A16: Production Costs
B17: Herbicide
C18: Glyphosate | D18: 3 | F18: Acre | G18: 12 | I18: 36 | J18: =E18*H18 -> 0 | K18: 0 | M18: 0 | N18: =J18*L18 -> 0 | O18: 36 | P18: =+J18-N18 -> 0 | Q18: 4392 | R18: =+J18*E$7 -> 0
C19: 2-4D | D19: 1 | F19: Acre | G19: 3 | I19: 3 | J19: 0 | K19: 0 | M19: 0 | N19: 0 | O19: 3 | P19: 0 | Q19: 366 | R19: 0
C20: Prowl H2O | D20: 1 | F20: Acre | G20: 14.5 | I20: 14.5 | J20: 0 | K20: 0 | M20: 0 | N20: 0 | O20: 14.5 | P20: 0 | Q20: 1769 | R20: 0
B21: Seed
C22: Seed - Confectionary Sunflower | D22: 1 | F22: Acre | G22: 34 | I22: 34 | J22: 0 | K22: 0 | M22: 0 | N22: 0 | O22: 34 | P22: 0 | Q22: 4148 | R22: 0
B23: Fertilizer
C24: Fertilizer (N) - Liquid | D24: 70 | F24: Pound | G24: 0.578 | I24: 40.46 | J24: 0 | K24: 0 | M24: 0 | N24: 0 | O24: 40.46 | P24: 0 | Q24: 4936.12 | R24: 0
C25: Fertilizer (P) - Liquid | D25: 25 | F25: Pound | G25: 0.882 | I25: 22.05 | J25: 0 | K25: 0 | M25: 0 | N25: 0 | O25: 22.05 | P25: 0 | Q25: 2690.1 | R25: 0
B26: Custom
C27: Herbicide Application | D27: 3 | F27: Acre | G27: 7.5 | I27: 22.5 | J27: 0 | K27: 0 | M27: 0 | N27: 0 | O27: 22.5 | P27: 0 | Q27: 2745 | R27: 0
C28: Pesticide Application | D28: 1 | F28: Acre | G28: 7.5 | I28: 7.5 | J28: 0 | K28: 0 | M28: 0 | N28: 0 | O28: 7.5 | P28: 0 | Q28: 915 | R28: 0
C29: Custom Harvest - Sunflowers | D29: 1 | F29: Acre | G29: 45 | I29: 45 | J29: 0 | K29: 0 | M29: 0 | N29: 0 | O29: 45 | P29: 0 | Q29: 5490 | R29: 0
C30: Custom Haul - Sunflowers | D30: 18 | F30: CWT | G30: 0.7 | I30: 12.6 | J30: 0 | K30: 0 | M30: 0 | N30: 0 | O30: 12.6 | P30: 0 | Q30: 1537.2 | R30: 0
B31: Miscellaneous
C32: Crop Insurance Sunflowers - Irrigated | D32: 1 | F32: Acre | G32: 25 | I32: 25 | J32: 0 | K32: 0 | M32: 0 | N32: 0 | O32: 25 | P32: 0 | Q32: 3050 | R32: 0
B33: Insecticide
C34: Ammo | D34: 1 | F34: Acre | G34: 4 | I34: 4 | J34: 0 | K34: 0 | M34: 0 | N34: 0 | O34: 4 | P34: 0 | Q34: 488 | R34: 0
C35: Seed Insecticide - Sunflower Confection | D35: 1 | F35: Acre | G35: 13.18 | I35: 13.18 | J35: 0 | K35: 0 | M35: 0 | N35: 0 | O35: 13.18 | P35: 0 | Q35: 1607.96 | R35: 0
D36: 0 | G36: 0 | I36: 0 | J36: 0 | K36: 0 | M36: 0 | N36: 0 | O36: 0 | P36: 0 | Q36: 0 | R36: 0
D37: 0 | G37: 0 | I37: 0 | J37: 0 | K37: 0 | M37: 0 | N37: 0 | O37: 0 | P37: 0 | Q37: 0 | R37: 0
D38: 0 | G38: 0 | I38: 0 | J38: =E38*H38 -> 0 | K38: 0 | M38: 0 | N38: =J38*L38 -> 0 | O38: 0 | P38: =+J38-N38 -> 0 | Q38: 0 | R38: =+J38*E$7 -> 0
B39: Irrigation
C40: Energy Cost | D40: 7 | F40: AcreInch | G40: 3.8 | I40: 26.6 | J40: =E40*H40 -> 0 | K40: 0 | M40: 0 | N40: =J40*L40 -> 0 | O40: 26.6 | P40: =+J40-N40 -> 0 | Q40: 3245.2 | R40: =+J40*E$7 -> 0
C41: Irrigation Labor | D41: 0.448 | F41: Hour | G41: 17.94 | I41: 8.03712 | J41: 0 | K41: 0 | M41: 0 | N41: 0 | O41: 8.03712 | P41: 0 | Q41: 980.52864 | R41: 0
B42: Machinery Labor
C43: Tractors/Self-Propelled | D43: 0.08 | F43: Hour | G43: 17.65 | I43: 1.412 | J43: =E43*H43 -> 0 | K43: 0 | M43: 0 | N43: =J43*L43 -> 0 | O43: 1.412 | P43: =+J43-N43 -> 0 | Q43: 172.264 | R43: =+J43*E$7 -> 0
C44: Other Labor | D44: 0.1 | F44: Hour | G44: 17.65 | I44: 1.765 | J44: =E44*H44 -> 0 | K44: 0 | M44: 0 | N44: =J44*L44 -> 0 | O44: 1.765 | P44: =+J44-N44 -> 0 | Q44: 215.33 | R44: =+J44*E$7 -> 0
B46: Diesel Fuel
C47: Pickup/General Use Equipment | D47: 1 | F47: Acre | G47: 0 | I47: 0 | J47: =E47*H47 -> 0 | K47: 0 | M47: 0 | N47: =J47*L47 -> 0 | O47: 0 | P47: =+J47-N47 -> 0 | Q47: 0 | R47: =+J47*E$7 -> 0
C48: Tractors/Self-Propelled | D48: 0.64 | F48: Gallon | G48: 3.1 | I48: 1.984 | J48: =E48*H48 -> 0 | K48: 0 | M48: 0 | N48: =J48*L48 -> 0 | O48: 1.984 | P48: =+J48-N48 -> 0 | Q48: 242.048 | R48: =+J48*E$7 -> 0
B50: Gasoline
C51: Pickup/General Use Equipment | D51: 1 | F51: Acre | G51: 10.81967213 | I51: 10.81967213 | J51: =E51*H51 -> 0 | K51: 0 | M51: 0 | N51: =J51*L51 -> 0 | O51: 10.81967213 | P51: =+J51-N51 -> 0 | Q51: 1320 | R51: =+J51*E$7 -> 0
C52: Tractors/Self-Propelled | D52: 0 | F52: Gallon | G52: 2.4 | I52: 0 | J52: =E52*H52 -> 0 | K52: 0 | M52: 0 | N52: =J52*L52 -> 0 | O52: 0 | P52: =+J52-N52 -> 0 | Q52: 0 | R52: =+J52*E$7 -> 0
B54: Repairs & Maintenance
C55: Pickup/General Use Equipment | D55: 1 | F55: Acre | G55: 5.518032787 | I55: 5.518032787 | J55: =E55*H55 -> 0 | K55: 0 | M55: 0 | N55: =J55*L55 -> 0 | O55: 5.518032787 | P55: =+J55-N55 -> 0 | Q55: 673.2 | R55: =+J55*E$7 -> 0
C56: Irrigation Equipment | D56: 1 | F56: Acre | G56: 26.25 | I56: 26.25 | J56: 0 | K56: 0 | M56: 0 | N56: 0 | O56: 26.25 | P56: 0 | Q56: 3202.5 | R56: 0
C57: Tractors/Self-Propelled | D57: 1 | F57: Acre | G57: 1.636739464 | I57: 1.636739464 | J57: 0 | K57: 0 | M57: 0 | N57: 0 | O57: 1.636739464 | P57: 0 | Q57: 199.6822147 | R57: 0
C58: Implements | D58: 1 | F58: Acre | G58: 3.05710807 | I58: 3.05710807 | J58: 0 | K58: 0 | M58: 0 | N58: 0 | O58: 3.05710807 | P58: 0 | Q58: 372.9671845 | R58: 0
I59: 0 | J59: 0 | K59: 0 | M59: 0 | N59: 0 | O59: 0 | P59: 0 | Q59: 0 | R59: 0
I60: 0 | J60: 0 | K60: 0 | M60: 0 | N60: 0 | O60: 0 | P60: 0 | Q60: 0 | R60: 0
B61: Interest on Credit Line | G61: 0.09 | I61: 16.84826178 | J61: =+SUM(J17:J60)/2*H61 -> 0 | M61: 0 | N61: =+SUM(N17:N60)/2*L61 -> 0 | O61: 16.84826178 | P61: =+SUM(P17:P60)/2*L61 -> 0 | Q61: 2055.487937 | R61: =+J61*E$7 -> 0
A62: Total Variable Costs | I62: 383.7179342 | J62: =SUM(J18:J61) -> 0 | M62: 0 | N62: =SUM(N18:N61) -> 0 | O62: 383.7179342 | P62: =SUM(P18:P61) -> 0 | Q62: 46813.58798 | R62: =SUM(R18:R61) -> 0
A63: Planned Returns Above Variable Costs: | I63: 66.28206577 | J63: =+J13-J62 -> 0 | M63: 0 | N63: =+N13-N62 -> 0 | O63: 66.28206577 | P63: =+P13-P62 -> 0 | Q63: 8086.412023 | R63: =+R13-R62 -> 0
B64: Breakeven Price to Cover Variable Costs | G64: 21.31766301 | H64: =IF(E10=0,"n/a",(YVarExp-(YTotExp+YTotRet-J10))/E10) -> n/a | I64: CWT
Q65: Enterprise | R65: Enterprise
A66: FIXED COSTS | D66: Quantity | E66: Quantity | F66: Units | G66: $/Unit | H66: $/Unit | I66: Total | J66: Total | K66: Share | L66: Share | M66: Landlord | N66: Landlord | O66: Tenant | P66: Tenant | Q66: Total | R66: Total
B67: Machinery Depreciation
C68: Pickup/General Use Equipment | D68: 1 | F68: Acre | G68: 5.793934426 | I68: 5.793934426 | J68: =E68*H68 -> 0 | K68: 0 | M68: 0 | N68: =J68*L68 -> 0 | O68: 5.793934426 | P68: =+J68-N68 -> 0 | Q68: 706.86 | R68: =+J68*E$7 -> 0
C69: Irrigation Equipment | D69: 1 | F69: Acre | G69: 28.80122951 | I69: 28.80122951 | J69: 0 | K69: 0 | M69: 0 | N69: =J69*L69 -> 0 | O69: 28.80122951 | P69: 0 | Q69: 3513.75 | R69: 0
C70: Tractors/Self-Propelled | D70: 1 | F70: Acre | G70: 1.691297447 | I70: 1.691297447 | J70: 0 | K70: 0 | M70: 0 | N70: =J70*L70 -> 0 | O70: 1.691297447 | P70: 0 | Q70: 206.3382885 | R70: 0
C71: Implements | D71: 1 | F71: Acre | G71: 3.930567518 | I71: 3.930567518 | J71: 0 | K71: 0 | M71: 0 | N71: =J71*L71 -> 0 | O71: 3.930567518 | P71: 0 | Q71: 479.5292372 | R71: 0
B72: Equipment Investment
C73: Pickup/General Use Equipment | D73: 40.0057377 | F73: Dollars | G73: 0.09 | I73: 3.600516393 | J73: =E73*H73 -> 0 | K73: 0 | M73: 0 | N73: =J73*L73 -> 0 | O73: 3.600516393 | P73: =+J73-N73 -> 0 | Q73: 439.263 | R73: =+J73*E$7 -> 0
C74: Irrigation Equipment | D74: 435.7991803 | F74: Dollars | G74: 0.09 | I74: 39.22192623 | J74: 0 | K74: 0 | M74: 0 | N74: =J74*L74 -> 0 | O74: 39.22192623 | P74: 0 | Q74: 4785.075 | R74: 0
C75: Tractors/Self-Propelled | D75: 13.17575269 | F75: Dollars | G75: 0.09 | I75: 1.185817742 | J75: 0 | K75: 0 | M75: 0 | N75: =J75*L75 -> 0 | O75: 1.185817742 | P75: 0 | Q75: 144.6697645 | R75: 0
C76: Implements | D76: 16.81409438 | F76: Dollars | G76: 0.09 | I76: 1.513268495 | J76: 0 | K76: 0 | M76: 0 | N76: =J76*L76 -> 0 | O76: 1.513268495 | P76: 0 | Q76: 184.6187563 | R76: 0
B77: Salaried Labor | D77: 1 | F77: Acre | G77: 0 | I77: 0 | J77: 0 | K77: 0 | M77: 0 | N77: =J77*L77 -> 0 | O77: 0 | P77: =+J77-N77 -> 0 | Q77: 0 | R77: =+J77*E$7 -> 0
B78: Management Fee, Owner/Operator Labor | D78: 1 | F78: Acre | G78: 0 | I78: 0 | J78: 0 | K78: 0 | M78: 0 | N78: 0 | O78: 0 | P78: 0 | Q78: 0 | R78: 0
B79: Allocated Establishment Cost | D79: 1 | F79: Acre | G79: 0 | I79: 0 | J79: 0 | K79: 0 | M79: 0 | N79: 0 | O79: 0 | P79: 0 | Q79: 0 | R79: 0
B80: Cash Rent - Sunflowers Irrigated | D80: 1 | F80: Acre | G80: 125 | I80: 125 | J80: 0 | K80: 0 | M80: 0 | N80: 0 | O80: 125 | P80: 0 | Q80: 15250 | R80: 0
B81: Property Taxes | D81: 1 | F81: Acre | G81: 0 | I81: 0 | J81: 0 | K81: 0 | M81: 0 | N81: 0 | O81: 0 | P81: 0 | Q81: 0 | R81: 0
B82: Whole Farm Insurance | D82: 1 | F82: Acre | G82: 0 | I82: 0 | J82: 0 | K82: 0 | M82: 0 | N82: 0 | O82: 0 | P82: 0 | Q82: 0 | R82: 0
D83: 1 | G83: 0 | I83: 0 | J83: 0 | K83: 0 | M83: 0 | N83: 0 | O83: 0 | P83: 0 | Q83: 0 | R83: 0
D84: 1 | G84: 0 | I84: 0 | J84: =E84*H84 -> 0 | K84: 0 | M84: 0 | N84: 0 | O84: 0 | P84: 0 | Q84: 0 | R84: 0
A85: Total Fixed Costs | I85: 210.7385578 | J85: =+SUM(J68:J84) -> 0 | M85: 0 | N85: =+SUM(N68:N84) -> 0 | O85: 210.7385578 | P85: =+SUM(P68:P84) -> 0 | Q85: 25710.10405 | R85: =+SUM(R68:R84) -> 0
A86: Total Specified Costs | I86: 594.456492 | J86: =+J62+J85 -> 0 | M86: 0 | N86: =+N62+N85 -> 0 | O86: 594.456492 | P86: =+P62+P85 -> 0 | Q86: 72523.69202 | R86: =+R62+R85 -> 0
A88: Returns Above Specified Costs | I88: -144.456492 | J88: =+J13-J86 -> 0 | M88: 0 | N88: =+N13-N86 -> 0 | O88: -144.456492 | P88: =+P13-P86 -> 0 | Q88: -17623.69202 | R88: =+R13-R86 -> 0
A90: Breakeven Price to Cover Total Costs | G90: 33.02536067 | H90: =IF(E10=0,"n/a",(YTotExp-(YTotExp+YTotRet-J10))/E10) -> n/a | I90: CWT
D92: Example Breakeven Prices
B93: Example | C93: Example | D93: To Cover | G93: To Cover
B94: Yield | C94: Yield | D94: Variable | G94: Total
B95: Percent | C95: CWT | D95: Costs | G95: Costs
B96: 0.75 | C96: 13.5 | D96: 28.42355068 | G96: 44.03381422
B97: 0.9 | C97: 16.2 | D97: 23.68629224 | G97: 36.69484518
B98: 1 | C98: 18 | D98: 21.31766301 | G98: 33.02536067
B99: 1.1 | C99: 19.8 | D99: 19.37969365 | G99: 30.02305515
B100: 1.25 | C100: 22.5 | D100: 17.05413041 | G100: 26.42028853
A102: Developed by Justin Benavidez, Assistant Professor, Texas A&M AgriLife Extension, 806-677-5600.
A104: Information presented is prepared solely as a general guide and not intended to recognize or predict the costs and returns from any one operation. Brand names are mentioned only as examples and imply no endorsement.

Sheet WheatDryland
A1: Projections for Planning Purposes Only -- Not to be Used without Updating
A2: 2024 Estimated Costs and Returns per Acre
A3: Continuous Wheat, Dryland, Grazed
A4: Enter your name for this budget in the cell above.
A5: Enter Your Values in the cells highlighed in MAROON.
E6: Your Acres | R6: Your
C7: Crop Acres | D7: 160 | L7: Your | Q7: Enterprise | R7: Enterprise
E8: Your | H8: Your | I8: Cash | J8: Your | K8: Landlord | L8: Landlord | N8: Your | P8: Your | Q8: Total | R8: Total
A9: REVENUE | D9: Quantity | E9: Quantity | F9: Units | G9: $/Unit | H9: $/Unit | I9: Total | J9: Total | K9: Share | L9: Share | M9: Landlord | N9: Landlord | O9: Tenant | P9: Tenant | Q9: (160 acres) | R9: ="(" & E7 & " acres)" -> ( acres)
B10: Wheat | D10: 20 | F10: Bushel | G10: 5.75 | I10: 115 | J10: =E10*H10 -> 0 | K10: 0 | M10: 0 | N10: =J10*L10 -> 0 | O10: 115 | P10: =+J10-N10 -> 0 | Q10: 18400 | R10: =+J10*E$7 -> 0
B11: Grazing - Wheat | D11: 73 | F11: Pound | G11: 0.9 | I11: 65.7 | J11: 0 | K11: 0 | M11: 0 | N11: 0 | O11: 65.7 | P11: =+J11-N11 -> 0 | Q11: 10512 | R11: 0
D12: 0 | G12: 0 | I12: 0 | J12: 0 | K12: 0 | M12: 0 | N12: 0 | O12: 0 | P12: 0 | Q12: 0 | R12: 0
D13: 0 | G13: 0 | I13: 0 | J13: 0 | K13: 0 | M13: 0 | N13: 0 | O13: 0 | P13: 0 | Q13: 0 | R13: 0
A14: Total Revenue | I14: 180.7 | J14: =SUM(J10:J13) -> 0 | M14: 0 | N14: =SUM(N10:N13) -> 0 | O14: 180.7 | P14: =SUM(P10:P13) -> 0 | Q14: 28912 | R14: =SUM(R10:R13) -> 0
Q15: Enterprise | R15: Enterprise
A16: VARIABLE COSTS | D16: Quantity | E16: Quantity | F16: Units | G16: $/Unit | H16: $/Unit | I16: Total | J16: Total | K16: Share | L16: Share | M16: Landlord | N16: Landlord | O16: Tenant | P16: Tenant | Q16: Total | R16: Total
A17: Production Costs
B18: Seed
C19: Seed - Wheat Dryland | D19: 1 | F19: Bushel | G19: 12.5 | I19: 12.5 | J19: =E19*H19 -> 0 | K19: 0 | M19: 0 | N19: =J19*L19 -> 0 | O19: 12.5 | P19: =+J19-N19 -> 0 | Q19: 2000 | R19: =+J19*E$7 -> 0
B20: Fertilizer
C21: Fertilizer (N) - ANH3 | D21: 30 | F21: Pound | G21: 0.427 | I21: 12.81 | J21: 0 | K21: 0 | M21: 0 | N21: 0 | O21: 12.81 | P21: 0 | Q21: 2049.6 | R21: 0
B22: Custom
C23: Fertilizer Application - ANH3 | D23: 1 | F23: Acre | G23: 18 | I23: 18 | J23: 0 | K23: 0 | M23: 0 | N23: 0 | O23: 18 | P23: 0 | Q23: 2880 | R23: 0
C24: Custom Harvest - Wheat | D24: 1 | F24: Acre | G24: 35 | I24: 35 | J24: 0 | K24: 0 | M24: 0 | N24: 0 | O24: 35 | P24: 0 | Q24: 5600 | R24: 0
C25: Custom Haul - Wheat | D25: 20 | F25: Bushel | G25: 0.35 | I25: 7 | J25: 0 | K25: 0 | M25: 0 | N25: 0 | O25: 7 | P25: 0 | Q25: 1120 | R25: 0
B26: Miscellaneous
C27: Crop Insurance Wheat Dryland | D27: 1 | F27: Acre | G27: 25 | I27: 25 | J27: 0 | K27: 0 | M27: 0 | N27: 0 | O27: 25 | P27: 0 | Q27: 4000 | R27: 0
D28: 0 | G28: 0 | I28: 0 | J28: 0 | K28: 0 | M28: 0 | N28: 0 | O28: 0 | P28: 0 | Q28: 0 | R28: 0
D29: 0 | G29: 0 | I29: 0 | J29: 0 | K29: 0 | M29: 0 | N29: 0 | O29: 0 | P29: 0 | Q29: 0 | R29: 0
D30: 0 | G30: 0 | I30: 0 | J30: =E30*H30 -> 0 | K30: 0 | M30: 0 | N30: =J30*L30 -> 0 | O30: 0 | P30: =+J30-N30 -> 0 | Q30: 0 | R30: =+J30*E$7 -> 0
B31: Machinery Labor
C32: Tractors/Self-Propelled | D32: 0.27 | F32: Hour | G32: 17.65 | I32: 4.7655 | J32: =E32*H32 -> 0 | K32: 0 | M32: 0 | N32: =J32*L32 -> 0 | O32: 4.7655 | P32: =+J32-N32 -> 0 | Q32: 762.48 | R32: =+J32*E$7 -> 0
C33: Other Labor | D33: 0.31 | F33: Hour | G33: 17.65 | I33: 5.4715 | J33: =E33*H33 -> 0 | K33: 0 | M33: 0 | N33: =J33*L33 -> 0 | O33: 5.4715 | P33: =+J33-N33 -> 0 | Q33: 875.44 | R33: =+J33*E$7 -> 0
B35: Diesel Fuel
C36: Pickup/General Use Equipment | D36: 1 | F36: Acre | G36: 0 | I36: 0 | J36: =E36*H36 -> 0 | K36: 0 | M36: 0 | N36: =J36*L36 -> 0 | O36: 0 | P36: =+J36-N36 -> 0 | Q36: 0 | R36: =+J36*E$7 -> 0
C37: Tractors/Self-Propelled | D37: 1.73 | F37: Gallon | G37: 3.1 | I37: 5.363 | J37: =E37*H37 -> 0 | K37: 0 | M37: 0 | N37: =J37*L37 -> 0 | O37: 5.363 | P37: =+J37-N37 -> 0 | Q37: 858.08 | R37: =+J37*E$7 -> 0
B39: Gasoline
C40: Pickup/General Use Equipment | D40: 1 | F40: Acre | G40: 4.875 | I40: 4.875 | J40: =E40*H40 -> 0 | K40: 0 | M40: 0 | N40: =J40*L40 -> 0 | O40: 4.875 | P40: =+J40-N40 -> 0 | Q40: 780 | R40: =+J40*E$7 -> 0
C41: Tractors/Self-Propelled | D41: 0 | F41: Gallon | G41: 2.4 | I41: 0 | J41: =E41*H41 -> 0 | K41: 0 | M41: 0 | N41: =J41*L41 -> 0 | O41: 0 | P41: =+J41-N41 -> 0 | Q41: 0 | R41: =+J41*E$7 -> 0
B43: Repairs & Maintenance
C44: Pickup/General Use Equipment | D44: 1 | F44: Acre | G44: 2.48625 | I44: 2.48625 | J44: =E44*H44 -> 0 | K44: 0 | M44: 0 | N44: =J44*L44 -> 0 | O44: 2.48625 | P44: =+J44-N44 -> 0 | Q44: 397.8 | R44: =+J44*E$7 -> 0
C45: Irrigation Equipment | D45: 1 | F45: Acre | G45: 0 | I45: 0 | J45: 0 | K45: 0 | M45: 0 | N45: 0 | O45: 0 | P45: 0 | Q45: 0 | R45: 0
C46: Tractors/Self-Propelled | D46: 1 | F46: Acre | G46: 3.747131587 | I46: 3.747131587 | J46: 0 | K46: 0 | M46: 0 | N46: 0 | O46: 3.747131587 | P46: 0 | Q46: 599.5410539 | R46: 0
C47: Implements | D47: 1 | F47: Acre | G47: 4.788636913 | I47: 4.788636913 | J47: 0 | K47: 0 | M47: 0 | N47: 0 | O47: 4.788636913 | P47: 0 | Q47: 766.1819061 | R47: 0
I48: 0 | J48: 0 | K48: 0 | M48: 0 | N48: 0 | O48: 0 | P48: 0 | Q48: 0 | R48: 0
I49: 0 | J49: 0 | K49: 0 | M49: 0 | N49: 0 | O49: 0 | P49: 0 | Q49: 0 | R49: 0
B50: Interest on Credit Line | G50: 0.09 | I50: 7.042952288 | J50: =+SUM(J18:J49)/2*H50 -> 0 | M50: 0 | N50: =+SUM(N18:N49)/2*L50 -> 0 | O50: 7.042952288 | P50: =+SUM(P18:P49)/2*L50 -> 0 | Q50: 1126.872366 | R50: =+J50*E$7 -> 0
A51: Total Variable Costs | I51: 148.8499708 | J51: =SUM(J19:J50) -> 0 | M51: 0 | N51: =SUM(N19:N50) -> 0 | O51: 148.8499708 | P51: =SUM(P19:P50) -> 0 | Q51: 23815.99533 | R51: =SUM(R19:R50) -> 0
A52: Planned Returns Above Variable Costs: | I52: 31.85002921 | J52: =+J14-J51 -> 0 | M52: 0 | N52: =+N14-N51 -> 0 | O52: 31.85002921 | P52: =+P14-P51 -> 0 | Q52: 5096.004674 | R52: =+R14-R51 -> 0
B53: Breakeven Price to Cover Variable Costs | G53: 4.157498539 | H53: =IF(E10=0,"n/a",(YVarExp-(YTotExp+YTotRet-J10))/E10) -> n/a | I53: Bushel
Q54: Enterprise | R54: Enterprise
A55: FIXED COSTS | D55: Quantity | E55: Quantity | F55: Units | G55: $/Unit | H55: $/Unit | I55: Total | J55: Total | K55: Share | L55: Share | M55: Landlord | N55: Landlord | O55: Tenant | P55: Tenant | Q55: Total | R55: Total
B56: Machinery Depreciation
C57: Pickup/General Use Equipment | D57: 1 | F57: Acre | G57: 2.6105625 | I57: 2.6105625 | J57: =E57*H57 -> 0 | K57: 0 | M57: 0 | N57: =J57*L57 -> 0 | O57: 2.6105625 | P57: =+J57-N57 -> 0 | Q57: 417.69 | R57: =+J57*E$7 -> 0
C58: Tractors/Self-Propelled | D58: 1 | F58: Acre | G58: 3.822512471 | I58: 3.822512471 | J58: 0 | K58: 0 | M58: 0 | N58: =J58*L58 -> 0 | O58: 3.822512471 | P58: 0 | Q58: 611.6019953 | R58: 0
C59: Implements | D59: 1 | F59: Acre | G59: 6.240259627 | I59: 6.240259627 | J59: 0 | K59: 0 | M59: 0 | N59: =J59*L59 -> 0 | O59: 6.240259627 | P59: 0 | Q59: 998.4415404 | R59: 0
B60: Equipment Investment
C61: Pickup/General Use Equipment | D61: 18.0253125 | F61: Dollars | G61: 0.09 | I61: 1.622278125 | J61: =E61*H61 -> 0 | K61: 0 | M61: 0 | N61: =J61*L61 -> 0 | O61: 1.622278125 | P61: =+J61-N61 -> 0 | Q61: 259.5645 | R61: =+J61*E$7 -> 0
C62: Tractors/Self-Propelled | D62: 29.77860521 | F62: Dollars | G62: 0.09 | I62: 2.680074469 | J62: 0 | K62: 0 | M62: 0 | N62: =J62*L62 -> 0 | O62: 2.680074469 | P62: 0 | Q62: 428.8119151 | R62: 0
C63: Implements | D63: 26.69444396 | F63: Dollars | G63: 0.09 | I63: 2.402499956 | J63: 0 | K63: 0 | M63: 0 | N63: =J63*L63 -> 0 | O63: 2.402499956 | P63: 0 | Q63: 384.399993 | R63: 0
B64: Salaried Labor | D64: 1 | F64: Acre | G64: 0 | I64: 0 | J64: 0 | K64: 0 | M64: 0 | N64: =J64*L64 -> 0 | O64: 0 | P64: =+J64-N64 -> 0 | Q64: 0 | R64: =+J64*E$7 -> 0
B65: Management Fee, Owner/Operator Labor | D65: 1 | F65: Acre | G65: 0 | I65: 0 | J65: 0 | K65: 0 | M65: 0 | N65: 0 | O65: 0 | P65: 0 | Q65: 0 | R65: 0
B66: Allocated Establishment Cost | D66: 1 | F66: Acre | G66: 0 | I66: 0 | J66: 0 | K66: 0 | M66: 0 | N66: 0 | O66: 0 | P66: 0 | Q66: 0 | R66: 0
B67: Cash Rent - Wheat Dryland | D67: 1 | F67: Acre | G67: 30 | I67: 30 | J67: 0 | K67: 0 | M67: 0 | N67: 0 | O67: 30 | P67: 0 | Q67: 4800 | R67: 0
B68: Property Taxes | D68: 1 | F68: Acre | G68: 0 | I68: 0 | J68: 0 | K68: 0 | M68: 0 | N68: 0 | O68: 0 | P68: 0 | Q68: 0 | R68: 0
B69: Whole Farm Insurance | D69: 1 | F69: Acre | G69: 0 | I69: 0 | J69: 0 | K69: 0 | M69: 0 | N69: 0 | O69: 0 | P69: 0 | Q69: 0 | R69: 0
D70: 1 | G70: 0 | I70: 0 | J70: 0 | K70: 0 | M70: 0 | N70: 0 | O70: 0 | P70: 0 | Q70: 0 | R70: 0
D71: 1 | G71: 0 | I71: 0 | J71: =E71*H71 -> 0 | K71: 0 | M71: 0 | N71: 0 | O71: 0 | P71: 0 | Q71: 0 | R71: 0
A72: Total Fixed Costs | I72: 49.37818715 | J72: =+SUM(J57:J71) -> 0 | M72: 0 | N72: =+SUM(N57:N71) -> 0 | O72: 49.37818715 | P72: =+SUM(P57:P71) -> 0 | Q72: 7900.509944 | R72: =+SUM(R57:R71) -> 0
A73: Total Specified Costs | I73: 198.2281579 | J73: =+J51+J72 -> 0 | M73: 0 | N73: =+N51+N72 -> 0 | O73: 198.2281579 | P73: =+P51+P72 -> 0 | Q73: 31716.50527 | R73: =+R51+R72 -> 0
A75: Returns Above Specified Costs | I75: -17.52815794 | J75: =+J14-J73 -> 0 | M75: 0 | N75: =+N14-N73 -> 0 | O75: -17.52815794 | P75: =+P14-P73 -> 0 | Q75: -2804.50527 | R75: =+R14-R73 -> 0
A77: Breakeven Price to Cover Total Costs | G77: 6.626407897 | H77: =IF(E10=0,"n/a",(YTotExp-(YTotExp+YTotRet-J10))/E10) -> n/a | I77: Bushel
D79: Example Breakeven Prices
B80: Example | C80: Example | D80: To Cover | G80: To Cover
B81: Yield | C81: Yield | D81: Variable | G81: Total
B82: Percent | C82: Bushel | D82: Costs | G82: Costs
B83: 0.75 | C83: 15 | D83: 5.543331386 | G83: 8.835210529
B84: 0.9 | C84: 18 | D84: 4.619442822 | G84: 7.362675441
B85: 1 | C85: 20 | D85: 4.157498539 | G85: 6.626407897
B86: 1.1 | C86: 22 | D86: 3.779544127 | G86: 6.024007179
B87: 1.25 | C87: 25 | D87: 3.325998832 | G87: 5.301126317
A89: Developed by Justin Benavidez, Assistant Professor, Texas A&M AgriLife Extension, 806-677-5600.
A91: Information presented is prepared solely as a general guide and not intended to recognize or predict the costs and returns from any one operation. Brand names are mentioned only as examples and imply no endorsement.

Sheet WheatSprinkler
A1: Projections for Planning Purposes Only -- Not to be Used without Updating
A2: 2024 Estimated Costs and Returns per Acre
A3: Continuous Wheat, Sprinkler Irrigated (NG)
A4: Enter your name for this budget in the cell above.
A5: Enter Your Values in the cells highlighed in MAROON.
E6: Your Acres | R6: Your
C7: Crop Acres | D7: 122 | L7: Your | Q7: Enterprise | R7: Enterprise
E8: Your | H8: Your | I8: Cash | J8: Your | K8: Landlord | L8: Landlord | N8: Your | P8: Your | Q8: Total | R8: Total
A9: REVENUE | D9: Quantity | E9: Quantity | F9: Units | G9: $/Unit | H9: $/Unit | I9: Total | J9: Total | K9: Share | L9: Share | M9: Landlord | N9: Landlord | O9: Tenant | P9: Tenant | Q9: (122 acres) | R9: ="(" & E7 & " acres)" -> ( acres)
B10: Wheat | D10: 50 | F10: Bushel | G10: 5.75 | I10: 287.5 | J10: =E10*H10 -> 0 | K10: 0 | M10: 0 | N10: =J10*L10 -> 0 | O10: 287.5 | P10: =+J10-N10 -> 0 | Q10: 35075 | R10: =+J10*E$7 -> 0
B11: Grazing - Wheat | D11: 136 | F11: Pound | G11: 0.9 | I11: 122.4 | J11: 0 | K11: 0 | M11: 0 | N11: 0 | O11: 122.4 | P11: =+J11-N11 -> 0 | Q11: 14932.8 | R11: 0
D12: 0 | G12: 0 | I12: 0 | J12: 0 | K12: 0 | M12: 0 | N12: 0 | O12: 0 | P12: 0 | Q12: 0 | R12: 0
D13: 0 | G13: 0 | I13: 0 | J13: 0 | K13: 0 | M13: 0 | N13: 0 | O13: 0 | P13: 0 | Q13: 0 | R13: 0
A14: Total Revenue | I14: 409.9 | J14: =SUM(J10:J13) -> 0 | M14: 0 | N14: =SUM(N10:N13) -> 0 | O14: 409.9 | P14: =SUM(P10:P13) -> 0 | Q14: 50007.8 | R14: =SUM(R10:R13) -> 0
Q15: Enterprise | R15: Enterprise
A16: VARIABLE COSTS | D16: Quantity | E16: Quantity | F16: Units | G16: $/Unit | H16: $/Unit | I16: Total | J16: Total | K16: Share | L16: Share | M16: Landlord | N16: Landlord | O16: Tenant | P16: Tenant | Q16: Total | R16: Total
A17: Production Costs
B18: Seed
C19: Seed - Wheat | D19: 1.2 | F19: Bushel | G19: 12.5 | I19: 15 | J19: =E19*H19 -> 0 | K19: 0 | M19: 0 | N19: =J19*L19 -> 0 | O19: 15 | P19: =+J19-N19 -> 0 | Q19: 1830 | R19: =+J19*E$7 -> 0
B20: Fertilizer
C21: Fertilizer (N) - ANH3 | D21: 45 | F21: Pound | G21: 0.427 | I21: 19.215 | J21: 0 | K21: 0 | M21: 0 | N21: 0 | O21: 19.215 | P21: 0 | Q21: 2344.23 | R21: 0
C22: Fertilizer (P) - Liquid | D22: 25 | F22: Pound | G22: 0.882 | I22: 22.05 | J22: 0 | K22: 0 | M22: 0 | N22: 0 | O22: 22.05 | P22: 0 | Q22: 2690.1 | R22: 0
C23: Fertilizer (N) - Liquid | D23: 20 | F23: Pound | G23: 0.578 | I23: 11.56 | J23: 0 | K23: 0 | M23: 0 | N23: 0 | O23: 11.56 | P23: 0 | Q23: 1410.32 | R23: 0
B24: Custom
C25: Fertilizer Application - ANH3 | D25: 1 | F25: Acre | G25: 18 | I25: 18 | J25: 0 | K25: 0 | M25: 0 | N25: 0 | O25: 18 | P25: 0 | Q25: 2196 | R25: 0
C26: Harvest and Haul - Wheat Irrigated | D26: 50 | F26: Bushel | G26: 1.14 | I26: 57 | J26: 0 | K26: 0 | M26: 0 | N26: 0 | O26: 57 | P26: 0 | Q26: 6954 | R26: 0
B27: Miscellaneous
C28: Crop Insurance Wheat Irrigated | D28: 1 | F28: Acre | G28: 36 | I28: 36 | J28: 0 | K28: 0 | M28: 0 | N28: 0 | O28: 36 | P28: 0 | Q28: 4392 | R28: 0
B29: Insecticide
C30: Insecticide and Apply Wheat | D30: 1 | F30: Acre | G30: 14.62 | I30: 14.62 | J30: 0 | K30: 0 | M30: 0 | N30: 0 | O30: 14.62 | P30: 0 | Q30: 1783.64 | R30: 0
D31: 0 | G31: 0 | I31: 0 | J31: 0 | K31: 0 | M31: 0 | N31: 0 | O31: 0 | P31: 0 | Q31: 0 | R31: 0
D32: 0 | G32: 0 | I32: 0 | J32: 0 | K32: 0 | M32: 0 | N32: 0 | O32: 0 | P32: 0 | Q32: 0 | R32: 0
D33: 0 | G33: 0 | I33: 0 | J33: =E33*H33 -> 0 | K33: 0 | M33: 0 | N33: =J33*L33 -> 0 | O33: 0 | P33: =+J33-N33 -> 0 | Q33: 0 | R33: =+J33*E$7 -> 0
B34: Irrigation
C35: Energy Cost | D35: 10 | F35: AcreInch | G35: 3.8 | I35: 38 | J35: =E35*H35 -> 0 | K35: 0 | M35: 0 | N35: =J35*L35 -> 0 | O35: 38 | P35: =+J35-N35 -> 0 | Q35: 4636 | R35: =+J35*E$7 -> 0
C36: Irrigation Labor | D36: 0.96 | F36: Hour | G36: 17.94 | I36: 17.2224 | J36: 0 | K36: 0 | M36: 0 | N36: 0 | O36: 17.2224 | P36: 0 | Q36: 2101.1328 | R36: 0
B37: Machinery Labor
C38: Tractors/Self-Propelled | D38: 0.25 | F38: Hour | G38: 17.65 | I38: 4.4125 | J38: =E38*H38 -> 0 | K38: 0 | M38: 0 | N38: =J38*L38 -> 0 | O38: 4.4125 | P38: =+J38-N38 -> 0 | Q38: 538.325 | R38: =+J38*E$7 -> 0
C39: Other Labor | D39: 0.29 | F39: Hour | G39: 17.65 | I39: 5.1185 | J39: =E39*H39 -> 0 | K39: 0 | M39: 0 | N39: =J39*L39 -> 0 | O39: 5.1185 | P39: =+J39-N39 -> 0 | Q39: 624.457 | R39: =+J39*E$7 -> 0
B41: Diesel Fuel
C42: Pickup/General Use Equipment | D42: 1 | F42: Acre | G42: 0 | I42: 0 | J42: =E42*H42 -> 0 | K42: 0 | M42: 0 | N42: =J42*L42 -> 0 | O42: 0 | P42: =+J42-N42 -> 0 | Q42: 0 | R42: =+J42*E$7 -> 0
C43: Tractors/Self-Propelled | D43: 1.53 | F43: Gallon | G43: 3.1 | I43: 4.743 | J43: =E43*H43 -> 0 | K43: 0 | M43: 0 | N43: =J43*L43 -> 0 | O43: 4.743 | P43: =+J43-N43 -> 0 | Q43: 578.646 | R43: =+J43*E$7 -> 0
B45: Gasoline
C46: Pickup/General Use Equipment | D46: 1 | F46: Acre | G46: 4.918032787 | I46: 4.918032787 | J46: =E46*H46 -> 0 | K46: 0 | M46: 0 | N46: =J46*L46 -> 0 | O46: 4.918032787 | P46: =+J46-N46 -> 0 | Q46: 600 | R46: =+J46*E$7 -> 0
C47: Tractors/Self-Propelled | D47: 0 | F47: Gallon | G47: 2.4 | I47: 0 | J47: =E47*H47 -> 0 | K47: 0 | M47: 0 | N47: =J47*L47 -> 0 | O47: 0 | P47: =+J47-N47 -> 0 | Q47: 0 | R47: =+J47*E$7 -> 0
B49: Repairs & Maintenance
C50: Pickup/General Use Equipment | D50: 1 | F50: Acre | G50: 2.508196721 | I50: 2.508196721 | J50: =E50*H50 -> 0 | K50: 0 | M50: 0 | N50: =J50*L50 -> 0 | O50: 2.508196721 | P50: =+J50-N50 -> 0 | Q50: 306 | R50: =+J50*E$7 -> 0
C51: Irrigation Equipment | D51: 1 | F51: Acre | G51: 37.5 | I51: 37.5 | J51: 0 | K51: 0 | M51: 0 | N51: 0 | O51: 37.5 | P51: 0 | Q51: 4575 | R51: 0
C52: Tractors/Self-Propelled | D52: 1 | F52: Acre | G52: 3.028743632 | I52: 3.028743632 | J52: 0 | K52: 0 | M52: 0 | N52: 0 | O52: 3.028743632 | P52: 0 | Q52: 369.5067232 | R52: 0
C53: Implements | D53: 1 | F53: Acre | G53: 5.573969896 | I53: 5.573969896 | J53: 0 | K53: 0 | M53: 0 | N53: 0 | O53: 5.573969896 | P53: 0 | Q53: 680.0243273 | R53: 0
I54: 0 | J54: 0 | K54: 0 | M54: 0 | N54: 0 | O54: 0 | P54: 0 | Q54: 0 | R54: 0
I55: 0 | J55: 0 | K55: 0 | M55: 0 | N55: 0 | O55: 0 | P55: 0 | Q55: 0 | R55: 0
B56: Interest on Credit Line | G56: 0.09 | I56: 15.53117015 | J56: =+SUM(J18:J55)/2*H56 -> 0 | M56: 0 | N56: =+SUM(N18:N55)/2*L56 -> 0 | O56: 15.53117015 | P56: =+SUM(P18:P55)/2*L56 -> 0 | Q56: 1894.802758 | R56: =+J56*E$7 -> 0
A57: Total Variable Costs | I57: 332.0015132 | J57: =SUM(J19:J56) -> 0 | M57: 0 | N57: =SUM(N19:N56) -> 0 | O57: 332.0015132 | P57: =SUM(P19:P56) -> 0 | Q57: 40504.18461 | R57: =SUM(R19:R56) -> 0
A58: Planned Returns Above Variable Costs: | I58: 77.89848681 | J58: =+J14-J57 -> 0 | M58: 0 | N58: =+N14-N57 -> 0 | O58: 77.89848681 | P58: =+P14-P57 -> 0 | Q58: 9503.615391 | R58: =+R14-R57 -> 0
B59: Breakeven Price to Cover Variable Costs | G59: 4.192030264 | H59: =IF(E10=0,"n/a",(YVarExp-(YTotExp+YTotRet-J10))/E10) -> n/a | I59: Bushel
Q60: Enterprise | R60: Enterprise
A61: FIXED COSTS | D61: Quantity | E61: Quantity | F61: Units | G61: $/Unit | H61: $/Unit | I61: Total | J61: Total | K61: Share | L61: Share | M61: Landlord | N61: Landlord | O61: Tenant | P61: Tenant | Q61: Total | R61: Total
B62: Machinery Depreciation
C63: Pickup/General Use Equipment | D63: 1 | F63: Acre | G63: 2.633606557 | I63: 2.633606557 | J63: =E63*H63 -> 0 | K63: 0 | M63: 0 | N63: =J63*L63 -> 0 | O63: 2.633606557 | P63: =+J63-N63 -> 0 | Q63: 321.3 | R63: =+J63*E$7 -> 0
C64: Irrigation Equipment | D64: 1 | F64: Acre | G64: 33.50409836 | I64: 33.50409836 | J64: 0 | K64: 0 | M64: 0 | N64: =J64*L64 -> 0 | O64: 33.50409836 | P64: 0 | Q64: 4087.5 | R64: 0
C65: Tractors/Self-Propelled | D65: 1 | F65: Acre | G65: 3.080178251 | I65: 3.080178251 | J65: 0 | K65: 0 | M65: 0 | N65: =J65*L65 -> 0 | O65: 3.080178251 | P65: 0 | Q65: 375.7817466 | R65: 0
C66: Implements | D66: 1 | F66: Acre | G66: 6.930223445 | I66: 6.930223445 | J66: 0 | K66: 0 | M66: 0 | N66: =J66*L66 -> 0 | O66: 6.930223445 | P66: 0 | Q66: 845.4872602 | R66: 0
B67: Equipment Investment
C68: Pickup/General Use Equipment | D68: 18.18442623 | F68: Dollars | G68: 0.09 | I68: 1.636598361 | J68: =E68*H68 -> 0 | K68: 0 | M68: 0 | N68: =J68*L68 -> 0 | O68: 1.636598361 | P68: =+J68-N68 -> 0 | Q68: 199.665 | R68: =+J68*E$7 -> 0
C69: Irrigation Equipment | D69: 470.2868852 | F69: Dollars | G69: 0.09 | I69: 42.32581967 | J69: 0 | K69: 0 | M69: 0 | N69: =J69*L69 -> 0 | O69: 42.32581967 | P69: 0 | Q69: 5163.75 | R69: 0
C70: Tractors/Self-Propelled | D70: 23.99558218 | F70: Dollars | G70: 0.09 | I70: 2.159602396 | J70: 0 | K70: 0 | M70: 0 | N70: =J70*L70 -> 0 | O70: 2.159602396 | P70: 0 | Q70: 263.4714924 | R70: 0
C71: Implements | D71: 29.64595585 | F71: Dollars | G71: 0.09 | I71: 2.668136026 | J71: 0 | K71: 0 | M71: 0 | N71: =J71*L71 -> 0 | O71: 2.668136026 | P71: 0 | Q71: 325.5125952 | R71: 0
B72: Salaried Labor | D72: 1 | F72: Acre | G72: 0 | I72: 0 | J72: 0 | K72: 0 | M72: 0 | N72: =J72*L72 -> 0 | O72: 0 | P72: =+J72-N72 -> 0 | Q72: 0 | R72: =+J72*E$7 -> 0
B73: Management Fee, Owner/Operator Labor | D73: 1 | F73: Acre | G73: 0 | I73: 0 | J73: 0 | K73: 0 | M73: 0 | N73: 0 | O73: 0 | P73: 0 | Q73: 0 | R73: 0
B74: Allocated Establishment Cost | D74: 1 | F74: Acre | G74: 0 | I74: 0 | J74: 0 | K74: 0 | M74: 0 | N74: 0 | O74: 0 | P74: 0 | Q74: 0 | R74: 0
B75: Cash Rent - Wheat Irrigated | D75: 1 | F75: Acre | G75: 125 | I75: 125 | J75: 0 | K75: 0 | M75: 0 | N75: 0 | O75: 125 | P75: 0 | Q75: 15250 | R75: 0
B76: Property Taxes | D76: 1 | F76: Acre | G76: 0 | I76: 0 | J76: 0 | K76: 0 | M76: 0 | N76: 0 | O76: 0 | P76: 0 | Q76: 0 | R76: 0
B77: Whole Farm Insurance | D77: 1 | F77: Acre | G77: 0 | I77: 0 | J77: 0 | K77: 0 | M77: 0 | N77: 0 | O77: 0 | P77: 0 | Q77: 0 | R77: 0
D78: 1 | G78: 0 | I78: 0 | J78: 0 | K78: 0 | M78: 0 | N78: 0 | O78: 0 | P78: 0 | Q78: 0 | R78: 0
D79: 1 | G79: 0 | I79: 0 | J79: =E79*H79 -> 0 | K79: 0 | M79: 0 | N79: 0 | O79: 0 | P79: 0 | Q79: 0 | R79: 0
A80: Total Fixed Costs | I80: 219.9382631 | J80: =+SUM(J63:J79) -> 0 | M80: 0 | N80: =+SUM(N63:N79) -> 0 | O80: 219.9382631 | P80: =+SUM(P63:P79) -> 0 | Q80: 26832.46809 | R80: =+SUM(R63:R79) -> 0
A81: Total Specified Costs | I81: 551.9397763 | J81: =+J57+J80 -> 0 | M81: 0 | N81: =+N57+N80 -> 0 | O81: 551.9397763 | P81: =+P57+P80 -> 0 | Q81: 67336.6527 | R81: =+R57+R80 -> 0
A83: Returns Above Specified Costs | I83: -142.0397763 | J83: =+J14-J81 -> 0 | M83: 0 | N83: =+N14-N81 -> 0 | O83: -142.0397763 | P83: =+P14-P81 -> 0 | Q83: -17328.8527 | R83: =+R14-R81 -> 0
A85: Breakeven Price to Cover Total Costs | G85: 8.590795525 | H85: =IF(E10=0,"n/a",(YTotExp-(YTotExp+YTotRet-J10))/E10) -> n/a | I85: Bushel
D87: Example Breakeven Prices
B88: Example | C88: Example | D88: To Cover | G88: To Cover
B89: Yield | C89: Yield | D89: Variable | G89: Total
B90: Percent | C90: Bushel | D90: Costs | G90: Costs
B91: 0.75 | C91: 37.5 | D91: 5.589373685 | G91: 11.45439403
B92: 0.9 | C92: 45 | D92: 4.657811404 | G92: 9.545328361
B93: 1 | C93: 50 | D93: 4.192030264 | G93: 8.590795525
B94: 1.1 | C94: 55 | D94: 3.810936603 | G94: 7.809814114
B95: 1.25 | C95: 62.5 | D95: 3.353624211 | G95: 6.87263642
A97: Developed by Justin Benavidez, Assistant Professor, Texas A&M AgriLife Extension, 806-677-5600.
A99: Information presented is prepared solely as a general guide and not intended to recognize or predict the costs and returns from any one operation. Brand names are mentioned only as examples and imply no endorsement.

Sheet TriticaleSilage
A1: Projections for Planning Purposes Only -- Not to be Used without Updating
A2: 2024 Estimated Costs and Returns per Acre
A3: Triticale Silage, Sprinkler Irrigated (NG)
A4: Enter your name for this budget in the cell above.
A5: Enter Your Values in the cells highlighed in MAROON.
E6: Your Acres | R6: Your
C7: Crop Acres | D7: 122 | L7: Your | Q7: Enterprise | R7: Enterprise
E8: Your | H8: Your | I8: Cash | J8: Your | K8: Landlord | L8: Landlord | N8: Your | P8: Your | Q8: Total | R8: Total
A9: REVENUE | D9: Quantity | E9: Quantity | F9: Units | G9: $/Unit | H9: $/Unit | I9: Total | J9: Total | K9: Share | L9: Share | M9: Landlord | N9: Landlord | O9: Tenant | P9: Tenant | Q9: (122 acres) | R9: ="(" & E7 & " acres)" -> ( acres)
B10: Triticale Silage | D10: 10 | F10: Ton | G10: 51.6 | I10: 516 | J10: =E10*H10 -> 0 | K10: 0 | M10: 0 | N10: =J10*L10 -> 0 | O10: 516 | P10: =+J10-N10 -> 0 | Q10: 62952 | R10: =+J10*E$7 -> 0
D11: 0 | G11: 0 | I11: 0 | J11: 0 | K11: 0 | M11: 0 | N11: 0 | O11: 0 | P11: =+J11-N11 -> 0 | Q11: 0 | R11: 0
D12: 0 | G12: 0 | I12: 0 | J12: 0 | K12: 0 | M12: 0 | N12: 0 | O12: 0 | P12: 0 | Q12: 0 | R12: 0
A13: Total Revenue | I13: 516 | J13: =SUM(J10:J12) -> 0 | M13: 0 | N13: =SUM(N10:N12) -> 0 | O13: 516 | P13: =SUM(P10:P12) -> 0 | Q13: 62952 | R13: =SUM(R10:R12) -> 0
Q14: Enterprise | R14: Enterprise
A15: VARIABLE COSTS | D15: Quantity | E15: Quantity | F15: Units | G15: $/Unit | H15: $/Unit | I15: Total | J15: Total | K15: Share | L15: Share | M15: Landlord | N15: Landlord | O15: Tenant | P15: Tenant | Q15: Total | R15: Total
A16: Production Costs
B17: Fertilizer
C18: Fertilizer (N) - ANH3 | D18: 55 | F18: Pound | G18: 0.427 | I18: 23.485 | J18: =E18*H18 -> 0 | K18: 0 | M18: 0 | N18: =J18*L18 -> 0 | O18: 23.485 | P18: =+J18-N18 -> 0 | Q18: 2865.17 | R18: =+J18*E$7 -> 0
C19: Fertilizer (P) - Liquid | D19: 35 | F19: Pound | G19: 0.882 | I19: 30.87 | J19: 0 | K19: 0 | M19: 0 | N19: 0 | O19: 30.87 | P19: 0 | Q19: 3766.14 | R19: 0
C20: Fertilizer (N) - Liquid | D20: 25 | F20: Pound | G20: 0.578 | I20: 14.45 | J20: 0 | K20: 0 | M20: 0 | N20: 0 | O20: 14.45 | P20: 0 | Q20: 1762.9 | R20: 0
B21: Custom
C22: Fertilizer Application - ANH3 | D22: 1 | F22: Acre | G22: 18 | I22: 18 | J22: 0 | K22: 0 | M22: 0 | N22: 0 | O22: 18 | P22: 0 | Q22: 2196 | R22: 0
C23: Harvest and Haul - Triticale Silage | D23: 10 | F23: Ton | G23: 12.5 | I23: 125 | J23: 0 | K23: 0 | M23: 0 | N23: 0 | O23: 125 | P23: 0 | Q23: 15250 | R23: 0
B24: Insecticide
C25: Insecticide and Apply Triticale | D25: 1 | F25: Acre | G25: 14.62 | I25: 14.62 | J25: 0 | K25: 0 | M25: 0 | N25: 0 | O25: 14.62 | P25: 0 | Q25: 1783.64 | R25: 0
B26: Seed
C27: Seed - Triticale | D27: 0.6 | F27: CWT | G27: 25 | I27: 15 | J27: 0 | K27: 0 | M27: 0 | N27: 0 | O27: 15 | P27: 0 | Q27: 1830 | R27: 0
D28: 0 | G28: 0 | I28: 0 | J28: 0 | K28: 0 | M28: 0 | N28: 0 | O28: 0 | P28: 0 | Q28: 0 | R28: 0
D29: 0 | G29: 0 | I29: 0 | J29: 0 | K29: 0 | M29: 0 | N29: 0 | O29: 0 | P29: 0 | Q29: 0 | R29: 0
D30: 0 | G30: 0 | I30: 0 | J30: =E30*H30 -> 0 | K30: 0 | M30: 0 | N30: =J30*L30 -> 0 | O30: 0 | P30: =+J30-N30 -> 0 | Q30: 0 | R30: =+J30*E$7 -> 0
B31: Irrigation
C32: Energy Cost | D32: 10 | F32: AcreInch | G32: 3.8 | I32: 38 | J32: =E32*H32 -> 0 | K32: 0 | M32: 0 | N32: =J32*L32 -> 0 | O32: 38 | P32: =+J32-N32 -> 0 | Q32: 4636 | R32: =+J32*E$7 -> 0
C33: Irrigation Labor | D33: 0.96 | F33: Hour | G33: 17.94 | I33: 17.2224 | J33: 0 | K33: 0 | M33: 0 | N33: 0 | O33: 17.2224 | P33: 0 | Q33: 2101.1328 | R33: 0
B34: Machinery Labor
C35: Tractors/Self-Propelled | D35: 0.25 | F35: Hour | G35: 17.65 | I35: 4.4125 | J35: =E35*H35 -> 0 | K35: 0 | M35: 0 | N35: =J35*L35 -> 0 | O35: 4.4125 | P35: =+J35-N35 -> 0 | Q35: 538.325 | R35: =+J35*E$7 -> 0
C36: Other Labor | D36: 0.29 | F36: Hour | G36: 17.65 | I36: 5.1185 | J36: =E36*H36 -> 0 | K36: 0 | M36: 0 | N36: =J36*L36 -> 0 | O36: 5.1185 | P36: =+J36-N36 -> 0 | Q36: 624.457 | R36: =+J36*E$7 -> 0
B38: Diesel Fuel
C39: Pickup/General Use Equipment | D39: 1 | F39: Acre | G39: 0 | I39: 0 | J39: =E39*H39 -> 0 | K39: 0 | M39: 0 | N39: =J39*L39 -> 0 | O39: 0 | P39: =+J39-N39 -> 0 | Q39: 0 | R39: =+J39*E$7 -> 0
C40: Tractors/Self-Propelled | D40: 1.53 | F40: Gallon | G40: 3.1 | I40: 4.743 | J40: =E40*H40 -> 0 | K40: 0 | M40: 0 | N40: =J40*L40 -> 0 | O40: 4.743 | P40: =+J40-N40 -> 0 | Q40: 578.646 | R40: =+J40*E$7 -> 0
B42: Gasoline
C43: Pickup/General Use Equipment | D43: 1 | F43: Acre | G43: 4.918032787 | I43: 4.918032787 | J43: =E43*H43 -> 0 | K43: 0 | M43: 0 | N43: =J43*L43 -> 0 | O43: 4.918032787 | P43: =+J43-N43 -> 0 | Q43: 600 | R43: =+J43*E$7 -> 0
C44: Tractors/Self-Propelled | D44: 0 | F44: Gallon | G44: 2.4 | I44: 0 | J44: =E44*H44 -> 0 | K44: 0 | M44: 0 | N44: =J44*L44 -> 0 | O44: 0 | P44: =+J44-N44 -> 0 | Q44: 0 | R44: =+J44*E$7 -> 0
B46: Repairs & Maintenance
C47: Pickup/General Use Equipment | D47: 1 | F47: Acre | G47: 2.508196721 | I47: 2.508196721 | J47: =E47*H47 -> 0 | K47: 0 | M47: 0 | N47: =J47*L47 -> 0 | O47: 2.508196721 | P47: =+J47-N47 -> 0 | Q47: 306 | R47: =+J47*E$7 -> 0
C48: Irrigation Equipment | D48: 1 | F48: Acre | G48: 37.5 | I48: 37.5 | J48: 0 | K48: 0 | M48: 0 | N48: 0 | O48: 37.5 | P48: 0 | Q48: 4575 | R48: 0
C49: Tractors/Self-Propelled | D49: 1 | F49: Acre | G49: 3.028743632 | I49: 3.028743632 | J49: 0 | K49: 0 | M49: 0 | N49: 0 | O49: 3.028743632 | P49: 0 | Q49: 369.5067232 | R49: 0
C50: Implements | D50: 1 | F50: Acre | G50: 5.573969896 | I50: 5.573969896 | J50: 0 | K50: 0 | M50: 0 | N50: 0 | O50: 5.573969896 | P50: 0 | Q50: 680.0243273 | R50: 0
I51: 0 | J51: 0 | K51: 0 | M51: 0 | N51: 0 | O51: 0 | P51: 0 | Q51: 0 | R51: 0
I52: 0 | J52: 0 | K52: 0 | M52: 0 | N52: 0 | O52: 0 | P52: 0 | Q52: 0 | R52: 0
B53: Interest on Credit Line | G53: 0.09 | I53: 13.97223453 | J53: =+SUM(J17:J52)/2*H53 -> 0 | M53: 0 | N53: =+SUM(N17:N52)/2*L53 -> 0 | O53: 13.97223453 | P53: =+SUM(P17:P52)/2*L53 -> 0 | Q53: 1704.612613 | R53: =+J53*E$7 -> 0
A54: Total Variable Costs | I54: 378.4225776 | J54: =SUM(J18:J53) -> 0 | M54: 0 | N54: =SUM(N18:N53) -> 0 | O54: 378.4225776 | P54: =SUM(P18:P53) -> 0 | Q54: 46167.55446 | R54: =SUM(R18:R53) -> 0
A55: Planned Returns Above Variable Costs: | I55: 137.5774224 | J55: =+J13-J54 -> 0 | M55: 0 | N55: =+N13-N54 -> 0 | O55: 137.5774224 | P55: =+P13-P54 -> 0 | Q55: 16784.44554 | R55: =+R13-R54 -> 0
B56: Breakeven Price to Cover Variable Costs | G56: 37.84225776 | H56: =IF(E10=0,"n/a",(YVarExp-(YTotExp+YTotRet-J10))/E10) -> n/a | I56: Ton
Q57: Enterprise | R57: Enterprise
A58: FIXED COSTS | D58: Quantity | E58: Quantity | F58: Units | G58: $/Unit | H58: $/Unit | I58: Total | J58: Total | K58: Share | L58: Share | M58: Landlord | N58: Landlord | O58: Tenant | P58: Tenant | Q58: Total | R58: Total
B59: Machinery Depreciation
C60: Pickup/General Use Equipment | D60: 1 | F60: Acre | G60: 2.633606557 | I60: 2.633606557 | J60: =E60*H60 -> 0 | K60: 0 | M60: 0 | N60: =J60*L60 -> 0 | O60: 2.633606557 | P60: =+J60-N60 -> 0 | Q60: 321.3 | R60: =+J60*E$7 -> 0
C61: Irrigation Equipment | D61: 1 | F61: Acre | G61: 33.50409836 | I61: 33.50409836 | J61: 0 | K61: 0 | M61: 0 | N61: =J61*L61 -> 0 | O61: 33.50409836 | P61: 0 | Q61: 4087.5 | R61: 0
C62: Tractors/Self-Propelled | D62: 1 | F62: Acre | G62: 3.080178251 | I62: 3.080178251 | J62: 0 | K62: 0 | M62: 0 | N62: =J62*L62 -> 0 | O62: 3.080178251 | P62: 0 | Q62: 375.7817466 | R62: 0
C63: Implements | D63: 1 | F63: Acre | G63: 6.930223445 | I63: 6.930223445 | J63: 0 | K63: 0 | M63: 0 | N63: =J63*L63 -> 0 | O63: 6.930223445 | P63: 0 | Q63: 845.4872602 | R63: 0
B64: Equipment Investment
